{"text_format":"1","workbook":"xlsx","n_sheets":10,"sheets":["Makros","Filter","Input","Auslegung","Output","Link","Set","Maske","Stoffwerte","DB"],"not_rendered":{"charts":0,"images":19,"macros":1,"external_links":0,"defined_names":9,"comments":0,"pivot_tables":0},"unopened":[],"bounds":{"document_bytes":16777216,"sheet_cells":100000,"rows_first":2000,"rows_last":500,"rows_between":2000,"halvings":0,"cell_chars":16384,"cell_head_chars":4096},"cells_cut":0,"cells_raw":0,"read":"whole","date_system":"1900"}

{"sheet":"Makros","index":0,"n_rows":47,"n_cols":3,"rows_kept":47,"cut":false,"hidden":false,"merged":[[33,1,33,5],[34,1,34,5],[36,1,46,5]]}
[{"$f":"Auslegung!A1","v":"Objekt-/Pojektname"}]
[{"$f":"Auslegung!A2","v":"Zweite Zeile | Zusatz Objekt-/Projektname"}]
[]
[]
[]
["Makros für Manipulation Auslegung und Match"]
[]
[]
[]
["Relevante Einträge für LV oder LOI:","LV","(LV: Leistungsverzeichnis | LOI: Level of Information)"]
[]
[]
[]
[]
[]
[]
[]
[]
[]
[]
[]
[]
[]
[]
[]
[]
[]
[]
[]
[]
[]
[]
["Liste für Anzeige relevanter Einträge"]
["LV","Es werden alle Attribute hervorgehoben, welche im Leistungsverzeichnis ausgegeben werden können."]
["Nova","Es werden alle diejenigen Attribute hervorgehoben, welche nur im Nova ausgefüllt werden können."]
["CAD","Es werden alle Attribute angezeigt welche im Nova als Beschriftung vorkommen"]
[100,"Level 100 beschreibt den niedrigsten Grad an Information, 600 den höchsten. Die Informationslevels können etwa mit den SIA Phasen gleichgesetzt werden. Die Abstufungen sind aufgrund unterschiedlicher Projektestandards verfügbar . Eine grobe Abstufung sieht folgend aus: \n- Level 100: Konzeptionelle Darstellungen und Studie \n- Level 200: Angaben zu Dimension und Grösse massgeblicher Bauelemente sowie deren Beziehung untereinander \n- Level 300: Grundlage für die Realisierung: ausschreibungsreife Angaben mit Spezifikationen \n- Level 400: Fabrikationsreife Ausführungsplanung\n- Level 500: Dokumentation des ausgeführten Elementes („as-built“)\n- Level 600: Ausgabe aller dem Komponenten zugewiesenen Attribute"]
[150]
[200]
[250]
[300]
[350]
[400]
[450]
[500]
[550]
[600]

{"sheet":"Filter","index":1,"n_rows":35,"n_cols":6,"rows_kept":35,"cut":false,"hidden":false,"merged":[]}
[{"$f":"Auslegung!A1","v":"Objekt-/Pojektname"}]
[{"$f":"Auslegung!A2","v":"Zweite Zeile | Zusatz Objekt-/Projektname"}]
[]
[]
[]
["Filter"]
[]
[]
[]
[null,"Pumpe",null,"Fühler",null,"Behälter, Speicher"]
[]
[]
[]
[]
[null,"Kombiventil",null,"Sicherheitsarmaturen",null,"WT"]
[]
[]
[]
[]
[null,"Regel 2-Weg Ventil",null,"Ausdehnung Schallschutz",null,"Expansion, Nachspeisung"]
[]
[]
[]
[]
[null,"3-Weg Ventil",null,"STA",null,"Energieerzeugung"]
[]
[]
[]
[]
[null,"Zähler",null,"Armaturen HS",null,"Energieabagbesystem"]
[]
[]
[]
[]
[null,"Motorabsperr-klappen",null,"Filter, Neutrabox",null,"Kühldecken"]

{"sheet":"Input","index":2,"n_rows":0,"n_cols":0,"rows_kept":0,"cut":false,"hidden":false,"merged":[]}

{"sheet":"Auslegung","index":3,"n_rows":14,"n_cols":235,"rows_kept":14,"cut":false,"hidden":false,"merged":[]}
["Objekt-/Pojektname"]
["Zweite Zeile | Zusatz Objekt-/Projektname"]
[]
[]
[]
["Auslegung"]
[]
["0 | Allgemein",null,null,null,null,null,null,null,null,"1 | Bezeichnung",null,null,null,null,null,null,null,null,null,"2 | Auslegedaten",null,null,null,null,null,null,null,null,null,null,null,null,null,null,"3 | Spezifikationen",null,null,null,null,null,null,null,null,null,null,null,null,null,null,"4 | Elektroanschlussdaten",null,null,null,null,null,null,null,null,null,null,null,null,null,null,null,null,null,null,"5 | Standort",null,null,null,null,null,null,null,null,null,null,null,null,"6 | MSR",null,null,null,null,"7 | Ausführung",null,null,null,null,null,null,null,null,null,"8 | Betrieb",null,null,null,null,null,null,null,"9 | Bemerkung",null,null,null,"10| Elektrobezeichnungschild",null,null,null,null,null,null,"11 | Rest 1",null,null,null,null,null,null,null,null,null,null,null,null,null,null,null,null,null,null,null,null,null,null,null,null,null,null,null,null,null,null,null,null,null,null,null,null,null,null,null,null,null,null,null,null,null,null,null,null,null,null,"12 | Rest 2",null,null,null,null,null,null,null,null,null,null,null,null,null,null,null,null,null,null,null,null,null,null,null,null,null,null,null,null,null,null,null,null,null,null,null,null,null,null,null,null,null,null,null,null,null,null,null,null,null,null,null,null,null,null,null,null,null,null,null,null,"Konstanten"]
["Artikelnummer RMB","Unter-BKP","Laufnummer","Komponenten-Typ","Komponenten-Zustand","Materialnummer","Dämmungsnummer","RMB ID",null,"Anlagenummer","Anlagenummer funktional","Anlagenummer Bauherr","Anlage","Anlage funktional","Feldgerät","Nachtext Feldgerät","NPK","e-BKP-H",null,"T VL","T RL","Leistung 1","Leistung 2 (hyd) ","Massenstrom 1","Volumenstrom 1","Massenstrom 2","Volumenstrom 2","kvs Soll","kvs","Δp 1","Δp 2","Medium","DN Rohr 50 Pa/m",null,"DN 1","Ventilstellung","V100 bei Ventilstellung","Fabrikat","Typ / Messweraufnehmer","Fabrikat Antrieb","Typ Antrieb / Rechenwerk","Ausführung","Messart (Ausführung)","mindest Volumenstrom","Δpv100 soll","Ventilautorität pvist","Stellzeit [s]","Länge",null,"Phasen","Spannung","Strom","Anlaufstrom","Leistung el.","Einsatzbereich","Steuersignal","Regelung","Schutzart","Ex Schutzart","Kommunikation","Datenpunkt","Datenpunkt","Datenpunk","Datenpunkt","Datenpunkt","Datenpunkt","Datenpunkt",null,"Gebäude","Mieter","Geschoss","Raumnummer","Klartextraum","Status","Raum Anlage H","Raum Anlage K","Raum Anlage L","X Achse","Y-Achse","Z-Achse",null,"Bezeichnug GA","Bezeichnung Elektroschema","SGK Nummer","SGK Zuordnung",null,"Freigabe Bestellung","Montagetermin Soll","Montagetermin Ist","IBS Termin","Etappe","Lieferant","Lieferung bauseits","URL","Abnahmetermin",null,"Wartungsintervall","Ende Garantie","Servicevertrag","Servicevertrag","Zust. Unterhalt","Instandhaltung","RMB Zlr.Nr.",null,"Zusatz","Passstueck","Kommentrar Technisch",null,"Datenpunktbezeichnung","SGK-Bezeichnung","Klartext Feldgerät","Klartext Feldgerät","BMK Feldgerät","Zeile 2",null,"Ansprechdruck [bar]","Inhalt","Inhalt","Inhalt Anlage","Volumen 1","Volumen 2","Absolute Feuchte 1","Breite (Abmessung 2) ","Durchmesser (Abmessung 4) ","Durchmesser isoliert (Abmessung 5)","Gewicht Betrieb","Hoehe (Abmessung 3)","Material Staerke (Abmessung 6)","Nenndruck PN","Relative Feuchte 1","Schalldruckpegel ","Schallleistungspegel","Abblasdruck","Abblasleistung Dampf","Abblasleitsung Wasser","Absolutdruck 1","COP 1","dT mittel log ","Fläche 1","Fläche 2","Fuelldruck ","Geschwindigkeit 1 ","Gewicht leer ","max. Differenzdruck ","max. Temperatur ","min. Differenzdruck ","min. Temperatur","Temperatur Kondensation Tc","Temperatur Verdampfung T0","dT","Vordruck","Nenndurchfluss ","Hub","Stellkraft","Abscheidegrad","Adapter","Anschlussart","Artikelnummer","Positionsnummer","Energieeffizienzklasse","Gesamtwirkungsgrad Vollast","Montageset","Zulassung VKF","Prüfpflicht","Werkvertrag [Firma/Nummer]",null,"Differenzdruck 3 ","Differenzdruck 4 ","Differenzdruck 5 ","Differenzdruck 6 ","Dimension 2 ","Dimension 3 ","Dimension 4 ","Dimension 5 ","Leistung 3 (hyd) ","Leistung 4 (hyd) ","Massenstrom 3 ","Massenstrom 4 ","Temperatur 3 ","Temperatur 4","Temperatur 5","Temperatur 6","Temperatur 7","Temperatur 8","Dämmstärke","(Abmessung 7)","(Abmessung 8)","(Abmessung 9)","(Abmessung 10)","Absolute Feuchte 2","Relative Feuchte 2","dT2","Medium 2","Medium 3","Medium 4","Medium 5","COP 2","COP 3","COP 4","Geschwindigkeit 2 [m/s]","Anzahl","Ausführung 2","Ausführung 3","Ausführung 4","Ausführung 5","Ausführung 6","Ausführung 7","Ausführung 8","Material 1","Material 2","Material 3","freier Querschnitt ","Abfluss ","Wasserhärte 1 ","Wasserhärte 2 ","Winkel","Frequenzband 1","Frequenzband 2","Filterklasse","Dichtheitsklasse","Zustand Stromlos","Farbe 1","Farbe 2","Nutzung","Nutzungskategorie","System",null,"Wärmekapazität 1","Dichte Medium 1","Wärmekapazität 2","Dichte Medium 2","Δp Wärmezähler","Δp STA","Δp Kombiventil","pv_Soll"]
[null,null,null,null,null,null,null,null,null,null,null,null,null,null,null,null,null,null,null,"[°C]","[°C]","[kW]","[kW]","[kg/h]","[m3/h]","[kg/h]","[m3/h]","[m3/h]","[m3/h]","[kPa]","[kPa]",null,"[DN]",null,"[DN]",null,null,null,null,null,null,null,null,"[m3/h]","[kPa]",null,null,"[mm]",null,null,"[V]","[A]","[A]","[W]","[%]",null,null,"IP",null,null,"DI","DO","AI","AO","Mbus","VA","VD",null,null,null,null,null,null,null,null,null,null,"[mm]","[mm]","[mm]",null,"AKS","BMK",null,null,null,"Datum","Datum","Datum","Datum",null,null,null,null,"Datum",null,"[h]","Datum"," Firma","Nummer",null,null,null,null,null,"Ja / Nein",null,null,"oben links","oben rechts","untern links Zeile 1","unten links Zeile 2","unten rechts Zeile 1","unten rechts Zeile 2",null,"[bar]","[kg]","[l]","[l]","[m3]","[m3]","[g/m3]","[mm]","[mm]","[mm]","[kg]","[mm]","[mm]","[bar]","[%]","[dB]","[dB]","[bar]","[kW]","[kW]","[bar]",null,"[K]","[m2]","[m2]","[bar]","[m/s]","[kg]","[kPa]","[C]","[kPa]","[C]","[C]","[°C]","[K]","[bar]","[m3/h]","[mm]","[N]",null,null,null,null,null,null,null,null,null,null,null,null,"[kPa]","[kPa]","[Pa]","[Pa]","[DN]","[DN]","[DN]","[DN]","[kW]","[kW]","[kg/h]","[kg/h]","[C]","[C]","[C]","[C]","[C]","[C]","[mm]","[mm]","[m]","[m]","[m]","[g/m3]","[%]","[K]",null,null,null,null,null,null,null,null,"[Stk]",null,null,null,null,null,null,null,null,null,null,"[%]","[l/s]","[fH]","[fH]","[Grad]",null,null,null,null,null,null,null,null,null,null,null,"[kJ/kgK]","[kg/m3]","[kJ/kgK]","[kg/m3]","[kPa]","[kPa]","[kPa]"]
[]
["Artikelnummer RMB","KelpyUnterBKP","Laufnummer","KomponenteType","Gelöscht","Materialspezifikation","Dämmungsspezifikation","RMB_ID",null,"Anlagenummer (BKP-XXX)","Anlage funktional (BKP-XXX)","Anlagenummer Bauherr","Klartext Anlage","Klartext Anlage funktional","Klartext Feldgerät","Klartext Feldgerät Nachtext","NPK","e-BKP-H",null,"Temperatur 1 [C]","Temperatur 2 [C]","Leistung 1 (hyd) [kW]","Leistung 2 (hyd) [kW]","Massenstrom 1 [kg/h]","Volumenstrom 1 [m3/h]","Massenstrom 2 [kg/h]","Volumenstrom 2 [m3/h]","2_X_kvs_Soll","kvs [m3/h]","Differenzdruck 1 [kPa]","Differenzdruck 2 [kPa]","Medium 1","2_X_DN_Rohr_50Pa",null,"Dimension 1 [DN]","Voreinstellung","3_X_V100_Voreinstellung","Fabrikat","Typ","Fabrikat (Antrieb)","Typ (Antrieb)","Ausführung 1","Messart (Ausführung)","3_X_min_Volumenstrom","3_X_PV100soll","3_X_Ventilautorität_ist","Stellzeit [s]","Länge (Abmessung 1) [mm]",null,"Phasen","Spannung [V]","Strom [A]","Anlaufstrom [A]","Leistung elektrisch [W]","Einsatzbereich [%]","Steuersignal","Regelungsart","Schutzart IP","Ex-Schutz","Integration Kommunikation","Datenpunkte DI","Datenpunkte DO","Datenpunkte AI","Datenpunkte AO","Datenpunkte MBus","Datenpunkte VA","Datenpunkte VD",null,"Gebäude","Mieter","Geschoss","Raumnummer","Klartext Raum","Status","Raum Anlage H","Raum Anlage K","Raum Anlage L","Achse X","Achse Y","Achse Z",null,"Bezeichnung GA (AKS)","Bezeichnung Elektroschema (BMK)","SGK Nummer","SGK Zuordnung",null,"Freigabe zur Bestellung [Datum]","Montagetermin geplant [Datum]","Montagetermin ist [Datum]","Inbetriebsetzungstermin [Datum]","Etappe","Lieferant","Lieferung bauseits","URL","Abnahmetermin [Datum]",null,"Wartungsintervall [Betriebsstunden]","Ende Garantiefrist [Datum]","Servicevertrag [Firma]","Servicevertrag [Nummer]","Zust.Unterhalt","Instandhaltung","RMB Zlr Nr.",null,"9_X_Zusatz","9_X_Passstueck","Kommentar technisch",null,"X_X_Elektrobezeichnugsschild oben links","X_X_Elektrobezeichnugsschild oben rechts","X_X_Elektrobezeichnugsschild unten links 1","X_X_Elektrobezeichnugsschild unten links 2","X_X_Elektrobezeichnugsschild unten rechts 1","X_X_Elektrobezeichnugsschild unten rechts 2",null,"Ansprechdruck [bar]","Inhalt [kg]","Inhalt [l]","Inhalt Anlage [l]","Volumen 1 [m3]","Volumen 2 [m3]","Absolute Feuchte 1 [g/kg]","Breite (Abmessung 2) [mm]","Durchmesser (Abmessung 4) [mm]","Durchmesser isoliert (Abmessung 5) [mm]","Gewicht Betrieb [kg]","Höhe (Abmessung 3) [mm]","Material Stärke (Abmessung 6) [mm]","Nenndruck PN [bar]","Relative Feuchte 1 [%]","Schalldruckpegel [dB]","Schallleistungspegel [dB]","Abblasdruck [bar]","Abblasleistung Dampf [kW]","Abblasleitsung Wasser [kW]","Absolutdruck 1 [bar]","COP 1","dT mittel log [K]","Fläche 1 [m2]","Fläche 2 [m2]","Fülldruck [bar]","Geschwindigkeit 1 [m/s]","Gewicht leer [kg]","max. Differenzdruck [kPa]","max. Temperatur [C]","min. Differenzdruck [kPa]","min. Temperatur [C]","Temperatur Kondensation Tc [C]","Temperatur Verdampfung T0 [C]","dT1 [K]","Vordruck [bar]","Nenndurchfluss [m3/h]","Hub [mm]","Stellkraft [N]","Abscheidegrad","Adapter","Anschlussart","Artikelnummer","Positionsnummer","Energieeffizienzklasse","Gesamtwirkungsgrad Vollast","Montageset","Zulassung VKF","Prüfpflicht","Werkvertrag [Firma/Nummer]",null,"Differenzdruck 3 [kPa]","Differenzdruck 4 [kPa]","Differenzdruck 5 [Pa]","Differenzdruck 6 [Pa]","Dimension 2 [DN]","Dimension 3 [DN]","Dimension 4 [DN]","Dimension 5 [DN]","Leistung 3 (hyd) [kW]","Leistung 4 (hyd) [kW]","Massenstrom 3 [kg/h]","Massenstrom 4 [kg/h]","Temperatur 3 [C]","Temperatur 4 [C]","Temperatur 5 [C]","Temperatur 6 [C]","Temperatur 7 [C]","Temperatur 8 [C]","Dämmstärke [mm]","(Abmessung 7) [mm]","(Abmessung 8) [m]","(Abmessung 9) [m]","(Abmessung 10) [mm]","Absolute Feuchte 2 [g/kg]","Relative Feuchte 2 [%]","dT2 [K]","Medium 2","Medium 3","Medium 4","Medium 5","COP 2","COP 3","COP 4","Geschwindigkeit 2 [m/s]","Anzahl [Stk]","Ausführung 2","Ausführung 3","Ausführung 4","Ausführung 5","Ausführung 6","Ausführung 7","Ausführung 8","Material 1","Material 2","Material 3","freier Querschnitt [%]","Abfluss [l/s]","Wasserhärte 1 [fH]","Wasserhärte 2 [fH]","Winkel [Grad]","Frequenzband 1","Frequenzband 2","Filterklasse","Dichtheitsklasse","Zustand Stromlos","Farbe 1","Farbe 2","Nutzung","Nutzungskategorie","System",null,"X_X_Waermekapazitaet 1","X_X_Dichte_Medium 1","X_X_Waermekapazitaet 2","X_X_Dichte_Medium 2","X_X_dp_Waermezaehler","X_X_dp_STA","X_X_dp_Kombiventil","X_X_Pvsoll"]
[null,null,null,null,null,null,null,{"$f":"J13&\"_\"&A13&\"_\"&C13","v":"__"},null,null,null,null,null,null,null,null,null,null,null,null,null,null,null,null,{"$f":"IFERROR(IF(OR(X13=\"\",X13=\" \"),\"\",ROUND(X13/HU13,2)),\"\")","v":""},null,null,null,null,null,null,null,{"$f":"IF(X13<0.1,\"\",IF(X13<72.5,\"DN 10\",IF(X13<142.9,\"DN 15\",IF(X13<325,\"DN 20\",IF(X13<607,\"DN 25\",IF(X13<1478,\"DN 32\",IF(X13<2185,\"DN 40\",IF(X13<4189,\"DN 50\",IF(X13<7987,\"DN 65\",IF(X13<12197,\"DN 80\",IF(X13<24400,\"DN 100\",IF(X13<42100,\"DN 125\",IF(X13<69700,\"DN 150\",IF(X13<101400,\"DN 175\",IF(X13<142000,\"DN 200\",IF(X13<257000,\"DN 250\",IF(X13<406000,\"DN 300\",IF(X13=\"mstrom 1\",\"\",\"FEHLER\"))))))))))))))))))","v":""},null,null,null,null,null,null,null,null,null,null,null,null,null,null,null,null,null,null,null,null,null,null,null,null,null,null,null,null,null,null,null,null,null,null,null,null,null,null,null,null,null,null,null,null,null,null,null,null,null,null,null,null,null,null,null,null,null,null,null,null,null,null,null,null,null,null,null,null,null,null,null,null,null,null,null,null,null,null,null,null,null,null,null,null,null,null,null,null,null,null,null,null,null,null,null,null,null,null,null,null,null,null,null,null,null,null,null,null,null,null,null,null,null,null,null,null,null,null,null,null,null,null,null,null,null,null,null,null,null,null,null,null,null,null,null,null,null,null,null,null,null,null,null,null,null,null,null,null,null,null,null,null,null,null,null,null,null,null,null,null,null,null,null,null,null,null,null,null,null,null,null,null,null,null,null,null,null,null,null,null,null,null,null,null,null,null,null,null,null,null,null,null,null,null,{"$f":"IFERROR(VLOOKUP(INDIRECT(Stoffwerte!$B$9&ROW()),Stoffwerte!$A$16:$I$39,2,FALSE)+VLOOKUP(INDIRECT(Stoffwerte!$B$9&ROW()),Stoffwerte!$A$16:$I$39,3,FALSE)*INDIRECT(Stoffwerte!$B$10&ROW())+VLOOKUP(INDIRECT(Stoffwerte!$B$9&ROW()),Stoffwerte!$A$16:$I$39,4,FALSE)*INDIRECT(Stoffwerte!$B$10&ROW())^2+VLOOKUP(INDIRECT(Stoffwerte!$B$9&ROW()),Stoffwerte!$A$16:$I$39,5,FALSE)*INDIRECT(Stoffwerte!$B$10&ROW())^3+VLOOKUP(INDIRECT(Stoffwerte!$B$9&ROW()),Stoffwerte!$A$16:$I$39,6,FALSE)*INDIRECT(Stoffwerte!$B$10&ROW())^4+VLOOKUP(INDIRECT(Stoffwerte!$B$9&ROW()),Stoffwerte!$A$16:$I$39,7,FALSE)*INDIRECT(Stoffwerte!$B$10&ROW())^5+VLOOKUP(INDIRECT(Stoffwerte!$B$9&ROW()),Stoffwerte!$A$16:$I$39,8,FALSE)*INDIRECT(Stoffwerte!$B$10&ROW())^6+VLOOKUP(INDIRECT(Stoffwerte!$B$9&ROW()),Stoffwerte!$A$16:$I$39,9,FALSE)*INDIRECT(Stoffwerte!$B$10&ROW())^7,\"\")","v":""},{"$f":"IFERROR(VLOOKUP(INDIRECT(Stoffwerte!$B$9&ROW()),Stoffwerte!$A$41:$I$64,2,FALSE)+VLOOKUP(INDIRECT(Stoffwerte!$B$9&ROW()),Stoffwerte!$A$41:$I$64,3,FALSE)*INDIRECT(Stoffwerte!$B$10&ROW())+VLOOKUP(INDIRECT(Stoffwerte!$B$9&ROW()),Stoffwerte!$A$41:$I$64,4,FALSE)*INDIRECT(Stoffwerte!$B$10&ROW())^2+VLOOKUP(INDIRECT(Stoffwerte!$B$9&ROW()),Stoffwerte!$A$41:$I$64,5,FALSE)*INDIRECT(Stoffwerte!$B$10&ROW())^3+VLOOKUP(INDIRECT(Stoffwerte!$B$9&ROW()),Stoffwerte!$A$41:$I$64,6,FALSE)*INDIRECT(Stoffwerte!$B$10&ROW())^4+VLOOKUP(INDIRECT(Stoffwerte!$B$9&ROW()),Stoffwerte!$A$41:$I$64,7,FALSE)*INDIRECT(Stoffwerte!$B$10&ROW())^5+VLOOKUP(INDIRECT(Stoffwerte!$B$9&ROW()),Stoffwerte!$A$41:$I$64,8,FALSE)*INDIRECT(Stoffwerte!$B$10&ROW())^6+VLOOKUP(INDIRECT(Stoffwerte!$B$9&ROW()),Stoffwerte!$A$41:$I$64,9,FALSE)*INDIRECT(Stoffwerte!$B$10&ROW())^7,\"\")","v":""},{"$f":"IFERROR(VLOOKUP(INDIRECT(Stoffwerte!$B$11&ROW()),Stoffwerte!$A$16:$I$39,2,FALSE)+VLOOKUP(INDIRECT(Stoffwerte!$B$11&ROW()),Stoffwerte!$A$16:$I$39,3,FALSE)*INDIRECT(Stoffwerte!$B$12&ROW())+VLOOKUP(INDIRECT(Stoffwerte!$B$11&ROW()),Stoffwerte!$A$16:$I$39,4,FALSE)*INDIRECT(Stoffwerte!$B$12&ROW())^2+VLOOKUP(INDIRECT(Stoffwerte!$B$11&ROW()),Stoffwerte!$A$16:$I$39,5,FALSE)*INDIRECT(Stoffwerte!$B$12&ROW())^3+VLOOKUP(INDIRECT(Stoffwerte!$B$11&ROW()),Stoffwerte!$A$16:$I$39,6,FALSE)*INDIRECT(Stoffwerte!$B$12&ROW())^4+VLOOKUP(INDIRECT(Stoffwerte!$B$11&ROW()),Stoffwerte!$A$16:$I$39,7,FALSE)*INDIRECT(Stoffwerte!$B$12&ROW())^5+VLOOKUP(INDIRECT(Stoffwerte!$B$11&ROW()),Stoffwerte!$A$16:$I$39,8,FALSE)*INDIRECT(Stoffwerte!$B$12&ROW())^6+VLOOKUP(INDIRECT(Stoffwerte!$B$11&ROW()),Stoffwerte!$A$16:$I$39,9,FALSE)*INDIRECT(Stoffwerte!$B$12&ROW())^7,\"\")","v":""},{"$f":"IFERROR(VLOOKUP(INDIRECT(Stoffwerte!$B$11&ROW()),Stoffwerte!$A$41:$I$64,2,FALSE)+VLOOKUP(INDIRECT(Stoffwerte!$B$11&ROW()),Stoffwerte!$A$41:$I$64,3,FALSE)*INDIRECT(Stoffwerte!$B$12&ROW())+VLOOKUP(INDIRECT(Stoffwerte!$B$11&ROW()),Stoffwerte!$A$41:$I$64,4,FALSE)*INDIRECT(Stoffwerte!$B$12&ROW())^2+VLOOKUP(INDIRECT(Stoffwerte!$B$11&ROW()),Stoffwerte!$A$41:$I$64,5,FALSE)*INDIRECT(Stoffwerte!$B$12&ROW())^3+VLOOKUP(INDIRECT(Stoffwerte!$B$11&ROW()),Stoffwerte!$A$41:$I$64,6,FALSE)*INDIRECT(Stoffwerte!$B$12&ROW())^4+VLOOKUP(INDIRECT(Stoffwerte!$B$11&ROW()),Stoffwerte!$A$41:$I$64,7,FALSE)*INDIRECT(Stoffwerte!$B$12&ROW())^5+VLOOKUP(INDIRECT(Stoffwerte!$B$11&ROW()),Stoffwerte!$A$41:$I$64,8,FALSE)*INDIRECT(Stoffwerte!$B$12&ROW())^6+VLOOKUP(INDIRECT(Stoffwerte!$B$11&ROW()),Stoffwerte!$A$41:$I$64,9,FALSE)*INDIRECT(Stoffwerte!$B$12&ROW())^7,\"\")","v":""},7,7,20,0.5]
[null,null,null,null,null,null,null,"__",null,null,null,null,null,null,null,null,null,null,null,null,null,null,null,null,"",null,null,null,null,null,null,null,"",null,null,null,null,null,null,null,null,null,null,null,null,null,null,null,null,null,null,null,null,null,null,null,null,null,null,null,null,null,null,null,null,null,null,null,null,null,null,null,null,null,null,null,null,null,null,null,null,null,null,null,null,null,null,null,null,null,null,null,null,null,null,null,null,null,null,null,null,null,null,null,null,null,null,null,null,null,null,null,null,null,null,null,null,null,null,null,null,null,null,null,null,null,null,null,null,null,null,null,null,null,null,null,null,null,null,null,null,null,null,null,null,null,null,null,null,null,null,null,null,null,null,null,null,null,null,null,null,null,null,null,null,null,null,null,null,null,null,null,null,null,null,null,null,null,null,null,null,null,null,null,null,null,null,null,null,null,null,null,null,null,null,null,null,null,null,null,null,null,null,null,null,null,null,null,null,null,null,null,null,null,null,null,null,null,null,null,null,null,null,null,null,null,null,{"$f":"IFERROR(VLOOKUP(INDIRECT(Stoffwerte!$B$9&ROW()),Stoffwerte!$A$16:$I$39,2,FALSE)+VLOOKUP(INDIRECT(Stoffwerte!$B$9&ROW()),Stoffwerte!$A$16:$I$39,3,FALSE)*INDIRECT(Stoffwerte!$B$10&ROW())+VLOOKUP(INDIRECT(Stoffwerte!$B$9&ROW()),Stoffwerte!$A$16:$I$39,4,FALSE)*INDIRECT(Stoffwerte!$B$10&ROW())^2+VLOOKUP(INDIRECT(Stoffwerte!$B$9&ROW()),Stoffwerte!$A$16:$I$39,5,FALSE)*INDIRECT(Stoffwerte!$B$10&ROW())^3+VLOOKUP(INDIRECT(Stoffwerte!$B$9&ROW()),Stoffwerte!$A$16:$I$39,6,FALSE)*INDIRECT(Stoffwerte!$B$10&ROW())^4+VLOOKUP(INDIRECT(Stoffwerte!$B$9&ROW()),Stoffwerte!$A$16:$I$39,7,FALSE)*INDIRECT(Stoffwerte!$B$10&ROW())^5+VLOOKUP(INDIRECT(Stoffwerte!$B$9&ROW()),Stoffwerte!$A$16:$I$39,8,FALSE)*INDIRECT(Stoffwerte!$B$10&ROW())^6+VLOOKUP(INDIRECT(Stoffwerte!$B$9&ROW()),Stoffwerte!$A$16:$I$39,9,FALSE)*INDIRECT(Stoffwerte!$B$10&ROW())^7,\"\")","v":""},{"$f":"IFERROR(VLOOKUP(INDIRECT(Stoffwerte!$B$9&ROW()),Stoffwerte!$A$41:$I$64,2,FALSE)+VLOOKUP(INDIRECT(Stoffwerte!$B$9&ROW()),Stoffwerte!$A$41:$I$64,3,FALSE)*INDIRECT(Stoffwerte!$B$10&ROW())+VLOOKUP(INDIRECT(Stoffwerte!$B$9&ROW()),Stoffwerte!$A$41:$I$64,4,FALSE)*INDIRECT(Stoffwerte!$B$10&ROW())^2+VLOOKUP(INDIRECT(Stoffwerte!$B$9&ROW()),Stoffwerte!$A$41:$I$64,5,FALSE)*INDIRECT(Stoffwerte!$B$10&ROW())^3+VLOOKUP(INDIRECT(Stoffwerte!$B$9&ROW()),Stoffwerte!$A$41:$I$64,6,FALSE)*INDIRECT(Stoffwerte!$B$10&ROW())^4+VLOOKUP(INDIRECT(Stoffwerte!$B$9&ROW()),Stoffwerte!$A$41:$I$64,7,FALSE)*INDIRECT(Stoffwerte!$B$10&ROW())^5+VLOOKUP(INDIRECT(Stoffwerte!$B$9&ROW()),Stoffwerte!$A$41:$I$64,8,FALSE)*INDIRECT(Stoffwerte!$B$10&ROW())^6+VLOOKUP(INDIRECT(Stoffwerte!$B$9&ROW()),Stoffwerte!$A$41:$I$64,9,FALSE)*INDIRECT(Stoffwerte!$B$10&ROW())^7,\"\")","v":""},{"$f":"IFERROR(VLOOKUP(INDIRECT(Stoffwerte!$B$11&ROW()),Stoffwerte!$A$16:$I$39,2,FALSE)+VLOOKUP(INDIRECT(Stoffwerte!$B$11&ROW()),Stoffwerte!$A$16:$I$39,3,FALSE)*INDIRECT(Stoffwerte!$B$12&ROW())+VLOOKUP(INDIRECT(Stoffwerte!$B$11&ROW()),Stoffwerte!$A$16:$I$39,4,FALSE)*INDIRECT(Stoffwerte!$B$12&ROW())^2+VLOOKUP(INDIRECT(Stoffwerte!$B$11&ROW()),Stoffwerte!$A$16:$I$39,5,FALSE)*INDIRECT(Stoffwerte!$B$12&ROW())^3+VLOOKUP(INDIRECT(Stoffwerte!$B$11&ROW()),Stoffwerte!$A$16:$I$39,6,FALSE)*INDIRECT(Stoffwerte!$B$12&ROW())^4+VLOOKUP(INDIRECT(Stoffwerte!$B$11&ROW()),Stoffwerte!$A$16:$I$39,7,FALSE)*INDIRECT(Stoffwerte!$B$12&ROW())^5+VLOOKUP(INDIRECT(Stoffwerte!$B$11&ROW()),Stoffwerte!$A$16:$I$39,8,FALSE)*INDIRECT(Stoffwerte!$B$12&ROW())^6+VLOOKUP(INDIRECT(Stoffwerte!$B$11&ROW()),Stoffwerte!$A$16:$I$39,9,FALSE)*INDIRECT(Stoffwerte!$B$12&ROW())^7,\"\")","v":""},{"$f":"IFERROR(VLOOKUP(INDIRECT(Stoffwerte!$B$11&ROW()),Stoffwerte!$A$41:$I$64,2,FALSE)+VLOOKUP(INDIRECT(Stoffwerte!$B$11&ROW()),Stoffwerte!$A$41:$I$64,3,FALSE)*INDIRECT(Stoffwerte!$B$12&ROW())+VLOOKUP(INDIRECT(Stoffwerte!$B$11&ROW()),Stoffwerte!$A$41:$I$64,4,FALSE)*INDIRECT(Stoffwerte!$B$12&ROW())^2+VLOOKUP(INDIRECT(Stoffwerte!$B$11&ROW()),Stoffwerte!$A$41:$I$64,5,FALSE)*INDIRECT(Stoffwerte!$B$12&ROW())^3+VLOOKUP(INDIRECT(Stoffwerte!$B$11&ROW()),Stoffwerte!$A$41:$I$64,6,FALSE)*INDIRECT(Stoffwerte!$B$12&ROW())^4+VLOOKUP(INDIRECT(Stoffwerte!$B$11&ROW()),Stoffwerte!$A$41:$I$64,7,FALSE)*INDIRECT(Stoffwerte!$B$12&ROW())^5+VLOOKUP(INDIRECT(Stoffwerte!$B$11&ROW()),Stoffwerte!$A$41:$I$64,8,FALSE)*INDIRECT(Stoffwerte!$B$12&ROW())^6+VLOOKUP(INDIRECT(Stoffwerte!$B$11&ROW()),Stoffwerte!$A$41:$I$64,9,FALSE)*INDIRECT(Stoffwerte!$B$12&ROW())^7,\"\")","v":""},7,7,20,0.5]

{"sheet":"Output","index":4,"n_rows":0,"n_cols":0,"rows_kept":0,"cut":false,"hidden":false,"merged":[]}

{"sheet":"Link","index":5,"n_rows":8,"n_cols":13,"rows_kept":8,"cut":false,"hidden":false,"merged":[]}
[{"$f":"Auslegung!A1","v":"Objekt-/Pojektname"}]
[{"$f":"Auslegung!A2","v":"Zweite Zeile | Zusatz Objekt-/Projektname"}]
[]
[]
[]
["Regeln für die Auslegung"]
[]
["Anlagenummer","RMB art nr","Lfnr","Attribut ",null,"Anlagenummer","RMB art nr","Lfnr","Attribut ",null,"Formel",null,"Bemerkung"]

{"sheet":"Set","index":6,"n_rows":100,"n_cols":24,"rows_kept":100,"cut":false,"hidden":false,"merged":[]}
[{"$f":"Auslegung!A1","v":"Objekt-/Pojektname"}]
[{"$f":"Auslegung!A2","v":"Zweite Zeile | Zusatz Objekt-/Projektname"}]
[]
[]
[]
["Formeln für die Berechnungen"]
[]
["Ja [x]","Artikel","Attribut","Formel","Operation (Operant)","Operation (Bezug)","Operation (Operant)","Operation (Bezug)","Operation (Operant)","Operation (Bezug)","Operation (Operant)","Operation (Bezug)","Operation (Operant)","Operation (Bezug)","Operation (Operant)","Operation (Bezug)","Operation (Operant)","Operation (Bezug)","Operation (Operant)",null,"Runden [Rundungsstellen]","Wennfehler[x]",null,"Bemerkung"]
[null,null,"Leistung 1 (hyd) [kW]",null,null,"Massenstrom 1 [kg/h]","*","X_X_Waermekapazitaet 1","*(","Temperatur 1 [C]","-","Temperatur 2 [C]",")/3600"]
[null,null,"Massenstrom 1 [kg/h]",null,"(","Leistung 1 (hyd) [kW]","*3600)/(","X_X_Waermekapazitaet 1","*(","Temperatur 1 [C]","-","Temperatur 2 [C]",")"]
[null,null,"Volumenstrom 1 [m3/h]",null,null,"Massenstrom 1 [kg/h]","/","X_X_Dichte_Medium 1"]
[null,null,"dT1 [K]",null,null,"Temperatur 1 [C]","-","Temperatur 2 [C]"]
[]
["x","x-005","Volumenstrom 1 [m3/h]","Volumenstrom 1 [m3/h] = Leistung 1 (hyd) [kW]/X_X_Waermekapazität/abs(Temperatur 1 [C]-Temperatur 2 [C])*3.6",null,"Leistung 1 (hyd) [kW]","/","X_X_Waermekapazitaet 1","/abs(","Temperatur 1 [C]","-","Temperatur 2 [C]",")*3.6",null,null,null,null,null,null,null,2,"x"]
["x","x-005","Massenstrom 1 [kg/h]","Massenstrom 1 [kg/h] = Leistung 1 (hyd) [kW]/X_X_Waermekapazität/abs(Temperatur 1 [C]-Temperatur 2 [C])*3.6*X_X_Dichte_Medium",null,"Leistung 1 (hyd) [kW]","/","X_X_Waermekapazitaet 1","/abs(","Temperatur 1 [C]","-","Temperatur 2 [C]",")*3.6*","X_X_Dichte_Medium 1",null,null,null,null,null,null,0,"x"]
["x","x-005","dT1 [K]",null,null,"Temperatur 1 [C]","-","Temperatur 2 [C]",null,null,null,null,null,null,null,null,null,null,null,null,0,"x"]
["x","x-005","Volumenstrom 1 [m3/h]",null,null,"Massenstrom 1 [kg/h]","/","X_X_Dichte_Medium 1",null,null,null,null,null,null,null,null,null,null,null,null,2,"x"]
[null,null,null,null,null,null,null,null,null,null,null,null,null,null,null,null,null,null,null,null,null,"x"]
[null,"0-001","Leistung 1 (hyd) [kW]",null,null,"Massenstrom 1 [kg/h]","*","X_X_Waermekapazitaet 1","*abs(","Temperatur 1 [C]","-","Temperatur 2 [C]",")/3600",null,null,null,null,null,null,null,0,"x"]
["x","0-001","Massenstrom 1 [kg/h]",null,"(","Leistung 1 (hyd) [kW]","*3600)/(","X_X_Waermekapazitaet 1","*abs(","Temperatur 1 [C]","-","Temperatur 2 [C]","))",null,null,null,null,null,null,null,0,"x"]
["x","0-001","Volumenstrom 1 [m3/h]",null,null,"Massenstrom 1 [kg/h]","/","X_X_Dichte_Medium 1",null,null,null,null,null,null,null,null,null,null,null,null,2,"x"]
["x","0-001","dT1 [K]",null,null,"Temperatur 1 [C]","-","Temperatur 2 [C]",null,null,null,null,null,null,null,null,null,null,null,null,0]
[null,"0-001","Leistung 1 (hyd) [kW]",null,null,"Massenstrom 2 [kg/h]","*","X_X_Waermekapazitaet 2","*abs(","Temperatur 3 [C]","-","Temperatur 4 [C]",")/3600",null,null,null,null,null,null,null,0,"x"]
["x","0-001","Massenstrom 2 [kg/h]",null,"(","Leistung 1 (hyd) [kW]","*3600)/(","X_X_Waermekapazitaet 2","*abs(","Temperatur 3 [C]","-","Temperatur 4 [C]","))",null,null,null,null,null,null,null,0,"x"]
["x","0-001","dT2 [K]",null,"abs(","Temperatur 3 [C]","-","Temperatur 4 [C]",")",null,null,null,null,null,null,null,null,null,null,null,0,"x"]
[]
["x","2-004","Massenstrom 1 [kg/h]",null,"(","Leistung 1 (hyd) [kW]","*3600)/(","X_X_Waermekapazitaet 1","*abs(","Temperatur 1 [C]","-","Temperatur 2 [C]","))",null,null,null,null,null,null,null,0,"x"]
["x","2-004","Volumenstrom 1 [m3/h]",null,null,"Massenstrom 1 [kg/h]","/","X_X_Dichte_Medium 1",null,null,null,null,null,null,null,null,null,null,null,null,2,"x"]
["x","2-004","dT1 [K]",null,null,"Temperatur 1 [C]","-","Temperatur 2 [C]",null,null,null,null,null,null,null,null,null,null,null,null,0,"x"]
["x","2-004","2_X_kvs_Soll","2_X_kvs_Soll = ((Volumenstrom 1 [m3/h]^2)/(X_X_dp_STA/100))^(1/2)","(","Volumenstrom 1 [m3/h]","^2/(","X_X_dp_STA","/100))^(1/2)",null,null,null,null,null,null,null,null,null,null,null,2,"x"]
["x","2-004","Differenzdruck 1 [kPa]","Differenzdruck 1 [kPa] = ((Volumenstrom 1 [m3/h]^2)/kvs [m3/h]^2)*100","(","Volumenstrom 1 [m3/h]","^2/","kvs [m3/h]","^2)*100",null,null,null,null,null,null,null,null,null,null,null,2,"x"]
[]
[null,"2-008","Leistung 1 (hyd) [kW]",null,null,"Massenstrom 1 [kg/h]","*","X_X_Waermekapazitaet 1","*(","Temperatur 1 [C]","-","Temperatur 2 [C]",")/3600",null,null,null,null,null,null,null,0,"x"]
[null,"2-008","Massenstrom 1 [kg/h]",null,"(","Leistung 1 (hyd) [kW]","*3600)/(","X_X_Waermekapazitaet 1","*(","Temperatur 1 [C]","-","Temperatur 2 [C]","))",null,null,null,null,null,null,null,0,"x"]
[null,"2-008","Volumenstrom 1 [m3/h]",null,null,"Massenstrom 1 [kg/h]","/","X_X_Dichte_Medium 1",null,null,null,null,null,null,null,null,null,null,null,null,2,"x"]
[null,"2-008","dT1 [K]",null,null,"Temperatur 1 [C]","-","Temperatur 2 [C]",null,null,null,null,null,null,null,null,null,null,null,null,0,"x"]
[]
[null,"3-001","Leistung 1 (hyd) [kW]",null,null,"Massenstrom 1 [kg/h]","*","X_X_Waermekapazitaet 1","*abs(","Temperatur 1 [C]","-","Temperatur 2 [C]",")/3600",null,null,null,null,null,null,null,0,"x"]
["x","3-001","Massenstrom 1 [kg/h]",null,"(","Leistung 1 (hyd) [kW]","*3600)/(","X_X_Waermekapazitaet 1","*abs(","Temperatur 1 [C]","-","Temperatur 2 [C]","))",null,null,null,null,null,null,null,0,"x"]
["x","3-001","Volumenstrom 1 [m3/h]",null,null,"Massenstrom 1 [kg/h]","/","X_X_Dichte_Medium 1",null,null,null,null,null,null,null,null,null,null,null,null,2,"x"]
["x","3-001","dT1 [K]",null,null,"Temperatur 1 [C]","-","Temperatur 2 [C]",null,null,null,null,null,null,null,null,null,null,null,null,0,"x"]
["x","3-001","Voreinstellung","Voreinstellung = Runden(1/Volumenstrom 1 [m3/h]*3_X_Vnominal,1)","1/","Volumenstrom 2 [m3/h]","*","Volumenstrom 1 [m3/h]",null,null,null,null,null,null,null,null,null,null,null,null,2,"x"]
[null,"3-001","kvs [m3/h]","kvs [m3/h] = Volumenstrom 1 [m3/h]^2/2_X_Druckverlust min","(","Volumenstrom 1 [m3/h]","^2/(","X_X_dp_Kombiventil","/100))^(1/2)",null,null,null,null,null,null,null,null,null,null,null,2,"x"]
[null,null,null,{"$f":"C44&\" = \"&E44&F44&G44&H44&I44&J44&K44&L44&M44&N44&O44&P44&Q44&R44&S44","v":" = "}]
[null,"3-002","Leistung 1 (hyd) [kW]",null,null,"Massenstrom 1 [kg/h]","*","X_X_Waermekapazitaet 1","*abs(","Temperatur 1 [C]","-","Temperatur 2 [C]",")/3600",null,null,null,null,null,null,null,0,"x"]
["x","3-002","Massenstrom 1 [kg/h]",null,"(","Leistung 1 (hyd) [kW]","*3600)/(","X_X_Waermekapazitaet 1","*abs(","Temperatur 1 [C]","-","Temperatur 2 [C]","))",null,null,null,null,null,null,null,0,"x"]
["x","3-002","Volumenstrom 1 [m3/h]",null,null,"Massenstrom 1 [kg/h]","/","X_X_Dichte_Medium 1",null,null,null,null,null,null,null,null,null,null,null,null,2,"x"]
["x","3-002","dT1 [K]",null,null,"Temperatur 1 [C]","-","Temperatur 2 [C]",null,null,null,null,null,null,null,null,null,null,null,null,0,"x"]
["x","3-002","2_X_kvs_Soll","2_X_kvs_Soll = ((Volumenstrom 1 [m3/h]^2)/(3_X_PV100soll/100))^(1/2)","((","Volumenstrom 1 [m3/h]","^2)/(","Differenzdruck 2 [kPa]","/100))^(1/2)",null,null,null,null,null,null,null,null,null,null,null,2,"x"]
["x","3-002","Differenzdruck 1 [kPa]","Differenzdruck 1 [kPa] = ((Volumenstrom 1 [m3/h]^2)/kvs [m3/h]^2)*100","(","Volumenstrom 1 [m3/h]","^2/","kvs [m3/h]","^2)*100",null,null,null,null,null,null,null,null,null,null,null,2,"x"]
["x","3-002","3_X_PV100soll",null,null,"X_X_Pvsoll","*","Differenzdruck 2 [kPa]","/(1-","X_X_Pvsoll",")"]
["x","3-002","3_X_Ventilautorität_ist","3_X_Ventilautorität_ist = (Volumenstrom 1 [m3/h]^2/kvs [m3/h]^2)/(3_X_pmv/100+Volumenstrom 1 [m3/h]^2/kvs [m3/h]^2)",null,"3_X_PV100soll","/(","3_X_PV100soll","+","Differenzdruck 1 [kPa]",")",null,null,null,null,null,null,null,null,null,2,"x"]
[]
[null,"3-003","Leistung 1 (hyd) [kW]",null,null,"Massenstrom 1 [kg/h]","*","X_X_Waermekapazitaet 1","*abs(","Temperatur 1 [C]","-","Temperatur 2 [C]",")/3600",null,null,null,null,null,null,null,0,"x"]
["x","3-003","Massenstrom 1 [kg/h]",null,"(","Leistung 1 (hyd) [kW]","*3600)/(","X_X_Waermekapazitaet 1","*abs(","Temperatur 1 [C]","-","Temperatur 2 [C]","))",null,null,null,null,null,null,null,0,"x"]
["x","3-003","Volumenstrom 1 [m3/h]",null,null,"Massenstrom 1 [kg/h]","/","X_X_Dichte_Medium 1",null,null,null,null,null,null,null,null,null,null,null,null,2,"x"]
["x","3-003","dT1 [K]",null,null,"Temperatur 1 [C]","-","Temperatur 2 [C]",null,null,null,null,null,null,null,null,null,null,null,null,0,"x"]
["x","3-003","2_X_kvs_Soll","2_X_kvs_Soll = ((Volumenstrom 1 [m3/h]^2)/(3_X_PV100soll/100))^(1/2)","((","Volumenstrom 1 [m3/h]","^2)/(","Differenzdruck 2 [kPa]","/100))^(1/2)",null,null,null,null,null,null,null,null,null,null,null,2,"x"]
["x","3-003","Differenzdruck 1 [kPa]","Differenzdruck 1 [kPa] = ((Volumenstrom 1 [m3/h]^2)/kvs [m3/h]^2)*100","(","Volumenstrom 1 [m3/h]","^2/","kvs [m3/h]","^2)*100",null,null,null,null,null,null,null,null,null,null,null,2,"x"]
["x","3-003","3_X_PV100soll",null,null,"X_X_Pvsoll","*","Differenzdruck 2 [kPa]","/(1-","X_X_Pvsoll",")"]
["x","3-003","3_X_Ventilautorität_ist","3_X_Ventilautorität_ist = (Volumenstrom 1 [m3/h]^2/kvs [m3/h]^2)/(3_X_pmv/100+Volumenstrom 1 [m3/h]^2/kvs [m3/h]^2)",null,"3_X_PV100soll","/(","3_X_PV100soll","+","Differenzdruck 1 [kPa]",")",null,null,null,null,null,null,null,null,null,2,"x"]
[]
[null,"3-007","Leistung 1 (hyd) [kW]",null,null,"Massenstrom 1 [kg/h]","*","X_X_Waermekapazitaet 1","*abs(","Temperatur 1 [C]","-","Temperatur 2 [C]",")/3600",null,null,null,null,null,null,null,0,"x"]
["x","3-007","Massenstrom 1 [kg/h]",null,"(","Leistung 1 (hyd) [kW]","*3600)/(","X_X_Waermekapazitaet 1","*abs(","Temperatur 1 [C]","-","Temperatur 2 [C]","))",null,null,null,null,null,null,null,0,"x"]
["x","3-007","Volumenstrom 1 [m3/h]",null,null,"Massenstrom 1 [kg/h]","/","X_X_Dichte_Medium 1",null,null,null,null,null,null,null,null,null,null,null,null,2,"x"]
["x","3-007","dT1 [K]",null,null,"Temperatur 1 [C]","-","Temperatur 2 [C]",null,null,null,null,null,null,null,null,null,null,null,null,0,"x"]
[null,"3-007","Leistung elektrisch [W]",null,null,"Volumenstrom 1 [m3/h]","*","Differenzdruck 1 [kPa]","/3.5/0.5",null,null,null,null,null,null,null,null,null,null,null,0,"x",null,"Abschätzung P_el Pumpe"]
[]
[null,"3-008","Leistung 1 (hyd) [kW]",null,null,"Massenstrom 1 [kg/h]","*","X_X_Waermekapazitaet 1","*abs(","Temperatur 1 [C]","-","Temperatur 2 [C]",")/3600",null,null,null,null,null,null,null,0,"x"]
["x","3-008","Massenstrom 1 [kg/h]",null,"(","Leistung 1 (hyd) [kW]","*3600)/(","X_X_Waermekapazitaet 1","*abs(","Temperatur 1 [C]","-","Temperatur 2 [C]","))",null,null,null,null,null,null,null,0,"x"]
["x","3-008","Volumenstrom 1 [m3/h]",null,null,"Massenstrom 1 [kg/h]","/","X_X_Dichte_Medium 1",null,null,null,null,null,null,null,null,null,null,null,null,2,"x"]
["x","3-008","dT1 [K]",null,null,"Temperatur 1 [C]","-","Temperatur 2 [C]",null,null,null,null,null,null,null,null,null,null,null,null,0,"x"]
["x","3-008","2_X_kvs_Soll","2_X_kvs_Soll = ((Volumenstrom 1 [m3/h])^2/(X_X_dp_Waermezaehler/100))^(1/2)","((","Volumenstrom 1 [m3/h]","^2)/(","X_X_dp_Waermezaehler","/100))^(1/2)",null,null,null,null,null,null,null,null,null,null,null,2,"x"]
["x","3-008","Differenzdruck 1 [kPa]","Differenzdruck 1 [kPa] = ((Volumenstrom 1 [m3/h])^2)/(kvs [m3/h]^2)*100","(","Volumenstrom 1 [m3/h]","^2/","kvs [m3/h]","^2)*100",null,null,null,null,null,null,null,null,null,null,null,2,"x"]
[]
[]
[]
[]
[]
[]
[]
[]
[]
[]
[]
[null,null,null,{"$f":"C86&\" = \"&E86&F86&G86&H86&I86&J86&K86&L86&M86&N86&O86&P86&Q86&R86&S86","v":" = "}]
[null,null,null," = "]
[null,null,null," = "]
[null,null,null," = "]
[null,null,null," = "]
[null,null,null," = "]
[null,null,null," = "]
[null,null,null," = "]
[null,null,null," = "]
[null,null,null," = "]
[null,null,null," = "]
[null,null,null," = "]
[null,null,null," = "]
[null,null,null," = "]
[null,null,null," = "]

{"sheet":"Maske","index":7,"n_rows":231,"n_cols":19,"rows_kept":231,"cut":false,"hidden":false,"merged":[]}
[{"$f":"Auslegung!A1","v":"Objekt-/Pojektname"}]
[{"$f":"Auslegung!A2","v":"Zweite Zeile | Zusatz Objekt-/Projektname"}]
[]
[]
[]
["Liste der Attribute"]
[null,"Pumpe","Kombiventil","Regel 2-Weg Ventil","3-Weg Ventil","Zähler","Motorabsperr-klappen","Fühler","Sicherheits-armaturen","Ausdehnung Schallschutz","STA","Armaturen HS","Filter, Neutrabox","Behälter, Speicher","WT","Expansion, Nachspeisung","Energie-erzeugung","Energie-abagbesystem","Kühldecken"]
[null,"3-007","3-001","3-002;3-004","3-003;3-006","3-008","3-005","3-009;3-010;3-011;3-012;3-013;3-014;3-015;3-016;3-017;3-018;3-019;3-020;3-021","2-008","0-048;2-016;2-017","2-004;2-032;2-029","0-040;2-001;2-002;2-003;2-005;2-006;2-007;2-009;2-010;2-011;2-013;2-014;2-015;2-020;2-021;2-022;2-030;2-031;2-033","0-005;0-052;0-053;0-050;2-018;2-019","0-006;0-007;0-027;0-028;0-046;0-030;0-032;0-033","0-001","0-002;0-043;0-044;0-045;0-003;0-004;0-051","0-015;0-016;0-017;0-018;0-019;0-020;0-021;0-022;0-023;0-024;0-025;0-026;0-036;0-038;0-039;0-047;0-049","0-008;0-009;0-010;0-011;0-012;0-013;0-014","0-008"]
["Dämmungsspezifikation","x","x","x","x","x","x","x","x","x","x","x","x","x","x","x","x","x","x"]
["Laufnummer"]
["Materialspezifikation","x","x","x","x","x","x","x","x","x","x","x","x","x","x","x","x","x","x"]
["KomponenteType"]
["Gelöscht"]
["Artikelnummer RMB"]
["Anlagenummer (BKP-XXX)"]
["Anlage funktional (BKP-XXX)"]
["Anlagenummer Bauherr"]
["NPK","x","x","x","x","x","x","x","x","x","x","x","x","x","x","x","x","x","x"]
["e-BKP-H","x","x","x","x","x","x","x","x","x","x","x","x","x","x","x","x","x","x"]
["Klartext Anlage"]
["Klartext Anlage funktional"]
["Klartext Feldgerät"]
["Klartext Feldgerät Nachtext"]
["Ansprechdruck [bar]","x","x","x","x","x","x","x",null,"x","x","x","x","x","x",null,"x","x","x"]
["Differenzdruck 1 [kPa]",null,null,null,null,null,null,"x","x",null,null,null,null,"x",null,"x"]
["Differenzdruck 2 [kPa]","x","x","x",null,"x","x","x","x","x","x","x","x","x",null,"x"]
["Differenzdruck 3 [kPa]","x","x","x","x","x","x","x","x","x","x","x","x","x","x","x",null,"x","x"]
["Differenzdruck 4 [kPa]","x","x","x","x","x","x","x","x","x","x","x","x","x","x","x","x","x","x"]
["Differenzdruck 5 [Pa]","x","x","x","x","x","x","x","x","x","x","x","x","x","x","x","x","x","x"]
["Differenzdruck 6 [Pa]","x","x","x","x","x","x","x","x","x","x","x","x","x","x","x","x","x","x"]
["Dimension 1 [DN]",null,null,null,null,null,null,"x"]
["Dimension 2 [DN]","x","x","x","x","x","x","x",null,"x","x","x","x"]
["Dimension 3 [DN]","x","x","x","x","x","x","x","x","x","x","x","x",null,null,"x",null,"x","x"]
["Dimension 4 [DN]","x","x","x","x","x","x","x","x","x","x","x","x",null,null,"x",null,"x","x"]
["Dimension 5 [DN]","x","x","x","x","x","x","x","x","x","x","x","x",null,null,"x",null,"x","x"]
["Inhalt [kg]","x","x","x","x","x","x","x","x","x","x","x","x","x","x","x","x","x","x"]
["Inhalt [l]","x","x","x","x","x","x","x","x","x","x","x","x"]
["Inhalt Anlage [l]","x","x","x","x","x","x","x","x","x","x","x","x"]
["Leistung 1 (hyd) [kW]",null,null,null,null,null,"x","x",null,null,"x","x","x","x"]
["Leistung 2 (hyd) [kW]","x","x","x","x","x","x","x","x","x","x","x","x","x",null,"x"]
["Leistung 3 (hyd) [kW]","x","x","x","x","x","x","x","x","x","x","x","x","x","x","x","x"]
["Leistung 4 (hyd) [kW]","x","x","x","x","x","x","x","x","x","x","x","x","x","x","x","x"]
["Massenstrom 1 [kg/h]",null,null,null,null,null,null,"x"]
["Massenstrom 2 [kg/h]","x","x","x","x","x","x","x","x","x","x","x","x"]
["Massenstrom 3 [kg/h]","x","x","x","x","x","x","x","x","x","x","x","x",null,"x","x"]
["Massenstrom 4 [kg/h]","x","x","x","x","x","x","x","x","x","x","x","x","x","x","x"]
["Temperatur 1 [C]"]
["Temperatur 2 [C]"]
["Temperatur 3 [C]","x","x","x","x","x","x","x","x","x","x","x","x"]
["Temperatur 4 [C]","x","x","x","x","x","x","x","x","x","x","x","x"]
["Temperatur 5 [C]","x","x","x","x","x","x","x","x","x","x","x","x","x","x","x","x","x","x"]
["Temperatur 6 [C]","x","x","x","x","x","x","x","x","x","x","x","x","x","x","x","x","x","x"]
["Temperatur 7 [C]","x","x","x","x","x","x","x","x","x","x","x","x","x","x","x","x","x","x"]
["Temperatur 8 [C]","x","x","x","x","x","x","x","x","x","x","x","x","x","x","x","x","x","x"]
["Volumen 1 [m3]","x","x","x","x","x","x","x","x","x","x","x","x"]
["Volumen 2 [m3]","x","x","x","x","x","x","x","x","x","x","x","x"]
["Volumenstrom 1 [m3/h]",null,null,null,null,null,null,"x"]
["Volumenstrom 2 [m3/h]","x",null,"x","x","x","x","x","x","x","x","x","x","x","x","x","x","x"]
["Dämmstärke [mm]","x","x","x","x","x","x","x","x","x","x","x","x","x","x","x","x","x","x"]
["(Abmessung 7) [mm]","x","x","x","x","x","x","x","x","x","x","x","x","x","x","x","x","x","x"]
["(Abmessung 8) [m]","x","x","x","x","x","x","x","x","x","x","x","x","x","x","x","x","x","x"]
["(Abmessung 9) [m]","x","x","x","x","x","x","x","x","x","x","x","x","x","x","x","x","x","x"]
["(Abmessung 10) [mm]","x","x","x","x","x","x","x","x","x","x","x","x","x","x","x","x","x","x"]
["Absolute Feuchte 1 [g/kg]","x","x","x","x","x","x","x","x","x","x","x","x","x","x","x","x","x","x"]
["Absolute Feuchte 2 [g/kg]","x","x","x","x","x","x","x","x","x","x","x","x","x","x","x","x","x","x"]
["Breite (Abmessung 2) [mm]","x","x","x","x","x","x","x","x","x","x","x","x","x"]
["Durchmesser (Abmessung 4) [mm]","x","x","x","x","x","x",null,"x","x","x","x","x","x",null,"x","x","x","x"]
["Durchmesser isoliert (Abmessung 5) [mm]","x","x","x","x","x","x","x","x","x","x","x","x","x",null,"x","x","x","x"]
["Gewicht Betrieb [kg]","x","x","x","x","x","x","x","x","x","x","x","x"]
["Höhe (Abmessung 3) [mm]","x","x","x","x","x","x","x","x","x","x","x"]
["Länge (Abmessung 1) [mm]"]
["Material Stärke (Abmessung 6) [mm]","x","x","x","x","x","x","x","x","x","x","x","x",null,"x","x","x","x","x"]
["Nenndruck PN [bar]",null,null,null,null,null,null,"x",null,null,null,null,"x"]
["Relative Feuchte 1 [%]","x","x","x","x","x","x","x","x","x","x","x","x","x","x","x","x","x","x"]
["Relative Feuchte 2 [%]","x","x","x","x","x","x","x","x","x","x","x","x","x","x","x","x","x","x"]
["Schalldruckpegel [dB]","x","x","x","x","x","x","x","x","x","x","x","x","x","x"]
["Schallleistungspegel [dB]","x","x","x","x","x","x","x","x","x","x","x","x","x","x"]
["Abblasdruck [bar]","x","x","x","x","x","x","x",null,"x","x","x","x","x","x","x","x","x","x"]
["Abblasleistung Dampf [kW]","x","x","x","x","x","x","x",null,"x","x","x","x","x","x","x","x","x","x"]
["Abblasleitsung Wasser [kW]","x","x","x","x","x","x","x",null,"x","x","x","x","x","x","x","x","x","x"]
["Absolutdruck 1 [bar]","x","x","x","x","x","x","x",null,"x","x","x","x","x","x",null,"x","x","x"]
["COP 1","x","x","x","x","x","x","x","x","x","x","x","x","x","x","x","x","x"]
["COP 2","x","x","x","x","x","x","x","x","x","x","x","x","x","x","x","x","x"]
["COP 3","x","x","x","x","x","x","x","x","x","x","x","x","x","x","x","x","x","x"]
["COP 4","x","x","x","x","x","x","x","x","x","x","x","x","x","x","x","x","x","x"]
["dT mittel log [K]","x","x","x","x","x","x","x","x","x","x","x","x","x","x","x","x","x","x"]
["dT1 [K]"]
["dT2 [K]","x","x","x","x","x","x","x","x","x","x","x","x"]
["Fläche 1 [m2]","x","x","x","x","x","x","x","x","x","x","x","x","x","x","x","x","x"]
["Fläche 2 [m2]","x","x","x","x","x","x","x","x","x","x","x","x","x","x","x","x","x"]
["Fülldruck [bar]","x","x","x","x","x","x","x",null,"x","x","x","x","x","x",null,"x","x","x"]
["Geschwindigkeit 1 [m/s]","x","x","x","x","x","x","x","x","x","x","x","x","x","x","x","x","x","x"]
["Geschwindigkeit 2 [m/s]","x","x","x","x","x","x","x","x","x","x","x","x","x","x","x","x","x","x"]
["Gewicht leer [kg]","x","x","x","x","x","x","x","x","x","x","x","x","x","x","x","x","x","x"]
["max. Differenzdruck [kPa]","x","x","x","x","x","x",null,"x","x","x","x","x","x","x","x","x","x","x"]
["max. Temperatur [C]","x","x","x","x","x","x",null,"x","x","x","x","x","x","x","x","x","x","x"]
["Medium 1"]
["Medium 2","x","x","x","x","x","x","x","x","x","x","x","x","x"]
["Medium 3","x","x","x","x","x","x","x","x","x","x","x","x","x","x","x","x","x","x"]
["Medium 4","x","x","x","x","x","x","x","x","x","x","x","x","x","x","x","x","x","x"]
["Medium 5","x","x","x","x","x","x","x","x","x","x","x","x","x","x","x","x","x","x"]
["min. Differenzdruck [kPa]","x","x","x","x","x","x",null,"x","x","x","x","x","x","x","x","x","x","x"]
["min. Temperatur [C]","x","x","x","x","x","x",null,"x","x","x","x"]
["Temperatur Kondensation Tc [C]","x","x","x","x","x","x","x","x","x","x","x","x","x","x","x","x","x","x"]
["Temperatur Verdampfung T0 [C]","x","x","x","x","x","x","x","x","x","x","x","x","x","x","x",null,"x","x"]
["Vordruck [bar]","x","x","x","x","x","x","x",null,"x","x","x","x","x","x",null,"x","x","x"]
["Fabrikat"]
["Fabrikat (Antrieb)",null,null,null,null,null,null,"x","x","x","x","x","x","x","x"]
["kvs [m3/h]","x",null,null,null,null,"x","x","x","x",null,null,null,"x","x","x","x","x","x"]
["Nenndurchfluss [m3/h]","x","x","x","x",null,"x","x","x","x","x","x","x","x","x","x","x","x","x"]
["Typ"]
["Typ (Antrieb)",null,null,null,null,null,null,"x","x","x","x","x","x","x","x","x"]
["Voreinstellung","x",null,"x","x","x","x","x","x","x",null,"x","x","x","x","x","x","x","x"]
["Anzahl [Stk]","x","x","x","x","x","x","x","x","x","x","x","x","x","x","x","x","x","x"]
["Ausführung 1"]
["Ausführung 2","x","x","x","x","x","x","x","x","x","x","x","x","x","x","x","x","x","x"]
["Ausführung 3","x","x","x","x","x","x","x","x","x","x","x","x","x","x","x","x","x","x"]
["Ausführung 4","x","x","x","x","x","x","x","x","x","x","x","x","x","x","x","x","x","x"]
["Ausführung 5","x","x","x","x","x","x","x","x","x","x","x","x","x","x","x","x","x","x"]
["Ausführung 6","x","x","x","x","x","x","x","x","x","x","x","x","x","x","x","x","x","x"]
["Ausführung 7","x","x","x","x","x","x","x","x","x","x","x","x","x","x","x","x","x","x"]
["Ausführung 8","x","x","x","x","x","x","x","x","x","x","x","x","x","x","x","x","x","x"]
["Hub [mm]","x",null,null,null,"x",null,"x","x","x","x","x","x","x","x","x","x","x","x"]
["Messart (Ausführung)","x","x","x","x",null,"x",null,"x","x","x","x","x","x","x","x","x","x","x"]
["Stellkraft [N]","x",null,null,null,"x",null,"x","x","x","x","x","x","x","x","x","x","x","x"]
["Abscheidegrad","x","x","x","x","x","x","x","x","x","x","x",null,"x","x","x","x","x","x"]
["Adapter",null,"x","x","x",null,"x",null,"x","x","x","x","x","x","x","x","x","x","x"]
["Anschlussart",null,null,null,null,null,null,"x","x"]
["Artikelnummer","x","x","x","x","x","x","x","x","x","x","x","x","x","x","x","x","x","x"]
["Energieeffizienzklasse",null,null,"x","x","x","x","x","x","x","x","x","x","x","x","x"]
["Gesamtwirkungsgrad Vollast","x","x","x","x","x","x","x","x","x","x","x","x","x","x","x"]
["Material 1"]
["Material 2","x","x","x","x","x","x","x","x","x","x","x","x","x","x","x","x","x","x"]
["Material 3","x","x","x","x","x","x","x","x","x","x","x","x","x","x","x","x","x","x"]
["Montageset","x","x","x","x",null,"x","x","x","x","x","x","x","x","x","x","x","x","x"]
["Zulassung VKF","x","x","x","x","x","x","x","x","x","x","x","x","x","x","x"]
["Leistung elektrisch [W]",null,null,null,null,null,null,"x","x","x","x","x","x","x","x","x"]
["Regelungsart",null,null,null,null,null,null,null,"x","x","x","x","x","x","x"]
["Spannung [V]",null,null,null,null,null,null,null,"x","x","x","x","x","x","x"]
["Steuersignal",null,null,null,null,null,null,null,"x","x","x","x","x","x","x"]
["Strom [A]",null,null,null,null,null,null,"x","x","x","x","x","x","x","x"]
["Anlaufstrom [A]",null,null,null,null,null,null,"x","x","x","x","x","x","x","x"]
["Einsatzbereich [%]",null,"x","x","x","x","x","x","x","x","x","x","x","x","x","x"]
["Phasen",null,"x","x","x","x","x","x","x","x","x","x","x","x","x","x"]
["Datenpunkte AI","x","x","x","x","x","x","x","x","x","x","x","x","x","x","x","x","x","x"]
["Datenpunkte AO","x","x","x","x","x","x","x","x","x","x","x","x","x","x","x","x","x","x"]
["Datenpunkte DI","x","x","x","x","x","x","x","x","x","x","x","x","x","x","x","x","x","x"]
["Datenpunkte DO","x","x","x","x","x","x","x","x","x","x","x","x","x","x","x","x","x","x"]
["Datenpunkte MBus","x","x","x","x","x","x","x","x","x","x","x","x","x","x","x","x","x","x"]
["Datenpunkte VA","x","x","x","x","x","x","x","x","x","x","x","x","x","x","x","x","x","x"]
["Datenpunkte VD","x","x","x","x","x","x","x","x","x","x","x","x","x","x","x","x","x","x"]
["Ex-Schutz","x","x","x","x","x","x","x","x","x","x","x","x","x","x","x","x","x","x"]
["Integration Kommunikation",null,"x","x","x",null,"x","x","x","x","x","x","x","x","x","x","x"]
["Schutzart IP",null,"x","x","x","x","x","x","x","x","x","x","x","x","x","x"]
["Geschoss","x","x","x","x","x","x","x","x","x","x","x","x","x","x","x","x","x"]
["Raumnummer","x","x","x","x","x","x","x","x","x","x","x","x","x","x","x","x","x"]
["Status","x","x","x","x","x","x","x","x","x","x","x","x","x","x","x","x","x","x"]
["Achse X","x","x","x","x","x","x","x","x","x","x","x","x","x","x","x","x","x","x"]
["Achse Y","x","x","x","x","x","x","x","x","x","x","x","x","x","x","x","x","x","x"]
["Achse Z","x","x","x","x","x","x","x","x","x","x","x","x","x","x","x","x","x","x"]
["Gebäude","x","x","x","x","x","x","x","x","x","x","x","x","x","x","x","x","x","x"]
["Klartext Raum","x","x","x","x","x","x","x","x","x","x","x","x","x","x","x","x","x"]
["Mieter","x","x","x","x","x","x","x","x","x","x","x","x","x","x","x","x","x","x"]
["Bezeichnung Elektroschema (BMK)","x","x","x","x","x","x","x","x","x","x","x","x","x","x","x","x","x","x"]
["SGK Nummer","x","x","x","x","x","x","x","x","x","x","x","x","x","x","x","x","x","x"]
["SGK Zuordnung","x","x","x","x","x","x","x","x","x","x","x","x","x","x","x","x","x","x"]
["Bezeichnung GA (AKS)","x","x","x","x","x","x","x","x","x","x","x","x","x","x","x","x","x","x"]
["Abnahmetermin [Datum]","x","x","x","x","x","x","x","x","x","x","x","x","x","x","x","x","x","x"]
["Etappe","x","x","x","x","x","x","x","x","x","x","x","x","x","x","x","x","x","x"]
["Freigabe zur Bestellung [Datum]","x","x","x","x","x","x","x","x","x","x","x","x","x","x","x","x","x","x"]
["Inbetriebsetzungstermin [Datum]","x","x","x","x","x","x","x","x","x","x","x","x","x","x","x","x","x","x"]
["Montagetermin geplant [Datum]","x","x","x","x","x","x","x","x","x","x","x","x","x","x","x","x","x","x"]
["Montagetermin ist [Datum]","x","x","x","x","x","x","x","x","x","x","x","x","x","x","x","x","x","x"]
["RMB Zlr Nr.","x","x","x","x","x","x","x","x","x","x","x","x","x","x","x","x","x","x"]
["Servicevertrag [Nummer]","x","x","x","x","x","x","x","x","x","x","x","x","x","x","x","x","x","x"]
["Ende Garantiefrist [Datum]","x","x","x","x","x","x","x","x","x","x","x","x","x","x","x","x","x","x"]
["Servicevertrag [Firma]","x","x","x","x","x","x","x","x","x","x","x","x","x","x","x","x","x","x"]
["Prüfpflicht","x","x","x","x","x","x","x","x","x","x","x","x","x","x","x","x","x","x"]
["Wartungsintervall [Betriebsstunden]","x","x","x","x","x","x","x","x","x","x","x","x","x","x","x","x","x","x"]
["Werkvertrag [Firma/Nummer]","x","x","x","x","x","x","x","x","x","x","x","x","x","x","x","x","x","x"]
["Zust.Unterhalt","x","x","x","x","x","x","x","x","x","x","x","x","x","x","x","x","x","x"]
["Instandhaltung","x","x","x","x","x","x","x","x","x","x","x","x","x","x","x","x","x","x"]
["Lieferant","x","x","x","x","x","x","x","x","x","x","x","x","x","x","x","x","x","x"]
["Lieferung bauseits","x","x","x","x","x","x","x","x","x","x","x","x","x","x","x","x","x","x"]
["Raum Anlage H","x","x","x","x","x","x","x","x","x","x","x","x","x","x","x","x","x","x"]
["Raum Anlage K","x","x","x","x","x","x","x","x","x","x","x","x","x","x","x","x","x","x"]
["Raum Anlage L","x","x","x","x","x","x","x","x","x","x","x","x","x","x","x","x","x","x"]
["Stellzeit [s]","x","x","x","x","x","x","x","x","x","x","x","x","x","x","x","x","x","x"]
["URL","x","x","x","x","x","x","x","x","x","x","x","x","x","x","x","x","x","x"]
["freier Querschnitt [%]","x","x","x","x","x","x","x","x","x","x","x","x","x","x","x","x","x","x"]
["Abfluss [l/s]","x","x","x","x","x","x","x","x","x","x","x","x","x","x","x","x","x","x"]
["Wasserhärte 1 [fH]","x","x","x","x","x","x","x","x","x","x","x","x","x","x","x","x","x","x"]
["Wasserhärte 2 [fH]","x","x","x","x","x","x","x","x","x","x","x","x","x","x","x","x","x","x"]
["Winkel [Grad]","x","x","x","x","x","x","x","x","x","x","x","x","x","x","x","x","x","x"]
["Frequenzband 1","x","x","x","x","x","x","x","x","x","x","x","x","x","x","x","x","x","x"]
["Frequenzband 2","x","x","x","x","x","x","x","x","x","x","x","x","x","x","x","x","x","x"]
["Filterklasse","x","x","x","x","x","x","x","x","x","x","x","x","x","x","x","x","x","x"]
["Dichtheitsklasse","x","x","x","x","x","x","x","x","x","x","x","x","x","x","x","x","x","x"]
["Zustand Stromlos","x","x","x","x","x","x","x","x","x","x","x","x","x","x","x","x","x","x"]
["Farbe 1","x","x","x","x","x","x","x","x","x","x","x","x","x","x","x","x","x","x"]
["Farbe 2","x","x","x","x","x","x","x","x","x","x","x","x","x","x","x","x","x","x"]
["Positionsnummer","x","x","x","x","x","x","x","x","x","x","x","x","x","x","x","x","x","x"]
["Nutzung","x","x","x","x","x","x","x","x","x","x","x","x","x","x","x","x","x","x"]
["Nutzungskategorie","x","x","x","x","x","x","x","x","x","x","x","x","x","x","x","x","x","x"]
["System","x","x","x","x","x","x","x","x","x","x","x","x","x","x","x","x","x","x"]
["Kommentar technisch","x","x","x","x","x","x","x","x","x","x","x","x","x","x","x","x","x","x"]
["RMB_ID"]
["KelpyUnterBKP","x","x","x","x","x","x","x","x","x","x","x","x","x","x","x","x","x","x"]
["2_X_DN_Rohr_50Pa",null,null,null,null,null,null,null,null,null,null,null,null,"x","x","x","x","x","x"]
["2_X_kvs_Soll","x","x",null,null,null,"x","x","x","x",null,"x","x","x","x","x","x","x","x"]
["3_X_min_Volumenstrom","x","x","x","x",null,"x","x","x","x","x",null,"x","x","x","x","x","x","x"]
["3_X_PV100soll","x","x",null,null,"x","x","x","x","x","x","x","x","x","x","x","x","x","x"]
["3_X_V100_Voreinstellung","x","x",null,null,"x","x","x","x","x","x","x","x","x","x","x","x","x","x"]
["3_X_Ventilautorität_ist","x","x",null,null,"x","x","x","x","x","x","x","x","x","x","x","x","x","x"]
["9_X_Passstueck","x","x","x","x",null,"x","x","x","x","x","x","x","x","x","x","x","x","x"]
["9_X_Zusatz",null,null,null,null,null,"x","x","x","x","x","x","x","x","x","x","x","x","x"]
["X_X_Dichte_Medium 1","x","x","x","x","x","x","x","x","x","x","x","x","x","x","x","x","x","x"]
["X_X_Dichte_Medium 2","x","x","x","x","x","x","x","x","x","x","x","x","x","x","x","x","x","x"]
["X_X_dp_STA","x","x","x","x","x","x","x","x","x",null,"x","x","x","x","x","x","x","x"]
["X_X_dp_Waermezaehler","x","x","x","x",null,"x","x","x","x","x","x","x","x","x","x","x","x","x"]
["X_X_dp_Kombiventil","x",null,"x","x","x","x","x","x","x","x","x","x","x","x","x","x","x","x"]
["X_X_Pvsoll","x","x",null,null,"x","x","x","x","x","x","x","x","x","x","x","x","x","x"]
["X_X_Waermekapazitaet 1","x","x","x","x","x","x","x","x","x","x","x","x","x","x","x","x","x","x"]
["X_X_Waermekapazitaet 2","x","x","x","x","x","x","x","x","x","x","x","x","x","x","x","x","x","x"]
["X_X_Elektrobezeichnugsschild oben links","x","x","x","x","x","x","x","x","x","x","x","x","x","x","x","x","x","x"]
["X_X_Elektrobezeichnugsschild oben rechts","x","x","x","x","x","x","x","x","x","x","x","x","x","x","x","x","x","x"]
["X_X_Elektrobezeichnugsschild unten rechts 1","x","x","x","x","x","x","x","x","x","x","x","x","x","x","x","x","x","x"]
["X_X_Elektrobezeichnugsschild unten rechts 2","x","x","x","x","x","x","x","x","x","x","x","x","x","x","x","x","x","x"]
["X_X_Elektrobezeichnugsschild unten links 1","x","x","x","x","x","x","x","x","x","x","x","x","x","x","x","x","x","x"]
["X_X_Elektrobezeichnugsschild unten links 2","x","x","x","x","x","x","x","x","x","x","x","x","x","x","x","x","x","x"]
["."]

{"sheet":"Stoffwerte","index":8,"n_rows":64,"n_cols":13,"rows_kept":64,"cut":false,"hidden":false,"merged":[]}
[{"$f":"Auslegung!A1","v":"Objekt-/Pojektname"}]
[{"$f":"Auslegung!A2","v":"Zweite Zeile | Zusatz Objekt-/Projektname"}]
[]
[]
[]
["Stoffwerte"]
[]
["Eingabedaten","Spaltenbuchstabe"]
["Medium 1",{"$f":"LEFT(ADDRESS(1,MATCH(A9,Auslegung!$12:$12,0),4),LEN(ADDRESS(1,MATCH(A9,Auslegung!$12:$12,0),4))-1)","v":"AF"}]
["Temperatur 1 [C]",{"$f":"LEFT(ADDRESS(1,MATCH(A10,Auslegung!$12:$12,0),4),LEN(ADDRESS(1,MATCH(A10,Auslegung!$12:$12,0),4))-1)","v":"T"}]
["Medium 2",{"$f":"LEFT(ADDRESS(1,MATCH(A11,Auslegung!$12:$12,0),4),LEN(ADDRESS(1,MATCH(A11,Auslegung!$12:$12,0),4))-1)","v":"GK"}]
["Temperatur 2 [C]",{"$f":"LEFT(ADDRESS(1,MATCH(A12,Auslegung!$12:$12,0),4),LEN(ADDRESS(1,MATCH(A12,Auslegung!$12:$12,0),4))-1)","v":"U"}]
[]
[]
["Medium | spez. Wärmekapazität [kJ/kgK]","beta_0","beta_1*x","beta_2*x^2","beta_3*x^3","beta_4*x^4","beta_5*x^5","beta_6*x^6","beta_7*x^7","Geltungsbereich","Testeingabe","T [°C]","spez. Wärmekapazität [kJ/kgK]"]
["Luft",1.006256,2.1205359999999999E-5,4.1801950000000002E-7,-1.5219160000000001E-10,null,null,null,null,"Geltungsbereich 0°C bis 100°C, 1bar (Abweichung <0.04%)",null,25,{"$f":"B16+C16*L16+D16*L16^2+E16*L16^3+F16*L16^4+G16*L16^5+H16*L16^6+I16*L16^7","v":1.00704501819375}]
["Wasser",4.2170431731556199,-3.38336617551249E-3,1.15883761850455E-4,-2.0895984356172899E-6,2.27639253003176E-8,-1.4201905190053299E-10,4.794988211343E-13,-6.7653778811731999E-16,"Geltungsbereich 0°C bis 99°C, 1bar, 0°C bis 150°C 5-10bar (Abweichung <0.25%)",null,25,{"$f":"B17+C17*L17+D17*L17^2+E17*L17^3+F17*L17^4+G17*L17^5+H17*L17^6+I17*L17^7","v":4.1798545837674599}]
["Antifrogen L 25%",3.8973004438630001,1.810388601E-3,-5.0843953000000001E-5,2.0001370000000001E-6,-3.428E-8,2.85E-10,9.9999999999999998E-13,null,"Geltungsbereich -10°C bis 30°C, 1bar (Abweichung <0.75%)",null,25,{"$f":"B18+C18*L18+D18*L18^2+E18*L18^3+F18*L18^4+G18*L18^5+H18*L18^6+I18*L18^7","v":3.931671547638}]
["Antifrogen L 30%",3.8391999999999999,2E-3,null,null,null,null,null,null,null,null,25,{"$f":"B19+C19*L19+D19*L19^2+E19*L19^3+F19*L19^4+G19*L19^5+H19*L19^6+I19*L19^7","v":3.8891999999999998}]
["Antifrogen L 35%",3.7644000000000002,2.3E-3,null,null,null,null,null,null,null,null,25,3.8219000000000003]
["Antifrogen L 40%",3.6810999999999998,2.5999999999999999E-3,null,null,null,null,null,null,null,null,25,3.7460999999999998]
["Antifrogen N 20%",3.8906000000000001,1.2999999999999999E-3,null,null,null,null,null,null,null,null,25,3.9231000000000003]
["Antifrogen N 25%",3.7888000000000002,1.6000000000000001E-3,null,null,null,null,null,null,null,null,25,3.8288000000000002]
["Antifrogen N 30%",3.6865999999999999,1.9E-3,null,null,null,null,null,null,null,null,25,3.7340999999999998]
["Antifrogen N 35%",3.5836999999999999,2.2000000000000001E-3,null,null,null,null,null,null,null,null,25,3.6387]
["Antifrogen N 40%",3.4807000000000001,2.5000000000000001E-3,null,null,null,null,null,null,null,null,25,3.5432000000000001]
[null,null,null,null,null,null,null,null,null,null,null,25,0]
[null,null,null,null,null,null,null,null,null,null,null,25,0]
[null,null,null,null,null,null,null,null,null,null,null,25,0]
[null,null,null,null,null,null,null,null,null,null,null,25,0]
[null,null,null,null,null,null,null,null,null,null,null,25,0]
[null,null,null,null,null,null,null,null,null,null,null,25,0]
[null,null,null,null,null,null,null,null,null,null,null,25,0]
[null,null,null,null,null,null,null,null,null,null,null,25,0]
[null,null,null,null,null,null,null,null,null,null,null,25,0]
[null,null,null,null,null,null,null,null,null,null,null,25,0]
[null,null,null,null,null,null,null,null,null,null,null,25,0]
[null,null,null,null,null,null,null,null,null,null,null,25,0]
[null,null,null,null,null,null,null,null,null,null,null,25,0]
["Medium | Dichte [kg/m3]","beta_0","beta_1*x","beta_2*x^2","beta_3*x^3","beta_4*x^4","beta_5*x^5","beta_6*x^6","beta_7*x^7","Geltungsbereich","Testeingabe","T [°C]","Dichte [kg/m3]"]
["Luft",null,null,null,null,null,null,null,null,null,null,25,{"$f":"B41+C41*L41+D41*L41^2+E41*L41^3+F41*L41^4+G41*L41^5+H41*L41^6+I41*L41^7","v":0}]
["Wasser",999.79276453272905,7.5443530699780006E-2,-8.8881223346106708E-3,7.4349615715618697E-5,-5.05819372165206E-7,1.7128625184881201E-9,-3.4171276919181502E-13,-8.9940922954777E-15,"Geltungsbereich 0°C bis 99°C, 1bar, 0°C bis 150°C 5-10bar (Abweichung <0.1%)",null,25,{"$f":"B42+C42*L42+D42*L42^2+E42*L42^3+F42*L42^4+G42*L42^5+H42*L42^6+I42*L42^7","v":997.10449224587671}]
["Antifrogen L 25%",1031.4488533651399,-0.20405611093199999,-2.4083719759999999E-3,-6.6979382000000002E-5,1.3677710000000001E-6,-1.0802E-8,3.1000000000000003E-11,null,"Geltungsbereich -10°C bis 30°C, 1bar (Abweichung <0.5%)",null,25,1024.2320308880899]
["Antifrogen L 30%",1033.7,-0.3604,-2.5000000000000001E-3,null,null,null,null,null,null,null,25,{"$f":"B44+C44*L44+D44*L44^2+E44*L44^3+F44*L44^4+G44*L44^5+H44*L44^6+I44*L44^7","v":1023.1275000000001}]
["Antifrogen L 35%",1038.5,-0.40749999999999997,-2.2000000000000001E-3,null,null,null,null,null,null,null,25,{"$f":"B45+C45*L45+D45*L45^2+E45*L45^3+F45*L45^4+G45*L45^5+H45*L45^6+I45*L45^7","v":1026.9375}]
["Antifrogen L 40%",1042.9000000000001,-0.45069999999999999,-2E-3,null,null,null,null,null,null,null,25,1030.3825000000002]
["Antifrogen N 20%",1035,-0.3498,-2.0999999999999999E-3,null,null,null,null,null,null,null,25,1024.9425000000001]
["Antifrogen N 25%",1041.7,-0.376,-1.9E-3,null,null,null,null,null,null,null,25,1031.1125]
["Antifrogen N 30%",1048.4000000000001,-0.4032,-1.6999999999999999E-3,null,null,null,null,null,null,null,25,1037.2575000000002]
["Antifrogen N 35%",1055.3,-0.43020000000000003,-1.6000000000000001E-3,null,null,null,null,null,null,null,25,1043.5449999999998]
["Antifrogen N 40%",1062.0999999999999,-0.45850000000000002,-1.4E-3,null,null,null,null,null,null,null,25,1049.7624999999998]
[null,null,null,null,null,null,null,null,null,null,null,25,0]
[null,null,null,null,null,null,null,null,null,null,null,25,0]
[null,null,null,null,null,null,null,null,null,null,null,25,0]
[null,null,null,null,null,null,null,null,null,null,null,25,0]
[null,null,null,null,null,null,null,null,null,null,null,25,0]
[null,null,null,null,null,null,null,null,null,null,null,25,0]
[null,null,null,null,null,null,null,null,null,null,null,25,0]
[null,null,null,null,null,null,null,null,null,null,null,25,0]
[null,null,null,null,null,null,null,null,null,null,null,25,0]
[null,null,null,null,null,null,null,null,null,null,null,25,0]
[null,null,null,null,null,null,null,null,null,null,null,25,0]
[null,null,null,null,null,null,null,null,null,null,null,25,0]
[null,null,null,null,null,null,null,null,null,null,null,25,0]

{"sheet":"DB","index":9,"n_rows":22061,"n_cols":7,"rows_kept":4500,"cut":true,"hidden":false,"merged":[],"bounds":{"rows_first":2000,"rows_last":500,"rows_between":2000,"halvings":0}}
["Komp-Nr","Attribut-Bez","CAD-Bez","LOI","LV Relevant","Gesperrt","CAD"]
["0-001","Abnahmetermin [Datum]","7_a_Abnahmetermin [Datum]",590,"NULL","NULL",0]
["0-001","Achse X","5_c_Achse X","NULL","NULL","NULL",0]
["0-001","Achse Y","5_c_Achse Y","NULL","NULL","NULL",0]
["0-001","Achse Z","5_c_Achse Z","NULL","NULL","NULL",0]
["0-001","Anlage funktional (BKP-XXX)","1_b_Anlage funktional (BKP-XXX)",490,"NULL","NULL",0]
["0-001","Anlagenstruktur-SAN","1_b_Anlagenstruktur-SAN","NULL","NULL","NULL",0]
["0-001","Anlagenummer (BKP-XXX)","1_a_Anlagenummer (BKP-XXX)",100,"NULL","NULL",1]
["0-001","Anlagenummer Bauherr","1_b_Anlagenummer Bauherr",490,"NULL","NULL",0]
["0-001","Anschlussart","3_c_Anschlussart",590,"NULL","NULL",0]
["0-001","Anzahl [Stk]","3_b_Anzahl [Stk]",290,0,"NULL",1]
["0-001","Artikelnummer","3_c_Artikelnummer",300,"NULL","Modell",0]
["0-001","Artikelnummer RMB","0_c_Artikelnummer RMB",100,"NULL","NULL",1]
["0-001","Ausführung 1","3_b_Ausfuehrung 1",490,"NULL","NULL",0]
["0-001","Ausführung 2","3_b_Ausfuehrung 2",490,"NULL","NULL",0]
["0-001","Breite (Abmessung 2) [mm]","2_b_Breite (Abmessung 2) [mm]",200,0,"NULL",1]
["0-001","Dämmungsspezifikation","0_a_Daemmungsspezifikation","NULL","NULL","Prinzipschema",0]
["0-001","Differenzdruck 1 [kPa]","2_a_Differenzdruck 1 [kPa]",290,0,"NULL",1]
["0-001","Differenzdruck 2 [kPa]","2_a_Differenzdruck 2 [kPa]",290,0,"NULL",1]
["0-001","Dimension 1 [DN]","2_a_Dimension 1 [DN]",290,1,"NULL",0]
["0-001","Dimension 2 [DN]","2_a_Dimension 2 [DN]",290,0,"NULL",0]
["0-001","dT mittel log [K]","2_c_dT mittel log [K]",590,"NULL","NULL",0]
["0-001","Durchmesser (Abmessung 4) [mm]","2_b_Durchmesser (Abmessung 4) [mm]",200,"NULL","NULL",0]
["0-001","e-BKP-H","1_b_e-BKP-H",200,"NULL","NULL",0]
["0-001","Einsatzbereich [%]","4_b_Einsatzbereich [%]",590,"NULL","NULL",0]
["0-001","Ende Garantiefrist [Datum]","8_b_Ende Garantiefrist [Datum]",590,"NULL","NULL",0]
["0-001","Fabrikat","3_a_Fabrikat",290,1,"NULL",1]
["0-001","Fläche 1 [m2]","2_c_Flaeche 1 [m2]",390,0,"NULL",0]
["0-001","Freigabe zur Bestellung [Datum]","7_a_Freigabe zur Bestellung [Datum]",400,"NULL","NULL",0]
["0-001","Gebäude","5_c_Gebaeude",200,"NULL","Modell",0]
["0-001","Geschoss","5_a_Geschoss",200,"NULL","Modell",0]
["0-001","Geschwindigkeit 1 [m/s]","2_c_Geschwindigkeit 1 [m/s]",590,"NULL","NULL",0]
["0-001","Geschwindigkeit 2 [m/s]","2_c_Geschwindigkeit 2 [m/s]",590,"NULL","NULL",0]
["0-001","Gewicht Betrieb [kg]","2_b_Gewicht Betrieb [kg]",200,"NULL","NULL",0]
["0-001","Gewicht leer [kg]","2_c_Gewicht leer [kg]",590,"NULL","NULL",0]
["0-001","Höhe (Abmessung 3) [mm]","2_b_Hoehe (Abmessung 3) [mm]",200,0,"NULL",1]
["0-001","Inbetriebsetzungstermin [Datum]","7_b_Inbetriebsetzungstermin [Datum]",590,"NULL","NULL",0]
["0-001","Inhalt [l]","2_a_Inhalt [l]",590,"NULL","NULL",0]
["0-001","Instandhaltung","8_b_Instandhaltung",300,"NULL","NULL",0]
["0-001","KelpyOfferteId","3_c_KelpyOfferteId","NULL",1,"NULL",0]
["0-001","Klartext Anlage","1_c_Klartext Anlage",100,"NULL","NULL",0]
["0-001","Klartext Anlage funktional","1_c_Klartext Anlage funktional",590,"NULL","NULL",0]
["0-001","Klartext Feldgerät","1_c_Klartext Feldgeraet",100,"NULL","Prinzipschema",1]
["0-001","Klartext Feldgerät Nachtext","1_c_Klartext Feldgeraet Nachtext",590,"NULL","NULL",0]
["0-001","Klartext Raum","5_c_Klartext Raum",200,"NULL","Modell",0]
["0-001","Kommentar technisch","9_a_Kommentar technisch",300,1,"NULL",0]
["0-001","Länge (Abmessung 1) [mm]","2_b_Laenge (Abmessung 1) [mm]",200,0,"NULL",1]
["0-001","Laufnummer","0_a_Laufnummer",100,"NULL","NULL",1]
["0-001","Leistung 1 (hyd) [kW]","2_a_Leistung 1 (hyd) [kW]",290,0,"NULL",1]
["0-001","Lieferant","3_c_Lieferant",300,"NULL","NULL",0]
["0-001","Lieferung bauseits","7_a_Lieferung bauseits",300,1,"NULL",0]
["0-001","Massenstrom 1 [kg/h]","2_a_Massenstrom 1 [kg/h]",290,0,"NULL",0]
["0-001","Massenstrom 2 [kg/h]","2_a_Massenstrom 2 [kg/h]",290,0,"NULL",0]
["0-001","Material 1","3_c_Material 1",390,1,"NULL",1]
["0-001","Material 2","3_c_Material 2",200,"NULL","NULL",0]
["0-001","Material 3","3_c_Material 3",200,"NULL","NULL",0]
["0-001","max. Temperatur [C]","2_c_max Temperatur [C]",590,"NULL","NULL",0]
["0-001","Medium 1","2_c_Medium 1",390,0,"NULL",1]
["0-001","Medium 2","2_c_Medium 2",390,0,"NULL",1]
["0-001","Mieter","5_c_Mieter",590,"NULL","NULL",0]
["0-001","min. Differenzdruck [kPa]","2_c_min Differenzdruck [kPa]",590,"NULL","NULL",0]
["0-001","Montagetermin geplant [Datum]","7_b_Montagetermin geplant [Datum]",590,"NULL","NULL",0]
["0-001","Montagetermin ist [Datum]","7_b_Montagetermin ist [Datum]",590,"NULL","NULL",0]
["0-001","Nenndruck PN [bar]","2_b_Nenndruck PN [bar]",290,0,"NULL",0]
["0-001","NPK","1_b_NPK",200,1,"NULL",0]
["0-001","Positionsnummer","5_c_Positionsnummer","NULL","NULL","Prinzipschema",1]
["0-001","Raumnummer","5_a_Raumnummer",200,"NULL","Modell",0]
["0-001","Servicevertrag [Firma]","8_b_Servicevertrag [Firma]",590,"NULL","NULL",0]
["0-001","Servicevertrag [Nummer]","8_a_Servicevertrag [Nummer]",590,"NULL","NULL",0]
["0-001","SIA-Katalog","1_b_SIA-Katalog","NULL","NULL","NULL",0]
["0-001","System","3_b_System",200,"NULL","Prinzipschema",0]
["0-001","Temperatur 1 [C]","2_a_Temperatur 1 [C]",290,0,"NULL",1]
["0-001","Temperatur 2 [C]","2_a_Temperatur 2 [C]",290,0,"NULL",1]
["0-001","Temperatur 3 [C]","2_a_Temperatur 3 [C]",290,0,"NULL",1]
["0-001","Temperatur 4 [C]","2_a_Temperatur 4 [C]",290,0,"NULL",1]
["0-001","Typ","3_a_Typ",290,1,"NULL",1]
["0-001","TypeID Nova dez","0_c_TypeID Nova dez","NULL","NULL","NULL",0]
["0-001","URL","3_c_URL",300,"NULL","NULL",0]
["0-001","Volumenstrom 1 [m3/h]","2_a_Volumenstrom 1 [m3/h]",590,"NULL","NULL",0]
["0-001","Volumenstrom 2 [m3/h]","2_a_Volumenstrom 2 [m3/h]",590,"NULL","NULL",0]
["0-001","Wartungsintervall [Betriebsstunden]","8_c_Wartungsintervall [Betriebsstunden]",590,"NULL","NULL",0]
["0-001","Werkvertrag [Firma/Nummer]","8_c_Werkvertrag [Firma/Nummer]",590,"NULL","NULL",0]
["0-001","Zust.Unterhalt","8_c_Zust Unterhalt",300,"NULL","NULL",0]
["0-002","(Abmessung 8) [m]","2_b_(Abmessung 8) [m]",100,"NULL","NULL",1]
["0-002","Abnahmetermin [Datum]","7_a_Abnahmetermin [Datum]",590,"NULL","NULL",0]
["0-002","Absolutdruck 1 [bar]","2_c_Absolutdruck 1 [bar]",590,"NULL","NULL",0]
["0-002","Achse X","5_c_Achse X","NULL","NULL","NULL",0]
["0-002","Achse Y","5_c_Achse Y","NULL","NULL","NULL",0]
["0-002","Achse Z","5_c_Achse Z","NULL","NULL","NULL",0]
["0-002","Anlage funktional (BKP-XXX)","1_b_Anlage funktional (BKP-XXX)",490,"NULL","NULL",0]
["0-002","Anlagenstruktur-SAN","1_b_Anlagenstruktur-SAN","NULL","NULL","NULL",0]
["0-002","Anlagenummer (BKP-XXX)","1_a_Anlagenummer (BKP-XXX)",100,"NULL","NULL",1]
["0-002","Anlagenummer Bauherr","1_b_Anlagenummer Bauherr",490,"NULL","NULL",0]
["0-002","Anschlussart","3_c_Anschlussart",590,"NULL","NULL",0]
["0-002","Ansprechdruck [bar]","2_a_Ansprechdruck [bar]",300,"NULL","NULL",0]
["0-002","Artikelnummer","3_c_Artikelnummer",300,"NULL","Modell",0]
["0-002","Artikelnummer RMB","0_c_Artikelnummer RMB",100,"NULL","NULL",1]
["0-002","Ausführung 1","3_b_Ausfuehrung 1",590,"NULL","NULL",0]
["0-002","Ausführung 2","3_b_Ausfuehrung 2",590,"NULL","NULL",0]
["0-002","Breite (Abmessung 2) [mm]","2_b_Breite (Abmessung 2) [mm]",200,"NULL","NULL",0]
["0-002","Dimension 1 [DN]","2_a_Dimension 1 [DN]",390,"NULL","NULL",1]
["0-002","Dimension 2 [DN]","2_a_Dimension 2 [DN]",390,"NULL","NULL",0]
["0-002","Durchmesser (Abmessung 4) [mm]","2_b_Durchmesser (Abmessung 4) [mm]",200,"NULL","NULL",1]
["0-002","e-BKP-H","1_b_e-BKP-H",200,"NULL","NULL",0]
["0-002","Ende Garantiefrist [Datum]","8_b_Ende Garantiefrist [Datum]",590,"NULL","NULL",0]
["0-002","Fabrikat","3_a_Fabrikat",290,1,"NULL",1]
["0-002","Freigabe zur Bestellung [Datum]","7_a_Freigabe zur Bestellung [Datum]",400,"NULL","NULL",0]
["0-002","Gebäude","5_c_Gebaeude",200,"NULL","Modell",0]
["0-002","Geschoss","5_a_Geschoss",200,"NULL","Modell",0]
["0-002","Gewicht Betrieb [kg]","2_b_Gewicht Betrieb [kg]",200,"NULL","NULL",0]
["0-002","Gewicht leer [kg]","2_c_Gewicht leer [kg]",590,"NULL","NULL",1]
["0-002","Höhe (Abmessung 3) [mm]","2_b_Hoehe (Abmessung 3) [mm]",200,"NULL","NULL",1]
["0-002","Inbetriebsetzungstermin [Datum]","7_b_Inbetriebsetzungstermin [Datum]",590,"NULL","NULL",0]
["0-002","Inhalt [l]","2_a_Inhalt [l]",290,1,"NULL",1]
["0-002","Inhalt Anlage [l]","2_a_Inhalt Anlage [l]",100,"NULL","NULL",1]
["0-002","Instandhaltung","8_b_Instandhaltung",300,"NULL","NULL",0]
["0-002","KelpyOfferteId","3_c_KelpyOfferteId","NULL",1,"NULL",0]
["0-002","Klartext Anlage","1_c_Klartext Anlage",100,"NULL","NULL",0]
["0-002","Klartext Anlage funktional","1_c_Klartext Anlage funktional",590,"NULL","NULL",0]
["0-002","Klartext Feldgerät","1_c_Klartext Feldgeraet",100,"NULL","Prinzipschema",1]
["0-002","Klartext Feldgerät Nachtext","1_c_Klartext Feldgeraet Nachtext",590,"NULL","NULL",0]
["0-002","Klartext Raum","5_c_Klartext Raum",200,"NULL","Modell",0]
["0-002","Kommentar technisch","9_a_Kommentar technisch",300,1,"NULL",0]
["0-002","Länge (Abmessung 1) [mm]","2_b_Laenge (Abmessung 1) [mm]",200,"NULL","NULL",0]
["0-002","Laufnummer","0_a_Laufnummer",100,"NULL","NULL",1]
["0-002","Lieferant","3_c_Lieferant",300,"NULL","NULL",0]
["0-002","Lieferung bauseits","7_a_Lieferung bauseits",300,1,"NULL",0]
["0-002","Material 1","3_c_Material 1",590,"NULL","NULL",0]
["0-002","max. Temperatur [C]","2_c_max Temperatur [C]",390,0,"NULL",0]
["0-002","Medium 1","2_c_Medium 1",590,"NULL","NULL",1]
["0-002","Mieter","5_c_Mieter",590,"NULL","NULL",0]
["0-002","min. Temperatur [C]","2_c_min Temperatur [C]",390,0,"NULL",0]
["0-002","Montagetermin geplant [Datum]","7_b_Montagetermin geplant [Datum]",590,"NULL","NULL",0]
["0-002","Montagetermin ist [Datum]","7_b_Montagetermin ist [Datum]",590,"NULL","NULL",0]
["0-002","Nenndruck PN [bar]","2_b_Nenndruck PN [bar]",490,"NULL","NULL",1]
["0-002","NPK","1_b_NPK",200,1,"NULL",0]
["0-002","Positionsnummer","5_c_Positionsnummer","NULL","NULL","Prinzipschema",1]
["0-002","Prüfpflicht","8_c_Pruefpflicht",590,"NULL","NULL",0]
["0-002","Raumnummer","5_a_Raumnummer",200,"NULL","Modell",0]
["0-002","Servicevertrag [Firma]","8_b_Servicevertrag [Firma]",590,"NULL","NULL",0]
["0-002","Servicevertrag [Nummer]","8_a_Servicevertrag [Nummer]",590,"NULL","NULL",0]
["0-002","SIA-Katalog","1_b_SIA-Katalog","NULL","NULL","NULL",0]
["0-002","System","3_b_System",200,"NULL","Prinzipschema",0]
["0-002","Temperatur 1 [C]","2_a_Temperatur 1 [C]",390,"NULL","NULL",1]
["0-002","Temperatur 2 [C]","2_a_Temperatur 2 [C]",390,"NULL","NULL",1]
["0-002","Temperatur 3 [C]","2_a_Temperatur 3 [C]",590,"NULL","NULL",0]
["0-002","Typ","3_a_Typ",290,1,"NULL",1]
["0-002","TypeID Nova dez","0_c_TypeID Nova dez","NULL","NULL","NULL",0]
["0-002","URL","3_c_URL",300,"NULL","NULL",0]
["0-002","Vordruck [bar]","2_c_Vordruck [bar]",590,"NULL","NULL",1]
["0-002","Wartungsintervall [Betriebsstunden]","8_c_Wartungsintervall [Betriebsstunden]",590,"NULL","NULL",0]
["0-002","Werkvertrag [Firma/Nummer]","8_c_Werkvertrag [Firma/Nummer]",590,"NULL","NULL",0]
["0-002","Zust.Unterhalt","8_c_Zust Unterhalt",300,"NULL","NULL",0]
["0-003","Abblasdruck [bar]","2_c_Abblasdruck [bar]",590,"NULL","NULL",0]
["0-003","Abnahmetermin [Datum]","7_a_Abnahmetermin [Datum]",590,"NULL","NULL",0]
["0-003","Achse X","5_c_Achse X","NULL","NULL","NULL",0]
["0-003","Achse Y","5_c_Achse Y","NULL","NULL","NULL",0]
["0-003","Achse Z","5_c_Achse Z","NULL","NULL","NULL",0]
["0-003","Anlage funktional (BKP-XXX)","1_b_Anlage funktional (BKP-XXX)",490,"NULL","NULL",0]
["0-003","Anlagenstruktur-SAN","1_b_Anlagenstruktur-SAN","NULL","NULL","NULL",0]
["0-003","Anlagenummer (BKP-XXX)","1_a_Anlagenummer (BKP-XXX)",100,"NULL","NULL",1]
["0-003","Anlagenummer Bauherr","1_b_Anlagenummer Bauherr",490,"NULL","NULL",0]
["0-003","Anschlussart","3_c_Anschlussart",590,"NULL","NULL",0]
["0-003","Artikelnummer","3_c_Artikelnummer",300,1,"Modell",0]
["0-003","Artikelnummer RMB","0_c_Artikelnummer RMB",100,"NULL","NULL",1]
["0-003","Ausführung 1","3_b_Ausfuehrung 1",590,"NULL","NULL",0]
["0-003","Ausführung 2","3_b_Ausfuehrung 2",490,"NULL","NULL",1]
["0-003","Bezeichnung Elektroschema (BMK)","6_a_Bezeichnung Elektroschema (BMK)",390,"NULL","Strangschema",0]
["0-003","Bezeichnung GA (AKS)","6_c_Bezeichnung GA (AKS)",590,"NULL","NULL",0]
["0-003","Breite (Abmessung 2) [mm]","2_b_Breite (Abmessung 2) [mm]",200,"NULL","NULL",0]
["0-003","Datenpunkte AI","4_c_Datenpunkte AI",590,"NULL","NULL",0]
["0-003","Datenpunkte AO","4_c_Datenpunkte AO",590,"NULL","NULL",0]
["0-003","Datenpunkte DI","4_c_Datenpunkte DI",590,"NULL","NULL",0]
["0-003","Datenpunkte DO","4_c_Datenpunkte DO",590,"NULL","NULL",0]
["0-003","Datenpunkte MBus","4_c_Datenpunkt MBus",590,"NULL","NULL",0]
["0-003","Datenpunkte VA","4_c_Datenpunkt VA",590,"NULL","NULL",0]
["0-003","Datenpunkte VD","4_c_Datenpunkt VD",590,"NULL","NULL",0]
["0-003","Dimension 1 [DN]","2_a_Dimension 1 [DN]",390,"NULL","NULL",1]
["0-003","Dimension 2 [DN]","2_a_Dimension 2 [DN]",390,"NULL","NULL",1]
["0-003","Dimension 3 [DN]","2_a_Dimension 3 [DN]",390,"NULL","NULL",0]
["0-003","e-BKP-H","1_b_e-BKP-H",200,"NULL","NULL",0]
["0-003","Einsatzbereich [%]","4_b_Einsatzbereich [%]",390,"NULL","NULL",0]
["0-003","Ende Garantiefrist [Datum]","8_b_Ende Garantiefrist [Datum]",590,"NULL","NULL",0]
["0-003","Fabrikat","3_a_Fabrikat",290,1,"NULL",1]
["0-003","Freigabe zur Bestellung [Datum]","7_a_Freigabe zur Bestellung [Datum]",400,"NULL","NULL",0]
["0-003","Gebäude","5_c_Gebaeude",200,"NULL","Modell",0]
["0-003","Geschoss","5_a_Geschoss",200,"NULL","Modell",0]
["0-003","Gewicht Betrieb [kg]","2_b_Gewicht Betrieb [kg]",200,"NULL","NULL",0]
["0-003","Gewicht leer [kg]","2_c_Gewicht leer [kg]",590,"NULL","NULL",0]
["0-003","Höhe (Abmessung 3) [mm]","2_b_Hoehe (Abmessung 3) [mm]",200,"NULL","NULL",0]
["0-003","Inbetriebsetzungstermin [Datum]","7_b_Inbetriebsetzungstermin [Datum]",590,"NULL","NULL",0]
["0-003","Inhalt [l]","2_a_Inhalt [l]",590,"NULL","NULL",1]
["0-003","Instandhaltung","8_b_Instandhaltung",300,"NULL","NULL",0]
["0-003","Integration Kommunikation","4_c_Integration Kommunikation",590,"NULL","NULL",0]
["0-003","KelpyOfferteId","3_c_KelpyOfferteId","NULL",1,"NULL",0]
["0-003","Klartext Anlage","1_c_Klartext Anlage",100,"NULL","NULL",0]
["0-003","Klartext Anlage funktional","1_c_Klartext Anlage funktional",590,"NULL","NULL",0]
["0-003","Klartext Feldgerät","1_c_Klartext Feldgeraet",100,"NULL","Prinzipschema",1]
["0-003","Klartext Feldgerät Nachtext","1_c_Klartext Feldgeraet Nachtext",590,"NULL","NULL",0]
["0-003","Klartext Raum","5_c_Klartext Raum",200,"NULL","Modell",0]
["0-003","Kommentar technisch","9_a_Kommentar technisch",300,1,"NULL",0]
["0-003","Länge (Abmessung 1) [mm]","2_b_Laenge (Abmessung 1) [mm]",200,"NULL","NULL",0]
["0-003","Laufnummer","0_a_Laufnummer",100,"NULL","NULL",1]
["0-003","Leistung elektrisch [W]","4_a_Leistung elektrisch [W]",390,"NULL","NULL",1]
["0-003","Lieferant","3_c_Lieferant",300,"NULL","NULL",0]
["0-003","Lieferung bauseits","7_a_Lieferung bauseits",300,1,"NULL",0]
["0-003","Massenstrom 1 [kg/h]","2_a_Massenstrom 1 [kg/h]",390,"NULL","NULL",0]
["0-003","Material 1","3_c_Material 1",590,"NULL","NULL",0]
["0-003","max. Temperatur [C]","2_c_max Temperatur [C]",590,"NULL","NULL",0]
["0-003","Medium 1","2_c_Medium 1",590,"NULL","NULL",0]
["0-003","Mieter","5_c_Mieter",590,"NULL","NULL",0]
["0-003","min. Temperatur [C]","2_c_min Temperatur [C]",590,"NULL","NULL",0]
["0-003","Montagetermin geplant [Datum]","7_b_Montagetermin geplant [Datum]",590,"NULL","NULL",0]
["0-003","Montagetermin ist [Datum]","7_b_Montagetermin ist [Datum]",590,"NULL","NULL",0]
["0-003","Nenndruck PN [bar]","2_b_Nenndruck PN [bar]",490,"NULL","NULL",0]
["0-003","NPK","1_b_NPK",200,1,"NULL",0]
["0-003","Phasen","4_b_Phasen",490,"NULL","NULL",0]
["0-003","Positionsnummer","5_c_Positionsnummer","NULL","NULL","Prinzipschema",1]
["0-003","Raumnummer","5_a_Raumnummer",200,"NULL","Modell",0]
["0-003","Schalldruckpegel [dB]","2_b_Schalldruckpegel [dB]",490,"NULL","NULL",0]
["0-003","Schallleistungspegel [dB]","2_b_Schallleistungspegel [dB]",490,"NULL","NULL",0]
["0-003","Schutzart IP","4_c_Schutzart IP",590,"NULL","NULL",0]
["0-003","Servicevertrag [Firma]","8_b_Servicevertrag [Firma]",590,"NULL","NULL",0]
["0-003","Servicevertrag [Nummer]","8_a_Servicevertrag [Nummer]",590,"NULL","NULL",0]
["0-003","SGK Nummer","6_a_SGK Nummer",390,"NULL","NULL",0]
["0-003","SGK Zuordnung","6_a_SGK Zuordnung",390,"NULL","NULL",0]
["0-003","SIA-Katalog","1_b_SIA-Katalog","NULL","NULL","NULL",0]
["0-003","Spannung [V]","4_a_Spannung [V]",390,"NULL","NULL",1]
["0-003","Steuersignal","4_a_Steuersignal",390,"NULL","NULL",0]
["0-003","Strom [A]","4_a_Strom [A]",390,"NULL","NULL",0]
["0-003","System","3_b_System",200,"NULL","Prinzipschema",0]
["0-003","Temperatur 1 [C]","2_a_Temperatur 1 [C]",390,"NULL","NULL",0]
["0-003","Typ","3_a_Typ",290,1,"NULL",1]
["0-003","TypeID Nova dez","0_c_TypeID Nova dez","NULL","NULL","NULL",0]
["0-003","URL","3_c_URL",300,"NULL","NULL",0]
["0-003","Vordruck [bar]","2_c_Vordruck [bar]",590,"NULL","NULL",0]
["0-003","Wartungsintervall [Betriebsstunden]","8_c_Wartungsintervall [Betriebsstunden]",590,"NULL","NULL",0]
["0-003","Werkvertrag [Firma/Nummer]","8_c_Werkvertrag [Firma/Nummer]",590,"NULL","NULL",0]
["0-003","Zust.Unterhalt","8_c_Zust Unterhalt",300,"NULL","NULL",0]
["0-004","Abblasdruck [bar]","2_c_Abblasdruck [bar]",590,"NULL","NULL",0]
["0-004","Abnahmetermin [Datum]","7_a_Abnahmetermin [Datum]",590,"NULL","NULL",0]
["0-004","Achse X","5_c_Achse X","NULL","NULL","NULL",0]
["0-004","Achse Y","5_c_Achse Y","NULL","NULL","NULL",0]
["0-004","Achse Z","5_c_Achse Z","NULL","NULL","NULL",0]
["0-004","Anlage funktional (BKP-XXX)","1_b_Anlage funktional (BKP-XXX)",490,"NULL","NULL",0]
["0-004","Anlagenstruktur-SAN","1_b_Anlagenstruktur-SAN","NULL","NULL","NULL",0]
["0-004","Anlagenummer (BKP-XXX)","1_a_Anlagenummer (BKP-XXX)",100,"NULL","NULL",1]
["0-004","Anlagenummer Bauherr","1_b_Anlagenummer Bauherr",490,"NULL","NULL",0]
["0-004","Anschlussart","3_c_Anschlussart",590,"NULL","NULL",0]
["0-004","Artikelnummer","3_c_Artikelnummer",300,"NULL","Modell",0]
["0-004","Artikelnummer RMB","0_c_Artikelnummer RMB",100,"NULL","NULL",1]
["0-004","Ausführung 1","3_b_Ausfuehrung 1",490,"NULL","NULL",0]
["0-004","Ausführung 2","3_b_Ausfuehrung 2",490,"NULL","NULL",1]
["0-004","Breite (Abmessung 2) [mm]","2_b_Breite (Abmessung 2) [mm]",200,"NULL","NULL",1]
["0-004","Datenpunkte AI","4_c_Datenpunkte AI",390,"NULL","NULL",0]
["0-004","Datenpunkte AO","4_c_Datenpunkte AO",390,"NULL","NULL",0]
["0-004","Datenpunkte DI","4_c_Datenpunkte DI",390,"NULL","NULL",0]
["0-004","Datenpunkte DO","4_c_Datenpunkte DO",390,"NULL","NULL",0]
["0-004","Datenpunkte MBus","4_c_Datenpunkt MBus",390,"NULL","NULL",0]
["0-004","Datenpunkte VA","4_c_Datenpunkt VA",390,"NULL","NULL",0]
["0-004","Datenpunkte VD","4_c_Datenpunkt VD",390,"NULL","NULL",0]
["0-004","Dimension 1 [DN]","2_a_Dimension 1 [DN]",390,"NULL","NULL",1]
["0-004","Dimension 2 [DN]","2_a_Dimension 2 [DN]",390,"NULL","NULL",1]
["0-004","Dimension 3 [DN]","2_a_Dimension 3 [DN]",390,0,"NULL",0]
["0-004","e-BKP-H","1_b_e-BKP-H",200,"NULL","NULL",0]
["0-004","Einsatzbereich [%]","4_b_Einsatzbereich [%]",390,"NULL","NULL",0]
["0-004","Ende Garantiefrist [Datum]","8_b_Ende Garantiefrist [Datum]",590,"NULL","NULL",0]
["0-004","Fabrikat","3_a_Fabrikat",290,1,"NULL",1]
["0-004","Freigabe zur Bestellung [Datum]","7_a_Freigabe zur Bestellung [Datum]",400,"NULL","NULL",0]
["0-004","Gebäude","5_c_Gebaeude",200,"NULL","Modell",0]
["0-004","Geschoss","5_a_Geschoss",200,"NULL","Modell",0]
["0-004","Gewicht Betrieb [kg]","2_b_Gewicht Betrieb [kg]",200,"NULL","NULL",0]
["0-004","Gewicht leer [kg]","2_c_Gewicht leer [kg]",590,"NULL","NULL",1]
["0-004","Höhe (Abmessung 3) [mm]","2_b_Hoehe (Abmessung 3) [mm]",200,"NULL","NULL",1]
["0-004","Inbetriebsetzungstermin [Datum]","7_b_Inbetriebsetzungstermin [Datum]",590,"NULL","NULL",0]
["0-004","Inhalt [l]","2_a_Inhalt [l]",390,"NULL","NULL",1]
["0-004","Instandhaltung","8_b_Instandhaltung",300,"NULL","NULL",0]
["0-004","Integration Kommunikation","4_c_Integration Kommunikation",390,"NULL","NULL",0]
["0-004","KelpyOfferteId","3_c_KelpyOfferteId","NULL",1,"NULL",0]
["0-004","Klartext Anlage","1_c_Klartext Anlage",100,"NULL","NULL",0]
["0-004","Klartext Anlage funktional","1_c_Klartext Anlage funktional",590,"NULL","NULL",0]
["0-004","Klartext Feldgerät","1_c_Klartext Feldgeraet",100,"NULL","Prinzipschema",1]
["0-004","Klartext Feldgerät Nachtext","1_c_Klartext Feldgeraet Nachtext",590,"NULL","NULL",0]
["0-004","Klartext Raum","5_c_Klartext Raum",200,"NULL","Modell",0]
["0-004","Kommentar technisch","9_a_Kommentar technisch",300,1,"NULL",0]
["0-004","Länge (Abmessung 1) [mm]","2_b_Laenge (Abmessung 1) [mm]",200,"NULL","NULL",1]
["0-004","Laufnummer","0_a_Laufnummer",100,"NULL","NULL",1]
["0-004","Leistung elektrisch [W]","4_a_Leistung elektrisch [W]",290,0,"NULL",1]
["0-004","Lieferant","3_c_Lieferant",300,"NULL","NULL",0]
["0-004","Lieferung bauseits","7_a_Lieferung bauseits",300,1,"NULL",0]
["0-004","Massenstrom 1 [kg/h]","2_a_Massenstrom 1 [kg/h]",390,"NULL","NULL",0]
["0-004","Medium 1","2_c_Medium 1",390,0,"NULL",0]
["0-004","Mieter","5_c_Mieter",590,"NULL","NULL",0]
["0-004","min. Temperatur [C]","2_c_min Temperatur [C]",590,"NULL","NULL",0]
["0-004","Montagetermin geplant [Datum]","7_b_Montagetermin geplant [Datum]",590,"NULL","NULL",0]
["0-004","Montagetermin ist [Datum]","7_b_Montagetermin ist [Datum]",590,"NULL","NULL",0]
["0-004","Nenndruck PN [bar]","2_b_Nenndruck PN [bar]",490,"NULL","NULL",0]
["0-004","NPK","1_b_NPK",200,1,"NULL",0]
["0-004","Positionsnummer","5_c_Positionsnummer","NULL","NULL","Prinzipschema",1]
["0-004","Raumnummer","5_a_Raumnummer",200,"NULL","Modell",0]
["0-004","Schalldruckpegel [dB]","2_b_Schalldruckpegel [dB]",490,"NULL","NULL",0]
["0-004","Schallleistungspegel [dB]","2_b_Schallleistungspegel [dB]",490,"NULL","NULL",0]
["0-004","Schutzart IP","4_c_Schutzart IP",390,"NULL","NULL",0]
["0-004","Servicevertrag [Firma]","8_b_Servicevertrag [Firma]",590,"NULL","NULL",0]
["0-004","Servicevertrag [Nummer]","8_a_Servicevertrag [Nummer]",590,"NULL","NULL",0]
["0-004","SGK Nummer","6_a_SGK Nummer",390,"NULL","NULL",0]
["0-004","SGK Zuordnung","6_a_SGK Zuordnung",390,"NULL","NULL",0]
["0-004","SIA-Katalog","1_b_SIA-Katalog","NULL","NULL","NULL",0]
["0-004","Spannung [V]","4_a_Spannung [V]",390,"NULL","NULL",1]
["0-004","Steuersignal","4_a_Steuersignal",390,"NULL","NULL",0]
["0-004","Strom [A]","4_a_Strom [A]",290,"NULL","NULL",0]
["0-004","System","3_b_System",200,"NULL","Prinzipschema",0]
["0-004","Temperatur 1 [C]","2_a_Temperatur 1 [C]",390,"NULL","NULL",0]
["0-004","Temperatur 2 [C]","2_a_Temperatur 2 [C]",390,"NULL","NULL",0]
["0-004","Typ","3_a_Typ",290,1,"NULL",1]
["0-004","TypeID Nova dez","0_c_TypeID Nova dez","NULL","NULL","NULL",0]
["0-004","URL","3_c_URL",300,"NULL","NULL",0]
["0-004","Vordruck [bar]","2_c_Vordruck [bar]",590,"NULL","NULL",0]
["0-004","Wartungsintervall [Betriebsstunden]","8_c_Wartungsintervall [Betriebsstunden]",590,"NULL","NULL",0]
["0-004","Werkvertrag [Firma/Nummer]","8_c_Werkvertrag [Firma/Nummer]",590,"NULL","NULL",0]
["0-004","Zust.Unterhalt","8_c_Zust Unterhalt",300,"NULL","NULL",0]
["0-005","Abnahmetermin [Datum]","7_a_Abnahmetermin [Datum]",590,"NULL","NULL",0]
["0-005","Achse X","5_c_Achse X","NULL","NULL","NULL",0]
["0-005","Achse Y","5_c_Achse Y","NULL","NULL","NULL",0]
["0-005","Achse Z","5_c_Achse Z","NULL","NULL","NULL",0]
["0-005","Anlage funktional (BKP-XXX)","1_b_Anlage funktional (BKP-XXX)",490,"NULL","NULL",0]
["0-005","Anlagenstruktur-SAN","1_b_Anlagenstruktur-SAN","NULL","NULL","NULL",0]
["0-005","Anlagenummer (BKP-XXX)","1_a_Anlagenummer (BKP-XXX)",100,"NULL","NULL",1]
["0-005","Anlagenummer Bauherr","1_b_Anlagenummer Bauherr",490,"NULL","NULL",0]
["0-005","Anschlussart","3_c_Anschlussart",590,"NULL","NULL",0]
["0-005","Artikelnummer","3_c_Artikelnummer",300,"NULL","Modell",0]
["0-005","Artikelnummer RMB","0_c_Artikelnummer RMB",100,"NULL","NULL",1]
["0-005","Ausführung 1","3_b_Ausfuehrung 1",590,"NULL","NULL",0]
["0-005","Ausführung 2","3_b_Ausfuehrung 2",590,"NULL","NULL",0]
["0-005","Ausführung 3","3_b_Ausfuehrung 3",590,"NULL","NULL",0]
["0-005","Ausführung 4","3_b_Ausfuehrung 4",590,"NULL","NULL",0]
["0-005","Breite (Abmessung 2) [mm]","2_b_Breite (Abmessung 2) [mm]",200,"NULL","NULL",0]
["0-005","Differenzdruck 1 [kPa]","2_a_Differenzdruck 1 [kPa]",390,"NULL","NULL",1]
["0-005","Dimension 1 [DN]","2_a_Dimension 1 [DN]",290,1,"NULL",1]
["0-005","Dimension 2 [DN]","2_a_Dimension 2 [DN]",590,"NULL","NULL",0]
["0-005","Durchmesser (Abmessung 4) [mm]","2_b_Durchmesser (Abmessung 4) [mm]",200,"NULL","NULL",0]
["0-005","Durchmesser isoliert (Abmessung 5) [mm]","2_b_Durchmesser isoliert (Abmessung 5) [mm]",590,"NULL","NULL",0]
["0-005","e-BKP-H","1_b_e-BKP-H",200,"NULL","NULL",0]
["0-005","Ende Garantiefrist [Datum]","8_b_Ende Garantiefrist [Datum]",590,"NULL","NULL",0]
["0-005","Fabrikat","3_a_Fabrikat",290,1,"NULL",1]
["0-005","Freigabe zur Bestellung [Datum]","7_a_Freigabe zur Bestellung [Datum]",400,"NULL","NULL",0]
["0-005","Gebäude","5_c_Gebaeude",200,"NULL","Modell",0]
["0-005","Geschoss","5_a_Geschoss",200,"NULL","Modell",0]
["0-005","Geschwindigkeit 1 [m/s]","2_c_Geschwindigkeit 1 [m/s]",590,"NULL","NULL",0]
["0-005","Gewicht Betrieb [kg]","2_b_Gewicht Betrieb [kg]",200,"NULL","NULL",0]
["0-005","Gewicht leer [kg]","2_c_Gewicht leer [kg]",590,"NULL","NULL",0]
["0-005","Höhe (Abmessung 3) [mm]","2_b_Hoehe (Abmessung 3) [mm]",200,"NULL","NULL",0]
["0-005","Inbetriebsetzungstermin [Datum]","7_b_Inbetriebsetzungstermin [Datum]",590,"NULL","NULL",0]
["0-005","Instandhaltung","8_b_Instandhaltung",300,"NULL","NULL",0]
["0-005","KelpyOfferteId","3_c_KelpyOfferteId","NULL",1,"NULL",0]
["0-005","Klartext Anlage","1_c_Klartext Anlage",100,"NULL","NULL",0]
["0-005","Klartext Anlage funktional","1_c_Klartext Anlage funktional",590,"NULL","NULL",0]
["0-005","Klartext Feldgerät","1_c_Klartext Feldgeraet",100,"NULL","Prinzipschema",1]
["0-005","Klartext Feldgerät Nachtext","1_c_Klartext Feldgeraet Nachtext",590,"NULL","NULL",0]
["0-005","Klartext Raum","5_c_Klartext Raum",200,"NULL","Modell",0]
["0-005","Kommentar technisch","9_a_Kommentar technisch",300,1,"NULL",0]
["0-005","kvs [m3/h]","3_a_kvs [m3/h]",290,"NULL","NULL",1]
["0-005","Länge (Abmessung 1) [mm]","2_b_Laenge (Abmessung 1) [mm]",200,"NULL","NULL",0]
["0-005","Laufnummer","0_a_Laufnummer",100,"NULL","NULL",1]
["0-005","Lieferant","3_c_Lieferant",300,"NULL","NULL",0]
["0-005","Lieferung bauseits","7_a_Lieferung bauseits",300,1,"NULL",0]
["0-005","Material 1","3_c_Material 1",390,1,"NULL",0]
["0-005","Medium 1","2_c_Medium 1",590,"NULL","NULL",0]
["0-005","Mieter","5_c_Mieter",590,"NULL","NULL",0]
["0-005","Montagetermin geplant [Datum]","7_b_Montagetermin geplant [Datum]",590,"NULL","NULL",0]
["0-005","Montagetermin ist [Datum]","7_b_Montagetermin ist [Datum]",590,"NULL","NULL",0]
["0-005","Nenndruck PN [bar]","2_b_Nenndruck PN [bar]",490,"NULL","NULL",1]
["0-005","NPK","1_b_NPK",200,1,"NULL",0]
["0-005","Positionsnummer","5_c_Positionsnummer","NULL","NULL","Prinzipschema",1]
["0-005","Raumnummer","5_a_Raumnummer",200,"NULL","Modell",0]
["0-005","Servicevertrag [Firma]","8_b_Servicevertrag [Firma]",590,"NULL","NULL",0]
["0-005","Servicevertrag [Nummer]","8_a_Servicevertrag [Nummer]",590,"NULL","NULL",0]
["0-005","SIA-Katalog","1_b_SIA-Katalog","NULL","NULL","NULL",0]
["0-005","System","3_b_System",200,"NULL","Prinzipschema",0]
["0-005","Typ","3_a_Typ",290,1,"NULL",1]
["0-005","TypeID Nova dez","0_c_TypeID Nova dez","NULL","NULL","NULL",0]
["0-005","URL","3_c_URL",300,"NULL","NULL",0]
["0-005","Wartungsintervall [Betriebsstunden]","8_c_Wartungsintervall [Betriebsstunden]",590,"NULL","NULL",0]
["0-005","Werkvertrag [Firma/Nummer]","8_c_Werkvertrag [Firma/Nummer]",590,"NULL","NULL",0]
["0-005","Zust.Unterhalt","8_c_Zust Unterhalt",300,"NULL","NULL",0]
["0-006","(Abmessung 7) [mm]","2_b_(Abmessung 7) [mm]",490,"NULL","NULL",0]
["0-006","Abnahmetermin [Datum]","7_a_Abnahmetermin [Datum]",590,"NULL","NULL",0]
["0-006","Absolutdruck 1 [bar]","2_c_Absolutdruck 1 [bar]",590,"NULL","NULL",0]
["0-006","Achse X","5_c_Achse X","NULL","NULL","NULL",0]
["0-006","Achse Y","5_c_Achse Y","NULL","NULL","NULL",0]
["0-006","Achse Z","5_c_Achse Z","NULL","NULL","NULL",0]
["0-006","Anlage funktional (BKP-XXX)","1_b_Anlage funktional (BKP-XXX)",490,"NULL","NULL",0]
["0-006","Anlagenstruktur-SAN","1_b_Anlagenstruktur-SAN","NULL","NULL","NULL",0]
["0-006","Anlagenummer (BKP-XXX)","1_a_Anlagenummer (BKP-XXX)",100,"NULL","NULL",1]
["0-006","Anlagenummer Bauherr","1_b_Anlagenummer Bauherr",490,"NULL","NULL",0]
["0-006","Anschlussart","3_c_Anschlussart",390,0,"NULL",0]
["0-006","Anzahl [Stk]","3_b_Anzahl [Stk]",200,"NULL","NULL",0]
["0-006","Artikelnummer","3_c_Artikelnummer",300,"NULL","Modell",0]
["0-006","Artikelnummer RMB","0_c_Artikelnummer RMB",100,"NULL","NULL",1]
["0-006","Ausführung 1","3_b_Ausfuehrung 1",290,1,"NULL",0]
["0-006","Ausführung 2","3_b_Ausfuehrung 2",490,"NULL","NULL",1]
["0-006","Ausführung 3","3_b_Ausfuehrung 3",490,"NULL","NULL",1]
["0-006","Ausführung 4","3_b_Ausfuehrung 4",490,"NULL","NULL",1]
["0-006","Ausführung 5","3_b_Ausfuehrung 5",390,"NULL","NULL",0]
["0-006","Breite (Abmessung 2) [mm]","2_b_Breite (Abmessung 2) [mm]",200,"NULL","NULL",0]
["0-006","Dämmstärke [mm]","0_c_CAD Daemmstaerke [mm]",390,1,"NULL",0]
["0-006","Dämmungsspezifikation","0_a_Daemmungsspezifikation","NULL","NULL","Prinzipschema",0]
["0-006","Dimension 1 [DN]","2_a_Dimension 1 [DN]",290,1,"NULL",1]
["0-006","Dimension 2 [DN]","2_a_Dimension 2 [DN]",290,0,"NULL",1]
["0-006","Dimension 3 [DN]","2_a_Dimension 3 [DN]",290,"NULL","NULL",0]
["0-006","Dimension 4 [DN]","2_a_Dimension 4 [DN]",290,0,"NULL",0]
["0-006","Dimension 5 [DN]","2_a_Dimension 5 [DN]",290,"NULL","NULL",0]
["0-006","Durchmesser (Abmessung 4) [mm]","2_b_Durchmesser (Abmessung 4) [mm]",200,0,"Prinzipschema",1]
["0-006","Durchmesser isoliert (Abmessung 5) [mm]","2_b_Durchmesser isoliert (Abmessung 5) [mm]",290,0,"NULL",1]
["0-006","e-BKP-H","1_b_e-BKP-H",200,"NULL","NULL",0]
["0-006","Ende Garantiefrist [Datum]","8_b_Ende Garantiefrist [Datum]",590,"NULL","NULL",0]
["0-006","Fabrikat","3_a_Fabrikat",290,1,"NULL",1]
["0-006","Fläche 1 [m2]","2_c_Flaeche 1 [m2]",590,"NULL","NULL",0]
["0-006","Freigabe zur Bestellung [Datum]","7_a_Freigabe zur Bestellung [Datum]",400,"NULL","NULL",0]
["0-006","Gebäude","5_c_Gebaeude",200,"NULL","Modell",0]
["0-006","Geschoss","5_a_Geschoss",200,"NULL","Modell",0]
["0-006","Gewicht Betrieb [kg]","2_b_Gewicht Betrieb [kg]",200,0,"NULL",0]
["0-006","Gewicht leer [kg]","2_c_Gewicht leer [kg]",390,0,"NULL",1]
["0-006","Höhe (Abmessung 3) [mm]","2_b_Hoehe (Abmessung 3) [mm]",200,0,"Prinzipschema",1]
["0-006","Inbetriebsetzungstermin [Datum]","7_b_Inbetriebsetzungstermin [Datum]",590,"NULL","NULL",0]
["0-006","Inhalt [l]","2_a_Inhalt [l]",290,1,"NULL",1]
["0-006","KelpyOfferteId","3_c_KelpyOfferteId","NULL",1,"NULL",0]
["0-006","Klartext Anlage","1_c_Klartext Anlage",100,"NULL","NULL",0]
["0-006","Klartext Anlage funktional","1_c_Klartext Anlage funktional",590,"NULL","NULL",0]
["0-006","Klartext Feldgerät","1_c_Klartext Feldgeraet",100,"NULL","Prinzipschema",1]
["0-006","Klartext Feldgerät Nachtext","1_c_Klartext Feldgeraet Nachtext",590,"NULL","NULL",0]
["0-006","Klartext Raum","5_c_Klartext Raum",200,"NULL","Modell",0]
["0-006","Kommentar technisch","9_a_Kommentar technisch",300,1,"NULL",0]
["0-006","Länge (Abmessung 1) [mm]","2_b_Laenge (Abmessung 1) [mm]",200,"NULL","NULL",1]
["0-006","Laufnummer","0_a_Laufnummer",100,"NULL","NULL",1]
["0-006","Lieferant","3_c_Lieferant",300,"NULL","NULL",0]
["0-006","Lieferung bauseits","7_a_Lieferung bauseits",300,1,"NULL",0]
["0-006","Massenstrom 1 [kg/h]","2_a_Massenstrom 1 [kg/h]",590,"NULL","NULL",0]
["0-006","Massenstrom 2 [kg/h]","2_a_Massenstrom 2 [kg/h]",590,"NULL","NULL",0]
["0-006","Material 1","3_c_Material 1",390,1,"NULL",1]
["0-006","Material 2","3_c_Material 2",200,"NULL","NULL",0]
["0-006","Material 3","3_c_Material 3",200,"NULL","NULL",0]
["0-006","Material Stärke (Abmessung 6) [mm]","2_b_Material Staerke (Abmessung 6) [mm]",490,"NULL","NULL",0]
["0-006","Medium 1","2_c_Medium 1",590,"NULL","NULL",0]
["0-006","Mieter","5_c_Mieter",590,"NULL","NULL",0]
["0-006","min. Temperatur [C]","2_c_min Temperatur [C]",590,"NULL","NULL",0]
["0-006","Montagetermin geplant [Datum]","7_b_Montagetermin geplant [Datum]",590,"NULL","NULL",0]
["0-006","Montagetermin ist [Datum]","7_b_Montagetermin ist [Datum]",590,"NULL","NULL",0]
["0-006","Nenndruck PN [bar]","2_b_Nenndruck PN [bar]",290,0,"NULL",0]
["0-006","NPK","1_b_NPK",200,1,"NULL",0]
["0-006","Positionsnummer","5_c_Positionsnummer","NULL","NULL","Prinzipschema",1]
["0-006","Prüfpflicht","8_c_Pruefpflicht",590,"NULL","NULL",0]
["0-006","Raumnummer","5_a_Raumnummer",200,"NULL","Modell",0]
["0-006","Servicevertrag [Firma]","8_b_Servicevertrag [Firma]",590,"NULL","NULL",0]
["0-006","Servicevertrag [Nummer]","8_a_Servicevertrag [Nummer]",590,"NULL","NULL",0]
["0-006","SIA-Katalog","1_b_SIA-Katalog","NULL","NULL","NULL",0]
["0-006","System","3_b_System",200,"NULL","Prinzipschema",0]
["0-006","Temperatur 1 [C]","2_a_Temperatur 1 [C]",590,"NULL","NULL",0]
["0-006","Temperatur 2 [C]","2_a_Temperatur 2 [C]",590,"NULL","NULL",0]
["0-006","Typ","3_a_Typ",290,1,"NULL",1]
["0-006","TypeID Nova dez","0_c_TypeID Nova dez","NULL","NULL","NULL",0]
["0-006","URL","3_c_URL",300,"NULL","NULL",0]
["0-006","Volumenstrom 1 [m3/h]","2_a_Volumenstrom 1 [m3/h]",590,"NULL","NULL",0]
["0-006","Wartungsintervall [Betriebsstunden]","8_c_Wartungsintervall [Betriebsstunden]",590,"NULL","NULL",0]
["0-006","Werkvertrag [Firma/Nummer]","8_c_Werkvertrag [Firma/Nummer]",590,"NULL","NULL",0]
["0-006","Zust.Unterhalt","8_c_Zust Unterhalt",300,"NULL","NULL",0]
["0-007","(Abmessung 7) [mm]","2_b_(Abmessung 7) [mm]",490,"NULL","NULL",0]
["0-007","Abnahmetermin [Datum]","7_a_Abnahmetermin [Datum]",590,"NULL","NULL",0]
["0-007","Absolutdruck 1 [bar]","2_c_Absolutdruck 1 [bar]",590,"NULL","NULL",0]
["0-007","Achse X","5_c_Achse X","NULL","NULL","NULL",0]
["0-007","Achse Y","5_c_Achse Y","NULL","NULL","NULL",0]
["0-007","Achse Z","5_c_Achse Z","NULL","NULL","NULL",0]
["0-007","Anlage funktional (BKP-XXX)","1_b_Anlage funktional (BKP-XXX)",490,"NULL","NULL",0]
["0-007","Anlagenstruktur-SAN","1_b_Anlagenstruktur-SAN","NULL","NULL","NULL",0]
["0-007","Anlagenummer (BKP-XXX)","1_a_Anlagenummer (BKP-XXX)",100,"NULL","NULL",1]
["0-007","Anlagenummer Bauherr","1_b_Anlagenummer Bauherr",490,"NULL","NULL",0]
["0-007","Anschlussart","3_c_Anschlussart",590,"NULL","NULL",0]
["0-007","Anzahl [Stk]","3_b_Anzahl [Stk]",200,"NULL","NULL",0]
["0-007","Artikelnummer","3_c_Artikelnummer",300,"NULL","Modell",0]
["0-007","Artikelnummer RMB","0_c_Artikelnummer RMB",100,"NULL","NULL",1]
["0-007","Ausführung 1","3_b_Ausfuehrung 1",590,"NULL","NULL",0]
["0-007","Ausführung 2","3_b_Ausfuehrung 2",490,"NULL","NULL",0]
["0-007","Ausführung 3","3_b_Ausfuehrung 3",490,"NULL","NULL",0]
["0-007","Ausführung 4","3_b_Ausfuehrung 4",490,"NULL","NULL",0]
["0-007","Ausführung 5","3_b_Ausfuehrung 5",390,"NULL","NULL",0]
["0-007","Breite (Abmessung 2) [mm]","2_b_Breite (Abmessung 2) [mm]",200,"NULL","NULL",0]
["0-007","Dämmungsspezifikation","0_a_Daemmungsspezifikation","NULL","NULL","Prinzipschema",0]
["0-007","Dimension 1 [DN]","2_a_Dimension 1 [DN]",290,0,"NULL",0]
["0-007","Dimension 2 [DN]","2_a_Dimension 2 [DN]",290,0,"NULL",0]
["0-007","Dimension 3 [DN]","2_a_Dimension 3 [DN]",290,0,"NULL",0]
["0-007","Dimension 4 [DN]","2_a_Dimension 4 [DN]",290,0,"NULL",0]
["0-007","Dimension 5 [DN]","2_a_Dimension 5 [DN]",290,0,"NULL",0]
["0-007","Durchmesser (Abmessung 4) [mm]","2_b_Durchmesser (Abmessung 4) [mm]",200,0,"NULL",0]
["0-007","Durchmesser isoliert (Abmessung 5) [mm]","2_b_Durchmesser isoliert (Abmessung 5) [mm]",290,0,"NULL",0]
["0-007","e-BKP-H","1_b_e-BKP-H",200,"NULL","NULL",0]
["0-007","Ende Garantiefrist [Datum]","8_b_Ende Garantiefrist [Datum]",590,"NULL","NULL",0]
["0-007","Fabrikat","3_a_Fabrikat",290,1,"NULL",0]
["0-007","Fläche 1 [m2]","2_c_Flaeche 1 [m2]",590,"NULL","NULL",0]
["0-007","Freigabe zur Bestellung [Datum]","7_a_Freigabe zur Bestellung [Datum]",400,"NULL","NULL",0]
["0-007","Gebäude","5_c_Gebaeude",200,"NULL","Modell",0]
["0-007","Geschoss","5_a_Geschoss",200,"NULL","Modell",0]
["0-007","Gewicht Betrieb [kg]","2_b_Gewicht Betrieb [kg]",200,0,"NULL",0]
["0-007","Gewicht leer [kg]","2_c_Gewicht leer [kg]",390,0,"NULL",0]
["0-007","Höhe (Abmessung 3) [mm]","2_b_Hoehe (Abmessung 3) [mm]",200,0,"NULL",0]
["0-007","Inbetriebsetzungstermin [Datum]","7_b_Inbetriebsetzungstermin [Datum]",590,"NULL","NULL",0]
["0-007","Inhalt [l]","2_a_Inhalt [l]",290,0,"NULL",0]
["0-007","Instandhaltung","8_b_Instandhaltung",300,"NULL","NULL",0]
["0-007","KelpyOfferteId","3_c_KelpyOfferteId","NULL",1,"NULL",0]
["0-007","Klartext Anlage","1_c_Klartext Anlage",100,"NULL","NULL",0]
["0-007","Klartext Anlage funktional","1_c_Klartext Anlage funktional",590,"NULL","NULL",0]
["0-007","Klartext Feldgerät","1_c_Klartext Feldgeraet",100,"NULL","Prinzipschema",1]
["0-007","Klartext Feldgerät Nachtext","1_c_Klartext Feldgeraet Nachtext",590,"NULL","NULL",0]
["0-007","Klartext Raum","5_c_Klartext Raum",200,"NULL","Modell",0]
["0-007","Kommentar technisch","9_a_Kommentar technisch",300,1,"NULL",0]
["0-007","Länge (Abmessung 1) [mm]","2_b_Laenge (Abmessung 1) [mm]",200,"NULL","NULL",1]
["0-007","Laufnummer","0_a_Laufnummer",100,"NULL","NULL",1]
["0-007","Lieferant","3_c_Lieferant",300,"NULL","NULL",0]
["0-007","Lieferung bauseits","7_a_Lieferung bauseits",300,1,"NULL",0]
["0-007","Massenstrom 1 [kg/h]","2_a_Massenstrom 1 [kg/h]",590,"NULL","NULL",0]
["0-007","Massenstrom 2 [kg/h]","2_a_Massenstrom 2 [kg/h]",590,"NULL","NULL",0]
["0-007","Material 1","3_c_Material 1",390,1,"NULL",0]
["0-007","Material 2","3_c_Material 2",200,0,"NULL",0]
["0-007","Material 3","3_c_Material 3",200,0,"NULL",0]
["0-007","Material Stärke (Abmessung 6) [mm]","2_b_Material Staerke (Abmessung 6) [mm]",490,"NULL","NULL",0]
["0-007","Medium 1","2_c_Medium 1",590,"NULL","NULL",0]
["0-007","Mieter","5_c_Mieter",590,"NULL","NULL",0]
["0-007","min. Temperatur [C]","2_c_min Temperatur [C]",590,"NULL","NULL",0]
["0-007","Montagetermin geplant [Datum]","7_b_Montagetermin geplant [Datum]",590,"NULL","NULL",0]
["0-007","Montagetermin ist [Datum]","7_b_Montagetermin ist [Datum]",590,"NULL","NULL",0]
["0-007","Nenndruck PN [bar]","2_b_Nenndruck PN [bar]",290,0,"NULL",0]
["0-007","NPK","1_b_NPK",200,1,"NULL",0]
["0-007","Positionsnummer","5_c_Positionsnummer","NULL","NULL","Prinzipschema",1]
["0-007","Prüfpflicht","8_c_Pruefpflicht",590,"NULL","NULL",0]
["0-007","Raumnummer","5_a_Raumnummer",200,"NULL","Modell",0]
["0-007","Servicevertrag [Firma]","8_b_Servicevertrag [Firma]",590,"NULL","NULL",0]
["0-007","Servicevertrag [Nummer]","8_a_Servicevertrag [Nummer]",590,"NULL","NULL",0]
["0-007","SIA-Katalog","1_b_SIA-Katalog","NULL","NULL","NULL",0]
["0-007","System","3_b_System",200,"NULL","Prinzipschema",0]
["0-007","Temperatur 1 [C]","2_a_Temperatur 1 [C]",590,"NULL","NULL",0]
["0-007","Temperatur 2 [C]","2_a_Temperatur 2 [C]",590,"NULL","NULL",0]
["0-007","Typ","3_a_Typ",290,1,"NULL",0]
["0-007","TypeID Nova dez","0_c_TypeID Nova dez","NULL","NULL","NULL",0]
["0-007","URL","3_c_URL",300,"NULL","NULL",0]
["0-007","Volumenstrom 1 [m3/h]","2_a_Volumenstrom 1 [m3/h]",590,"NULL","NULL",0]
["0-007","Wartungsintervall [Betriebsstunden]","8_c_Wartungsintervall [Betriebsstunden]",590,"NULL","NULL",0]
["0-007","Werkvertrag [Firma/Nummer]","8_c_Werkvertrag [Firma/Nummer]",590,"NULL","NULL",0]
["0-007","Zust.Unterhalt","8_c_Zust Unterhalt",300,"NULL","NULL",0]
["0-008","Abnahmetermin [Datum]","7_a_Abnahmetermin [Datum]",590,"NULL","NULL",0]
["0-008","Absolute Feuchte 1 [g/kg]","2_b_Absolute Feuchte 1 [g/kg]",590,"NULL","NULL",0]
["0-008","Achse X","5_c_Achse X","NULL","NULL","NULL",0]
["0-008","Achse Y","5_c_Achse Y","NULL","NULL","NULL",0]
["0-008","Achse Z","5_c_Achse Z","NULL","NULL","NULL",0]
["0-008","Anlage funktional (BKP-XXX)","1_b_Anlage funktional (BKP-XXX)",490,"NULL","NULL",0]
["0-008","Anlagenstruktur-SAN","1_b_Anlagenstruktur-SAN","NULL","NULL","NULL",0]
["0-008","Anlagenummer (BKP-XXX)","1_a_Anlagenummer (BKP-XXX)",100,"NULL","NULL",1]
["0-008","Anlagenummer Bauherr","1_b_Anlagenummer Bauherr",490,"NULL","NULL",0]
["0-008","Anschlussart","3_c_Anschlussart",590,"NULL","NULL",0]
["0-008","Anzahl [Stk]","3_b_Anzahl [Stk]",290,1,"NULL",0]
["0-008","Artikelnummer","3_c_Artikelnummer",300,"NULL","Modell",0]
["0-008","Artikelnummer RMB","0_c_Artikelnummer RMB",100,"NULL","NULL",1]
["0-008","Ausführung 1","3_b_Ausfuehrung 1",590,"NULL","NULL",0]
["0-008","Ausführung 2","3_b_Ausfuehrung 2",290,1,"NULL",0]
["0-008","Ausführung 3","3_b_Ausfuehrung 3",290,1,"NULL",0]
["0-008","Ausführung 4","3_b_Ausfuehrung 4",290,1,"NULL",0]
["0-008","Breite (Abmessung 2) [mm]","2_b_Breite (Abmessung 2) [mm]",200,1,"Modell",0]
["0-008","Differenzdruck 1 [kPa]","2_a_Differenzdruck 1 [kPa]",290,0,"NULL",0]
["0-008","Dimension 1 [DN]","2_a_Dimension 1 [DN]",390,"NULL","NULL",0]
["0-008","dT mittel log [K]","2_c_dT mittel log [K]",590,"NULL","NULL",0]
["0-008","Durchmesser (Abmessung 4) [mm]","2_b_Durchmesser (Abmessung 4) [mm]",200,"NULL","NULL",0]
["0-008","e-BKP-H","1_b_e-BKP-H",200,"NULL","NULL",0]
["0-008","Ende Garantiefrist [Datum]","8_b_Ende Garantiefrist [Datum]",590,"NULL","NULL",0]
["0-008","Fabrikat","3_a_Fabrikat",290,1,"NULL",0]
["0-008","Fläche 1 [m2]","2_c_Flaeche 1 [m2]",390,1,"Prinzipschema",0]
["0-008","Fläche 2 [m2]","2_c_Flaeche 2 [m2]",500,"NULL","NULL",0]
["0-008","Freigabe zur Bestellung [Datum]","7_a_Freigabe zur Bestellung [Datum]",400,"NULL","NULL",0]
["0-008","Gebäude","5_c_Gebaeude",200,"NULL","Modell",0]
["0-008","Geschoss","5_a_Geschoss",200,"NULL","Modell",0]
["0-008","Geschwindigkeit 1 [m/s]","2_c_Geschwindigkeit 1 [m/s]",590,"NULL","NULL",0]
["0-008","Geschwindigkeit 2 [m/s]","2_c_Geschwindigkeit 2 [m/s]",590,"NULL","NULL",0]
["0-008","Gewicht Betrieb [kg]","2_b_Gewicht Betrieb [kg]",200,"NULL","NULL",0]
["0-008","Gewicht leer [kg]","2_c_Gewicht leer [kg]",590,"NULL","NULL",0]
["0-008","Höhe (Abmessung 3) [mm]","2_b_Hoehe (Abmessung 3) [mm]",200,0,"Modell",0]
["0-008","Inbetriebsetzungstermin [Datum]","7_b_Inbetriebsetzungstermin [Datum]",590,"NULL","NULL",0]
["0-008","Inhalt [l]","2_a_Inhalt [l]",390,"NULL","NULL",0]
["0-008","KelpyOfferteId","3_c_KelpyOfferteId","NULL",1,"NULL",0]
["0-008","Klartext Anlage","1_c_Klartext Anlage",100,"NULL","NULL",0]
["0-008","Klartext Anlage funktional","1_c_Klartext Anlage funktional",590,"NULL","NULL",0]
["0-008","Klartext Feldgerät","1_c_Klartext Feldgeraet",100,"NULL","Modell",1]
["0-008","Klartext Feldgerät Nachtext","1_c_Klartext Feldgeraet Nachtext",590,"NULL","NULL",0]
["0-008","Klartext Raum","5_c_Klartext Raum",200,"NULL","Modell",0]
["0-008","Kommentar technisch","9_a_Kommentar technisch",300,1,"NULL",0]
["0-008","Länge (Abmessung 1) [mm]","2_b_Laenge (Abmessung 1) [mm]",200,1,"Modell",0]
["0-008","Laufnummer","0_a_Laufnummer",100,"NULL","NULL",1]
["0-008","Leistung 1 (hyd) [kW]","2_a_Leistung 1 (hyd) [kW]",290,0,"Prinzipschema",0]
["0-008","Leistung 2 (hyd) [kW]","2_a_Leistung 2 (hyd) [kW]",290,0,"NULL",0]
["0-008","Leistung 3 (hyd) [kW]","2_a_Leistung 3 (hyd) [kW]",290,"NULL","NULL",0]
["0-008","Lieferant","3_c_Lieferant",300,"NULL","NULL",0]
["0-008","Lieferung bauseits","7_a_Lieferung bauseits",300,1,"NULL",0]
["0-008","Massenstrom 1 [kg/h]","2_a_Massenstrom 1 [kg/h]",290,0,"Prinzipschema",0]
["0-008","Massenstrom 2 [kg/h]","2_a_Massenstrom 2 [kg/h]",390,"NULL","NULL",0]
["0-008","Material 1","3_c_Material 1",390,1,"NULL",0]
["0-008","Material 2","3_c_Material 2",590,"NULL","NULL",0]
["0-008","Medium 1","2_c_Medium 1",590,"NULL","NULL",0]
["0-008","Medium 2","2_c_Medium 2",590,"NULL","NULL",0]
["0-008","Mieter","5_c_Mieter",590,"NULL","NULL",0]
["0-008","Montagetermin geplant [Datum]","7_b_Montagetermin geplant [Datum]",590,"NULL","NULL",0]
["0-008","Montagetermin ist [Datum]","7_b_Montagetermin ist [Datum]",590,"NULL","NULL",0]
["0-008","Nenndruck PN [bar]","2_b_Nenndruck PN [bar]",290,0,"NULL",0]
["0-008","NPK","1_b_NPK",200,1,"NULL",0]
["0-008","Positionsnummer","5_c_Positionsnummer","NULL","NULL","Modell",1]
["0-008","Raumnummer","5_a_Raumnummer",200,"NULL","Modell",0]
["0-008","Relative Feuchte 1 [%]","2_b_Relative Feuchte 1 [%]",590,"NULL","NULL",0]
["0-008","Servicevertrag [Firma]","8_b_Servicevertrag [Firma]",590,"NULL","NULL",0]
["0-008","Servicevertrag [Nummer]","8_a_Servicevertrag [Nummer]",590,"NULL","NULL",0]
["0-008","SIA-Katalog","1_b_SIA-Katalog","NULL","NULL","NULL",0]
["0-008","System","3_b_System",200,"NULL","Modell",0]
["0-008","Temperatur 1 [C]","2_a_Temperatur 1 [C]",290,0,"Prinzipschema",0]
["0-008","Temperatur 2 [C]","2_a_Temperatur 2 [C]",290,0,"Prinzipschema",0]
["0-008","Temperatur 3 [C]","2_a_Temperatur 3 [C]",390,"NULL","NULL",0]
["0-008","Temperatur 4 [C]","2_a_Temperatur 4 [C]",390,"NULL","NULL",0]
["0-008","Temperatur 5 [C]","2_a_Temperatur 5 [C]",290,0,"NULL",0]
["0-008","Temperatur 6 [C]","2_a_Temperatur 6 [C]",290,0,"NULL",0]
["0-008","Temperatur 7 [C]","2_a_Temperatur 7 [C]",390,"NULL","NULL",0]
["0-008","Temperatur 8 [C]","2_a_Temperatur 8 [C]",390,"NULL","NULL",0]
["0-008","Typ","3_a_Typ",290,1,"NULL",0]
["0-008","TypeID Nova dez","0_c_TypeID Nova dez","NULL","NULL","NULL",0]
["0-008","URL","3_c_URL",300,"NULL","NULL",0]
["0-008","Volumenstrom 1 [m3/h]","2_a_Volumenstrom 1 [m3/h]",390,"NULL","NULL",0]
["0-008","Volumenstrom 2 [m3/h]","2_a_Volumenstrom 2 [m3/h]",290,0,"NULL",0]
["0-008","Wartungsintervall [Betriebsstunden]","8_c_Wartungsintervall [Betriebsstunden]",590,"NULL","NULL",0]
["0-008","Werkvertrag [Firma/Nummer]","8_c_Werkvertrag [Firma/Nummer]",590,"NULL","NULL",0]
["0-009","Abnahmetermin [Datum]","7_a_Abnahmetermin [Datum]",590,"NULL","NULL",0]
["0-009","Absolutdruck 1 [bar]","2_c_Absolutdruck 1 [bar]",590,"NULL","NULL",0]
["0-009","Absolute Feuchte 1 [g/kg]","2_b_Absolute Feuchte 1 [g/kg]",590,"NULL","NULL",0]
["0-009","Absolute Feuchte 2 [g/kg]","2_b_Absolute Feuchte 2 [g/kg]",590,"NULL","NULL",0]
["0-009","Achse X","5_c_Achse X","NULL","NULL","NULL",0]
["0-009","Achse Y","5_c_Achse Y","NULL","NULL","NULL",0]
["0-009","Achse Z","5_c_Achse Z","NULL","NULL","NULL",0]
["0-009","Anlage funktional (BKP-XXX)","1_b_Anlage funktional (BKP-XXX)",490,"NULL","NULL",0]
["0-009","Anlagenstruktur-SAN","1_b_Anlagenstruktur-SAN","NULL","NULL","NULL",0]
["0-009","Anlagenummer (BKP-XXX)","1_a_Anlagenummer (BKP-XXX)",100,"NULL","NULL",1]
["0-009","Anlagenummer Bauherr","1_b_Anlagenummer Bauherr",490,"NULL","NULL",0]
["0-009","Anschlussart","3_c_Anschlussart",590,"NULL","NULL",0]
["0-009","Anzahl [Stk]","3_b_Anzahl [Stk]",590,"NULL","NULL",0]
["0-009","Artikelnummer","3_c_Artikelnummer",300,"NULL","Modell",0]
["0-009","Artikelnummer RMB","0_c_Artikelnummer RMB",100,"NULL","NULL",1]
["0-009","Ausführung 1","3_b_Ausfuehrung 1",490,"NULL","NULL",0]
["0-009","Ausführung 2","3_b_Ausfuehrung 2",290,0,"NULL",0]
["0-009","Ausführung 3","3_b_Ausfuehrung 3",290,0,"NULL",0]
["0-009","Ausführung 4","3_b_Ausfuehrung 4",290,0,"NULL",0]
["0-009","Bezeichnung Elektroschema (BMK)","6_a_Bezeichnung Elektroschema (BMK)",390,"NULL","NULL",0]
["0-009","Bezeichnung GA (AKS)","6_c_Bezeichnung GA (AKS)",590,"NULL","NULL",0]
["0-009","Breite (Abmessung 2) [mm]","2_b_Breite (Abmessung 2) [mm]",200,0,"NULL",0]
["0-009","Datenpunkte AI","4_c_Datenpunkte AI",590,"NULL","NULL",0]
["0-009","Datenpunkte AO","4_c_Datenpunkte AO",590,"NULL","NULL",0]
["0-009","Datenpunkte DI","4_c_Datenpunkte DI",590,"NULL","NULL",0]
["0-009","Datenpunkte DO","4_c_Datenpunkte DO",590,"NULL","NULL",0]
["0-009","Datenpunkte MBus","4_c_Datenpunkt MBus",590,"NULL","NULL",0]
["0-009","Datenpunkte VA","4_c_Datenpunkt VA",590,"NULL","NULL",0]
["0-009","Datenpunkte VD","4_c_Datenpunkt VD",590,"NULL","NULL",0]
["0-009","Differenzdruck 1 [kPa]","2_a_Differenzdruck 1 [kPa]",290,0,"NULL",0]
["0-009","Dimension 1 [DN]","2_a_Dimension 1 [DN]",290,0,"NULL",0]
["0-009","Dimension 2 [DN]","2_a_Dimension 2 [DN]",290,0,"NULL",0]
["0-009","Dimension 3 [DN]","2_a_Dimension 3 [DN]",290,0,"NULL",0]
["0-009","Dimension 4 [DN]","2_a_Dimension 4 [DN]",290,0,"NULL",0]
["0-009","dT mittel log [K]","2_c_dT mittel log [K]",590,"NULL","NULL",0]
["0-009","Durchmesser (Abmessung 4) [mm]","2_b_Durchmesser (Abmessung 4) [mm]",200,"NULL","NULL",0]
["0-009","e-BKP-H","1_b_e-BKP-H",200,"NULL","NULL",0]
["0-009","Einsatzbereich [%]","4_b_Einsatzbereich [%]",590,"NULL","NULL",0]
["0-009","Ende Garantiefrist [Datum]","8_b_Ende Garantiefrist [Datum]",590,"NULL","NULL",0]
["0-009","Energieeffizienzklasse","3_c_Energieeffizienzklasse",590,"NULL","NULL",0]
["0-009","Fabrikat","3_a_Fabrikat",290,1,"NULL",0]
["0-009","Fabrikat (Antrieb)","3_a_Fabrikat (Antrieb)",290,1,"NULL",0]
["0-009","Freigabe zur Bestellung [Datum]","7_a_Freigabe zur Bestellung [Datum]",400,"NULL","NULL",0]
["0-009","Gebäude","5_c_Gebaeude",200,"NULL","Modell",0]
["0-009","Gesamtwirkungsgrad Vollast","3_c_Gesamtwirkungsgrad Vollast",590,"NULL","NULL",0]
["0-009","Geschoss","5_a_Geschoss",200,"NULL","Modell",0]
["0-009","Geschwindigkeit 1 [m/s]","2_c_Geschwindigkeit 1 [m/s]",590,"NULL","NULL",0]
["0-009","Geschwindigkeit 2 [m/s]","2_c_Geschwindigkeit 2 [m/s]",590,"NULL","NULL",0]
["0-009","Gewicht Betrieb [kg]","2_b_Gewicht Betrieb [kg]",200,"NULL","NULL",0]
["0-009","Gewicht leer [kg]","2_c_Gewicht leer [kg]",390,0,"NULL",0]
["0-009","Höhe (Abmessung 3) [mm]","2_b_Hoehe (Abmessung 3) [mm]",200,0,"NULL",0]
["0-009","Inbetriebsetzungstermin [Datum]","7_b_Inbetriebsetzungstermin [Datum]",590,"NULL","NULL",0]
["0-009","Inhalt [l]","2_a_Inhalt [l]",390,"NULL","NULL",0]
["0-009","Instandhaltung","8_b_Instandhaltung",300,"NULL","NULL",0]
["0-009","Integration Kommunikation","4_c_Integration Kommunikation",590,"NULL","NULL",0]
["0-009","KelpyOfferteId","3_c_KelpyOfferteId","NULL",1,"NULL",0]
["0-009","Klartext Anlage","1_c_Klartext Anlage",100,"NULL","NULL",0]
["0-009","Klartext Anlage funktional","1_c_Klartext Anlage funktional",590,"NULL","NULL",0]
["0-009","Klartext Feldgerät","1_c_Klartext Feldgeraet",100,"NULL","Strangschema",1]
["0-009","Klartext Feldgerät Nachtext","1_c_Klartext Feldgeraet Nachtext",590,"NULL","NULL",0]
["0-009","Klartext Raum","5_c_Klartext Raum",200,"NULL","Modell",0]
["0-009","Kommentar technisch","9_a_Kommentar technisch",300,1,"NULL",0]
["0-009","Länge (Abmessung 1) [mm]","2_b_Laenge (Abmessung 1) [mm]",200,0,"NULL",0]
["0-009","Laufnummer","0_a_Laufnummer",100,"NULL","NULL",1]
["0-009","Leistung 1 (hyd) [kW]","2_a_Leistung 1 (hyd) [kW]",290,0,"Prinzipschema",0]
["0-009","Leistung 2 (hyd) [kW]","2_a_Leistung 2 (hyd) [kW]",290,0,"NULL",0]
["0-009","Leistung elektrisch [W]","4_a_Leistung elektrisch [W]",390,"NULL","NULL",0]
["0-009","Lieferant","3_c_Lieferant",300,"NULL","NULL",0]
["0-009","Lieferung bauseits","7_a_Lieferung bauseits",300,1,"NULL",0]
["0-009","Massenstrom 1 [kg/h]","2_a_Massenstrom 1 [kg/h]",290,0,"Prinzipschema",0]
["0-009","Massenstrom 2 [kg/h]","2_a_Massenstrom 2 [kg/h]",290,0,"NULL",0]
["0-009","Material 1","3_c_Material 1",590,"NULL","NULL",0]
["0-009","Medium 1","2_c_Medium 1",590,"NULL","NULL",0]
["0-009","Medium 2","2_c_Medium 2",590,"NULL","NULL",0]
["0-009","Mieter","5_c_Mieter",590,"NULL","NULL",0]
["0-009","Montagetermin geplant [Datum]","7_b_Montagetermin geplant [Datum]",590,"NULL","NULL",0]
["0-009","Montagetermin ist [Datum]","7_b_Montagetermin ist [Datum]",590,"NULL","NULL",0]
["0-009","Nenndruck PN [bar]","2_b_Nenndruck PN [bar]",290,0,"NULL",0]
["0-009","NPK","1_b_NPK",200,1,"NULL",0]
["0-009","Phasen","4_b_Phasen",490,"NULL","NULL",0]
["0-009","Positionsnummer","5_c_Positionsnummer","NULL","NULL","Strangschema",1]
["0-009","Raumnummer","5_a_Raumnummer",200,"NULL","Modell",0]
["0-009","Regelungsart","4_a_Regelungsart",390,"NULL","NULL",0]
["0-009","Relative Feuchte 1 [%]","2_b_Relative Feuchte 1 [%]",590,"NULL","NULL",0]
["0-009","Relative Feuchte 2 [%]","2_b_Relative Feuchte 2 [%]",590,"NULL","NULL",0]
["0-009","Schalldruckpegel [dB]","2_b_Schalldruckpegel [dB]",490,"NULL","NULL",0]
["0-009","Schallleistungspegel [dB]","2_b_Schallleistungspegel [dB]",490,"NULL","NULL",0]
["0-009","Schutzart IP","4_c_Schutzart IP",590,"NULL","NULL",0]
["0-009","Servicevertrag [Firma]","8_b_Servicevertrag [Firma]",590,"NULL","NULL",0]
["0-009","Servicevertrag [Nummer]","8_a_Servicevertrag [Nummer]",590,"NULL","NULL",0]
["0-009","SGK Nummer","6_a_SGK Nummer",390,"NULL","NULL",0]
["0-009","SGK Zuordnung","6_a_SGK Zuordnung",390,"NULL","NULL",0]
["0-009","SIA-Katalog","1_b_SIA-Katalog","NULL","NULL","NULL",0]
["0-009","Spannung [V]","4_a_Spannung [V]",390,"NULL","NULL",0]
["0-009","Steuersignal","4_a_Steuersignal",390,"NULL","NULL",0]
["0-009","Strom [A]","4_a_Strom [A]",390,"NULL","NULL",0]
["0-009","System","3_b_System",200,"NULL","Strangschema",0]
["0-009","Temperatur 1 [C]","2_a_Temperatur 1 [C]",290,0,"Prinzipschema",0]
["0-009","Temperatur 2 [C]","2_a_Temperatur 2 [C]",290,0,"Prinzipschema",0]
["0-009","Temperatur 3 [C]","2_a_Temperatur 3 [C]",390,"NULL","NULL",0]
["0-009","Temperatur 4 [C]","2_a_Temperatur 4 [C]",390,"NULL","NULL",0]
["0-009","Temperatur 5 [C]","2_a_Temperatur 5 [C]",290,0,"NULL",0]
["0-009","Temperatur 6 [C]","2_a_Temperatur 6 [C]",290,0,"NULL",0]
["0-009","Temperatur 7 [C]","2_a_Temperatur 7 [C]",390,"NULL","NULL",0]
["0-009","Temperatur 8 [C]","2_a_Temperatur 8 [C]",390,"NULL","NULL",0]
["0-009","Typ","3_a_Typ",290,1,"NULL",0]
["0-009","Typ (Antrieb)","3_a_Typ (Antrieb)",290,1,"NULL",0]
["0-009","TypeID Nova dez","0_c_TypeID Nova dez","NULL","NULL","NULL",0]
["0-009","URL","3_c_URL",300,"NULL","NULL",0]
["0-009","Volumenstrom 1 [m3/h]","2_a_Volumenstrom 1 [m3/h]",390,"NULL","NULL",0]
["0-009","Volumenstrom 2 [m3/h]","2_a_Volumenstrom 2 [m3/h]",590,"NULL","NULL",0]
["0-009","Wartungsintervall [Betriebsstunden]","8_c_Wartungsintervall [Betriebsstunden]",590,"NULL","NULL",0]
["0-009","Werkvertrag [Firma/Nummer]","8_c_Werkvertrag [Firma/Nummer]",590,"NULL","NULL",0]
["0-009","Zust.Unterhalt","8_c_Zust Unterhalt",300,"NULL","NULL",0]
["0-010","Abnahmetermin [Datum]","7_a_Abnahmetermin [Datum]",590,"NULL","NULL",0]
["0-010","Absolutdruck 1 [bar]","2_c_Absolutdruck 1 [bar]",590,"NULL","NULL",0]
["0-010","Achse X","5_c_Achse X","NULL","NULL","NULL",0]
["0-010","Achse Y","5_c_Achse Y","NULL","NULL","NULL",0]
["0-010","Achse Z","5_c_Achse Z","NULL","NULL","NULL",0]
["0-010","Anlage funktional (BKP-XXX)","1_b_Anlage funktional (BKP-XXX)",490,"NULL","NULL",0]
["0-010","Anlagenstruktur-SAN","1_b_Anlagenstruktur-SAN","NULL","NULL","NULL",0]
["0-010","Anlagenummer (BKP-XXX)","1_a_Anlagenummer (BKP-XXX)",100,"NULL","NULL",1]
["0-010","Anlagenummer Bauherr","1_b_Anlagenummer Bauherr",490,"NULL","NULL",0]
["0-010","Anschlussart","3_c_Anschlussart",590,"NULL","NULL",0]
["0-010","Artikelnummer","3_c_Artikelnummer",300,"NULL","NULL",0]
["0-010","Artikelnummer RMB","0_c_Artikelnummer RMB",100,"NULL","NULL",1]
["0-010","Ausführung 1","3_b_Ausfuehrung 1",590,"NULL","NULL",0]
["0-010","Ausführung 2","3_b_Ausfuehrung 2",590,"NULL","NULL",0]
["0-010","Ausführung 3","3_b_Ausfuehrung 3",590,"NULL","NULL",0]
["0-010","Ausführung 4","3_b_Ausfuehrung 4",590,"NULL","NULL",0]
["0-010","Breite (Abmessung 2) [mm]","2_b_Breite (Abmessung 2) [mm]",200,"NULL","NULL",0]
["0-010","Datenpunkte AI","4_c_Datenpunkte AI",390,"NULL","NULL",0]
["0-010","Datenpunkte AO","4_c_Datenpunkte AO",390,"NULL","NULL",0]
["0-010","Datenpunkte DI","4_c_Datenpunkte DI",390,"NULL","NULL",0]
["0-010","Datenpunkte DO","4_c_Datenpunkte DO",390,"NULL","NULL",0]
["0-010","Datenpunkte MBus","4_c_Datenpunkt MBus",390,"NULL","NULL",0]
["0-010","Datenpunkte VA","4_c_Datenpunkt VA",390,"NULL","NULL",0]
["0-010","Datenpunkte VD","4_c_Datenpunkt VD",390,"NULL","NULL",0]
["0-010","Differenzdruck 1 [kPa]","2_a_Differenzdruck 1 [kPa]",290,0,"NULL",0]
["0-010","Differenzdruck 2 [kPa]","2_a_Differenzdruck 2 [kPa]",290,0,"NULL",0]
["0-010","Dimension 1 [DN]","2_a_Dimension 1 [DN]",290,1,"NULL",0]
["0-010","dT mittel log [K]","2_c_dT mittel log [K]",590,"NULL","NULL",0]
["0-010","e-BKP-H","1_b_e-BKP-H",200,"NULL","NULL",0]
["0-010","Einsatzbereich [%]","4_b_Einsatzbereich [%]",590,"NULL","NULL",0]
["0-010","Ende Garantiefrist [Datum]","8_b_Ende Garantiefrist [Datum]",590,"NULL","NULL",0]
["0-010","Fabrikat","3_a_Fabrikat",290,1,"NULL",0]
["0-010","Fabrikat (Antrieb)","3_a_Fabrikat (Antrieb)",290,1,"NULL",0]
["0-010","Freigabe zur Bestellung [Datum]","7_a_Freigabe zur Bestellung [Datum]",400,"NULL","NULL",0]
["0-010","Gebäude","5_c_Gebaeude",200,"NULL","NULL",0]
["0-010","Geschoss","5_a_Geschoss",200,"NULL","NULL",0]
["0-010","Geschwindigkeit 1 [m/s]","2_c_Geschwindigkeit 1 [m/s]",590,"NULL","NULL",0]
["0-010","Geschwindigkeit 2 [m/s]","2_c_Geschwindigkeit 2 [m/s]",590,"NULL","NULL",0]
["0-010","Gewicht Betrieb [kg]","2_b_Gewicht Betrieb [kg]",200,"NULL","NULL",0]
["0-010","Gewicht leer [kg]","2_c_Gewicht leer [kg]",390,0,"NULL",0]
["0-010","Höhe (Abmessung 3) [mm]","2_b_Hoehe (Abmessung 3) [mm]",200,0,"NULL",0]
["0-010","Inbetriebsetzungstermin [Datum]","7_b_Inbetriebsetzungstermin [Datum]",590,"NULL","NULL",0]
["0-010","Inhalt [l]","2_a_Inhalt [l]",390,"NULL","NULL",0]
["0-010","Instandhaltung","8_b_Instandhaltung",300,"NULL","NULL",0]
["0-010","Integration Kommunikation","4_c_Integration Kommunikation",390,"NULL","NULL",0]
["0-010","KelpyOfferteId","3_c_KelpyOfferteId","NULL",1,"NULL",0]
["0-010","Klartext Anlage","1_c_Klartext Anlage",100,"NULL","NULL",0]
["0-010","Klartext Anlage funktional","1_c_Klartext Anlage funktional",590,"NULL","NULL",0]
["0-010","Klartext Feldgerät","1_c_Klartext Feldgeraet",100,"NULL","NULL",1]
["0-010","Klartext Feldgerät Nachtext","1_c_Klartext Feldgeraet Nachtext",590,"NULL","NULL",0]
["0-010","Klartext Raum","5_c_Klartext Raum",200,"NULL","NULL",0]
["0-010","Kommentar technisch","9_a_Kommentar technisch",300,1,"NULL",0]
["0-010","Länge (Abmessung 1) [mm]","2_b_Laenge (Abmessung 1) [mm]",200,0,"NULL",0]
["0-010","Laufnummer","0_a_Laufnummer",100,"NULL","NULL",1]
["0-010","Leistung 1 (hyd) [kW]","2_a_Leistung 1 (hyd) [kW]",290,0,"NULL",0]
["0-010","Leistung 2 (hyd) [kW]","2_a_Leistung 2 (hyd) [kW]",290,0,"NULL",0]
["0-010","Leistung elektrisch [W]","4_a_Leistung elektrisch [W]",390,"NULL","NULL",0]
["0-010","Lieferant","3_c_Lieferant",300,"NULL","NULL",0]
["0-010","Lieferung bauseits","7_a_Lieferung bauseits",300,1,"NULL",0]
["0-010","Massenstrom 1 [kg/h]","2_a_Massenstrom 1 [kg/h]",290,0,"NULL",0]
["0-010","Massenstrom 2 [kg/h]","2_a_Massenstrom 2 [kg/h]",290,0,"NULL",0]
["0-010","Material 1","3_c_Material 1",590,"NULL","NULL",0]
["0-010","Medium 1","2_c_Medium 1",590,"NULL","NULL",0]
["0-010","Medium 2","2_c_Medium 2",590,"NULL","NULL",0]
["0-010","Mieter","5_c_Mieter",590,"NULL","NULL",0]
["0-010","Montagetermin geplant [Datum]","7_b_Montagetermin geplant [Datum]",590,"NULL","NULL",0]
["0-010","Montagetermin ist [Datum]","7_b_Montagetermin ist [Datum]",590,"NULL","NULL",0]
["0-010","Nenndruck PN [bar]","2_b_Nenndruck PN [bar]",290,0,"NULL",0]
["0-010","NPK","1_b_NPK",200,1,"NULL",0]
["0-010","Raumnummer","5_a_Raumnummer",200,"NULL","NULL",0]
["0-010","Schalldruckpegel [dB]","2_b_Schalldruckpegel [dB]",490,"NULL","NULL",0]
["0-010","Schallleistungspegel [dB]","2_b_Schallleistungspegel [dB]",490,"NULL","NULL",0]
["0-010","Schutzart IP","4_c_Schutzart IP",390,"NULL","NULL",0]
["0-010","Servicevertrag [Firma]","8_b_Servicevertrag [Firma]",590,"NULL","NULL",0]
["0-010","Servicevertrag [Nummer]","8_a_Servicevertrag [Nummer]",590,"NULL","NULL",0]
["0-010","SGK Nummer","6_a_SGK Nummer",390,"NULL","NULL",0]
["0-010","SGK Zuordnung","6_a_SGK Zuordnung",390,"NULL","NULL",0]
["0-010","SIA-Katalog","1_b_SIA-Katalog","NULL","NULL","NULL",0]
["0-010","Spannung [V]","4_a_Spannung [V]",390,"NULL","NULL",0]
["0-010","Steuersignal","4_a_Steuersignal",390,"NULL","NULL",0]
["0-010","Strom [A]","4_a_Strom [A]",390,"NULL","NULL",0]
["0-010","System","3_b_System",200,"NULL","NULL",0]
["0-010","Temperatur 1 [C]","2_a_Temperatur 1 [C]",290,0,"NULL",0]
["0-010","Temperatur 2 [C]","2_a_Temperatur 2 [C]",290,0,"NULL",0]
["0-010","Temperatur 3 [C]","2_a_Temperatur 3 [C]",390,"NULL","NULL",0]
["0-010","Temperatur 4 [C]","2_a_Temperatur 4 [C]",390,"NULL","NULL",0]
["0-010","Temperatur 5 [C]","2_a_Temperatur 5 [C]",290,0,"NULL",0]
["0-010","Temperatur 6 [C]","2_a_Temperatur 6 [C]",290,0,"NULL",0]
["0-010","Temperatur 7 [C]","2_a_Temperatur 7 [C]",390,"NULL","NULL",0]
["0-010","Temperatur 8 [C]","2_a_Temperatur 8 [C]",390,"NULL","NULL",0]
["0-010","Typ","3_a_Typ",290,1,"NULL",0]
["0-010","Typ (Antrieb)","3_a_Typ (Antrieb)",290,1,"NULL",0]
["0-010","TypeID Nova dez","0_c_TypeID Nova dez","NULL","NULL","NULL",0]
["0-010","URL","3_c_URL",300,"NULL","NULL",0]
["0-010","Volumenstrom 1 [m3/h]","2_a_Volumenstrom 1 [m3/h]",390,"NULL","NULL",0]
["0-010","Volumenstrom 2 [m3/h]","2_a_Volumenstrom 2 [m3/h]",590,"NULL","NULL",0]
["0-010","Wartungsintervall [Betriebsstunden]","8_c_Wartungsintervall [Betriebsstunden]",590,"NULL","NULL",0]
["0-010","Werkvertrag [Firma/Nummer]","8_c_Werkvertrag [Firma/Nummer]",590,"NULL","NULL",0]
["0-011","(Abmessung 7) [mm]","2_b_(Abmessung 7) [mm]",290,0,"Modell",0]
["0-011","Abnahmetermin [Datum]","7_a_Abnahmetermin [Datum]",590,"NULL","NULL",0]
["0-011","Absolutdruck 1 [bar]","2_c_Absolutdruck 1 [bar]",590,"NULL","NULL",0]
["0-011","Achse X","5_c_Achse X","NULL","NULL","NULL",0]
["0-011","Achse Y","5_c_Achse Y","NULL","NULL","NULL",0]
["0-011","Achse Z","5_c_Achse Z","NULL","NULL","NULL",0]
["0-011","Anlage funktional (BKP-XXX)","1_b_Anlage funktional (BKP-XXX)",490,"NULL","NULL",0]
["0-011","Anlagenstruktur-SAN","1_b_Anlagenstruktur-SAN","NULL","NULL","NULL",0]
["0-011","Anlagenummer (BKP-XXX)","1_a_Anlagenummer (BKP-XXX)",100,"NULL","NULL",1]
["0-011","Anlagenummer Bauherr","1_b_Anlagenummer Bauherr",490,"NULL","NULL",0]
["0-011","Anschlussart","3_c_Anschlussart",590,"NULL","NULL",0]
["0-011","Anzahl [Stk]","3_b_Anzahl [Stk]",290,0,"Modell",1]
["0-011","Artikelnummer","3_c_Artikelnummer",300,"NULL","Modell",0]
["0-011","Artikelnummer RMB","0_c_Artikelnummer RMB",100,"NULL","NULL",1]
["0-011","Ausführung 1","3_b_Ausfuehrung 1",590,"NULL","NULL",0]
["0-011","Ausführung 2","3_b_Ausfuehrung 2",590,"NULL","NULL",0]
["0-011","Ausführung 3","3_b_Ausfuehrung 3",590,"NULL","NULL",0]
["0-011","Ausführung 4","3_b_Ausfuehrung 4",590,"NULL","NULL",0]
["0-011","Breite (Abmessung 2) [mm]","2_b_Breite (Abmessung 2) [mm]",200,1,"Modell",0]
["0-011","Differenzdruck 1 [kPa]","2_a_Differenzdruck 1 [kPa]",390,"NULL","NULL",0]
["0-011","Dimension 1 [DN]","2_a_Dimension 1 [DN]",290,1,"NULL",0]
["0-011","dT mittel log [K]","2_c_dT mittel log [K]",590,"NULL","NULL",0]
["0-011","e-BKP-H","1_b_e-BKP-H",200,"NULL","NULL",0]
["0-011","Ende Garantiefrist [Datum]","8_b_Ende Garantiefrist [Datum]",590,"NULL","NULL",0]
["0-011","Fabrikat","3_a_Fabrikat",290,1,"NULL",0]
["0-011","Fabrikat (Antrieb)","3_a_Fabrikat (Antrieb)",290,1,"NULL",0]
["0-011","Farbe 1","3_c_Farbe 1",300,0,"NULL",0]
["0-011","Farbe 2","3_c_Farbe 2",300,"NULL","NULL",0]
["0-011","Freigabe zur Bestellung [Datum]","7_a_Freigabe zur Bestellung [Datum]",400,"NULL","NULL",0]
["0-011","Gebäude","5_c_Gebaeude",200,"NULL","Modell",0]
["0-011","Geschoss","5_a_Geschoss",200,"NULL","Modell",0]
["0-011","Geschwindigkeit 1 [m/s]","2_c_Geschwindigkeit 1 [m/s]",590,"NULL","NULL",0]
["0-011","Geschwindigkeit 2 [m/s]","2_c_Geschwindigkeit 2 [m/s]",590,"NULL","NULL",0]
["0-011","Gewicht Betrieb [kg]","2_b_Gewicht Betrieb [kg]",200,"NULL","NULL",0]
["0-011","Gewicht leer [kg]","2_c_Gewicht leer [kg]",390,0,"NULL",0]
["0-011","Höhe (Abmessung 3) [mm]","2_b_Hoehe (Abmessung 3) [mm]",200,1,"Modell",0]
["0-011","Inbetriebsetzungstermin [Datum]","7_b_Inbetriebsetzungstermin [Datum]",590,"NULL","NULL",0]
["0-011","Inhalt [l]","2_a_Inhalt [l]",390,"NULL","Modell",0]
["0-011","Instandhaltung","8_b_Instandhaltung",300,"NULL","NULL",0]
["0-011","KelpyOfferteId","3_c_KelpyOfferteId","NULL",1,"NULL",0]
["0-011","Klartext Anlage","1_c_Klartext Anlage",100,"NULL","NULL",0]
["0-011","Klartext Anlage funktional","1_c_Klartext Anlage funktional",590,"NULL","NULL",0]
["0-011","Klartext Feldgerät","1_c_Klartext Feldgeraet",100,"NULL","Modell",1]
["0-011","Klartext Feldgerät Nachtext","1_c_Klartext Feldgeraet Nachtext",590,"NULL","NULL",0]
["0-011","Klartext Raum","5_c_Klartext Raum",200,"NULL","Modell",0]
["0-011","Kommentar technisch","9_a_Kommentar technisch",300,1,"NULL",0]
["0-011","Länge (Abmessung 1) [mm]","2_b_Laenge (Abmessung 1) [mm]",200,1,"Modell",0]
["0-011","Laufnummer","0_a_Laufnummer",100,"NULL","NULL",1]
["0-011","Leistung 1 (hyd) [kW]","2_a_Leistung 1 (hyd) [kW]",290,1,"Strangschema",0]
["0-011","Leistung 2 (hyd) [kW]","2_a_Leistung 2 (hyd) [kW]",290,0,"NULL",0]
["0-011","Leistung elektrisch [W]","4_a_Leistung elektrisch [W]",390,"NULL","NULL",0]
["0-011","Lieferant","3_c_Lieferant",300,"NULL","NULL",0]
["0-011","Lieferung bauseits","7_a_Lieferung bauseits",300,1,"NULL",0]
["0-011","Massenstrom 1 [kg/h]","2_a_Massenstrom 1 [kg/h]",290,0,"Strangschema",0]
["0-011","Material 1","3_c_Material 1",390,1,"NULL",0]
["0-011","Medium 1","2_c_Medium 1",590,"NULL","NULL",0]
["0-011","Medium 2","2_c_Medium 2",590,"NULL","NULL",0]
["0-011","Mieter","5_c_Mieter",590,"NULL","NULL",0]
["0-011","Montagetermin geplant [Datum]","7_b_Montagetermin geplant [Datum]",590,"NULL","NULL",0]
["0-011","Montagetermin ist [Datum]","7_b_Montagetermin ist [Datum]",590,"NULL","NULL",0]
["0-011","Nenndruck PN [bar]","2_b_Nenndruck PN [bar]",290,0,"NULL",0]
["0-011","NPK","1_b_NPK",200,1,"NULL",0]
["0-011","Phasen","4_b_Phasen",490,"NULL","NULL",0]
["0-011","Positionsnummer","5_c_Positionsnummer","NULL","NULL","Modell",1]
["0-011","Raumnummer","5_a_Raumnummer",200,"NULL","Modell",0]
["0-011","Servicevertrag [Firma]","8_b_Servicevertrag [Firma]",590,"NULL","NULL",0]
["0-011","Servicevertrag [Nummer]","8_a_Servicevertrag [Nummer]",590,"NULL","NULL",0]
["0-011","SIA-Katalog","1_b_SIA-Katalog","NULL","NULL","NULL",0]
["0-011","Spannung [V]","4_a_Spannung [V]",390,"NULL","NULL",0]
["0-011","Strom [A]","4_a_Strom [A]",390,"NULL","NULL",0]
["0-011","System","3_b_System",200,"NULL","Modell",0]
["0-011","Temperatur 1 [C]","2_a_Temperatur 1 [C]",290,0,"Strangschema",0]
["0-011","Temperatur 2 [C]","2_a_Temperatur 2 [C]",290,0,"Strangschema",0]
["0-011","Temperatur 3 [C]","2_a_Temperatur 3 [C]",290,0,"NULL",0]
["0-011","Temperatur 4 [C]","2_a_Temperatur 4 [C]",590,"NULL","NULL",0]
["0-011","Typ","3_a_Typ",290,1,"Modell",0]
["0-011","Typ (Antrieb)","3_a_Typ (Antrieb)",290,1,"NULL",0]
["0-011","TypeID Nova dez","0_c_TypeID Nova dez","NULL","NULL","NULL",0]
["0-011","URL","3_c_URL",300,"NULL","NULL",0]
["0-011","Volumenstrom 1 [m3/h]","2_a_Volumenstrom 1 [m3/h]",390,"NULL","NULL",0]
["0-011","Wartungsintervall [Betriebsstunden]","8_c_Wartungsintervall [Betriebsstunden]",590,"NULL","NULL",0]
["0-011","Werkvertrag [Firma/Nummer]","8_c_Werkvertrag [Firma/Nummer]",590,"NULL","NULL",0]
["0-012","Abnahmetermin [Datum]","7_a_Abnahmetermin [Datum]",590,"NULL","NULL",0]
["0-012","Achse X","5_c_Achse X","NULL","NULL","NULL",0]
["0-012","Achse Y","5_c_Achse Y","NULL","NULL","NULL",0]
["0-012","Achse Z","5_c_Achse Z","NULL","NULL","NULL",0]
["0-012","Anlage funktional (BKP-XXX)","1_b_Anlage funktional (BKP-XXX)",490,"NULL","NULL",0]
["0-012","Anlagenstruktur-SAN","1_b_Anlagenstruktur-SAN","NULL","NULL","NULL",0]
["0-012","Anlagenummer (BKP-XXX)","1_a_Anlagenummer (BKP-XXX)",100,"NULL","NULL",1]
["0-012","Anlagenummer Bauherr","1_b_Anlagenummer Bauherr",490,"NULL","NULL",0]
["0-012","Anschlussart","3_c_Anschlussart",590,"NULL","NULL",0]
["0-012","Anzahl [Stk]","3_b_Anzahl [Stk]",290,1,"NULL",0]
["0-012","Artikelnummer","3_c_Artikelnummer",300,"NULL","Modell",0]
["0-012","Artikelnummer RMB","0_c_Artikelnummer RMB",100,"NULL","NULL",1]
["0-012","Ausführung 1","3_b_Ausfuehrung 1",590,"NULL","NULL",0]
["0-012","Ausführung 2","3_b_Ausfuehrung 2",590,"NULL","NULL",0]
["0-012","Ausführung 3","3_b_Ausfuehrung 3",590,"NULL","NULL",0]
["0-012","Ausführung 4","3_b_Ausfuehrung 4",590,"NULL","NULL",0]
["0-012","Breite (Abmessung 2) [mm]","2_b_Breite (Abmessung 2) [mm]",200,"NULL","NULL",0]
["0-012","Datenpunkte AI","4_c_Datenpunkte AI",390,"NULL","NULL",0]
["0-012","Datenpunkte AO","4_c_Datenpunkte AO",390,"NULL","NULL",0]
["0-012","Datenpunkte DI","4_c_Datenpunkte DI",390,"NULL","NULL",0]
["0-012","Datenpunkte DO","4_c_Datenpunkte DO",390,"NULL","NULL",0]
["0-012","Datenpunkte MBus","4_c_Datenpunkt MBus",390,"NULL","NULL",0]
["0-012","Datenpunkte VA","4_c_Datenpunkt VA",390,"NULL","NULL",0]
["0-012","Datenpunkte VD","4_c_Datenpunkt VD",390,"NULL","NULL",0]
["0-012","Differenzdruck 1 [kPa]","2_a_Differenzdruck 1 [kPa]",290,0,"NULL",0]
["0-012","Dimension 1 [DN]","2_a_Dimension 1 [DN]",290,1,"NULL",0]
["0-012","Dimension 2 [DN]","2_a_Dimension 2 [DN]",390,"NULL","NULL",0]
["0-012","Durchmesser (Abmessung 4) [mm]","2_b_Durchmesser (Abmessung 4) [mm]",200,"NULL","NULL",0]
["0-012","e-BKP-H","1_b_e-BKP-H",200,"NULL","NULL",0]
["0-012","Ende Garantiefrist [Datum]","8_b_Ende Garantiefrist [Datum]",590,"NULL","NULL",0]
["0-012","Fabrikat","3_a_Fabrikat",290,1,"NULL",0]
["0-012","Fabrikat (Antrieb)","3_a_Fabrikat (Antrieb)",290,1,"NULL",0]
["0-012","Fläche 1 [m2]","2_c_Flaeche 1 [m2]",390,1,"NULL",0]
["0-012","Freigabe zur Bestellung [Datum]","7_a_Freigabe zur Bestellung [Datum]",400,"NULL","NULL",0]
["0-012","Gebäude","5_c_Gebaeude",200,"NULL","Modell",0]
["0-012","Geschoss","5_a_Geschoss",200,"NULL","Modell",0]
["0-012","Gewicht Betrieb [kg]","2_b_Gewicht Betrieb [kg]",200,"NULL","NULL",0]
["0-012","Gewicht leer [kg]","2_c_Gewicht leer [kg]",390,0,"NULL",0]
["0-012","Höhe (Abmessung 3) [mm]","2_b_Hoehe (Abmessung 3) [mm]",200,"NULL","NULL",0]
["0-012","Inbetriebsetzungstermin [Datum]","7_b_Inbetriebsetzungstermin [Datum]",590,"NULL","NULL",0]
["0-012","Inhalt [l]","2_a_Inhalt [l]",390,"NULL","NULL",0]
["0-012","Instandhaltung","8_b_Instandhaltung",300,"NULL","NULL",0]
["0-012","Integration Kommunikation","4_c_Integration Kommunikation",390,"NULL","NULL",0]
["0-012","KelpyOfferteId","3_c_KelpyOfferteId","NULL",1,"NULL",0]
["0-012","Klartext Anlage","1_c_Klartext Anlage",100,"NULL","NULL",0]
["0-012","Klartext Anlage funktional","1_c_Klartext Anlage funktional",590,"NULL","NULL",0]
["0-012","Klartext Feldgerät","1_c_Klartext Feldgeraet",100,"NULL","Strangschema",1]
["0-012","Klartext Feldgerät Nachtext","1_c_Klartext Feldgeraet Nachtext",590,"NULL","NULL",0]
["0-012","Klartext Raum","5_c_Klartext Raum",200,"NULL","Modell",0]
["0-012","Kommentar technisch","9_a_Kommentar technisch",300,1,"NULL",0]
["0-012","Länge (Abmessung 1) [mm]","2_b_Laenge (Abmessung 1) [mm]",200,"NULL","NULL",0]
["0-012","Laufnummer","0_a_Laufnummer",100,"NULL","NULL",1]
["0-012","Leistung 1 (hyd) [kW]","2_a_Leistung 1 (hyd) [kW]",290,0,"NULL",0]
["0-012","Lieferant","3_c_Lieferant",300,"NULL","NULL",0]
["0-012","Lieferung bauseits","7_a_Lieferung bauseits",300,1,"NULL",0]
["0-012","Massenstrom 1 [kg/h]","2_a_Massenstrom 1 [kg/h]",290,0,"NULL",0]
["0-012","Material 1","3_c_Material 1",390,1,"NULL",0]
["0-012","Medium 1","2_c_Medium 1",590,"NULL","NULL",0]
["0-012","Mieter","5_c_Mieter",590,"NULL","NULL",0]
["0-012","Montageset","3_c_Montageset",590,"NULL","NULL",0]
["0-012","Montagetermin geplant [Datum]","7_b_Montagetermin geplant [Datum]",590,"NULL","NULL",0]
["0-012","Montagetermin ist [Datum]","7_b_Montagetermin ist [Datum]",590,"NULL","NULL",0]
["0-012","Nenndruck PN [bar]","2_b_Nenndruck PN [bar]",290,0,"NULL",0]
["0-012","NPK","1_b_NPK",200,1,"NULL",0]
["0-012","Positionsnummer","5_c_Positionsnummer","NULL","NULL","Strangschema",1]
["0-012","Raumnummer","5_a_Raumnummer",200,"NULL","Modell",0]
["0-012","Servicevertrag [Firma]","8_b_Servicevertrag [Firma]",590,"NULL","NULL",0]
["0-012","Servicevertrag [Nummer]","8_a_Servicevertrag [Nummer]",590,"NULL","NULL",0]
["0-012","SGK Nummer","6_a_SGK Nummer",390,"NULL","NULL",0]
["0-012","SGK Zuordnung","6_a_SGK Zuordnung",390,"NULL","NULL",0]
["0-012","SIA-Katalog","1_b_SIA-Katalog","NULL","NULL","NULL",0]
["0-012","System","3_b_System",200,"NULL","Strangschema",0]
["0-012","Temperatur 1 [C]","2_a_Temperatur 1 [C]",290,0,"NULL",0]
["0-012","Temperatur 2 [C]","2_a_Temperatur 2 [C]",290,0,"NULL",0]
["0-012","Typ","3_a_Typ",290,1,"NULL",0]
["0-012","Typ (Antrieb)","3_a_Typ (Antrieb)",290,1,"NULL",0]
["0-012","TypeID Nova dez","0_c_TypeID Nova dez","NULL","NULL","NULL",0]
["0-012","URL","3_c_URL",300,"NULL","NULL",0]
["0-012","Wartungsintervall [Betriebsstunden]","8_c_Wartungsintervall [Betriebsstunden]",590,"NULL","NULL",0]
["0-012","Werkvertrag [Firma/Nummer]","8_c_Werkvertrag [Firma/Nummer]",590,"NULL","NULL",0]
["0-013","Abnahmetermin [Datum]","7_a_Abnahmetermin [Datum]",590,"NULL","NULL",0]
["0-013","Absolutdruck 1 [bar]","2_c_Absolutdruck 1 [bar]",590,"NULL","NULL",0]
["0-013","Absolute Feuchte 1 [g/kg]","2_b_Absolute Feuchte 1 [g/kg]",590,"NULL","NULL",0]
["0-013","Absolute Feuchte 2 [g/kg]","2_b_Absolute Feuchte 2 [g/kg]",590,"NULL","NULL",0]
["0-013","Achse X","5_c_Achse X","NULL","NULL","NULL",0]
["0-013","Achse Y","5_c_Achse Y","NULL","NULL","NULL",0]
["0-013","Achse Z","5_c_Achse Z","NULL","NULL","NULL",0]
["0-013","Anlage funktional (BKP-XXX)","1_b_Anlage funktional (BKP-XXX)",490,"NULL","NULL",0]
["0-013","Anlagenstruktur-SAN","1_b_Anlagenstruktur-SAN","NULL","NULL","NULL",0]
["0-013","Anlagenummer (BKP-XXX)","1_a_Anlagenummer (BKP-XXX)",100,"NULL","NULL",1]
["0-013","Anlagenummer Bauherr","1_b_Anlagenummer Bauherr",490,"NULL","NULL",0]
["0-013","Anschlussart","3_c_Anschlussart",590,"NULL","NULL",0]
["0-013","Anzahl [Stk]","3_b_Anzahl [Stk]",590,"NULL","NULL",0]
["0-013","Artikelnummer","3_c_Artikelnummer",300,"NULL","Modell",0]
["0-013","Artikelnummer RMB","0_c_Artikelnummer RMB",100,"NULL","NULL",1]
["0-013","Ausführung 1","3_b_Ausfuehrung 1",590,"NULL","NULL",0]
["0-013","Ausführung 2","3_b_Ausfuehrung 2",590,"NULL","NULL",0]
["0-013","Ausführung 3","3_b_Ausfuehrung 3",590,"NULL","NULL",0]
["0-013","Ausführung 4","3_b_Ausfuehrung 4",590,"NULL","NULL",0]
["0-013","Bezeichnung Elektroschema (BMK)","6_a_Bezeichnung Elektroschema (BMK)",390,"NULL","NULL",0]
["0-013","Bezeichnung GA (AKS)","6_c_Bezeichnung GA (AKS)",590,"NULL","NULL",0]
["0-013","Breite (Abmessung 2) [mm]","2_b_Breite (Abmessung 2) [mm]",200,0,"NULL",0]
["0-013","Datenpunkte AI","4_c_Datenpunkte AI",590,"NULL","NULL",0]
["0-013","Datenpunkte AO","4_c_Datenpunkte AO",590,"NULL","NULL",0]
["0-013","Datenpunkte DI","4_c_Datenpunkte DI",590,"NULL","NULL",0]
["0-013","Datenpunkte DO","4_c_Datenpunkte DO",590,"NULL","NULL",0]
["0-013","Datenpunkte MBus","4_c_Datenpunkt MBus",590,"NULL","NULL",0]
["0-013","Datenpunkte VA","4_c_Datenpunkt VA",590,"NULL","NULL",0]
["0-013","Datenpunkte VD","4_c_Datenpunkt VD",590,"NULL","NULL",0]
["0-013","Differenzdruck 1 [kPa]","2_a_Differenzdruck 1 [kPa]",290,0,"NULL",0]
["0-013","Dimension 1 [DN]","2_a_Dimension 1 [DN]",290,1,"NULL",0]
["0-013","dT mittel log [K]","2_c_dT mittel log [K]",590,"NULL","NULL",0]
["0-013","e-BKP-H","1_b_e-BKP-H",200,"NULL","NULL",0]
["0-013","Einsatzbereich [%]","4_b_Einsatzbereich [%]",390,"NULL","NULL",0]
["0-013","Ende Garantiefrist [Datum]","8_b_Ende Garantiefrist [Datum]",590,"NULL","NULL",0]
["0-013","Fabrikat","3_a_Fabrikat",290,1,"NULL",0]
["0-013","Fabrikat (Antrieb)","3_a_Fabrikat (Antrieb)",290,1,"NULL",0]
["0-013","Freigabe zur Bestellung [Datum]","7_a_Freigabe zur Bestellung [Datum]",400,"NULL","NULL",0]
["0-013","Gebäude","5_c_Gebaeude",200,"NULL","Modell",0]
["0-013","Geschoss","5_a_Geschoss",200,"NULL","Modell",0]
["0-013","Geschwindigkeit 1 [m/s]","2_c_Geschwindigkeit 1 [m/s]",590,"NULL","NULL",0]
["0-013","Geschwindigkeit 2 [m/s]","2_c_Geschwindigkeit 2 [m/s]",590,"NULL","NULL",0]
["0-013","Gewicht Betrieb [kg]","2_b_Gewicht Betrieb [kg]",200,"NULL","NULL",0]
["0-013","Gewicht leer [kg]","2_c_Gewicht leer [kg]",390,0,"NULL",0]
["0-013","Höhe (Abmessung 3) [mm]","2_b_Hoehe (Abmessung 3) [mm]",200,0,"NULL",0]
["0-013","Inbetriebsetzungstermin [Datum]","7_b_Inbetriebsetzungstermin [Datum]",590,"NULL","NULL",0]
["0-013","Inhalt [l]","2_a_Inhalt [l]",390,"NULL","NULL",0]
["0-013","Instandhaltung","8_b_Instandhaltung",300,"NULL","NULL",0]
["0-013","Integration Kommunikation","4_c_Integration Kommunikation",590,"NULL","NULL",0]
["0-013","KelpyOfferteId","3_c_KelpyOfferteId","NULL",1,"NULL",0]
["0-013","Klartext Anlage","1_c_Klartext Anlage",100,"NULL","NULL",0]
["0-013","Klartext Anlage funktional","1_c_Klartext Anlage funktional",590,"NULL","NULL",0]
["0-013","Klartext Feldgerät","1_c_Klartext Feldgeraet",100,"NULL","Strangschema",1]
["0-013","Klartext Feldgerät Nachtext","1_c_Klartext Feldgeraet Nachtext",590,"NULL","NULL",0]
["0-013","Klartext Raum","5_c_Klartext Raum",200,"NULL","Modell",0]
["0-013","Kommentar technisch","9_a_Kommentar technisch",300,1,"NULL",0]
["0-013","Länge (Abmessung 1) [mm]","2_b_Laenge (Abmessung 1) [mm]",200,0,"NULL",0]
["0-013","Laufnummer","0_a_Laufnummer",100,"NULL","NULL",1]
["0-013","Leistung 1 (hyd) [kW]","2_a_Leistung 1 (hyd) [kW]",290,0,"NULL",0]
["0-013","Leistung 2 (hyd) [kW]","2_a_Leistung 2 (hyd) [kW]",290,0,"NULL",0]
["0-013","Leistung elektrisch [W]","4_a_Leistung elektrisch [W]",390,"NULL","NULL",0]
["0-013","Lieferant","3_c_Lieferant",300,"NULL","NULL",0]
["0-013","Lieferung bauseits","7_a_Lieferung bauseits",300,1,"NULL",0]
["0-013","Massenstrom 1 [kg/h]","2_a_Massenstrom 1 [kg/h]",290,0,"NULL",0]
["0-013","Massenstrom 2 [kg/h]","2_a_Massenstrom 2 [kg/h]",290,0,"NULL",0]
["0-013","Material 1","3_c_Material 1",390,1,"NULL",0]
["0-013","Medium 1","2_c_Medium 1",590,"NULL","NULL",0]
["0-013","Medium 2","2_c_Medium 2",590,"NULL","NULL",0]
["0-013","Mieter","5_c_Mieter",590,"NULL","NULL",0]
["0-013","Montagetermin geplant [Datum]","7_b_Montagetermin geplant [Datum]",590,"NULL","NULL",0]
["0-013","Montagetermin ist [Datum]","7_b_Montagetermin ist [Datum]",590,"NULL","NULL",0]
["0-013","Nenndruck PN [bar]","2_b_Nenndruck PN [bar]",290,0,"NULL",0]
["0-013","NPK","1_b_NPK",200,1,"NULL",0]
["0-013","Phasen","4_b_Phasen",490,"NULL","NULL",0]
["0-013","Positionsnummer","5_c_Positionsnummer","NULL","NULL","Strangschema",1]
["0-013","Raumnummer","5_a_Raumnummer",200,"NULL","Modell",0]
["0-013","Regelungsart","4_a_Regelungsart",390,"NULL","NULL",0]
["0-013","Relative Feuchte 1 [%]","2_b_Relative Feuchte 1 [%]",590,"NULL","NULL",0]
["0-013","Relative Feuchte 2 [%]","2_b_Relative Feuchte 2 [%]",590,"NULL","NULL",0]
["0-013","Schalldruckpegel [dB]","2_b_Schalldruckpegel [dB]",490,"NULL","NULL",0]
["0-013","Schallleistungspegel [dB]","2_b_Schallleistungspegel [dB]",490,"NULL","NULL",0]
["0-013","Schutzart IP","4_c_Schutzart IP",590,"NULL","NULL",0]
["0-013","Servicevertrag [Firma]","8_b_Servicevertrag [Firma]",590,"NULL","NULL",0]
["0-013","Servicevertrag [Nummer]","8_a_Servicevertrag [Nummer]",590,"NULL","NULL",0]
["0-013","SGK Nummer","6_a_SGK Nummer",390,"NULL","NULL",0]
["0-013","SGK Zuordnung","6_a_SGK Zuordnung",390,"NULL","NULL",0]
["0-013","SIA-Katalog","1_b_SIA-Katalog","NULL","NULL","NULL",0]
["0-013","Spannung [V]","4_a_Spannung [V]",390,"NULL","NULL",0]
["0-013","Steuersignal","4_a_Steuersignal",390,"NULL","NULL",0]
["0-013","Strom [A]","4_a_Strom [A]",390,"NULL","NULL",0]
["0-013","System","3_b_System",200,"NULL","Strangschema",0]
["0-013","Temperatur 1 [C]","2_a_Temperatur 1 [C]",290,0,"NULL",0]
["0-013","Temperatur 2 [C]","2_a_Temperatur 2 [C]",290,0,"NULL",0]
["0-013","Temperatur 3 [C]","2_a_Temperatur 3 [C]",390,"NULL","NULL",0]
["0-013","Temperatur 4 [C]","2_a_Temperatur 4 [C]",390,"NULL","NULL",0]
["0-013","Temperatur 5 [C]","2_a_Temperatur 5 [C]",290,0,"NULL",0]
["0-013","Temperatur 6 [C]","2_a_Temperatur 6 [C]",290,0,"NULL",0]
["0-013","Temperatur 7 [C]","2_a_Temperatur 7 [C]",390,"NULL","NULL",0]
["0-013","Temperatur 8 [C]","2_a_Temperatur 8 [C]",390,"NULL","NULL",0]
["0-013","Typ","3_a_Typ",290,1,"NULL",0]
["0-013","Typ (Antrieb)","3_a_Typ (Antrieb)",290,1,"NULL",0]
["0-013","TypeID Nova dez","0_c_TypeID Nova dez","NULL","NULL","NULL",0]
["0-013","URL","3_c_URL",300,"NULL","NULL",0]
["0-013","Volumenstrom 1 [m3/h]","2_a_Volumenstrom 1 [m3/h]",390,"NULL","NULL",0]
["0-013","Wartungsintervall [Betriebsstunden]","8_c_Wartungsintervall [Betriebsstunden]",590,"NULL","NULL",0]
["0-013","Werkvertrag [Firma/Nummer]","8_c_Werkvertrag [Firma/Nummer]",590,"NULL","NULL",0]
["0-013","Zust.Unterhalt","8_c_Zust Unterhalt",300,"NULL","NULL",0]
["0-014","Abnahmetermin [Datum]","7_a_Abnahmetermin [Datum]",590,"NULL","NULL",0]
["0-014","Absolutdruck 1 [bar]","2_c_Absolutdruck 1 [bar]",590,"NULL","NULL",0]
["0-014","Achse X","5_c_Achse X","NULL","NULL","NULL",0]
["0-014","Achse Y","5_c_Achse Y","NULL","NULL","NULL",0]
["0-014","Achse Z","5_c_Achse Z","NULL","NULL","NULL",0]
["0-014","Anlage funktional (BKP-XXX)","1_b_Anlage funktional (BKP-XXX)",490,"NULL","NULL",0]
["0-014","Anlagenstruktur-SAN","1_b_Anlagenstruktur-SAN","NULL","NULL","NULL",0]
["0-014","Anlagenummer (BKP-XXX)","1_a_Anlagenummer (BKP-XXX)",100,"NULL","NULL",1]
["0-014","Anlagenummer Bauherr","1_b_Anlagenummer Bauherr",490,"NULL","NULL",0]
["0-014","Anschlussart","3_c_Anschlussart",590,"NULL","NULL",0]
["0-014","Anzahl [Stk]","3_b_Anzahl [Stk]",590,"NULL","NULL",0]
["0-014","Artikelnummer","3_c_Artikelnummer",300,"NULL","Modell",0]
["0-014","Artikelnummer RMB","0_c_Artikelnummer RMB",100,"NULL","NULL",1]
["0-014","Ausführung 1","3_b_Ausfuehrung 1",590,"NULL","NULL",0]
["0-014","Ausführung 2","3_b_Ausfuehrung 2",590,"NULL","NULL",0]
["0-014","Ausführung 3","3_b_Ausfuehrung 3",590,"NULL","NULL",0]
["0-014","Ausführung 4","3_b_Ausfuehrung 4",590,"NULL","NULL",0]
["0-014","Bezeichnung Elektroschema (BMK)","6_a_Bezeichnung Elektroschema (BMK)",390,"NULL","NULL",0]
["0-014","Bezeichnung GA (AKS)","6_c_Bezeichnung GA (AKS)",590,"NULL","NULL",0]
["0-014","Breite (Abmessung 2) [mm]","2_b_Breite (Abmessung 2) [mm]",200,0,"NULL",0]
["0-014","Datenpunkte AI","4_c_Datenpunkte AI",590,"NULL","NULL",0]
["0-014","Datenpunkte AO","4_c_Datenpunkte AO",590,"NULL","NULL",0]
["0-014","Datenpunkte DI","4_c_Datenpunkte DI",590,"NULL","NULL",0]
["0-014","Datenpunkte DO","4_c_Datenpunkte DO",590,"NULL","NULL",0]
["0-014","Datenpunkte MBus","4_c_Datenpunkt MBus",590,"NULL","NULL",0]
["0-014","Datenpunkte VA","4_c_Datenpunkt VA",590,"NULL","NULL",0]
["0-014","Datenpunkte VD","4_c_Datenpunkt VD",590,"NULL","NULL",0]
["0-014","Differenzdruck 1 [kPa]","2_a_Differenzdruck 1 [kPa]",290,0,"NULL",0]
["0-014","Dimension 1 [DN]","2_a_Dimension 1 [DN]",290,1,"NULL",0]
["0-014","dT mittel log [K]","2_c_dT mittel log [K]",590,"NULL","NULL",0]
["0-014","e-BKP-H","1_b_e-BKP-H",200,"NULL","NULL",0]
["0-014","Einsatzbereich [%]","4_b_Einsatzbereich [%]",390,"NULL","NULL",0]
["0-014","Ende Garantiefrist [Datum]","8_b_Ende Garantiefrist [Datum]",590,"NULL","NULL",0]
["0-014","Energieeffizienzklasse","3_c_Energieeffizienzklasse",590,"NULL","NULL",0]
["0-014","Fabrikat","3_a_Fabrikat",290,1,"NULL",0]
["0-014","Fabrikat (Antrieb)","3_a_Fabrikat (Antrieb)",290,1,"NULL",0]
["0-014","Freigabe zur Bestellung [Datum]","7_a_Freigabe zur Bestellung [Datum]",400,"NULL","NULL",0]
["0-014","Gebäude","5_c_Gebaeude",200,"NULL","Modell",0]
["0-014","Gesamtwirkungsgrad Vollast","3_c_Gesamtwirkungsgrad Vollast",590,"NULL","NULL",0]
["0-014","Geschoss","5_a_Geschoss",200,"NULL","Modell",0]
["0-014","Geschwindigkeit 1 [m/s]","2_c_Geschwindigkeit 1 [m/s]",590,"NULL","NULL",0]
["0-014","Geschwindigkeit 2 [m/s]","2_c_Geschwindigkeit 2 [m/s]",590,"NULL","NULL",0]
["0-014","Gewicht Betrieb [kg]","2_b_Gewicht Betrieb [kg]",200,"NULL","NULL",0]
["0-014","Gewicht leer [kg]","2_c_Gewicht leer [kg]",390,0,"NULL",0]
["0-014","Höhe (Abmessung 3) [mm]","2_b_Hoehe (Abmessung 3) [mm]",200,0,"NULL",0]
["0-014","Inbetriebsetzungstermin [Datum]","7_b_Inbetriebsetzungstermin [Datum]",590,"NULL","NULL",0]
["0-014","Inhalt [l]","2_a_Inhalt [l]",390,"NULL","NULL",0]
["0-014","Instandhaltung","8_b_Instandhaltung",300,"NULL","NULL",0]
["0-014","Integration Kommunikation","4_c_Integration Kommunikation",590,"NULL","NULL",0]
["0-014","KelpyOfferteId","3_c_KelpyOfferteId","NULL",1,"NULL",0]
["0-014","Klartext Anlage","1_c_Klartext Anlage",100,"NULL","NULL",0]
["0-014","Klartext Anlage funktional","1_c_Klartext Anlage funktional",590,"NULL","NULL",0]
["0-014","Klartext Feldgerät","1_c_Klartext Feldgeraet",100,"NULL","Prinzipschema, Strangschema",1]
["0-014","Klartext Feldgerät Nachtext","1_c_Klartext Feldgeraet Nachtext",590,"NULL","NULL",0]
["0-014","Klartext Raum","5_c_Klartext Raum",200,"NULL","Modell",0]
["0-014","Kommentar technisch","9_a_Kommentar technisch",300,1,"NULL",0]
["0-014","Länge (Abmessung 1) [mm]","2_b_Laenge (Abmessung 1) [mm]",200,0,"NULL",0]
["0-014","Laufnummer","0_a_Laufnummer",100,"NULL","NULL",1]
["0-014","Leistung 1 (hyd) [kW]","2_a_Leistung 1 (hyd) [kW]",290,0,"Prinzipschema",0]
["0-014","Leistung elektrisch [W]","4_a_Leistung elektrisch [W]",390,"NULL","NULL",0]
["0-014","Lieferant","3_c_Lieferant",300,"NULL","NULL",0]
["0-014","Lieferung bauseits","7_a_Lieferung bauseits",300,1,"NULL",0]
["0-014","Massenstrom 1 [kg/h]","2_a_Massenstrom 1 [kg/h]",290,0,"Prinzipschema",0]
["0-014","Material 1","3_c_Material 1",390,1,"NULL",0]
["0-014","Medium 1","2_c_Medium 1",590,"NULL","NULL",0]
["0-014","Medium 2","2_c_Medium 2",590,"NULL","NULL",0]
["0-014","Mieter","5_c_Mieter",590,"NULL","NULL",0]
["0-014","Montagetermin geplant [Datum]","7_b_Montagetermin geplant [Datum]",590,"NULL","NULL",0]
["0-014","Montagetermin ist [Datum]","7_b_Montagetermin ist [Datum]",590,"NULL","NULL",0]
["0-014","Nenndruck PN [bar]","2_b_Nenndruck PN [bar]",290,0,"NULL",0]
["0-014","NPK","1_b_NPK",200,1,"NULL",0]
["0-014","Phasen","4_b_Phasen",490,"NULL","NULL",0]
["0-014","Positionsnummer","5_c_Positionsnummer","NULL","NULL","Prinzipschema, Strangschema",1]
["0-014","Raumnummer","5_a_Raumnummer",200,"NULL","Modell",0]
["0-014","Regelungsart","4_a_Regelungsart",390,"NULL","NULL",0]
["0-014","Schalldruckpegel [dB]","2_b_Schalldruckpegel [dB]",490,"NULL","NULL",0]
["0-014","Schallleistungspegel [dB]","2_b_Schallleistungspegel [dB]",490,"NULL","NULL",0]
["0-014","Schutzart IP","4_c_Schutzart IP",590,"NULL","NULL",0]
["0-014","Servicevertrag [Firma]","8_b_Servicevertrag [Firma]",590,"NULL","NULL",0]
["0-014","Servicevertrag [Nummer]","8_a_Servicevertrag [Nummer]",590,"NULL","NULL",0]
["0-014","SGK Nummer","6_a_SGK Nummer",390,"NULL","NULL",0]
["0-014","SGK Zuordnung","6_a_SGK Zuordnung",390,"NULL","NULL",0]
["0-014","SIA-Katalog","1_b_SIA-Katalog","NULL","NULL","NULL",0]
["0-014","Spannung [V]","4_a_Spannung [V]",390,"NULL","NULL",0]
["0-014","Steuersignal","4_a_Steuersignal",390,"NULL","NULL",0]
["0-014","Strom [A]","4_a_Strom [A]",390,"NULL","NULL",0]
["0-014","System","3_b_System",200,"NULL","Prinzipschema, Strangschema",0]
["0-014","Temperatur 1 [C]","2_a_Temperatur 1 [C]",290,0,"Prinzipschema",0]
["0-014","Temperatur 2 [C]","2_a_Temperatur 2 [C]",290,0,"Prinzipschema",0]
["0-014","Temperatur 3 [C]","2_a_Temperatur 3 [C]",290,0,"NULL",0]
["0-014","Temperatur 4 [C]","2_a_Temperatur 4 [C]",290,0,"NULL",0]
["0-014","Typ","3_a_Typ",290,1,"NULL",0]
["0-014","Typ (Antrieb)","3_a_Typ (Antrieb)",290,1,"NULL",0]
["0-014","TypeID Nova dez","0_c_TypeID Nova dez","NULL","NULL","NULL",0]
["0-014","URL","3_c_URL",300,"NULL","NULL",0]
["0-014","Volumenstrom 1 [m3/h]","2_a_Volumenstrom 1 [m3/h]",390,"NULL","NULL",0]
["0-014","Volumenstrom 2 [m3/h]","2_a_Volumenstrom 2 [m3/h]",590,"NULL","NULL",0]
["0-014","Wartungsintervall [Betriebsstunden]","8_c_Wartungsintervall [Betriebsstunden]",590,"NULL","NULL",0]
["0-014","Werkvertrag [Firma/Nummer]","8_c_Werkvertrag [Firma/Nummer]",590,"NULL","NULL",0]
["0-014","Zust.Unterhalt","8_c_Zust Unterhalt",300,"NULL","NULL",0]
["0-015","Abnahmetermin [Datum]","7_a_Abnahmetermin [Datum]",590,"NULL","NULL",0]
["0-015","Absolutdruck 1 [bar]","2_c_Absolutdruck 1 [bar]",590,"NULL","NULL",0]
["0-015","Achse X","5_c_Achse X","NULL","NULL","NULL",0]
["0-015","Achse Y","5_c_Achse Y","NULL","NULL","NULL",0]
["0-015","Achse Z","5_c_Achse Z","NULL","NULL","NULL",0]
["0-015","Anlage funktional (BKP-XXX)","1_b_Anlage funktional (BKP-XXX)",490,"NULL","NULL",0]
["0-015","Anlagenstruktur-SAN","1_b_Anlagenstruktur-SAN","NULL","NULL","NULL",0]
["0-015","Anlagenummer (BKP-XXX)","1_a_Anlagenummer (BKP-XXX)",100,"NULL","NULL",1]
["0-015","Anlagenummer Bauherr","1_b_Anlagenummer Bauherr",490,"NULL","NULL",0]
["0-015","Anschlussart","3_c_Anschlussart",590,"NULL","NULL",0]
["0-015","Artikelnummer","3_c_Artikelnummer",300,"NULL","Modell",0]
["0-015","Artikelnummer RMB","0_c_Artikelnummer RMB",100,"NULL","NULL",1]
["0-015","Ausführung 1","3_b_Ausfuehrung 1",590,"NULL","NULL",0]
["0-015","Ausführung 2","3_b_Ausfuehrung 2",590,"NULL","NULL",0]
["0-015","Ausführung 3","3_b_Ausfuehrung 3",590,"NULL","NULL",0]
["0-015","Ausführung 4","3_b_Ausfuehrung 4",590,"NULL","NULL",0]
["0-015","Bezeichnung Elektroschema (BMK)","6_a_Bezeichnung Elektroschema (BMK)",390,"NULL","NULL",0]
["0-015","Bezeichnung GA (AKS)","6_c_Bezeichnung GA (AKS)",590,"NULL","NULL",0]
["0-015","Breite (Abmessung 2) [mm]","2_b_Breite (Abmessung 2) [mm]",200,0,"NULL",1]
["0-015","Datenpunkte AI","4_c_Datenpunkte AI",590,"NULL","NULL",0]
["0-015","Datenpunkte AO","4_c_Datenpunkte AO",590,"NULL","NULL",0]
["0-015","Datenpunkte DI","4_c_Datenpunkte DI",590,"NULL","NULL",0]
["0-015","Datenpunkte DO","4_c_Datenpunkte DO",590,"NULL","NULL",0]
["0-015","Datenpunkte MBus","4_c_Datenpunkt MBus",590,"NULL","NULL",0]
["0-015","Datenpunkte VA","4_c_Datenpunkt VA",590,"NULL","NULL",0]
["0-015","Datenpunkte VD","4_c_Datenpunkt VD",590,"NULL","NULL",0]
["0-015","Differenzdruck 1 [kPa]","2_a_Differenzdruck 1 [kPa]",390,"NULL","NULL",0]
["0-015","Dimension 1 [DN]","2_a_Dimension 1 [DN]",290,1,"NULL",1]
["0-015","Dimension 2 [DN]","2_a_Dimension 2 [DN]",290,"NULL","NULL",1]
["0-015","dT mittel log [K]","2_c_dT mittel log [K]",590,"NULL","NULL",0]
["0-015","Durchmesser (Abmessung 4) [mm]","2_b_Durchmesser (Abmessung 4) [mm]",200,"NULL","NULL",1]
["0-015","e-BKP-H","1_b_e-BKP-H",200,"NULL","NULL",0]
["0-015","Einsatzbereich [%]","4_b_Einsatzbereich [%]",490,"NULL","NULL",0]
["0-015","Ende Garantiefrist [Datum]","8_b_Ende Garantiefrist [Datum]",590,"NULL","NULL",0]
["0-015","Energieeffizienzklasse","3_c_Energieeffizienzklasse",590,"NULL","NULL",0]
["0-015","Fabrikat","3_a_Fabrikat",290,1,"NULL",1]
["0-015","Fabrikat (Antrieb)","3_a_Fabrikat (Antrieb)",290,1,"NULL",1]
["0-015","Fläche 1 [m2]","2_c_Flaeche 1 [m2]",590,"NULL","NULL",0]
["0-015","Freigabe zur Bestellung [Datum]","7_a_Freigabe zur Bestellung [Datum]",400,"NULL","NULL",0]
["0-015","Gebäude","5_c_Gebaeude",200,"NULL","Modell",0]
["0-015","Gesamtwirkungsgrad Vollast","3_c_Gesamtwirkungsgrad Vollast",590,"NULL","NULL",0]
["0-015","Geschoss","5_a_Geschoss",200,"NULL","Modell",0]
["0-015","Geschwindigkeit 1 [m/s]","2_c_Geschwindigkeit 1 [m/s]",590,"NULL","NULL",0]
["0-015","Geschwindigkeit 2 [m/s]","2_c_Geschwindigkeit 2 [m/s]",590,"NULL","NULL",0]
["0-015","Gewicht Betrieb [kg]","2_b_Gewicht Betrieb [kg]",200,"NULL","NULL",0]
["0-015","Gewicht leer [kg]","2_c_Gewicht leer [kg]",390,0,"NULL",1]
["0-015","Höhe (Abmessung 3) [mm]","2_b_Hoehe (Abmessung 3) [mm]",200,0,"NULL",1]
["0-015","Inbetriebsetzungstermin [Datum]","7_b_Inbetriebsetzungstermin [Datum]",590,"NULL","NULL",0]
["0-015","Inhalt [l]","2_a_Inhalt [l]",390,"NULL","NULL",1]
["0-015","Instandhaltung","8_b_Instandhaltung",300,"NULL","NULL",0]
["0-015","Integration Kommunikation","4_c_Integration Kommunikation",390,0,"NULL",0]
["0-015","KelpyOfferteId","3_c_KelpyOfferteId","NULL",1,"NULL",0]
["0-015","Klartext Anlage","1_c_Klartext Anlage",100,"NULL","NULL",0]
["0-015","Klartext Anlage funktional","1_c_Klartext Anlage funktional",590,"NULL","NULL",0]
["0-015","Klartext Feldgerät","1_c_Klartext Feldgeraet",100,"NULL","Prinzipschema",1]
["0-015","Klartext Feldgerät Nachtext","1_c_Klartext Feldgeraet Nachtext",590,"NULL","NULL",0]
["0-015","Klartext Raum","5_c_Klartext Raum",200,"NULL","Modell",0]
["0-015","Kommentar technisch","9_a_Kommentar technisch",300,1,"NULL",0]
["0-015","Länge (Abmessung 1) [mm]","2_b_Laenge (Abmessung 1) [mm]",200,0,"NULL",1]
["0-015","Laufnummer","0_a_Laufnummer",100,"NULL","NULL",1]
["0-015","Leistung 1 (hyd) [kW]","2_a_Leistung 1 (hyd) [kW]",290,0,"NULL",1]
["0-015","Leistung 2 (hyd) [kW]","2_a_Leistung 2 (hyd) [kW]",290,0,"NULL",1]
["0-015","Leistung elektrisch [W]","4_a_Leistung elektrisch [W]",390,"NULL","NULL",0]
["0-015","Lieferant","3_c_Lieferant",300,"NULL","NULL",0]
["0-015","Lieferung bauseits","7_a_Lieferung bauseits",300,1,"NULL",0]
["0-015","Massenstrom 1 [kg/h]","2_a_Massenstrom 1 [kg/h]",390,"NULL","NULL",0]
["0-015","Massenstrom 2 [kg/h]","2_a_Massenstrom 2 [kg/h]",390,"NULL","NULL",0]
["0-015","Material 1","3_c_Material 1",390,1,"NULL",0]
["0-015","max. Temperatur [C]","2_c_max Temperatur [C]",390,0,"NULL",0]
["0-015","Medium 1","2_c_Medium 1",390,0,"NULL",0]
["0-015","Mieter","5_c_Mieter",590,"NULL","NULL",0]
["0-015","Montagetermin geplant [Datum]","7_b_Montagetermin geplant [Datum]",590,"NULL","NULL",0]
["0-015","Montagetermin ist [Datum]","7_b_Montagetermin ist [Datum]",590,"NULL","NULL",0]
["0-015","Nenndruck PN [bar]","2_b_Nenndruck PN [bar]",290,0,"NULL",1]
["0-015","NPK","1_b_NPK",200,1,"NULL",0]
["0-015","Phasen","4_b_Phasen",490,"NULL","NULL",0]
["0-015","Positionsnummer","5_c_Positionsnummer","NULL","NULL","Prinzipschema",1]
["0-015","Prüfpflicht","8_c_Pruefpflicht",590,"NULL","NULL",0]
["0-015","Raumnummer","5_a_Raumnummer",200,"NULL","Modell",0]
["0-015","Regelungsart","4_a_Regelungsart",590,"NULL","NULL",0]
["0-015","Schalldruckpegel [dB]","2_b_Schalldruckpegel [dB]",490,"NULL","NULL",0]
["0-015","Schallleistungspegel [dB]","2_b_Schallleistungspegel [dB]",490,"NULL","NULL",0]
["0-015","Schutzart IP","4_c_Schutzart IP",590,"NULL","NULL",0]
["0-015","Servicevertrag [Firma]","8_b_Servicevertrag [Firma]",590,"NULL","NULL",0]
["0-015","Servicevertrag [Nummer]","8_a_Servicevertrag [Nummer]",590,"NULL","NULL",0]
["0-015","SGK Nummer","6_a_SGK Nummer",390,"NULL","NULL",0]
["0-015","SGK Zuordnung","6_a_SGK Zuordnung",390,"NULL","NULL",0]
["0-015","SIA-Katalog","1_b_SIA-Katalog","NULL","NULL","NULL",0]
["0-015","Spannung [V]","4_a_Spannung [V]",390,"NULL","NULL",0]
["0-015","Steuersignal","4_a_Steuersignal",390,"NULL","NULL",0]
["0-015","Strom [A]","4_a_Strom [A]",390,"NULL","NULL",0]
["0-015","System","3_b_System",200,"NULL","Prinzipschema",0]
["0-015","Temperatur 1 [C]","2_a_Temperatur 1 [C]",290,0,"NULL",0]
["0-015","Temperatur 2 [C]","2_a_Temperatur 2 [C]",290,0,"NULL",0]
["0-015","Temperatur 3 [C]","2_a_Temperatur 3 [C]",290,0,"NULL",0]
["0-015","Temperatur 4 [C]","2_a_Temperatur 4 [C]",290,0,"NULL",0]
["0-015","Typ","3_a_Typ",290,1,"NULL",1]
["0-015","Typ (Antrieb)","3_a_Typ (Antrieb)",290,1,"NULL",1]
["0-015","TypeID Nova dez","0_c_TypeID Nova dez","NULL","NULL","NULL",0]
["0-015","URL","3_c_URL",300,"NULL","NULL",0]
["0-015","Volumenstrom 1 [m3/h]","2_a_Volumenstrom 1 [m3/h]",390,"NULL","NULL",0]
["0-015","Wartungsintervall [Betriebsstunden]","8_c_Wartungsintervall [Betriebsstunden]",590,"NULL","NULL",0]
["0-015","Werkvertrag [Firma/Nummer]","8_c_Werkvertrag [Firma/Nummer]",590,"NULL","NULL",0]
["0-015","Zulassung VKF","3_c_Zulassung VKF",390,0,"NULL",1]
["0-015","Zust.Unterhalt","8_c_Zust Unterhalt",300,"NULL","NULL",0]
["0-016","Abnahmetermin [Datum]","7_a_Abnahmetermin [Datum]",590,"NULL","NULL",0]
["0-016","Absolutdruck 1 [bar]","2_c_Absolutdruck 1 [bar]",590,"NULL","NULL",0]
["0-016","Achse X","5_c_Achse X","NULL","NULL","NULL",0]
["0-016","Achse Y","5_c_Achse Y","NULL","NULL","NULL",0]
["0-016","Achse Z","5_c_Achse Z","NULL","NULL","NULL",0]
["0-016","Anlage funktional (BKP-XXX)","1_b_Anlage funktional (BKP-XXX)",490,"NULL","NULL",0]
["0-016","Anlagenstruktur-SAN","1_b_Anlagenstruktur-SAN","NULL","NULL","NULL",0]
["0-016","Anlagenummer (BKP-XXX)","1_a_Anlagenummer (BKP-XXX)",100,"NULL","NULL",1]
["0-016","Anlagenummer Bauherr","1_b_Anlagenummer Bauherr",490,"NULL","NULL",0]
["0-016","Anschlussart","3_c_Anschlussart",590,"NULL","NULL",0]
["0-016","Artikelnummer","3_c_Artikelnummer",300,"NULL","Modell",0]
["0-016","Artikelnummer RMB","0_c_Artikelnummer RMB",100,"NULL","NULL",1]
["0-016","Ausführung 1","3_b_Ausfuehrung 1",490,"NULL","NULL",0]
["0-016","Ausführung 2","3_b_Ausfuehrung 2",490,"NULL","NULL",0]
["0-016","Ausführung 3","3_b_Ausfuehrung 3",490,"NULL","NULL",0]
["0-016","Ausführung 4","3_b_Ausfuehrung 4",590,"NULL","NULL",0]
["0-016","Bezeichnung Elektroschema (BMK)","6_a_Bezeichnung Elektroschema (BMK)",390,"NULL","NULL",0]
["0-016","Bezeichnung GA (AKS)","6_c_Bezeichnung GA (AKS)",590,"NULL","NULL",0]
["0-016","Breite (Abmessung 2) [mm]","2_b_Breite (Abmessung 2) [mm]",200,0,"NULL",1]
["0-016","Datenpunkte AI","4_c_Datenpunkte AI",590,"NULL","NULL",0]
["0-016","Datenpunkte AO","4_c_Datenpunkte AO",590,"NULL","NULL",0]
["0-016","Datenpunkte DI","4_c_Datenpunkte DI",590,"NULL","NULL",0]
["0-016","Datenpunkte DO","4_c_Datenpunkte DO",590,"NULL","NULL",0]
["0-016","Datenpunkte MBus","4_c_Datenpunkt MBus",590,"NULL","NULL",0]
["0-016","Datenpunkte VA","4_c_Datenpunkt VA",590,"NULL","NULL",0]
["0-016","Datenpunkte VD","4_c_Datenpunkt VD",590,"NULL","NULL",0]
["0-016","Differenzdruck 1 [kPa]","2_a_Differenzdruck 1 [kPa]",390,"NULL","NULL",0]
["0-016","Dimension 1 [DN]","2_a_Dimension 1 [DN]",290,1,"NULL",1]
["0-016","Dimension 2 [DN]","2_a_Dimension 2 [DN]",290,0,"NULL",1]
["0-016","dT mittel log [K]","2_c_dT mittel log [K]",590,"NULL","NULL",0]
["0-016","Durchmesser (Abmessung 4) [mm]","2_b_Durchmesser (Abmessung 4) [mm]",200,1,"NULL",1]
["0-016","e-BKP-H","1_b_e-BKP-H",200,"NULL","NULL",0]
["0-016","Einsatzbereich [%]","4_b_Einsatzbereich [%]",490,"NULL","NULL",0]
["0-016","Ende Garantiefrist [Datum]","8_b_Ende Garantiefrist [Datum]",590,"NULL","NULL",0]
["0-016","Energieeffizienzklasse","3_c_Energieeffizienzklasse",590,"NULL","NULL",0]
["0-016","Fabrikat","3_a_Fabrikat",290,1,"NULL",1]
["0-016","Fabrikat (Antrieb)","3_a_Fabrikat (Antrieb)",290,1,"NULL",1]
["0-016","Freigabe zur Bestellung [Datum]","7_a_Freigabe zur Bestellung [Datum]",400,"NULL","NULL",0]
["0-016","Gebäude","5_c_Gebaeude",200,"NULL","Modell",0]
["0-016","Gesamtwirkungsgrad Vollast","3_c_Gesamtwirkungsgrad Vollast",590,"NULL","NULL",0]
["0-016","Geschoss","5_a_Geschoss",200,"NULL","Modell",0]
["0-016","Geschwindigkeit 1 [m/s]","2_c_Geschwindigkeit 1 [m/s]",590,"NULL","NULL",0]
["0-016","Geschwindigkeit 2 [m/s]","2_c_Geschwindigkeit 2 [m/s]",590,"NULL","NULL",0]
["0-016","Gewicht Betrieb [kg]","2_b_Gewicht Betrieb [kg]",200,"NULL","NULL",0]
["0-016","Gewicht leer [kg]","2_c_Gewicht leer [kg]",390,0,"NULL",1]
["0-016","Höhe (Abmessung 3) [mm]","2_b_Hoehe (Abmessung 3) [mm]",200,0,"NULL",1]
["0-016","Inbetriebsetzungstermin [Datum]","7_b_Inbetriebsetzungstermin [Datum]",590,"NULL","NULL",0]
["0-016","Inhalt [l]","2_a_Inhalt [l]",390,"NULL","NULL",1]
["0-016","Instandhaltung","8_b_Instandhaltung",300,"NULL","NULL",0]
["0-016","Integration Kommunikation","4_c_Integration Kommunikation",390,0,"NULL",0]
["0-016","KelpyOfferteId","3_c_KelpyOfferteId","NULL",1,"NULL",0]
["0-016","Klartext Anlage","1_c_Klartext Anlage",100,"NULL","NULL",0]
["0-016","Klartext Anlage funktional","1_c_Klartext Anlage funktional",590,"NULL","NULL",0]
["0-016","Klartext Feldgerät","1_c_Klartext Feldgeraet",100,"NULL","Prinzipschema",1]
["0-016","Klartext Feldgerät Nachtext","1_c_Klartext Feldgeraet Nachtext",590,"NULL","NULL",0]
["0-016","Klartext Raum","5_c_Klartext Raum",200,"NULL","Modell",0]
["0-016","Kommentar technisch","9_a_Kommentar technisch",300,1,"NULL",0]
["0-016","Länge (Abmessung 1) [mm]","2_b_Laenge (Abmessung 1) [mm]",200,0,"NULL",1]
["0-016","Laufnummer","0_a_Laufnummer",100,"NULL","NULL",1]
["0-016","Leistung 1 (hyd) [kW]","2_a_Leistung 1 (hyd) [kW]",290,0,"NULL",1]
["0-016","Leistung 2 (hyd) [kW]","2_a_Leistung 2 (hyd) [kW]",290,0,"NULL",1]
["0-016","Leistung elektrisch [W]","4_a_Leistung elektrisch [W]",390,"NULL","NULL",0]
["0-016","Lieferant","3_c_Lieferant",300,"NULL","NULL",0]
["0-016","Lieferung bauseits","7_a_Lieferung bauseits",300,1,"NULL",0]
["0-016","Massenstrom 1 [kg/h]","2_a_Massenstrom 1 [kg/h]",390,"NULL","NULL",0]
["0-016","Massenstrom 2 [kg/h]","2_a_Massenstrom 2 [kg/h]",390,"NULL","NULL",0]
["0-016","Material 1","3_c_Material 1",390,1,"NULL",0]
["0-016","max. Temperatur [C]","2_c_max Temperatur [C]",390,0,"NULL",0]
["0-016","Medium 1","2_c_Medium 1",590,"NULL","NULL",0]
["0-016","Medium 2","2_c_Medium 2",590,"NULL","NULL",0]
["0-016","Mieter","5_c_Mieter",590,"NULL","NULL",0]
["0-016","Montagetermin geplant [Datum]","7_b_Montagetermin geplant [Datum]",590,"NULL","NULL",0]
["0-016","Montagetermin ist [Datum]","7_b_Montagetermin ist [Datum]",590,"NULL","NULL",0]
["0-016","Nenndruck PN [bar]","2_b_Nenndruck PN [bar]",290,0,"NULL",1]
["0-016","NPK","1_b_NPK",200,1,"NULL",0]
["0-016","Phasen","4_b_Phasen",490,"NULL","NULL",0]
["0-016","Positionsnummer","5_c_Positionsnummer","NULL","NULL","Prinzipschema",1]
["0-016","Prüfpflicht","8_c_Pruefpflicht",590,"NULL","NULL",0]
["0-016","Raumnummer","5_a_Raumnummer",200,"NULL","Modell",0]
["0-016","Regelungsart","4_a_Regelungsart",590,"NULL","NULL",0]
["0-016","Schalldruckpegel [dB]","2_b_Schalldruckpegel [dB]",490,"NULL","NULL",0]
["0-016","Schallleistungspegel [dB]","2_b_Schallleistungspegel [dB]",490,"NULL","NULL",0]
["0-016","Schutzart IP","4_c_Schutzart IP",590,"NULL","NULL",0]
["0-016","Servicevertrag [Firma]","8_b_Servicevertrag [Firma]",590,"NULL","NULL",0]
["0-016","Servicevertrag [Nummer]","8_a_Servicevertrag [Nummer]",590,"NULL","NULL",0]
["0-016","SGK Nummer","6_a_SGK Nummer",390,"NULL","NULL",0]
["0-016","SGK Zuordnung","6_a_SGK Zuordnung",390,"NULL","NULL",0]
["0-016","SIA-Katalog","1_b_SIA-Katalog","NULL","NULL","NULL",0]
["0-016","Spannung [V]","4_a_Spannung [V]",390,"NULL","NULL",0]
["0-016","Steuersignal","4_a_Steuersignal",390,"NULL","NULL",0]
["0-016","Strom [A]","4_a_Strom [A]",390,"NULL","NULL",0]
["0-016","System","3_b_System",200,"NULL","Prinzipschema",0]
["0-016","Temperatur 1 [C]","2_a_Temperatur 1 [C]",290,0,"NULL",0]
["0-016","Temperatur 2 [C]","2_a_Temperatur 2 [C]",290,0,"NULL",0]
["0-016","Temperatur 3 [C]","2_a_Temperatur 3 [C]",290,0,"NULL",0]
["0-016","Temperatur 4 [C]","2_a_Temperatur 4 [C]",290,0,"NULL",0]
["0-016","Typ","3_a_Typ",290,1,"NULL",1]
["0-016","Typ (Antrieb)","3_a_Typ (Antrieb)",290,1,"NULL",1]
["0-016","TypeID Nova dez","0_c_TypeID Nova dez","NULL","NULL","NULL",0]
["0-016","URL","3_c_URL",300,"NULL","NULL",0]
["0-016","Volumenstrom 1 [m3/h]","2_a_Volumenstrom 1 [m3/h]",390,"NULL","NULL",0]
["0-016","Wartungsintervall [Betriebsstunden]","8_c_Wartungsintervall [Betriebsstunden]",590,"NULL","NULL",0]
["0-016","Werkvertrag [Firma/Nummer]","8_c_Werkvertrag [Firma/Nummer]",590,"NULL","NULL",0]
["0-016","Zulassung VKF","3_c_Zulassung VKF",390,0,"NULL",1]
["0-016","Zust.Unterhalt","8_c_Zust Unterhalt",300,"NULL","NULL",0]
["0-017","(Abmessung 7) [mm]","2_b_(Abmessung 7) [mm]",490,"NULL","NULL",0]
["0-017","Abnahmetermin [Datum]","7_a_Abnahmetermin [Datum]",590,"NULL","NULL",0]
["0-017","Achse X","5_c_Achse X","NULL","NULL","NULL",0]
["0-017","Achse Y","5_c_Achse Y","NULL","NULL","NULL",0]
["0-017","Achse Z","5_c_Achse Z","NULL","NULL","NULL",0]
["0-017","Anlage funktional (BKP-XXX)","1_b_Anlage funktional (BKP-XXX)",490,"NULL","NULL",0]
["0-017","Anlagenstruktur-SAN","1_b_Anlagenstruktur-SAN","NULL","NULL","NULL",0]
["0-017","Anlagenummer (BKP-XXX)","1_a_Anlagenummer (BKP-XXX)",100,"NULL","NULL",1]
["0-017","Anlagenummer Bauherr","1_b_Anlagenummer Bauherr",490,"NULL","NULL",0]
["0-017","Anlaufstrom [A]","4_a_Anlaufstrom [A]",290,"NULL","NULL",1]
["0-017","Anschlussart","3_c_Anschlussart",590,"NULL","NULL",0]
["0-017","Anzahl [Stk]","3_b_Anzahl [Stk]",290,0,"NULL",1]
["0-017","Artikelnummer","3_c_Artikelnummer",300,"NULL","Modell",0]
["0-017","Artikelnummer RMB","0_c_Artikelnummer RMB",100,"NULL","NULL",1]
["0-017","Ausführung 1","3_b_Ausfuehrung 1",590,"NULL","NULL",0]
["0-017","Ausführung 2","3_b_Ausfuehrung 2",590,"NULL","NULL",0]
["0-017","Ausführung 3","3_b_Ausfuehrung 3",590,"NULL","NULL",0]
["0-017","Ausführung 4","3_b_Ausfuehrung 4",590,"NULL","NULL",0]
["0-017","Ausführung 5","3_b_Ausfuehrung 5",300,"NULL","NULL",1]
["0-017","Ausführung 6","3_b_Ausfuehrung 6",300,"NULL","NULL",1]
["0-017","Ausführung 7","3_b_Ausfuehrung 7",300,"NULL","NULL",1]
["0-017","Ausführung 8","3_b_Ausfuehrung 8",300,"NULL","NULL",1]
["0-017","Bezeichnung Elektroschema (BMK)","6_a_Bezeichnung Elektroschema (BMK)",390,"NULL","NULL",0]
["0-017","Bezeichnung GA (AKS)","6_c_Bezeichnung GA (AKS)",590,"NULL","NULL",0]
["0-017","Breite (Abmessung 2) [mm]","2_b_Breite (Abmessung 2) [mm]",200,"NULL","NULL",0]
["0-017","COP 1","2_c_COP 1",590,"NULL","NULL",1]
["0-017","COP 2","2_c_COP 2",590,"NULL","NULL",0]
["0-017","COP 3","2_c_COP 3",390,"NULL","NULL",0]
["0-017","COP 4","2_c_COP 4",590,"NULL","NULL",0]
["0-017","Datenpunkte AI","4_c_Datenpunkte AI",590,"NULL","NULL",0]
["0-017","Datenpunkte AO","4_c_Datenpunkte AO",590,"NULL","NULL",0]
["0-017","Datenpunkte DI","4_c_Datenpunkte DI",590,"NULL","NULL",0]
["0-017","Datenpunkte DO","4_c_Datenpunkte DO",590,"NULL","NULL",0]
["0-017","Datenpunkte MBus","4_c_Datenpunkt MBus",590,"NULL","NULL",0]
["0-017","Datenpunkte VA","4_c_Datenpunkt VA",590,"NULL","NULL",0]
["0-017","Datenpunkte VD","4_c_Datenpunkt VD",590,"NULL","NULL",0]
["0-017","Differenzdruck 1 [kPa]","2_a_Differenzdruck 1 [kPa]",390,"NULL","NULL",0]
["0-017","Differenzdruck 2 [kPa]","2_a_Differenzdruck 2 [kPa]",390,"NULL","NULL",1]
["0-017","Differenzdruck 3 [kPa]","2_a_Differenzdruck 3 [kPa]",390,"NULL","NULL",1]
["0-017","Differenzdruck 4 [kPa]","2_a_Differenzdruck 4 [kPa]",390,"NULL","NULL",1]
["0-017","Dimension 1 [DN]","2_a_Dimension 1 [DN]",290,0,"NULL",0]
["0-017","Dimension 2 [DN]","2_a_Dimension 2 [DN]",290,0,"NULL",0]
["0-017","Dimension 3 [DN]","2_a_Dimension 3 [DN]",290,0,"NULL",0]
["0-017","Dimension 4 [DN]","2_a_Dimension 4 [DN]",390,"NULL","NULL",1]
["0-017","Dimension 5 [DN]","2_a_Dimension 5 [DN]",290,"NULL","NULL",0]
["0-017","dT mittel log [K]","2_c_dT mittel log [K]",590,"NULL","NULL",0]
["0-017","Durchmesser (Abmessung 4) [mm]","2_b_Durchmesser (Abmessung 4) [mm]",200,1,"NULL",0]
["0-017","Durchmesser isoliert (Abmessung 5) [mm]","2_b_Durchmesser isoliert (Abmessung 5) [mm]",290,0,"NULL",1]
["0-017","e-BKP-H","1_b_e-BKP-H",200,"NULL","NULL",0]
["0-017","Einsatzbereich [%]","4_b_Einsatzbereich [%]",490,"NULL","NULL",0]
["0-017","Ende Garantiefrist [Datum]","8_b_Ende Garantiefrist [Datum]",590,"NULL","NULL",0]
["0-017","Fabrikat","3_a_Fabrikat",290,1,"NULL",0]
["0-017","Fabrikat (Antrieb)","3_a_Fabrikat (Antrieb)",290,1,"NULL",0]
["0-017","Freigabe zur Bestellung [Datum]","7_a_Freigabe zur Bestellung [Datum]",400,"NULL","NULL",0]
["0-017","Gebäude","5_c_Gebaeude",200,"NULL","Modell",0]
["0-017","Geschoss","5_a_Geschoss",200,"NULL","Modell",0]
["0-017","Geschwindigkeit 1 [m/s]","2_c_Geschwindigkeit 1 [m/s]",590,"NULL","NULL",0]
["0-017","Geschwindigkeit 2 [m/s]","2_c_Geschwindigkeit 2 [m/s]",590,"NULL","NULL",0]
["0-017","Gewicht Betrieb [kg]","2_b_Gewicht Betrieb [kg]",200,"NULL","NULL",0]
["0-017","Gewicht leer [kg]","2_c_Gewicht leer [kg]",390,0,"NULL",0]
["0-017","Höhe (Abmessung 3) [mm]","2_b_Hoehe (Abmessung 3) [mm]",200,0,"NULL",0]
["0-017","Inbetriebsetzungstermin [Datum]","7_b_Inbetriebsetzungstermin [Datum]",590,"NULL","NULL",0]
["0-017","Inhalt [kg]","2_a_Inhalt [kg]",590,"NULL","NULL",0]
["0-017","Inhalt [l]","2_a_Inhalt [l]",290,"NULL","NULL",0]
["0-017","Instandhaltung","8_b_Instandhaltung",300,"NULL","NULL",0]
["0-017","Integration Kommunikation","4_c_Integration Kommunikation",390,0,"NULL",0]
["0-017","KelpyOfferteId","3_c_KelpyOfferteId","NULL",1,"NULL",0]
["0-017","Klartext Anlage","1_c_Klartext Anlage",100,"NULL","NULL",0]
["0-017","Klartext Anlage funktional","1_c_Klartext Anlage funktional",590,"NULL","NULL",0]
["0-017","Klartext Feldgerät","1_c_Klartext Feldgeraet",100,"NULL","Prinzipschema",1]
["0-017","Klartext Feldgerät Nachtext","1_c_Klartext Feldgeraet Nachtext",590,"NULL","NULL",0]
["0-017","Klartext Raum","5_c_Klartext Raum",200,"NULL","Modell",0]
["0-017","Kommentar technisch","9_a_Kommentar technisch",300,0,"NULL",0]
["0-017","Länge (Abmessung 1) [mm]","2_b_Laenge (Abmessung 1) [mm]",200,"NULL","NULL",0]
["0-017","Laufnummer","0_a_Laufnummer",100,"NULL","NULL",1]
["0-017","Leistung 1 (hyd) [kW]","2_a_Leistung 1 (hyd) [kW]",290,"NULL","NULL",0]
["0-017","Leistung 2 (hyd) [kW]","2_a_Leistung 2 (hyd) [kW]",290,0,"NULL",0]
["0-017","Leistung 3 (hyd) [kW]","2_a_Leistung 3 (hyd) [kW]",290,"NULL","NULL",1]
["0-017","Leistung 4 (hyd) [kW]","2_a_Leistung 4 (hyd) [kW]",290,"NULL","NULL",1]
["0-017","Leistung elektrisch [W]","4_a_Leistung elektrisch [W]",390,"NULL","NULL",0]
["0-017","Lieferant","3_c_Lieferant",300,"NULL","NULL",0]
["0-017","Lieferung bauseits","7_a_Lieferung bauseits",300,1,"NULL",0]
["0-017","Massenstrom 1 [kg/h]","2_a_Massenstrom 1 [kg/h]",390,"NULL","NULL",0]
["0-017","Massenstrom 2 [kg/h]","2_a_Massenstrom 2 [kg/h]",390,"NULL","NULL",0]
["0-017","Massenstrom 3 [kg/h]","2_a_Massenstrom 3 [kg/h]",390,"NULL","NULL",1]
["0-017","Massenstrom 4 [kg/h]","2_a_Massenstrom 4 [kg/h]",390,"NULL","NULL",1]
["0-017","Material 1","3_c_Material 1",390,1,"NULL",0]
["0-017","Material 2","3_c_Material 2",590,"NULL","NULL",0]
["0-017","Material Stärke (Abmessung 6) [mm]","2_b_Material Staerke (Abmessung 6) [mm]",490,"NULL","NULL",0]
["0-017","Medium 1","2_c_Medium 1",590,"NULL","NULL",0]
["0-017","Medium 2","2_c_Medium 2",590,"NULL","NULL",0]
["0-017","Medium 3","2_c_Medium 3",300,"NULL","NULL",1]
["0-017","Medium 4","2_c_Medium 4",300,0,"NULL",1]
["0-017","Medium 5","2_c_Medium 5",300,"NULL","NULL",1]
["0-017","Mieter","5_c_Mieter",590,"NULL","NULL",0]
["0-017","Montagetermin geplant [Datum]","7_b_Montagetermin geplant [Datum]",590,"NULL","NULL",0]
["0-017","Montagetermin ist [Datum]","7_b_Montagetermin ist [Datum]",590,"NULL","NULL",0]
["0-017","Nenndruck PN [bar]","2_b_Nenndruck PN [bar]",290,0,"NULL",0]
["0-017","NPK","1_b_NPK",200,1,"NULL",0]
["0-017","Phasen","4_b_Phasen",490,"NULL","NULL",0]
["0-017","Positionsnummer","5_c_Positionsnummer","NULL","NULL","Prinzipschema",1]
["0-017","Prüfpflicht","8_c_Pruefpflicht",590,"NULL","NULL",0]
["0-017","Raumnummer","5_a_Raumnummer",200,"NULL","Modell",0]
["0-017","Regelungsart","4_a_Regelungsart",590,"NULL","NULL",0]
["0-017","Schalldruckpegel [dB]","2_b_Schalldruckpegel [dB]",490,"NULL","NULL",0]
["0-017","Schallleistungspegel [dB]","2_b_Schallleistungspegel [dB]",490,"NULL","NULL",0]
["0-017","Schutzart IP","4_c_Schutzart IP",590,"NULL","NULL",0]
["0-017","Servicevertrag [Firma]","8_b_Servicevertrag [Firma]",590,"NULL","NULL",0]
["0-017","Servicevertrag [Nummer]","8_a_Servicevertrag [Nummer]",590,"NULL","NULL",0]
["0-017","SGK Nummer","6_a_SGK Nummer",390,"NULL","NULL",0]
["0-017","SGK Zuordnung","6_a_SGK Zuordnung",390,"NULL","NULL",0]
["0-017","SIA-Katalog","1_b_SIA-Katalog","NULL","NULL","NULL",0]
["0-017","Spannung [V]","4_a_Spannung [V]",390,"NULL","NULL",0]
["0-017","Steuersignal","4_a_Steuersignal",390,"NULL","NULL",0]
["0-017","Strom [A]","4_a_Strom [A]",390,"NULL","NULL",0]
["0-017","System","3_b_System",200,"NULL","Prinzipschema",0]
["0-017","Temperatur 1 [C]","2_a_Temperatur 1 [C]",290,"NULL","NULL",0]
["0-017","Temperatur 2 [C]","2_a_Temperatur 2 [C]",290,"NULL","NULL",0]
["0-017","Temperatur 3 [C]","2_a_Temperatur 3 [C]",290,"NULL","NULL",0]
["0-017","Temperatur 4 [C]","2_a_Temperatur 4 [C]",290,"NULL","NULL",0]
["0-017","Temperatur 5 [C]","2_a_Temperatur 5 [C]",290,"NULL","NULL",1]
["0-017","Temperatur 6 [C]","2_a_Temperatur 6 [C]",290,"NULL","NULL",1]
["0-017","Temperatur 7 [C]","2_a_Temperatur 7 [C]",390,"NULL","NULL",1]
["0-017","Temperatur 8 [C]","2_a_Temperatur 8 [C]",390,"NULL","NULL",1]
["0-017","Temperatur Kondensation Tc [C]","2_c_Temperatur Kondensation Tc [C]",590,"NULL","NULL",0]
["0-017","Temperatur Verdampfung T0 [C]","2_c_Temperatur Verdampfung T0 [C]",590,"NULL","NULL",0]
["0-017","Typ","3_a_Typ",290,1,"NULL",0]
["0-017","Typ (Antrieb)","3_a_Typ (Antrieb)",290,1,"NULL",0]
["0-017","TypeID Nova dez","0_c_TypeID Nova dez","NULL","NULL","NULL",0]
["0-017","URL","3_c_URL",300,"NULL","NULL",0]
["0-017","Volumenstrom 1 [m3/h]","2_a_Volumenstrom 1 [m3/h]",390,"NULL","NULL",0]
["0-017","Volumenstrom 2 [m3/h]","2_a_Volumenstrom 2 [m3/h]",390,"NULL","NULL",0]
["0-017","Wartungsintervall [Betriebsstunden]","8_c_Wartungsintervall [Betriebsstunden]",590,"NULL","NULL",0]
["0-017","Werkvertrag [Firma/Nummer]","8_c_Werkvertrag [Firma/Nummer]",590,"NULL","NULL",0]
["0-017","Zust.Unterhalt","8_c_Zust Unterhalt",300,"NULL","NULL",0]
["0-018","Abnahmetermin [Datum]","7_a_Abnahmetermin [Datum]",590,"NULL","NULL",0]
["0-018","Absolutdruck 1 [bar]","2_c_Absolutdruck 1 [bar]",590,"NULL","NULL",0]
["0-018","Achse X","5_c_Achse X","NULL","NULL","NULL",0]
["0-018","Achse Y","5_c_Achse Y","NULL","NULL","NULL",0]
["0-018","Achse Z","5_c_Achse Z","NULL","NULL","NULL",0]
["0-018","Anlage funktional (BKP-XXX)","1_b_Anlage funktional (BKP-XXX)",490,"NULL","NULL",0]
["0-018","Anlagenstruktur-SAN","1_b_Anlagenstruktur-SAN","NULL","NULL","NULL",0]
["0-018","Anlagenummer (BKP-XXX)","1_a_Anlagenummer (BKP-XXX)",100,"NULL","NULL",1]
["0-018","Anlagenummer Bauherr","1_b_Anlagenummer Bauherr",490,"NULL","NULL",0]
["0-018","Anschlussart","3_c_Anschlussart",590,"NULL","NULL",0]
["0-018","Artikelnummer","3_c_Artikelnummer",300,"NULL","Modell",0]
["0-018","Artikelnummer RMB","0_c_Artikelnummer RMB",100,"NULL","NULL",1]
["0-018","Ausführung 1","3_b_Ausfuehrung 1",590,"NULL","NULL",0]
["0-018","Ausführung 2","3_b_Ausfuehrung 2",590,"NULL","NULL",0]
["0-018","Ausführung 3","3_b_Ausfuehrung 3",590,"NULL","NULL",0]
["0-018","Ausführung 4","3_b_Ausfuehrung 4",590,"NULL","NULL",0]
["0-018","Bezeichnung Elektroschema (BMK)","6_a_Bezeichnung Elektroschema (BMK)",390,"NULL","NULL",0]
["0-018","Bezeichnung GA (AKS)","6_c_Bezeichnung GA (AKS)",590,"NULL","NULL",0]
["0-018","Breite (Abmessung 2) [mm]","2_b_Breite (Abmessung 2) [mm]",200,0,"NULL",1]
["0-018","Datenpunkte AI","4_c_Datenpunkte AI",590,"NULL","NULL",0]
["0-018","Datenpunkte AO","4_c_Datenpunkte AO",590,"NULL","NULL",0]
["0-018","Datenpunkte DI","4_c_Datenpunkte DI",590,"NULL","NULL",0]
["0-018","Datenpunkte DO","4_c_Datenpunkte DO",590,"NULL","NULL",0]
["0-018","Datenpunkte MBus","4_c_Datenpunkt MBus",590,"NULL","NULL",0]
["0-018","Datenpunkte VA","4_c_Datenpunkt VA",590,"NULL","NULL",0]
["0-018","Datenpunkte VD","4_c_Datenpunkt VD",590,"NULL","NULL",0]
["0-018","Differenzdruck 1 [kPa]","2_a_Differenzdruck 1 [kPa]",390,"NULL","NULL",0]
["0-018","Dimension 1 [DN]","2_a_Dimension 1 [DN]",290,1,"NULL",1]
["0-018","Dimension 2 [DN]","2_a_Dimension 2 [DN]",290,0,"NULL",1]
["0-018","dT mittel log [K]","2_c_dT mittel log [K]",590,"NULL","NULL",0]
["0-018","Durchmesser (Abmessung 4) [mm]","2_b_Durchmesser (Abmessung 4) [mm]",200,1,"NULL",1]
["0-018","e-BKP-H","1_b_e-BKP-H",200,"NULL","NULL",0]
["0-018","Einsatzbereich [%]","4_b_Einsatzbereich [%]",490,"NULL","NULL",0]
["0-018","Ende Garantiefrist [Datum]","8_b_Ende Garantiefrist [Datum]",590,"NULL","NULL",0]
["0-018","Energieeffizienzklasse","3_c_Energieeffizienzklasse",590,"NULL","NULL",0]
["0-018","Fabrikat","3_a_Fabrikat",290,1,"NULL",1]
["0-018","Freigabe zur Bestellung [Datum]","7_a_Freigabe zur Bestellung [Datum]",400,"NULL","NULL",0]
["0-018","Gebäude","5_c_Gebaeude",200,"NULL","Modell",0]
["0-018","Gesamtwirkungsgrad Vollast","3_c_Gesamtwirkungsgrad Vollast",590,"NULL","NULL",0]
["0-018","Geschoss","5_a_Geschoss",200,"NULL","Modell",0]
["0-018","Geschwindigkeit 1 [m/s]","2_c_Geschwindigkeit 1 [m/s]",590,"NULL","NULL",0]
["0-018","Geschwindigkeit 2 [m/s]","2_c_Geschwindigkeit 2 [m/s]",590,"NULL","NULL",0]
["0-018","Gewicht Betrieb [kg]","2_b_Gewicht Betrieb [kg]",200,"NULL","NULL",0]
["0-018","Gewicht leer [kg]","2_c_Gewicht leer [kg]",390,0,"NULL",1]
["0-018","Höhe (Abmessung 3) [mm]","2_b_Hoehe (Abmessung 3) [mm]",200,0,"NULL",1]
["0-018","Inbetriebsetzungstermin [Datum]","7_b_Inbetriebsetzungstermin [Datum]",590,"NULL","NULL",0]
["0-018","Inhalt [kg]","2_a_Inhalt [kg]",590,"NULL","NULL",0]
["0-018","Inhalt [l]","2_a_Inhalt [l]",390,"NULL","NULL",1]
["0-018","Instandhaltung","8_b_Instandhaltung",300,"NULL","NULL",0]
["0-018","Integration Kommunikation","4_c_Integration Kommunikation",390,0,"NULL",0]
["0-018","KelpyOfferteId","3_c_KelpyOfferteId","NULL",1,"NULL",0]
["0-018","Klartext Anlage","1_c_Klartext Anlage",100,"NULL","NULL",0]
["0-018","Klartext Anlage funktional","1_c_Klartext Anlage funktional",590,"NULL","NULL",0]
["0-018","Klartext Feldgerät","1_c_Klartext Feldgeraet",100,"NULL","Prinzipschema",1]
["0-018","Klartext Feldgerät Nachtext","1_c_Klartext Feldgeraet Nachtext",590,"NULL","NULL",0]
["0-018","Klartext Raum","5_c_Klartext Raum",200,"NULL","Modell",0]
["0-018","Kommentar technisch","9_a_Kommentar technisch",300,1,"NULL",0]
["0-018","Länge (Abmessung 1) [mm]","2_b_Laenge (Abmessung 1) [mm]",200,0,"NULL",1]
["0-018","Laufnummer","0_a_Laufnummer",100,"NULL","NULL",1]
["0-018","Leistung 1 (hyd) [kW]","2_a_Leistung 1 (hyd) [kW]",290,0,"NULL",1]
["0-018","Leistung 2 (hyd) [kW]","2_a_Leistung 2 (hyd) [kW]",290,0,"NULL",0]
["0-018","Leistung elektrisch [W]","4_a_Leistung elektrisch [W]",390,"NULL","NULL",0]
["0-018","Lieferant","3_c_Lieferant",300,"NULL","NULL",0]
["0-018","Lieferung bauseits","7_a_Lieferung bauseits",300,1,"NULL",0]
["0-018","Massenstrom 1 [kg/h]","2_a_Massenstrom 1 [kg/h]",390,"NULL","NULL",0]
["0-018","Massenstrom 2 [kg/h]","2_a_Massenstrom 2 [kg/h]",390,"NULL","NULL",0]
["0-018","Material 1","3_c_Material 1",390,1,"NULL",0]
["0-018","max. Temperatur [C]","2_c_max Temperatur [C]",390,0,"NULL",0]
["0-018","Medium 1","2_c_Medium 1",590,"NULL","NULL",0]
["0-018","Medium 2","2_c_Medium 2",590,"NULL","NULL",0]
["0-018","Mieter","5_c_Mieter",590,"NULL","NULL",0]
["0-018","Montagetermin geplant [Datum]","7_b_Montagetermin geplant [Datum]",590,"NULL","NULL",0]
["0-018","Montagetermin ist [Datum]","7_b_Montagetermin ist [Datum]",590,"NULL","NULL",0]
["0-018","Nenndruck PN [bar]","2_b_Nenndruck PN [bar]",290,0,"NULL",1]
["0-018","NPK","1_b_NPK",200,1,"NULL",0]
["0-018","Phasen","4_b_Phasen",490,"NULL","NULL",0]
["0-018","Positionsnummer","5_c_Positionsnummer","NULL","NULL","Prinzipschema",1]
["0-018","Prüfpflicht","8_c_Pruefpflicht",590,"NULL","NULL",0]
["0-018","Raumnummer","5_a_Raumnummer",200,"NULL","Modell",0]
["0-018","Regelungsart","4_a_Regelungsart",590,"NULL","NULL",0]
["0-018","Schalldruckpegel [dB]","2_b_Schalldruckpegel [dB]",490,"NULL","NULL",0]
["0-018","Schallleistungspegel [dB]","2_b_Schallleistungspegel [dB]",490,"NULL","NULL",0]
["0-018","Schutzart IP","4_c_Schutzart IP",590,"NULL","NULL",0]
["0-018","Servicevertrag [Firma]","8_b_Servicevertrag [Firma]",590,"NULL","NULL",0]
["0-018","Servicevertrag [Nummer]","8_a_Servicevertrag [Nummer]",590,"NULL","NULL",0]
["0-018","SGK Nummer","6_a_SGK Nummer",390,"NULL","NULL",0]
["0-018","SGK Zuordnung","6_a_SGK Zuordnung",390,"NULL","NULL",0]
["0-018","SIA-Katalog","1_b_SIA-Katalog","NULL","NULL","NULL",0]
["0-018","Spannung [V]","4_a_Spannung [V]",390,"NULL","NULL",0]
["0-018","Steuersignal","4_a_Steuersignal",390,"NULL","NULL",0]
["0-018","Strom [A]","4_a_Strom [A]",390,"NULL","NULL",0]
["0-018","System","3_b_System",200,"NULL","Prinzipschema",0]
["0-018","Temperatur 1 [C]","2_a_Temperatur 1 [C]",290,0,"NULL",0]
["0-018","Temperatur 2 [C]","2_a_Temperatur 2 [C]",290,0,"NULL",0]
["0-018","Temperatur 3 [C]","2_a_Temperatur 3 [C]",290,0,"NULL",0]
["0-018","Temperatur 4 [C]","2_a_Temperatur 4 [C]",290,0,"NULL",0]
["0-018","Typ","3_a_Typ",290,1,"NULL",1]
["0-018","TypeID Nova dez","0_c_TypeID Nova dez","NULL","NULL","NULL",0]
["0-018","URL","3_c_URL",300,"NULL","NULL",0]
["0-018","Volumenstrom 1 [m3/h]","2_a_Volumenstrom 1 [m3/h]",390,"NULL","NULL",0]
["0-018","Wartungsintervall [Betriebsstunden]","8_c_Wartungsintervall [Betriebsstunden]",590,"NULL","NULL",0]
["0-018","Werkvertrag [Firma/Nummer]","8_c_Werkvertrag [Firma/Nummer]",590,"NULL","NULL",0]
["0-018","Zulassung VKF","3_c_Zulassung VKF",390,0,"NULL",1]
["0-018","Zust.Unterhalt","8_c_Zust Unterhalt",300,"NULL","NULL",0]
["0-019","Abnahmetermin [Datum]","7_a_Abnahmetermin [Datum]",590,"NULL","NULL",0]
["0-019","Achse X","5_c_Achse X","NULL","NULL","NULL",0]
["0-019","Achse Y","5_c_Achse Y","NULL","NULL","NULL",0]
["0-019","Achse Z","5_c_Achse Z","NULL","NULL","NULL",0]
["0-019","Anlage funktional (BKP-XXX)","1_b_Anlage funktional (BKP-XXX)",490,"NULL","NULL",0]
["0-019","Anlagenstruktur-SAN","1_b_Anlagenstruktur-SAN","NULL","NULL","NULL",0]
["0-019","Anlagenummer (BKP-XXX)","1_a_Anlagenummer (BKP-XXX)",100,"NULL","NULL",1]
["0-019","Anlagenummer Bauherr","1_b_Anlagenummer Bauherr",490,"NULL","NULL",0]
["0-019","Anlaufstrom [A]","4_a_Anlaufstrom [A]",290,"NULL","NULL",1]
["0-019","Anschlussart","3_c_Anschlussart",590,"NULL","NULL",0]
["0-019","Anzahl [Stk]","3_b_Anzahl [Stk]",290,0,"NULL",1]
["0-019","Artikelnummer","3_c_Artikelnummer",300,"NULL","Modell",0]
["0-019","Artikelnummer RMB","0_c_Artikelnummer RMB",100,"NULL","NULL",1]
["0-019","Ausführung 1","3_b_Ausfuehrung 1",490,"NULL","NULL",1]
["0-019","Ausführung 2","3_b_Ausfuehrung 2",490,"NULL","NULL",1]
["0-019","Ausführung 3","3_b_Ausfuehrung 3",300,"NULL","NULL",1]
["0-019","Ausführung 4","3_b_Ausfuehrung 4",300,"NULL","NULL",1]
["0-019","Ausführung 5","3_b_Ausfuehrung 5",300,"NULL","NULL",1]
["0-019","Ausführung 6","3_b_Ausfuehrung 6",300,"NULL","NULL",1]
["0-019","Ausführung 7","3_b_Ausfuehrung 7",300,"NULL","NULL",1]
["0-019","Ausführung 8","3_b_Ausfuehrung 8",300,"NULL","NULL",1]
["0-019","Bezeichnung Elektroschema (BMK)","6_a_Bezeichnung Elektroschema (BMK)",390,"NULL","NULL",0]
["0-019","Bezeichnung GA (AKS)","6_c_Bezeichnung GA (AKS)",590,"NULL","NULL",0]
["0-019","Breite (Abmessung 2) [mm]","2_b_Breite (Abmessung 2) [mm]",200,0,"NULL",1]
["0-019","COP 1","2_c_COP 1",590,"NULL","NULL",1]
["0-019","COP 2","2_c_COP 2",590,"NULL","NULL",0]
["0-019","COP 3","2_c_COP 3",390,0,"NULL",0]
["0-019","COP 4","2_c_COP 4",590,"NULL","NULL",0]
["0-019","Datenpunkte AI","4_c_Datenpunkte AI",590,"NULL","NULL",0]
["0-019","Datenpunkte AO","4_c_Datenpunkte AO",590,"NULL","NULL",0]
["0-019","Datenpunkte DI","4_c_Datenpunkte DI",590,"NULL","NULL",0]
["0-019","Datenpunkte DO","4_c_Datenpunkte DO",590,"NULL","NULL",0]
["0-019","Datenpunkte MBus","4_c_Datenpunkt MBus",590,"NULL","NULL",0]
["0-019","Datenpunkte VA","4_c_Datenpunkt VA",590,"NULL","NULL",0]
["0-019","Datenpunkte VD","4_c_Datenpunkt VD",590,"NULL","NULL",0]
["0-019","Differenzdruck 1 [kPa]","2_a_Differenzdruck 1 [kPa]",390,"NULL","NULL",1]
["0-019","Differenzdruck 2 [kPa]","2_a_Differenzdruck 2 [kPa]",390,"NULL","NULL",1]
["0-019","Differenzdruck 3 [kPa]","2_a_Differenzdruck 3 [kPa]",390,"NULL","NULL",1]
["0-019","Differenzdruck 4 [kPa]","2_a_Differenzdruck 4 [kPa]",390,"NULL","NULL",1]
["0-019","Dimension 1 [DN]","2_a_Dimension 1 [DN]",390,"NULL","NULL",1]
["0-019","Dimension 2 [DN]","2_a_Dimension 2 [DN]",390,"NULL","NULL",1]
["0-019","Dimension 3 [DN]","2_a_Dimension 3 [DN]",390,"NULL","NULL",1]
["0-019","Dimension 4 [DN]","2_a_Dimension 4 [DN]",390,"NULL","NULL",1]
["0-019","dT mittel log [K]","2_c_dT mittel log [K]",590,"NULL","NULL",0]
["0-019","e-BKP-H","1_b_e-BKP-H",200,"NULL","NULL",0]
["0-019","Einsatzbereich [%]","4_b_Einsatzbereich [%]",290,0,"NULL",1]
["0-019","Ende Garantiefrist [Datum]","8_b_Ende Garantiefrist [Datum]",590,"NULL","NULL",0]
["0-019","Fabrikat","3_a_Fabrikat",290,1,"NULL",1]
["0-019","Fabrikat (Antrieb)","3_a_Fabrikat (Antrieb)",290,1,"NULL",0]
["0-019","Freigabe zur Bestellung [Datum]","7_a_Freigabe zur Bestellung [Datum]",400,"NULL","NULL",0]
["0-019","Gebäude","5_c_Gebaeude",200,"NULL","Modell",0]
["0-019","Geschoss","5_a_Geschoss",200,"NULL","Modell",0]
["0-019","Geschwindigkeit 1 [m/s]","2_c_Geschwindigkeit 1 [m/s]",590,"NULL","NULL",0]
["0-019","Geschwindigkeit 2 [m/s]","2_c_Geschwindigkeit 2 [m/s]",590,"NULL","NULL",0]
["0-019","Gewicht Betrieb [kg]","2_b_Gewicht Betrieb [kg]",200,0,"NULL",0]
["0-019","Gewicht leer [kg]","2_c_Gewicht leer [kg]",390,0,"NULL",1]
["0-019","Höhe (Abmessung 3) [mm]","2_b_Hoehe (Abmessung 3) [mm]",200,0,"NULL",1]
["0-019","Inbetriebsetzungstermin [Datum]","7_b_Inbetriebsetzungstermin [Datum]",590,"NULL","NULL",0]
["0-019","Inhalt [kg]","2_a_Inhalt [kg]",290,0,"NULL",1]
["0-019","Instandhaltung","8_b_Instandhaltung",300,"NULL","NULL",0]
["0-019","Integration Kommunikation","4_c_Integration Kommunikation",390,0,"NULL",0]
["0-019","KelpyOfferteId","3_c_KelpyOfferteId","NULL",1,"NULL",0]
["0-019","Klartext Anlage","1_c_Klartext Anlage",100,"NULL","NULL",0]
["0-019","Klartext Anlage funktional","1_c_Klartext Anlage funktional",590,"NULL","NULL",0]
["0-019","Klartext Feldgerät","1_c_Klartext Feldgeraet",100,"NULL","Prinzipschema",1]
["0-019","Klartext Feldgerät Nachtext","1_c_Klartext Feldgeraet Nachtext",590,"NULL","NULL",0]
["0-019","Klartext Raum","5_c_Klartext Raum",200,"NULL","Modell",0]
["0-019","Kommentar technisch","9_a_Kommentar technisch",300,1,"NULL",0]
["0-019","Länge (Abmessung 1) [mm]","2_b_Laenge (Abmessung 1) [mm]",200,0,"NULL",1]
["0-019","Laufnummer","0_a_Laufnummer",100,"NULL","NULL",1]
["0-019","Leistung 1 (hyd) [kW]","2_a_Leistung 1 (hyd) [kW]",290,0,"NULL",1]
["0-019","Leistung 2 (hyd) [kW]","2_a_Leistung 2 (hyd) [kW]",290,0,"NULL",1]
["0-019","Leistung 3 (hyd) [kW]","2_a_Leistung 3 (hyd) [kW]",290,0,"NULL",1]
["0-019","Leistung 4 (hyd) [kW]","2_a_Leistung 4 (hyd) [kW]",290,0,"NULL",1]
["0-019","Leistung elektrisch [W]","4_a_Leistung elektrisch [W]",290,0,"NULL",1]
["0-019","Lieferant","3_c_Lieferant",300,"NULL","NULL",0]
["0-019","Lieferung bauseits","7_a_Lieferung bauseits",300,1,"NULL",0]
["0-019","Massenstrom 1 [kg/h]","2_a_Massenstrom 1 [kg/h]",390,"NULL","NULL",1]
["0-019","Massenstrom 2 [kg/h]","2_a_Massenstrom 2 [kg/h]",390,"NULL","NULL",1]
["0-019","Massenstrom 3 [kg/h]","2_a_Massenstrom 3 [kg/h]",390,"NULL","NULL",1]
["0-019","Massenstrom 4 [kg/h]","2_a_Massenstrom 4 [kg/h]",390,"NULL","NULL",1]
["0-019","Material 1","3_c_Material 1",590,"NULL","NULL",0]
["0-019","Material 2","3_c_Material 2",590,"NULL","NULL",0]
["0-019","Medium 1","2_c_Medium 1",390,1,"NULL",1]
["0-019","Medium 2","2_c_Medium 2",590,1,"NULL",1]
["0-019","Medium 3","2_c_Medium 3",300,"NULL","NULL",1]
["0-019","Medium 4","2_c_Medium 4",300,0,"NULL",1]
["0-019","Medium 5","2_c_Medium 5",300,0,"NULL",1]
["0-019","Mieter","5_c_Mieter",590,"NULL","NULL",0]
["0-019","Montagetermin geplant [Datum]","7_b_Montagetermin geplant [Datum]",590,"NULL","NULL",0]
["0-019","Montagetermin ist [Datum]","7_b_Montagetermin ist [Datum]",590,"NULL","NULL",0]
["0-019","Nenndruck PN [bar]","2_b_Nenndruck PN [bar]",290,0,"NULL",0]
["0-019","NPK","1_b_NPK",200,1,"NULL",0]
["0-019","Phasen","4_b_Phasen",490,"NULL","NULL",0]
["0-019","Positionsnummer","5_c_Positionsnummer","NULL","NULL","Prinzipschema",1]
["0-019","Prüfpflicht","8_c_Pruefpflicht",590,"NULL","NULL",0]
["0-019","Raumnummer","5_a_Raumnummer",200,"NULL","Modell",0]
["0-019","Regelungsart","4_a_Regelungsart",290,0,"NULL",0]
["0-019","Schalldruckpegel [dB]","2_b_Schalldruckpegel [dB]",490,"NULL","NULL",0]
["0-019","Schallleistungspegel [dB]","2_b_Schallleistungspegel [dB]",490,"NULL","NULL",1]
["0-019","Schutzart IP","4_c_Schutzart IP",590,"NULL","NULL",0]
["0-019","Servicevertrag [Firma]","8_b_Servicevertrag [Firma]",590,"NULL","NULL",0]
["0-019","Servicevertrag [Nummer]","8_a_Servicevertrag [Nummer]",590,"NULL","NULL",0]
["0-019","SGK Nummer","6_a_SGK Nummer",390,"NULL","NULL",0]
["0-019","SGK Zuordnung","6_a_SGK Zuordnung",390,"NULL","NULL",0]
["0-019","SIA-Katalog","1_b_SIA-Katalog","NULL","NULL","NULL",0]
["0-019","Spannung [V]","4_a_Spannung [V]",390,"NULL","NULL",1]
["0-019","Steuersignal","4_a_Steuersignal",390,"NULL","NULL",0]
["0-019","Strom [A]","4_a_Strom [A]",290,0,"NULL",1]
["0-019","System","3_b_System",200,"NULL","Prinzipschema",0]
["0-019","Temperatur 1 [C]","2_a_Temperatur 1 [C]",290,1,"NULL",1]
["0-019","Temperatur 2 [C]","2_a_Temperatur 2 [C]",290,1,"NULL",1]
["0-019","Temperatur 3 [C]","2_a_Temperatur 3 [C]",290,1,"NULL",1]
["0-019","Temperatur 4 [C]","2_a_Temperatur 4 [C]",290,1,"NULL",1]
["0-019","Temperatur 5 [C]","2_a_Temperatur 5 [C]",290,1,"NULL",1]
["0-019","Temperatur 6 [C]","2_a_Temperatur 6 [C]",290,1,"NULL",1]
["0-019","Temperatur 7 [C]","2_a_Temperatur 7 [C]",390,1,"NULL",1]
["0-019","Temperatur 8 [C]","2_a_Temperatur 8 [C]",390,1,"NULL",1]
["0-019","Temperatur Kondensation Tc [C]","2_c_Temperatur Kondensation Tc [C]",590,"NULL","NULL",0]
["0-019","Temperatur Verdampfung T0 [C]","2_c_Temperatur Verdampfung T0 [C]",590,"NULL","NULL",0]
["0-019","Typ","3_a_Typ",290,1,"NULL",1]
["0-019","Typ (Antrieb)","3_a_Typ (Antrieb)",290,1,"NULL",0]
["0-019","TypeID Nova dez","0_c_TypeID Nova dez","NULL","NULL","NULL",0]
["0-019","URL","3_c_URL",300,"NULL","NULL",0]
["0-019","Volumenstrom 1 [m3/h]","2_a_Volumenstrom 1 [m3/h]",390,"NULL","NULL",0]
["0-019","Volumenstrom 2 [m3/h]","2_a_Volumenstrom 2 [m3/h]",390,"NULL","NULL",0]
["0-019","Wartungsintervall [Betriebsstunden]","8_c_Wartungsintervall [Betriebsstunden]",590,"NULL","NULL",0]
["0-019","Werkvertrag [Firma/Nummer]","8_c_Werkvertrag [Firma/Nummer]",590,"NULL","NULL",0]
["0-019","Zust.Unterhalt","8_c_Zust Unterhalt",300,"NULL","NULL",0]
["0-020","Abnahmetermin [Datum]","7_a_Abnahmetermin [Datum]",590,"NULL","NULL",0]
["0-020","Achse X","5_c_Achse X","NULL","NULL","NULL",0]
["0-020","Achse Y","5_c_Achse Y","NULL","NULL","NULL",0]
["0-020","Achse Z","5_c_Achse Z","NULL","NULL","NULL",0]
["0-020","Anlage funktional (BKP-XXX)","1_b_Anlage funktional (BKP-XXX)",490,"NULL","NULL",0]
["0-020","Anlagenstruktur-SAN","1_b_Anlagenstruktur-SAN","NULL","NULL","NULL",0]
["0-020","Anlagenummer (BKP-XXX)","1_a_Anlagenummer (BKP-XXX)",100,"NULL","NULL",1]
["0-020","Anlagenummer Bauherr","1_b_Anlagenummer Bauherr",490,"NULL","NULL",0]
["0-020","Anlaufstrom [A]","4_a_Anlaufstrom [A]",290,"NULL","NULL",0]
["0-020","Anschlussart","3_c_Anschlussart",590,"NULL","NULL",0]
["0-020","Anzahl [Stk]","3_b_Anzahl [Stk]",290,0,"NULL",0]
["0-020","Artikelnummer","3_c_Artikelnummer",300,"NULL","Modell",0]
["0-020","Artikelnummer RMB","0_c_Artikelnummer RMB",100,"NULL","NULL",1]
["0-020","Ausführung 1","3_b_Ausfuehrung 1",490,"NULL","NULL",0]
["0-020","Ausführung 2","3_b_Ausfuehrung 2",490,"NULL","NULL",0]
["0-020","Ausführung 3","3_b_Ausfuehrung 3",300,"NULL","NULL",0]
["0-020","Ausführung 4","3_b_Ausfuehrung 4",300,"NULL","NULL",0]
["0-020","Ausführung 5","3_b_Ausfuehrung 5",300,"NULL","NULL",0]
["0-020","Ausführung 6","3_b_Ausfuehrung 6",300,"NULL","NULL",0]
["0-020","Ausführung 7","3_b_Ausfuehrung 7",300,"NULL","NULL",0]
["0-020","Ausführung 8","3_b_Ausfuehrung 8",300,"NULL","NULL",0]
["0-020","Bezeichnung Elektroschema (BMK)","6_a_Bezeichnung Elektroschema (BMK)",390,"NULL","NULL",0]
["0-020","Bezeichnung GA (AKS)","6_c_Bezeichnung GA (AKS)",590,"NULL","NULL",0]
["0-020","Breite (Abmessung 2) [mm]","2_b_Breite (Abmessung 2) [mm]",200,0,"NULL",0]
["0-020","COP 1","2_c_COP 1",590,"NULL","NULL",0]
["0-020","COP 2","2_c_COP 2",590,"NULL","NULL",0]
["0-020","COP 3","2_c_COP 3",390,0,"NULL",0]
["0-020","COP 4","2_c_COP 4",590,"NULL","NULL",0]
["0-020","Datenpunkte AI","4_c_Datenpunkte AI",590,"NULL","NULL",0]
["0-020","Datenpunkte AO","4_c_Datenpunkte AO",590,"NULL","NULL",0]
["0-020","Datenpunkte DI","4_c_Datenpunkte DI",590,"NULL","NULL",0]
["0-020","Datenpunkte DO","4_c_Datenpunkte DO",590,"NULL","NULL",0]
["0-020","Datenpunkte MBus","4_c_Datenpunkt MBus",590,"NULL","NULL",0]
["0-020","Datenpunkte VA","4_c_Datenpunkt VA",590,"NULL","NULL",0]
["0-020","Datenpunkte VD","4_c_Datenpunkt VD",590,"NULL","NULL",0]
["0-020","Differenzdruck 1 [kPa]","2_a_Differenzdruck 1 [kPa]",390,"NULL","NULL",0]
["0-020","Differenzdruck 2 [kPa]","2_a_Differenzdruck 2 [kPa]",390,"NULL","NULL",0]
["0-020","Differenzdruck 3 [kPa]","2_a_Differenzdruck 3 [kPa]",390,"NULL","NULL",0]
["0-020","Differenzdruck 4 [kPa]","2_a_Differenzdruck 4 [kPa]",390,"NULL","NULL",0]
["0-020","Dimension 1 [DN]","2_a_Dimension 1 [DN]",390,"NULL","NULL",0]
["0-020","Dimension 2 [DN]","2_a_Dimension 2 [DN]",390,"NULL","NULL",0]
["0-020","Dimension 3 [DN]","2_a_Dimension 3 [DN]",390,"NULL","NULL",0]
["0-020","Dimension 4 [DN]","2_a_Dimension 4 [DN]",390,"NULL","NULL",0]
["0-020","dT mittel log [K]","2_c_dT mittel log [K]",590,"NULL","NULL",0]
["0-020","e-BKP-H","1_b_e-BKP-H",200,"NULL","NULL",0]
["0-020","Einsatzbereich [%]","4_b_Einsatzbereich [%]",290,0,"NULL",0]
["0-020","Ende Garantiefrist [Datum]","8_b_Ende Garantiefrist [Datum]",590,"NULL","NULL",0]
["0-020","Fabrikat","3_a_Fabrikat",290,1,"NULL",0]
["0-020","Fabrikat (Antrieb)","3_a_Fabrikat (Antrieb)",290,1,"NULL",0]
["0-020","Freigabe zur Bestellung [Datum]","7_a_Freigabe zur Bestellung [Datum]",400,"NULL","NULL",0]
["0-020","Gebäude","5_c_Gebaeude",200,"NULL","Modell",0]
["0-020","Geschoss","5_a_Geschoss",200,"NULL","Modell",0]
["0-020","Geschwindigkeit 1 [m/s]","2_c_Geschwindigkeit 1 [m/s]",590,"NULL","NULL",0]
["0-020","Geschwindigkeit 2 [m/s]","2_c_Geschwindigkeit 2 [m/s]",590,"NULL","NULL",0]
["0-020","Gewicht Betrieb [kg]","2_b_Gewicht Betrieb [kg]",200,0,"NULL",0]
["0-020","Gewicht leer [kg]","2_c_Gewicht leer [kg]",390,0,"NULL",0]
["0-020","Höhe (Abmessung 3) [mm]","2_b_Hoehe (Abmessung 3) [mm]",200,0,"NULL",0]
["0-020","Inbetriebsetzungstermin [Datum]","7_b_Inbetriebsetzungstermin [Datum]",590,"NULL","NULL",0]
["0-020","Inhalt [kg]","2_a_Inhalt [kg]",290,0,"NULL",0]
["0-020","Instandhaltung","8_b_Instandhaltung",300,"NULL","NULL",0]
["0-020","Integration Kommunikation","4_c_Integration Kommunikation",390,0,"NULL",0]
["0-020","KelpyOfferteId","3_c_KelpyOfferteId","NULL",1,"NULL",0]
["0-020","Klartext Anlage","1_c_Klartext Anlage",100,"NULL","NULL",0]
["0-020","Klartext Anlage funktional","1_c_Klartext Anlage funktional",590,"NULL","NULL",0]
["0-020","Klartext Feldgerät","1_c_Klartext Feldgeraet",100,"NULL","Prinzipschema",1]
["0-020","Klartext Feldgerät Nachtext","1_c_Klartext Feldgeraet Nachtext",590,"NULL","NULL",0]
["0-020","Klartext Raum","5_c_Klartext Raum",200,"NULL","Modell",0]
["0-020","Kommentar technisch","9_a_Kommentar technisch",300,1,"NULL",0]
["0-020","Länge (Abmessung 1) [mm]","2_b_Laenge (Abmessung 1) [mm]",200,0,"NULL",0]
["0-020","Laufnummer","0_a_Laufnummer",100,"NULL","NULL",1]
["0-020","Leistung 1 (hyd) [kW]","2_a_Leistung 1 (hyd) [kW]",290,0,"NULL",0]
["0-020","Leistung 2 (hyd) [kW]","2_a_Leistung 2 (hyd) [kW]",290,0,"NULL",0]
["0-020","Leistung 3 (hyd) [kW]","2_a_Leistung 3 (hyd) [kW]",290,0,"NULL",0]
["0-020","Leistung 4 (hyd) [kW]","2_a_Leistung 4 (hyd) [kW]",290,0,"NULL",0]
["0-020","Leistung elektrisch [W]","4_a_Leistung elektrisch [W]",290,0,"NULL",0]
["0-020","Lieferant","3_c_Lieferant",300,"NULL","NULL",0]
["0-020","Lieferung bauseits","7_a_Lieferung bauseits",300,1,"NULL",0]
["0-020","Massenstrom 1 [kg/h]","2_a_Massenstrom 1 [kg/h]",390,"NULL","NULL",0]
["0-020","Massenstrom 2 [kg/h]","2_a_Massenstrom 2 [kg/h]",390,"NULL","NULL",0]
["0-020","Massenstrom 3 [kg/h]","2_a_Massenstrom 3 [kg/h]",390,"NULL","NULL",0]
["0-020","Massenstrom 4 [kg/h]","2_a_Massenstrom 4 [kg/h]",390,"NULL","NULL",0]
["0-020","Material 1","3_c_Material 1",590,"NULL","NULL",0]
["0-020","Material 2","3_c_Material 2",590,"NULL","NULL",0]
["0-020","Medium 1","2_c_Medium 1",390,0,"NULL",0]
["0-020","Medium 2","2_c_Medium 2",590,"NULL","NULL",0]
["0-020","Medium 3","2_c_Medium 3",300,"NULL","NULL",0]
["0-020","Medium 4","2_c_Medium 4",300,0,"NULL",0]
["0-020","Medium 5","2_c_Medium 5",300,0,"NULL",0]
["0-020","Mieter","5_c_Mieter",590,"NULL","NULL",0]
["0-020","Montagetermin geplant [Datum]","7_b_Montagetermin geplant [Datum]",590,"NULL","NULL",0]
["0-020","Montagetermin ist [Datum]","7_b_Montagetermin ist [Datum]",590,"NULL","NULL",0]
["0-020","Nenndruck PN [bar]","2_b_Nenndruck PN [bar]",290,0,"NULL",0]
["0-020","NPK","1_b_NPK",200,1,"NULL",0]
["0-020","Phasen","4_b_Phasen",490,"NULL","NULL",0]
["0-020","Positionsnummer","5_c_Positionsnummer","NULL","NULL","Prinzipschema",1]
["0-020","Prüfpflicht","8_c_Pruefpflicht",590,"NULL","NULL",0]
["0-020","Raumnummer","5_a_Raumnummer",200,"NULL","Modell",0]
["0-020","Regelungsart","4_a_Regelungsart",290,0,"NULL",0]
["0-020","Schalldruckpegel [dB]","2_b_Schalldruckpegel [dB]",490,"NULL","NULL",0]
["0-020","Schallleistungspegel [dB]","2_b_Schallleistungspegel [dB]",490,"NULL","NULL",0]
["0-020","Schutzart IP","4_c_Schutzart IP",590,"NULL","NULL",0]
["0-020","Servicevertrag [Firma]","8_b_Servicevertrag [Firma]",590,"NULL","NULL",0]
["0-020","Servicevertrag [Nummer]","8_a_Servicevertrag [Nummer]",590,"NULL","NULL",0]
["0-020","SGK Nummer","6_a_SGK Nummer",390,"NULL","NULL",0]
["0-020","SGK Zuordnung","6_a_SGK Zuordnung",390,"NULL","NULL",0]
["0-020","SIA-Katalog","1_b_SIA-Katalog","NULL","NULL","NULL",0]
["0-020","Spannung [V]","4_a_Spannung [V]",390,"NULL","NULL",0]
["0-020","Steuersignal","4_a_Steuersignal",390,"NULL","NULL",0]
["0-020","Strom [A]","4_a_Strom [A]",290,0,"NULL",0]
["0-020","System","3_b_System",200,"NULL","Prinzipschema",0]
["0-020","Temperatur 1 [C]","2_a_Temperatur 1 [C]",290,0,"NULL",0]
["0-020","Temperatur 2 [C]","2_a_Temperatur 2 [C]",290,0,"NULL",0]
["0-020","Temperatur 3 [C]","2_a_Temperatur 3 [C]",290,"NULL","NULL",0]
["0-020","Temperatur 4 [C]","2_a_Temperatur 4 [C]",290,"NULL","NULL",0]
["0-020","Temperatur 5 [C]","2_a_Temperatur 5 [C]",290,0,"NULL",0]
["0-020","Temperatur 6 [C]","2_a_Temperatur 6 [C]",290,0,"NULL",0]
["0-020","Temperatur 7 [C]","2_a_Temperatur 7 [C]",390,"NULL","NULL",0]
["0-020","Temperatur 8 [C]","2_a_Temperatur 8 [C]",390,"NULL","NULL",0]
["0-020","Temperatur Kondensation Tc [C]","2_c_Temperatur Kondensation Tc [C]",590,"NULL","NULL",0]
["0-020","Temperatur Verdampfung T0 [C]","2_c_Temperatur Verdampfung T0 [C]",590,"NULL","NULL",0]
["0-020","Typ","3_a_Typ",290,1,"NULL",0]
["0-020","Typ (Antrieb)","3_a_Typ (Antrieb)",290,1,"NULL",0]
["0-020","TypeID Nova dez","0_c_TypeID Nova dez","NULL","NULL","NULL",0]
["0-020","URL","3_c_URL",300,"NULL","NULL",0]
["0-020","Volumenstrom 1 [m3/h]","2_a_Volumenstrom 1 [m3/h]",390,"NULL","NULL",0]
["0-020","Volumenstrom 2 [m3/h]","2_a_Volumenstrom 2 [m3/h]",390,"NULL","NULL",0]
["0-020","Wartungsintervall [Betriebsstunden]","8_c_Wartungsintervall [Betriebsstunden]",590,"NULL","NULL",0]
["0-020","Werkvertrag [Firma/Nummer]","8_c_Werkvertrag [Firma/Nummer]",590,"NULL","NULL",0]
["0-020","Zust.Unterhalt","8_c_Zust Unterhalt",300,"NULL","NULL",0]
["0-021","Abnahmetermin [Datum]","7_a_Abnahmetermin [Datum]",590,"NULL","NULL",0]
["0-021","Achse X","5_c_Achse X","NULL","NULL","NULL",0]
["0-021","Achse Y","5_c_Achse Y","NULL","NULL","NULL",0]
["0-021","Achse Z","5_c_Achse Z","NULL","NULL","NULL",0]
["0-021","Anlage funktional (BKP-XXX)","1_b_Anlage funktional (BKP-XXX)",490,"NULL","NULL",0]
["0-021","Anlagenstruktur-SAN","1_b_Anlagenstruktur-SAN","NULL","NULL","NULL",0]
["0-021","Anlagenummer (BKP-XXX)","1_a_Anlagenummer (BKP-XXX)",100,"NULL","NULL",1]
["0-021","Anlagenummer Bauherr","1_b_Anlagenummer Bauherr",490,"NULL","NULL",0]
["0-021","Anlaufstrom [A]","4_a_Anlaufstrom [A]",290,"NULL","NULL",0]
["0-021","Anschlussart","3_c_Anschlussart",590,"NULL","NULL",0]
["0-021","Anzahl [Stk]","3_b_Anzahl [Stk]",290,0,"NULL",0]
["0-021","Artikelnummer","3_c_Artikelnummer",300,"NULL","Modell",0]
["0-021","Artikelnummer RMB","0_c_Artikelnummer RMB",100,"NULL","NULL",1]
["0-021","Ausführung 1","3_b_Ausfuehrung 1",490,"NULL","NULL",0]
["0-021","Ausführung 2","3_b_Ausfuehrung 2",490,"NULL","NULL",0]
["0-021","Ausführung 3","3_b_Ausfuehrung 3",300,"NULL","NULL",0]
["0-021","Ausführung 4","3_b_Ausfuehrung 4",300,"NULL","NULL",0]
["0-021","Ausführung 5","3_b_Ausfuehrung 5",300,"NULL","NULL",0]
["0-021","Ausführung 6","3_b_Ausfuehrung 6",300,"NULL","NULL",0]
["0-021","Ausführung 7","3_b_Ausfuehrung 7",300,"NULL","NULL",0]
["0-021","Ausführung 8","3_b_Ausfuehrung 8",300,"NULL","NULL",0]
["0-021","Bezeichnung Elektroschema (BMK)","6_a_Bezeichnung Elektroschema (BMK)",390,"NULL","NULL",0]
["0-021","Bezeichnung GA (AKS)","6_c_Bezeichnung GA (AKS)",590,"NULL","NULL",0]
["0-021","Breite (Abmessung 2) [mm]","2_b_Breite (Abmessung 2) [mm]",200,0,"NULL",0]
["0-021","COP 1","2_c_COP 1",590,0,"NULL",0]
["0-021","COP 2","2_c_COP 2",590,0,"NULL",0]
["0-021","COP 3","2_c_COP 3",390,0,"NULL",0]
["0-021","COP 4","2_c_COP 4",590,"NULL","NULL",0]
["0-021","Datenpunkte AI","4_c_Datenpunkte AI",590,"NULL","NULL",0]
["0-021","Datenpunkte AO","4_c_Datenpunkte AO",590,"NULL","NULL",0]
["0-021","Datenpunkte DI","4_c_Datenpunkte DI",590,"NULL","NULL",0]
["0-021","Datenpunkte DO","4_c_Datenpunkte DO",590,"NULL","NULL",0]
["0-021","Datenpunkte MBus","4_c_Datenpunkt MBus",590,"NULL","NULL",0]
["0-021","Datenpunkte VA","4_c_Datenpunkt VA",590,"NULL","NULL",0]
["0-021","Datenpunkte VD","4_c_Datenpunkt VD",590,"NULL","NULL",0]
["0-021","Differenzdruck 1 [kPa]","2_a_Differenzdruck 1 [kPa]",390,"NULL","NULL",0]
["0-021","Differenzdruck 2 [kPa]","2_a_Differenzdruck 2 [kPa]",390,"NULL","NULL",0]
["0-021","Differenzdruck 3 [kPa]","2_a_Differenzdruck 3 [kPa]",390,"NULL","NULL",0]
["0-021","Differenzdruck 4 [kPa]","2_a_Differenzdruck 4 [kPa]",390,"NULL","NULL",0]
["0-021","Dimension 1 [DN]","2_a_Dimension 1 [DN]",390,"NULL","NULL",0]
["0-021","Dimension 2 [DN]","2_a_Dimension 2 [DN]",390,"NULL","NULL",0]
["0-021","Dimension 3 [DN]","2_a_Dimension 3 [DN]",390,"NULL","NULL",0]
["0-021","Dimension 4 [DN]","2_a_Dimension 4 [DN]",390,"NULL","NULL",0]
["0-021","dT mittel log [K]","2_c_dT mittel log [K]",590,"NULL","NULL",0]
["0-021","e-BKP-H","1_b_e-BKP-H",200,"NULL","NULL",0]
["0-021","Einsatzbereich [%]","4_b_Einsatzbereich [%]",290,0,"NULL",0]
["0-021","Ende Garantiefrist [Datum]","8_b_Ende Garantiefrist [Datum]",590,"NULL","NULL",0]
["0-021","Fabrikat","3_a_Fabrikat",290,1,"NULL",0]
["0-021","Fabrikat (Antrieb)","3_a_Fabrikat (Antrieb)",290,1,"NULL",0]
["0-021","Freigabe zur Bestellung [Datum]","7_a_Freigabe zur Bestellung [Datum]",400,"NULL","NULL",0]
["0-021","Gebäude","5_c_Gebaeude",200,"NULL","Modell",0]
["0-021","Geschoss","5_a_Geschoss",200,"NULL","Modell",0]
["0-021","Geschwindigkeit 1 [m/s]","2_c_Geschwindigkeit 1 [m/s]",590,"NULL","NULL",0]
["0-021","Geschwindigkeit 2 [m/s]","2_c_Geschwindigkeit 2 [m/s]",590,"NULL","NULL",0]
["0-021","Gewicht Betrieb [kg]","2_b_Gewicht Betrieb [kg]",200,0,"NULL",0]
["0-021","Gewicht leer [kg]","2_c_Gewicht leer [kg]",390,0,"NULL",0]
["0-021","Höhe (Abmessung 3) [mm]","2_b_Hoehe (Abmessung 3) [mm]",200,0,"NULL",0]
["0-021","Inbetriebsetzungstermin [Datum]","7_b_Inbetriebsetzungstermin [Datum]",590,"NULL","NULL",0]
["0-021","Inhalt [kg]","2_a_Inhalt [kg]",290,0,"NULL",0]
["0-021","Instandhaltung","8_b_Instandhaltung",300,"NULL","NULL",0]
["0-021","Integration Kommunikation","4_c_Integration Kommunikation",390,0,"NULL",0]
["0-021","KelpyOfferteId","3_c_KelpyOfferteId","NULL",1,"NULL",0]
["0-021","Klartext Anlage","1_c_Klartext Anlage",100,"NULL","NULL",0]
["0-021","Klartext Anlage funktional","1_c_Klartext Anlage funktional",590,"NULL","NULL",0]
["0-021","Klartext Feldgerät","1_c_Klartext Feldgeraet",100,"NULL","Prinzipschema",1]
["0-021","Klartext Feldgerät Nachtext","1_c_Klartext Feldgeraet Nachtext",590,"NULL","NULL",0]
["0-021","Klartext Raum","5_c_Klartext Raum",200,"NULL","Modell",0]
["0-021","Kommentar technisch","9_a_Kommentar technisch",300,1,"NULL",0]
["0-021","Länge (Abmessung 1) [mm]","2_b_Laenge (Abmessung 1) [mm]",200,0,"NULL",0]
["0-021","Laufnummer","0_a_Laufnummer",100,"NULL","NULL",1]
["0-021","Leistung 1 (hyd) [kW]","2_a_Leistung 1 (hyd) [kW]",290,0,"NULL",0]
["0-021","Leistung 2 (hyd) [kW]","2_a_Leistung 2 (hyd) [kW]",290,0,"NULL",0]
["0-021","Leistung 3 (hyd) [kW]","2_a_Leistung 3 (hyd) [kW]",290,0,"NULL",0]
["0-021","Leistung 4 (hyd) [kW]","2_a_Leistung 4 (hyd) [kW]",290,0,"NULL",0]
["0-021","Leistung elektrisch [W]","4_a_Leistung elektrisch [W]",290,0,"NULL",0]
["0-021","Lieferant","3_c_Lieferant",300,"NULL","NULL",0]
["0-021","Lieferung bauseits","7_a_Lieferung bauseits",300,1,"NULL",0]
["0-021","Massenstrom 1 [kg/h]","2_a_Massenstrom 1 [kg/h]",390,"NULL","NULL",0]
["0-021","Massenstrom 2 [kg/h]","2_a_Massenstrom 2 [kg/h]",390,"NULL","NULL",0]
["0-021","Massenstrom 3 [kg/h]","2_a_Massenstrom 3 [kg/h]",390,"NULL","NULL",0]
["0-021","Massenstrom 4 [kg/h]","2_a_Massenstrom 4 [kg/h]",390,"NULL","NULL",0]
["0-021","Medium 5","2_c_Medium 5",300,0,"NULL",0]
["0-021","Raumnummer","5_a_Raumnummer",200,"NULL","Modell",0]
["0-021","Servicevertrag [Firma]","8_b_Servicevertrag [Firma]",590,"NULL","NULL",0]
["0-021","Temperatur 3 [C]","2_a_Temperatur 3 [C]",290,1,"NULL",0]
["0-021","Zust.Unterhalt","8_c_Zust Unterhalt",300,"NULL","NULL",0]
["0-022","Achse Y","5_c_Achse Y","NULL","NULL","NULL",0]
["0-022","Ausführung 1","3_b_Ausfuehrung 1",490,"NULL","NULL",0]
["0-022","Datenpunkte AI","4_c_Datenpunkte AI",590,"NULL","NULL",0]
["0-022","Dimension 1 [DN]","2_a_Dimension 1 [DN]",390,"NULL","NULL",0]
["0-022","e-BKP-H","1_b_e-BKP-H",200,"NULL","NULL",0]
["0-022","Inhalt [kg]","2_a_Inhalt [kg]",290,0,"NULL",0]
["0-022","Instandhaltung","8_b_Instandhaltung",300,"NULL","NULL",0]
["0-022","Leistung elektrisch [W]","4_a_Leistung elektrisch [W]",290,0,"NULL",0]
["0-022","Material 1","3_c_Material 1",590,"NULL","NULL",0]
["0-022","Montagetermin geplant [Datum]","7_b_Montagetermin geplant [Datum]",590,"NULL","NULL",0]
["0-022","SGK Zuordnung","6_a_SGK Zuordnung",390,"NULL","NULL",0]
["0-022","Temperatur 6 [C]","2_a_Temperatur 6 [C]",290,0,"NULL",0]
["0-022","Typ","3_a_Typ",290,1,"NULL",0]
["0-023","Anlagenummer (BKP-XXX)","1_a_Anlagenummer (BKP-XXX)",100,"NULL","NULL",1]
["0-023","Ausführung 4","3_b_Ausfuehrung 4",300,"NULL","NULL",0]
["0-023","Bezeichnung Elektroschema (BMK)","6_a_Bezeichnung Elektroschema (BMK)",390,"NULL","NULL",0]
["0-023","Datenpunkte MBus","4_c_Datenpunkt MBus",590,"NULL","NULL",0]
["0-023","Differenzdruck 4 [kPa]","2_a_Differenzdruck 4 [kPa]",390,"NULL","NULL",0]
["0-023","Geschoss","5_a_Geschoss",200,"NULL","Modell",0]
["0-023","Klartext Anlage","1_c_Klartext Anlage",100,"NULL","NULL",0]
["0-023","Kommentar technisch","9_a_Kommentar technisch",300,1,"NULL",0]
["0-023","Material 2","3_c_Material 2",590,"NULL","NULL",0]
["0-023","NPK","1_b_NPK",200,1,"NULL",0]
["0-023","Regelungsart","4_a_Regelungsart",390,"NULL","NULL",0]
["0-023","Strom [A]","4_a_Strom [A]",290,0,"NULL",0]
["0-023","URL","3_c_URL",300,"NULL","NULL",0]
["0-024","Abnahmetermin [Datum]","7_a_Abnahmetermin [Datum]",590,"NULL","NULL",0]
["0-024","Anlagenummer (BKP-XXX)","1_a_Anlagenummer (BKP-XXX)",100,"NULL","NULL",1]
["0-024","Datenpunkte DI","4_c_Datenpunkte DI",590,"NULL","NULL",0]
["0-024","Differenzdruck 1 [kPa]","2_a_Differenzdruck 1 [kPa]",290,0,"NULL",0]
["0-024","Freigabe zur Bestellung [Datum]","7_a_Freigabe zur Bestellung [Datum]",400,"NULL","NULL",0]
["0-024","Klartext Anlage funktional","1_c_Klartext Anlage funktional",590,"NULL","NULL",0]
["0-024","Klartext Feldgerät","1_c_Klartext Feldgeraet",100,"NULL","Prinzipschema",1]
["0-024","Material 1","3_c_Material 1",590,"NULL","NULL",0]
["0-024","Mieter","5_c_Mieter",590,"NULL","NULL",0]
["0-024","Relative Feuchte 2 [%]","2_b_Relative Feuchte 2 [%]",490,"NULL","NULL",0]
["0-024","Temperatur 1 [C]","2_a_Temperatur 1 [C]",290,0,"NULL",0]
["0-024","Zust.Unterhalt","8_c_Zust Unterhalt",300,"NULL","NULL",0]
["0-025","Achse X","5_c_Achse X","NULL","NULL","NULL",0]
["0-025","Bezeichnung Elektroschema (BMK)","6_a_Bezeichnung Elektroschema (BMK)",390,"NULL","NULL",0]
["0-025","Datenpunkte VD","4_c_Datenpunkt VD",590,"NULL","NULL",0]
["0-025","e-BKP-H","1_b_e-BKP-H",200,"NULL","NULL",0]
["0-025","Inhalt [l]","2_a_Inhalt [l]",390,"NULL","NULL",0]
["0-025","Laufnummer","0_a_Laufnummer",100,"NULL","NULL",1]
["0-025","Lieferung bauseits","7_a_Lieferung bauseits",300,1,"NULL",0]
["0-025","Medium 2","2_c_Medium 2",390,0,"NULL",1]
["0-025","Phasen","4_b_Phasen",490,"NULL","NULL",0]
["0-025","Spannung [V]","4_a_Spannung [V]",390,"NULL","NULL",1]
["0-025","URL","3_c_URL",300,"NULL","NULL",0]
["0-025","Werkvertrag [Firma/Nummer]","8_c_Werkvertrag [Firma/Nummer]",590,"NULL","NULL",0]
["0-026","Anlagenummer (BKP-XXX)","1_a_Anlagenummer (BKP-XXX)",100,"NULL","NULL",1]
["0-026","Datenpunkte DI","4_c_Datenpunkte DI",590,"NULL","NULL",0]
["0-026","Differenzdruck 1 [kPa]","2_a_Differenzdruck 1 [kPa]",290,0,"NULL",0]
["0-026","Freigabe zur Bestellung [Datum]","7_a_Freigabe zur Bestellung [Datum]",400,"NULL","NULL",0]
["0-026","KelpyOfferteId","3_c_KelpyOfferteId","NULL",1,"NULL",0]
["0-026","Länge (Abmessung 1) [mm]","2_b_Laenge (Abmessung 1) [mm]",200,0,"NULL",0]
["0-026","Material 1","3_c_Material 1",590,"NULL","NULL",0]
["0-026","Relative Feuchte 1 [%]","2_b_Relative Feuchte 1 [%]",490,"NULL","NULL",0]
["0-026","SGK Zuordnung","6_a_SGK Zuordnung",390,"NULL","NULL",0]
["0-026","Temperatur 2 [C]","2_a_Temperatur 2 [C]",290,0,"NULL",0]
["0-026","TypeID Nova dez","0_c_TypeID Nova dez","NULL","NULL","NULL",0]
["0-027","Achse Z","5_c_Achse Z","NULL","NULL","NULL",0]
["0-027","Dimension 4 [DN]","2_a_Dimension 4 [DN]",590,"NULL","NULL",0]
["0-027","Inhalt [l]","2_a_Inhalt [l]",290,0,"NULL",1]
["0-027","Klartext Anlage","1_c_Klartext Anlage",100,"NULL","NULL",0]
["0-027","NPK","1_b_NPK",200,1,"NULL",0]
["0-027","Werkvertrag [Firma/Nummer]","8_c_Werkvertrag [Firma/Nummer]",590,"NULL","NULL",0]
["0-028","Achse Y","5_c_Achse Y","NULL","NULL","NULL",0]
["0-028","Gebäude","5_c_Gebaeude",200,"NULL","NULL",0]
["0-028","Kommentar technisch","9_a_Kommentar technisch",300,1,"NULL",0]
["0-028","Mieter","5_c_Mieter",590,"NULL","NULL",0]
["0-028","URL","3_c_URL",300,"NULL","NULL",0]
["0-029","Artikelnummer","3_c_Artikelnummer",300,"NULL","NULL",0]
["0-029","Fabrikat","3_a_Fabrikat",290,1,"NULL",0]
["0-029","Kommentar technisch","9_a_Kommentar technisch",300,1,"NULL",0]
["0-029","Montagetermin geplant [Datum]","7_b_Montagetermin geplant [Datum]",590,"NULL","NULL",0]
["0-030","Achse Y","5_c_Achse Y","NULL","NULL","NULL",0]
["0-030","Artikelnummer","3_c_Artikelnummer",300,"NULL","Modell",0]
["0-030","Dimension 3 [DN]","2_a_Dimension 3 [DN]",390,"NULL","NULL",0]
["0-030","Gewicht leer [kg]","2_c_Gewicht leer [kg]",390,0,"NULL",1]
["0-030","Lieferung bauseits","7_a_Lieferung bauseits",300,1,"NULL",0]
["0-030","Material Stärke (Abmessung 6) [mm]","2_b_Material Staerke (Abmessung 6) [mm]",490,"NULL","NULL",1]
["0-030","System","3_b_System",200,"NULL","Prinzipschema",0]
["0-032","Anlagenummer Bauherr","1_b_Anlagenummer Bauherr",490,"NULL","NULL",0]
["0-032","Ausführung 3","3_b_Ausfuehrung 3",590,"NULL","NULL",0]
["0-032","Fabrikat (Antrieb)","3_a_Fabrikat (Antrieb)",290,1,"NULL",0]
["0-032","Inhalt [l]","2_a_Inhalt [l]",290,0,"NULL",0]
["0-032","Klartext Feldgerät","1_c_Klartext Feldgeraet",100,"NULL","NULL",1]
["0-032","Raumnummer","5_a_Raumnummer",200,"NULL","NULL",0]
["0-032","Typ","3_a_Typ",290,1,"NULL",0]
["0-033","Artikelnummer","3_c_Artikelnummer",300,"NULL","Modell",0]
["0-033","Dimension 3 [DN]","2_a_Dimension 3 [DN]",590,"NULL","NULL",0]
["0-033","Gewicht Betrieb [kg]","2_b_Gewicht Betrieb [kg]",200,0,"NULL",0]
["0-033","Inhalt [l]","2_a_Inhalt [l]",590,"NULL","NULL",0]
["0-033","Mieter","5_c_Mieter",590,"NULL","NULL",0]
["0-033","Prüfpflicht","8_c_Pruefpflicht",590,"NULL","NULL",0]
["0-033","Volumen 1 [m3]","2_a_Volumen [m3]",290,0,"NULL",1]
["0-034","Ausführung 2","3_b_Ausfuehrung 2",590,"NULL","NULL",0]
["0-034","Ausführung 3","3_b_Ausfuehrung 3",590,"NULL","NULL",0]
["0-034","Klartext Anlage funktional","1_c_Klartext Anlage funktional",590,"NULL","NULL",0]
["0-034","Raumnummer","5_a_Raumnummer",200,"NULL","Modell",0]
["0-034","Typ","3_a_Typ",290,1,"NULL",1]
["0-035","Artikelnummer RMB","0_c_Artikelnummer RMB",100,"NULL","NULL",1]
["0-035","Inhalt Anlage [l]","2_a_Inhalt Anlage [l]",290,1,"NULL",0]
["0-035","Lieferant","3_c_Lieferant",300,"NULL","NULL",0]
["0-035","NPK","1_b_NPK",200,1,"NULL",0]
["0-036","Anlagenstruktur-SAN","1_b_Anlagenstruktur-SAN","NULL","NULL","NULL",0]
["0-036","Ausführung 1","3_b_Ausfuehrung 1",590,"NULL","NULL",0]
["0-036","Durchmesser (Abmessung 4) [mm]","2_b_Durchmesser (Abmessung 4) [mm]",200,"NULL","NULL",0]
["0-036","Inbetriebsetzungstermin [Datum]","7_b_Inbetriebsetzungstermin [Datum]",590,"NULL","NULL",0]
["0-036","Klartext Anlage funktional","1_c_Klartext Anlage funktional",590,"NULL","NULL",0]
["0-036","Mieter","5_c_Mieter",590,"NULL","NULL",0]
["0-036","Positionsnummer","5_c_Positionsnummer","NULL","NULL","Prinzipschema",1]
["0-036","TypeID Nova dez","0_c_TypeID Nova dez","NULL","NULL","NULL",0]
["0-037","Anlagenummer Bauherr","1_b_Anlagenummer Bauherr",490,"NULL","NULL",0]
["0-037","Ausführung 3","3_b_Ausfuehrung 3",590,"NULL","NULL",0]
["0-037","Gebäude","5_c_Gebaeude",200,"NULL","Modell",0]
["0-037","Lieferant","3_c_Lieferant",300,"NULL","NULL",0]
["0-037","NPK","1_b_NPK",200,1,"NULL",0]
["0-037","System","3_b_System",200,"NULL","Prinzipschema",0]
["0-038","Anlagenstruktur-SAN","1_b_Anlagenstruktur-SAN","NULL","NULL","NULL",0]
["0-038","Differenzdruck 1 [kPa]","2_a_Differenzdruck 1 [kPa]",390,"NULL","NULL",0]
["0-038","Fläche 1 [m2]","2_c_Flaeche 1 [m2]",390,0,"NULL",0]
["0-038","KelpyOfferteId","3_c_KelpyOfferteId","NULL",1,"NULL",0]
["0-038","Klartext Anlage","1_c_Klartext Anlage",100,"NULL","NULL",0]
["0-038","max. Temperatur [C]","2_c_max Temperatur [C]",590,"NULL","NULL",0]
["0-038","SIA-Katalog","1_b_SIA-Katalog","NULL","NULL","NULL",0]
["0-038","URL","3_c_URL",300,"NULL","NULL",0]
["0-039","Artikelnummer RMB","0_c_Artikelnummer RMB",100,"NULL","NULL",1]
["0-039","Datenpunkte DO","4_c_Datenpunkte DO",590,"NULL","NULL",0]
["0-039","Dimension 1 [DN]","2_a_Dimension 1 [DN]",390,"NULL","NULL",0]
["0-039","Gebäude","5_c_Gebaeude",200,"NULL","NULL",0]
["0-039","Kommentar technisch","9_a_Kommentar technisch",300,1,"NULL",0]
["0-039","Leistung elektrisch [W]","4_a_Leistung elektrisch [W]",390,"NULL","NULL",0]
["0-039","Montagetermin ist [Datum]","7_b_Montagetermin ist [Datum]",590,"NULL","NULL",0]
["0-039","SIA-Katalog","1_b_SIA-Katalog","NULL","NULL","NULL",0]
["0-039","Typ","3_a_Typ",290,1,"NULL",0]
["0-039","Zust.Unterhalt","8_c_Zust Unterhalt",300,"NULL","NULL",0]
["0-040","Anlage funktional (BKP-XXX)","1_b_Anlage funktional (BKP-XXX)",490,"NULL","NULL",0]
["0-040","Durchmesser (Abmessung 4) [mm]","2_b_Durchmesser (Abmessung 4) [mm]",200,"NULL","NULL",0]
["0-040","Lieferung bauseits","7_a_Lieferung bauseits",300,1,"NULL",0]
["0-040","Mieter","5_c_Mieter",590,"NULL","NULL",0]
["0-040","Typ","3_a_Typ",290,1,"NULL",0]
["0-043","Anschlussart","3_c_Anschlussart",590,"NULL","NULL",0]
["0-043","Ausführung 2","3_b_Ausfuehrung 2",590,"NULL","NULL",0]
["0-043","Durchmesser (Abmessung 4) [mm]","2_b_Durchmesser (Abmessung 4) [mm]",200,"NULL","NULL",1]
["0-043","Inhalt [l]","2_a_Inhalt [l]",290,0,"NULL",1]
["0-043","Länge (Abmessung 1) [mm]","2_b_Laenge (Abmessung 1) [mm]",200,"NULL","NULL",0]
["0-043","Material 1","3_c_Material 1",590,"NULL","NULL",0]
["0-043","NPK","1_b_NPK",200,1,"NULL",0]
["0-043","Schutzart IP","4_c_Schutzart IP",590,"NULL","NULL",0]
["0-043","TypeID Nova dez","0_c_TypeID Nova dez","NULL","NULL","NULL",0]
["0-043","Zust.Unterhalt","8_c_Zust Unterhalt",300,"NULL","NULL",0]
["0-044","Artikelnummer","3_c_Artikelnummer",300,"NULL","Modell",0]
["0-044","Inhalt [l]","2_a_Inhalt [l]",290,0,"NULL",1]
["0-044","Laufnummer","0_a_Laufnummer",100,"NULL","NULL",1]
["0-044","Medium 1","2_c_Medium 1",590,"NULL","NULL",0]
["0-044","Typ","3_a_Typ",290,0,"NULL",1]
["0-045","Anlagenummer (BKP-XXX)","1_a_Anlagenummer (BKP-XXX)",100,"NULL","NULL",1]
["0-045","Ausführung 1","3_b_Ausfuehrung 1",490,"NULL","NULL",1]
["0-045","Gebäude","5_c_Gebaeude",200,"NULL","Modell",0]
["0-045","Laufnummer","0_a_Laufnummer",100,"NULL","NULL",1]
["0-045","Mieter","5_c_Mieter",590,"NULL","NULL",0]
["0-045","System","3_b_System",200,"NULL","Prinzipschema",0]
["0-045","Typ","3_a_Typ",290,0,"NULL",1]
["0-046","Ausführung 1","3_b_Ausfuehrung 1",590,"NULL","NULL",0]
["0-046","Geschoss","5_a_Geschoss",200,"NULL","Modell",0]
["0-046","Inhalt [l]","2_a_Inhalt [l]",290,0,"NULL",0]
["0-046","Lieferant","3_c_Lieferant",300,"NULL","NULL",0]
["0-046","System","3_b_System",200,"NULL","Prinzipschema",0]
["0-046","Werkvertrag [Firma/Nummer]","8_c_Werkvertrag [Firma/Nummer]",590,"NULL","NULL",0]
["0-047","Artikelnummer RMB","0_c_Artikelnummer RMB",100,"NULL","NULL",1]
["0-047","Geschoss","5_a_Geschoss",200,"NULL","Modell",0]
["0-047","Inbetriebsetzungstermin [Datum]","7_b_Inbetriebsetzungstermin [Datum]",590,"NULL","NULL",0]
["0-047","Leistung 2 (hyd) [kW]","2_a_Leistung 2 (hyd) [kW]",590,"NULL","NULL",0]
["0-047","NPK","1_b_NPK",200,1,"NULL",0]
["0-047","Positionsnummer","5_c_Positionsnummer","NULL","NULL","Prinzipschema",1]
["0-048","Achse X","5_c_Achse X","NULL","NULL","NULL",0]
["0-048","Anlagenummer (BKP-XXX)","1_a_Anlagenummer (BKP-XXX)",100,"NULL","NULL",1]
["0-048","Ende Garantiefrist [Datum]","8_b_Ende Garantiefrist [Datum]",590,"NULL","NULL",0]
["0-048","Kommentar technisch","9_a_Kommentar technisch",300,1,"NULL",0]
["0-048","Positionsnummer","5_c_Positionsnummer","NULL","NULL","Prinzipschema",1]
["0-048","System","3_b_System",200,"NULL","Prinzipschema",0]
["0-049","Anzahl [Stk]","3_b_Anzahl [Stk]",290,0,"NULL",1]
["0-049","Datenpunkte DO","4_c_Datenpunkte DO",390,"NULL","NULL",0]
["0-049","Dimension 1 [DN]","2_a_Dimension 1 [DN]",290,1,"NULL",0]
["0-049","Integration Kommunikation","4_c_Integration Kommunikation",390,"NULL","NULL",0]
["0-049","Lieferant","3_c_Lieferant",300,"NULL","NULL",0]
["0-049","Material 3","3_c_Material 3",290,"NULL","NULL",1]
["0-049","Servicevertrag [Firma]","8_b_Servicevertrag [Firma]",590,"NULL","NULL",0]
["0-049","System","3_b_System",200,"NULL","Prinzipschema",0]
["0-050","Anlage funktional (BKP-XXX)","1_b_Anlage funktional (BKP-XXX)",490,"NULL","NULL",0]
["0-050","Datenpunkte AI","4_c_Datenpunkte AI",590,"NULL","NULL",0]
["0-050","Datenpunkte VA","4_c_Datenpunkt VA",590,"NULL","NULL",0]
["0-050","Geschoss","5_a_Geschoss",200,"NULL","Modell",0]
["0-050","Kommentar technisch","9_a_Kommentar technisch",300,1,"NULL",0]
["0-050","Lieferung bauseits","7_a_Lieferung bauseits",300,1,"NULL",0]
["0-050","Positionsnummer","5_c_Positionsnummer","NULL","NULL","Prinzipschema",1]
["0-050","Typ","3_a_Typ",290,0,"NULL",1]
["0-050","Wartungsintervall [Betriebsstunden]","8_c_Wartungsintervall [Betriebsstunden]",590,"NULL","NULL",0]
["0-051","Anlage funktional (BKP-XXX)","1_b_Anlage funktional (BKP-XXX)",490,"NULL","NULL",0]
["0-051","Freigabe zur Bestellung [Datum]","7_a_Freigabe zur Bestellung [Datum]",400,"NULL","NULL",0]
["0-051","Gebäude","5_c_Gebaeude",200,"NULL","Modell",0]
["0-051","Länge (Abmessung 1) [mm]","2_b_Laenge (Abmessung 1) [mm]",200,"NULL","NULL",1]
["0-051","NPK","1_b_NPK",200,1,"NULL",0]
["0-051","Raumnummer","5_a_Raumnummer",200,"NULL","Modell",0]
["0-052","Achse X","5_c_Achse X","NULL","NULL","NULL",0]
["0-052","Anlagenummer (BKP-XXX)","1_a_Anlagenummer (BKP-XXX)",100,"NULL","NULL",1]
["0-052","Datenpunkte DI","4_c_Datenpunkte DI",390,"NULL","NULL",0]
["0-052","Freigabe zur Bestellung [Datum]","7_a_Freigabe zur Bestellung [Datum]",400,"NULL","NULL",0]
["0-052","Klartext Feldgerät Nachtext","1_c_Klartext Feldgeraet Nachtext",590,"NULL","NULL",0]
["0-052","Leistung elektrisch [W]","4_a_Leistung elektrisch [W]",390,"NULL","NULL",0]
["0-052","Raumnummer","5_a_Raumnummer",200,"NULL","Modell",0]
["0-052","SIA-Katalog","1_b_SIA-Katalog","NULL","NULL","NULL",0]
["0-052","TypeID Nova dez","0_c_TypeID Nova dez","NULL","NULL","NULL",0]
["0-053","Anlage funktional (BKP-XXX)","1_b_Anlage funktional (BKP-XXX)",490,"NULL","NULL",0]
["0-053","Artikelnummer RMB","0_c_Artikelnummer RMB",100,"NULL","NULL",1]
["0-053","Inhalt [l]","2_a_Inhalt [l]",590,"NULL","NULL",0]
["0-053","Klartext Raum","5_c_Klartext Raum",200,"NULL","Modell",0]
["0-053","Mieter","5_c_Mieter",590,"NULL","NULL",0]
["0-053","Werkvertrag [Firma/Nummer]","8_c_Werkvertrag [Firma/Nummer]",590,"NULL","NULL",0]
["0-054","Durchmesser isoliert (Abmessung 5) [mm]","2_b_Durchmesser isoliert (Abmessung 5) [mm]",490,"NULL","NULL",0]
["0-054","Freigabe zur Bestellung [Datum]","7_a_Freigabe zur Bestellung [Datum]",400,"NULL","NULL",0]
["0-054","Lieferung bauseits","7_a_Lieferung bauseits",300,1,"NULL",0]
["0-055","Achse Z","5_c_Achse Z","NULL","NULL","NULL",0]
["0-055","Anschlussart","3_c_Anschlussart",590,"NULL","NULL",0]
["0-055","Dimension 2 [DN]","2_a_Dimension 2 [DN]",390,"NULL","NULL",0]
["0-055","Gewicht leer [kg]","2_c_Gewicht leer [kg]",390,"NULL","NULL",0]
["0-055","Klartext Feldgerät","1_c_Klartext Feldgeraet",100,"NULL","Strangschema",1]
["0-055","Medium 1","2_c_Medium 1",590,"NULL","NULL",0]
["0-055","Nenndruck PN [bar]","2_b_Nenndruck PN [bar]",290,"NULL","NULL",0]
["0-101","Abnahmetermin [Datum]","7_a_Abnahmetermin [Datum]",390,"NULL","NULL",0]
["0-101","Ausführung 1","3_b_Ausfuehrung 1",490,1,"NULL",0]
["0-101","Ausführung 6","3_b_Ausfuehrung 6",290,"NULL","NULL",0]
["0-101","Datenpunkte VA","4_c_Datenpunkt VA",390,"NULL","NULL",0]
["0-101","Geschoss","5_a_Geschoss",200,"NULL","Modell",0]
["0-101","Integration Kommunikation","4_c_Integration Kommunikation",390,"NULL","NULL",0]
["0-101","Laufnummer","0_a_Laufnummer",100,"NULL","NULL",1]
["0-101","Schallleistungspegel [dB]","2_b_Schallleistungspegel [dB]",290,"NULL","NULL",0]
["0-101","TypeID Nova dez","0_c_TypeID Nova dez","NULL","NULL","NULL",0]
["0-101","Volumenstrom 4 [m3/h]","2_a_Volumenstrom 4 [m3/h]",290,0,"NULL",0]
["0-102","Datenpunkte AO","4_c_Datenpunkte AO",390,"NULL","NULL",0]
["0-102","Datenpunkte VD","4_c_Datenpunkt VD",390,"NULL","NULL",0]
["0-102","Gewicht Betrieb [kg]","2_b_Gewicht Betrieb [kg]",490,"NULL","NULL",0]
["0-102","Leistung elektrisch [W]","4_a_Leistung elektrisch [W]",290,0,"NULL",0]
["0-102","Schallleistungspegel [dB]","2_b_Schallleistungspegel [dB]",290,0,"NULL",0]
["0-102","Typ","3_a_Typ",290,1,"NULL",0]
["0-103","Ausführung 1","3_b_Ausfuehrung 1","NULL",1,"NULL",0]
["0-103","Fabrikat","3_a_Fabrikat",290,1,"NULL",0]
["0-103","Klartext Raum","5_c_Klartext Raum",200,"NULL","Modell",0]
["0-103","NPK","1_b_NPK",200,1,"NULL",0]
["0-103","Temperatur 4 [C]","2_a_Temperatur 4 [C]",290,1,"NULL",0]
["0-104","Anlagenstruktur-SAN","1_b_Anlagenstruktur-SAN","NULL","NULL","NULL",0]
["0-104","Höhe (Abmessung 3) [mm]","2_b_Hoehe (Abmessung 3) [mm]",490,"NULL","Modell",0]
["0-104","Instandhaltung","8_b_Instandhaltung",300,"NULL","NULL",0]
["0-104","Positionsnummer","5_c_Positionsnummer","NULL","NULL","Prinzipschema",1]
["0-104","TypeID Nova dez","0_c_TypeID Nova dez","NULL","NULL","NULL",0]
["0-105","e-BKP-H","1_b_e-BKP-H",200,"NULL","NULL",0]
["0-105","Laufnummer","0_a_Laufnummer",100,"NULL","NULL",1]
["0-105","Nenndruck PN [bar]","2_b_Nenndruck PN [bar]",290,0,"NULL",0]
["0-105","System","3_b_System",200,"NULL","Modell",0]
["0-106","Anlagenummer (BKP-XXX)","1_a_Anlagenummer (BKP-XXX)",100,"NULL","NULL",1]
["0-106","Differenzdruck 5 [Pa]","2_a_Differenzdruck 5 [Pa]",290,0,"NULL",0]
["0-106","Länge (Abmessung 1) [mm]","2_b_Laenge (Abmessung 1) [mm]",290,0,"Modell",0]
["0-106","Nenndruck PN [bar]","2_b_Nenndruck PN [bar]",290,0,"NULL",0]
["0-106","Temperatur 5 [C]","2_a_Temperatur 5 [C]",290,"NULL","NULL",0]
["0-106","TypeID Nova dez","0_c_TypeID Nova dez","NULL","NULL","NULL",0]
["0-107","Gesamtwirkungsgrad Vollast","3_c_Gesamtwirkungsgrad Vollast",390,0,"NULL",0]
["0-107","Höhe (Abmessung 3) [mm]","2_b_Hoehe (Abmessung 3) [mm]",490,"NULL","Modell",0]
["0-107","Lieferung bauseits","7_a_Lieferung bauseits",300,1,"NULL",0]
["0-107","SIA-Katalog","1_b_SIA-Katalog","NULL","NULL","NULL",0]
["0-107","Temperatur 4 [C]","2_a_Temperatur 4 [C]",290,0,"NULL",0]
["0-108","Breite (Abmessung 2) [mm]","2_b_Breite (Abmessung 2) [mm]",490,"NULL","Modell",0]
["0-108","Klartext Raum","5_c_Klartext Raum",200,"NULL","Modell",0]
["0-108","Lieferung bauseits","7_a_Lieferung bauseits",300,1,"NULL",0]
["0-109","Anlagenummer (BKP-XXX)","1_a_Anlagenummer (BKP-XXX)",100,"NULL","NULL",1]
["0-109","KelpyOfferteId","3_c_KelpyOfferteId","NULL",1,"NULL",0]
["0-109","Lieferant","3_c_Lieferant",300,"NULL","NULL",0]
["0-109","Typ","3_a_Typ",290,0,"NULL",0]
["0-110","Höhe (Abmessung 3) [mm]","2_b_Hoehe (Abmessung 3) [mm]",490,"NULL","Modell",0]
["0-110","Klartext Raum","5_c_Klartext Raum",200,"NULL","Modell",0]
["0-110","Typ","3_a_Typ",290,0,"NULL",0]
["0-111","Artikelnummer RMB","0_c_Artikelnummer RMB",100,"NULL","NULL",1]
["0-111","Instandhaltung","8_b_Instandhaltung",300,"NULL","NULL",0]
["0-111","Typ","3_a_Typ",290,0,"NULL",0]
["0-112","Anlagenummer (BKP-XXX)","1_a_Anlagenummer (BKP-XXX)",100,"NULL","NULL",1]
["0-112","Höhe (Abmessung 3) [mm]","2_b_Hoehe (Abmessung 3) [mm]",490,"NULL","NULL",0]
["0-112","Lieferung bauseits","7_a_Lieferung bauseits",300,1,"NULL",0]
["0-112","Raumnummer","5_a_Raumnummer",200,"NULL","Modell",0]
["0-112","Temperatur 5 [C]","2_a_Temperatur 5 [C]",290,1,"NULL",0]
["0-113","Artikelnummer RMB","0_c_Artikelnummer RMB",100,"NULL","NULL",1]
["0-113","Differenzdruck 5 [Pa]","2_a_Differenzdruck 5 [Pa]",290,0,"NULL",0]
["0-113","Kommentar technisch","9_a_Kommentar technisch",300,1,"NULL",0]
["0-113","Steuersignal","4_a_Steuersignal",290,0,"NULL",0]
["0-113","Strom [A]","4_a_Strom [A]",290,0,"NULL",0]
["0-114","Dämmstärke [mm]","0_c_CAD Daemmstaerke [mm]",390,"NULL","Modell",0]
["0-114","Durchmesser (Abmessung 4) [mm]","2_b_Durchmesser (Abmessung 4) [mm]",290,1,"Modell",0]
["0-114","Klartext Feldgerät","1_c_Klartext Feldgeraet",100,"NULL","Modell",1]
["0-402","Abnahmetermin [Datum]","7_a_Abnahmetermin [Datum]",590,"NULL","NULL",0]
["0-402","Artikelnummer RMB","0_c_Artikelnummer RMB",100,"NULL","NULL",1]
["0-402","Dimension 1 [DN]","2_a_Dimension 1 [DN]",290,0,"NULL",0]
["0-402","Geschwindigkeit 2 [m/s]","2_c_Geschwindigkeit 2 [m/s]",590,"NULL","NULL",0]
["0-402","Klartext Feldgerät Nachtext","1_c_Klartext Feldgeraet Nachtext",590,"NULL","NULL",0]
["0-402","Leistung 1 (hyd) [kW]","2_a_Leistung 1 (hyd) [kW]",290,0,"NULL",0]
["0-402","Montagetermin ist [Datum]","7_b_Montagetermin ist [Datum]",590,"NULL","NULL",0]
["0-402","Typ","3_a_Typ",290,1,"NULL",0]
["0-402","Wartungsintervall [Betriebsstunden]","8_c_Wartungsintervall [Betriebsstunden]",590,"NULL","NULL",0]
["0-403","Anlagenummer Bauherr","1_b_Anlagenummer Bauherr",490,"NULL","NULL",0]
["0-403","Ausführung 1","3_b_Ausfuehrung 1",490,0,"NULL",0]
["0-403","Inbetriebsetzungstermin [Datum]","7_b_Inbetriebsetzungstermin [Datum]",490,"NULL","NULL",0]
["0-403","Kommentar technisch","9_a_Kommentar technisch",300,1,"NULL",0]
["0-403","Massenstrom 1 [kg/h]","2_a_Massenstrom 1 [kg/h]",390,"NULL","NULL",0]
["0-403","Montagetermin geplant [Datum]","7_b_Montagetermin geplant [Datum]",490,"NULL","NULL",0]
["0-403","URL","3_c_URL",300,"NULL","NULL",0]
["0-403","Werkvertrag [Firma/Nummer]","8_c_Werkvertrag [Firma/Nummer]",590,"NULL","NULL",0]
["0-404","Anlage funktional (BKP-XXX)","1_b_Anlage funktional (BKP-XXX)",490,"NULL","NULL",0]
["0-404","Datenpunkte AO","4_c_Datenpunkte AO",590,"NULL","NULL",0]
["0-404","Datenpunkte VD","4_c_Datenpunkt VD",590,"NULL","NULL",0]
["0-404","Fabrikat","3_a_Fabrikat",390,1,"NULL",0]
["0-404","Klartext Anlage funktional","1_c_Klartext Anlage funktional",590,"NULL","NULL",0]
["0-404","Klartext Feldgerät","1_c_Klartext Feldgeraet",100,"NULL","Prinzipschema",1]
["0-404","Medium 1","2_c_Medium 1",590,"NULL","NULL",0]
["0-404","Montagetermin geplant [Datum]","7_b_Montagetermin geplant [Datum]",490,"NULL","NULL",0]
["0-404","RMB Zlr Nr.","8_a_RMB Zlr Nr",390,"NULL","NULL",0]
["0-404","TypeID Nova dez","0_c_TypeID Nova dez","NULL","NULL","NULL",0]
["0-405","Adapter","3_c_Adapter",590,"NULL","NULL",0]
["0-405","Anschlussart","3_c_Anschlussart",590,"NULL","NULL",0]
["0-405","Fabrikat","3_a_Fabrikat",390,1,"NULL",0]
["0-405","KelpyOfferteId","3_c_KelpyOfferteId","NULL",1,"NULL",0]
["0-405","Klartext Raum","5_c_Klartext Raum",200,"NULL","Modell",0]
["0-405","Nenndruck PN [bar]","2_b_Nenndruck PN [bar]",490,"NULL","NULL",0]
["0-405","Temperatur 2 [C]","2_a_Temperatur 2 [C]",390,"NULL","NULL",0]
["0-405","Wartungsintervall [Betriebsstunden]","8_c_Wartungsintervall [Betriebsstunden]",590,"NULL","NULL",0]
["0-406","Anlagenummer (BKP-XXX)","1_a_Anlagenummer (BKP-XXX)",100,"NULL","NULL",1]
["0-406","Ausführung 1","3_b_Ausfuehrung 1",590,"NULL","NULL",0]
["0-406","e-BKP-H","1_b_e-BKP-H",200,0,"NULL",0]
["0-406","Gewicht leer [kg]","2_c_Gewicht leer [kg]",590,"NULL","NULL",0]
["0-406","KelpyOfferteId","3_c_KelpyOfferteId","NULL",1,"NULL",0]
["0-406","Leistung elektrisch [W]","4_a_Leistung elektrisch [W]",390,"NULL","NULL",0]
["0-406","Positionsnummer","5_c_Positionsnummer","NULL","NULL","Prinzipschema",1]
["0-406","Servicevertrag [Nummer]","8_a_Servicevertrag [Nummer]",590,"NULL","NULL",0]
["0-406","Temperatur 1 [C]","2_a_Temperatur 1 [C]",390,"NULL","NULL",0]
["0-407","Anlagenstruktur-SAN","1_b_Anlagenstruktur-SAN","NULL","NULL","NULL",0]
["0-407","Anzahl [Stk]","3_b_Anzahl [Stk]",490,"NULL","NULL",0]
["0-407","Datenpunkte MBus","4_c_Datenpunkt MBus",590,"NULL","NULL",0]
["0-407","Geschoss","5_a_Geschoss",200,"NULL","Modell",0]
["0-407","Gewicht Betrieb [kg]","2_b_Gewicht Betrieb [kg]",200,"NULL","NULL",0]
["0-407","Laufnummer","0_a_Laufnummer",100,"NULL","NULL",1]
["0-407","Lieferung bauseits","7_a_Lieferung bauseits",300,1,"NULL",0]
["0-407","Montagetermin geplant [Datum]","7_b_Montagetermin geplant [Datum]",490,"NULL","NULL",0]
["0-407","Schutzart IP","4_c_Schutzart IP",590,"NULL","NULL",0]
["0-407","Spannung [V]","4_a_Spannung [V]",390,"NULL","NULL",0]
["0-407","Wartungsintervall [Betriebsstunden]","8_c_Wartungsintervall [Betriebsstunden]",590,"NULL","NULL",0]
["0-408","Anschlussart","3_c_Anschlussart",590,"NULL","NULL",0]
["0-408","Datenpunkte AO","4_c_Datenpunkte AO",590,"NULL","NULL",0]
["0-408","Differenzdruck 1 [kPa]","2_a_Differenzdruck 1 [kPa]",290,"NULL","NULL",0]
["0-408","Höhe (Abmessung 3) [mm]","2_b_Hoehe (Abmessung 3) [mm]",200,"NULL","NULL",0]
["0-408","Länge (Abmessung 1) [mm]","2_b_Laenge (Abmessung 1) [mm]",200,"NULL","NULL",0]
["0-408","Lieferung bauseits","7_a_Lieferung bauseits",300,1,"NULL",0]
["0-408","Montagetermin geplant [Datum]","7_b_Montagetermin geplant [Datum]",590,"NULL","NULL",0]
["0-408","Regelungsart","4_a_Regelungsart",390,"NULL","NULL",0]
["0-408","Typ (Antrieb)","3_a_Typ (Antrieb)",290,"NULL","NULL",0]
["0-409","Anlage funktional (BKP-XXX)","1_b_Anlage funktional (BKP-XXX)",490,"NULL","NULL",0]
["0-409","Artikelnummer","3_c_Artikelnummer",300,"NULL","Modell",0]
["0-409","Datenpunkte VA","4_c_Datenpunkt VA",590,"NULL","NULL",0]
["0-409","Freigabe zur Bestellung [Datum]","7_a_Freigabe zur Bestellung [Datum]",400,"NULL","NULL",0]
["0-409","Höhe (Abmessung 3) [mm]","2_b_Hoehe (Abmessung 3) [mm]",200,0,"NULL",0]
["0-409","Kommentar technisch","9_a_Kommentar technisch",300,1,"NULL",0]
["0-409","Mieter","5_c_Mieter",590,"NULL","NULL",0]
["0-409","Phasen","4_b_Phasen",290,"NULL","NULL",0]
["0-409","Steuersignal","4_a_Steuersignal",290,"NULL","NULL",0]
["0-420","Achse Y","5_c_Achse Y","NULL","NULL","NULL",0]
["0-420","Achse Z","5_c_Achse Z","NULL","NULL","NULL",0]
["0-420","Breite (Abmessung 2) [mm]","2_b_Breite (Abmessung 2) [mm]",200,"NULL","NULL",0]
["0-420","Gebäude","5_c_Gebaeude",200,"NULL","NULL",0]
["0-420","Länge (Abmessung 1) [mm]","2_b_Laenge (Abmessung 1) [mm]",200,"NULL","NULL",0]
["0-420","Raumnummer","5_a_Raumnummer",200,"NULL","Modell",0]
["0-420","Wartungsintervall [Betriebsstunden]","8_c_Wartungsintervall [Betriebsstunden]",590,"NULL","NULL",0]
["0-420","Zust.Unterhalt","8_c_Zust Unterhalt",300,"NULL","NULL",0]
["0-421","Differenzdruck 1 [kPa]","2_a_Differenzdruck 1 [kPa]",390,"NULL","NULL",0]
["0-421","Gewicht leer [kg]","2_c_Gewicht leer [kg]",590,"NULL","NULL",0]
["0-421","Klartext Anlage funktional","1_c_Klartext Anlage funktional",590,"NULL","NULL",0]
["0-421","Material 2","3_c_Material 2",590,"NULL","NULL",0]
["0-421","System","3_b_System",200,"NULL","Prinzipschema",0]
["0-421","Werkvertrag [Firma/Nummer]","8_c_Werkvertrag [Firma/Nummer]",590,"NULL","NULL",0]
["0-422","Dimension 1 [DN]","2_a_Dimension 1 [DN]",290,0,"NULL",0]
["0-422","Freigabe zur Bestellung [Datum]","7_a_Freigabe zur Bestellung [Datum]",400,"NULL","NULL",0]
["0-422","Klartext Anlage","1_c_Klartext Anlage",100,"NULL","NULL",0]
["0-422","Material 1","3_c_Material 1",390,0,"NULL",0]
["0-422","min. Temperatur [C]","2_c_min Temperatur [C]",590,"NULL","NULL",0]
["0-422","Werkvertrag [Firma/Nummer]","8_c_Werkvertrag [Firma/Nummer]",590,"NULL","NULL",0]
["0-425","Anlagenstruktur-SAN","1_b_Anlagenstruktur-SAN","NULL","NULL","NULL",0]
["0-425","Differenzdruck 1 [kPa]","2_a_Differenzdruck 1 [kPa]",390,"NULL","NULL",0]
["0-425","Inbetriebsetzungstermin [Datum]","7_b_Inbetriebsetzungstermin [Datum]",590,"NULL","NULL",0]
["0-425","max. Temperatur [C]","2_c_max Temperatur [C]",590,"NULL","NULL",0]
["0-425","Mieter","5_c_Mieter",590,"NULL","NULL",0]
["0-425","Typ","3_a_Typ",290,1,"NULL",0]
["0-426","KelpyOfferteId","3_c_KelpyOfferteId","NULL",1,"NULL",0]
["0-426","Laufnummer","0_a_Laufnummer",100,"NULL","NULL",1]
["0-436","(Abmessung 8) [m]","2_b_(Abmessung 8) [m]",100,"NULL","NULL",0]
["0-436","Bezeichnung GA (AKS)","6_c_Bezeichnung GA (AKS)",590,"NULL","NULL",0]
["0-436","Datenpunkte MBus","4_c_Datenpunkt MBus",390,"NULL","NULL",0]
["0-436","Klartext Feldgerät","1_c_Klartext Feldgeraet",100,"NULL","Prinzipschema",1]
["0-436","Leistung elektrisch [W]","4_a_Leistung elektrisch [W]",390,"NULL","NULL",0]
["0-436","Spannung [V]","4_a_Spannung [V]",390,"NULL","NULL",0]
["0-438","Abnahmetermin [Datum]","7_a_Abnahmetermin [Datum]",390,"NULL","NULL",0]
["0-438","e-BKP-H","1_b_e-BKP-H",200,0,"NULL",0]
["0-438","Klartext Feldgerät Nachtext","1_c_Klartext Feldgeraet Nachtext",590,"NULL","NULL",0]
["0-438","Status","5_b_Status",490,"NULL","NULL",0]
["0-438","URL","3_c_URL",300,"NULL","NULL",0]
["0-439","Bezeichnung Elektroschema (BMK)","6_a_Bezeichnung Elektroschema (BMK)",390,"NULL","NULL",0]
["0-439","Kommentar technisch","9_a_Kommentar technisch",300,1,"NULL",0]
["0-439","Laufnummer","0_a_Laufnummer",100,"NULL","NULL",1]
["0-439","System","3_b_System",200,"NULL","NULL",0]
["0-450","CAD Dämmung","0_c_CAD Daemmung","NULL","NULL","NULL",0]
["0-450","Dämmstärke [mm]","0_c_CAD Daemmstaerke [mm]","NULL","NULL","NULL",0]
["0-450","Laufnummer","0_a_Laufnummer",100,"NULL","NULL",1]
["0-450","TypeID Nova dez","0_c_TypeID Nova dez","NULL","NULL","NULL",0]
["0-451","Artikelnummer RMB","0_c_Artikelnummer RMB",100,"NULL","NULL",1]
["0-451","Gebäude","5_c_Gebaeude",200,"NULL","NULL",0]
["0-451","Lieferung bauseits","7_a_Lieferung bauseits",300,1,"NULL",0]
["0-451","Positionsnummer","5_c_Positionsnummer","NULL","NULL","Prinzipschema",1]
["0-452","Anlagenummer Bauherr","1_b_Anlagenummer Bauherr",490,"NULL","NULL",0]
["0-452","Dimension 2 [DN]","2_a_Dimension 2 [DN]",390,"NULL","NULL",0]
["0-452","Klartext Raum","5_c_Klartext Raum",200,"NULL","Modell",0]
["0-452","SIA-Katalog","1_b_SIA-Katalog","NULL","NULL","NULL",0]
["0-453","Abfluss [l/s]","2_a_Abfluss [l/s]",390,"NULL","NULL",0]
["0-453","Fabrikat","3_a_Fabrikat",290,1,"NULL",0]
["0-453","Klartext Raum","5_c_Klartext Raum",200,"NULL","Modell",0]
["0-453","Lieferung bauseits","7_a_Lieferung bauseits",300,1,"NULL",0]
["0-453","URL","3_c_URL",300,"NULL","NULL",0]
["0-454","e-BKP-H","1_b_e-BKP-H",200,0,"NULL",0]
["0-454","Klartext Anlage","1_c_Klartext Anlage",100,"NULL","NULL",0]
["0-454","Laufnummer","0_a_Laufnummer",100,"NULL","NULL",1]
["0-460","Abnahmetermin [Datum]","7_a_Abnahmetermin [Datum]",390,"NULL","NULL",0]
["0-460","Artikelnummer","3_c_Artikelnummer",300,"NULL","Modell",0]
["0-460","Dimension 4 [DN]","2_a_Dimension 4 [DN]",390,"NULL","NULL",0]
["0-460","Inhalt [l]","2_a_Inhalt [l]",390,0,"NULL",0]
["0-460","Instandhaltung","8_b_Instandhaltung",300,"NULL","NULL",0]
["0-460","Massenstrom 4 [kg/h]","2_a_Massenstrom 4 [kg/h]",390,"NULL","NULL",0]
["0-460","Medium 1","2_c_Medium 1",590,"NULL","NULL",0]
["0-460","SIA-Katalog","1_b_SIA-Katalog","NULL","NULL","NULL",0]
["0-461","Achse Y","5_c_Achse Y","NULL","NULL","NULL",0]
["0-461","Ausführung 1","3_b_Ausfuehrung 1",490,"NULL","NULL",0]
["0-461","Ausführung 6","3_b_Ausfuehrung 6",490,"NULL","NULL",0]
["0-461","Gebäude","5_c_Gebaeude",200,"NULL","NULL",0]
["0-461","Klartext Raum","5_c_Klartext Raum",200,"NULL","Modell",0]
["0-461","Lieferant","3_c_Lieferant",300,"NULL","NULL",0]
["0-461","Medium 1","2_c_Medium 1",590,"NULL","NULL",0]
["0-461","RMB Zlr Nr.","8_a_RMB Zlr Nr",390,"NULL","NULL",0]
["0-461","Typ","3_a_Typ",390,1,"NULL",0]
["0-461","Zust.Unterhalt","8_c_Zust Unterhalt",300,"NULL","NULL",0]
["0-462","Achse X","5_c_Achse X","NULL","NULL","NULL",0]
["0-462","Ausführung 6","3_b_Ausfuehrung 6",490,"NULL","NULL",0]
["0-462","Ende Garantiefrist [Datum]","8_b_Ende Garantiefrist [Datum]",490,"NULL","NULL",0]
["0-462","Gewicht Betrieb [kg]","2_b_Gewicht Betrieb [kg]",200,"NULL","NULL",0]
["0-462","Klartext Raum","5_c_Klartext Raum",200,"NULL","Modell",0]
["0-462","Medium 1","2_c_Medium 1",590,"NULL","NULL",0]
["0-462","min. Temperatur [C]","2_c_min Temperatur [C]",590,"NULL","NULL",0]
["0-462","Servicevertrag [Nummer]","8_a_Servicevertrag [Nummer]",390,"NULL","NULL",0]
["0-462","Werkvertrag [Firma/Nummer]","8_c_Werkvertrag [Firma/Nummer]",590,"NULL","NULL",0]
["0-463","Achse Z","5_c_Achse Z","NULL","NULL","NULL",0]
["0-463","Breite (Abmessung 2) [mm]","2_b_Breite (Abmessung 2) [mm]",200,"NULL","NULL",0]
["0-463","Geschoss","5_a_Geschoss",200,"NULL","Modell",0]
["0-463","Gewicht Betrieb [kg]","2_b_Gewicht Betrieb [kg]",200,"NULL","NULL",0]
["0-463","Länge (Abmessung 1) [mm]","2_b_Laenge (Abmessung 1) [mm]",200,"NULL","NULL",0]
["0-463","Massenstrom 2 [kg/h]","2_a_Massenstrom 2 [kg/h]",390,"NULL","NULL",0]
["0-463","Medium 4","2_c_Medium 4",590,"NULL","NULL",0]
["0-463","System","3_b_System",200,"NULL","Prinzipschema",0]
["0-463","Volumenstrom 2 [m3/h]","2_a_Volumenstrom 2 [m3/h]",390,"NULL","NULL",0]
["0-465","Abnahmetermin [Datum]","7_a_Abnahmetermin [Datum]",390,"NULL","NULL",0]
["0-465","Breite (Abmessung 2) [mm]","2_b_Breite (Abmessung 2) [mm]",200,"NULL","NULL",0]
["0-465","Geschoss","5_a_Geschoss",200,"NULL","Modell",0]
["0-465","Instandhaltung","8_b_Instandhaltung",300,"NULL","NULL",0]
["0-465","Material 1","3_c_Material 1",590,0,"NULL",0]
["0-465","Nenndruck PN [bar]","2_b_Nenndruck PN [bar]",490,"NULL","NULL",0]
["0-465","RMB Zlr Nr.","8_a_RMB Zlr Nr",390,"NULL","NULL",0]
["0-465","Werkvertrag [Firma/Nummer]","8_c_Werkvertrag [Firma/Nummer]",590,"NULL","NULL",0]
["0-488","Anlagenummer (BKP-XXX)","1_a_Anlagenummer (BKP-XXX)","NULL","NULL","NULL",1]
["0-489","Anlage funktional (BKP-XXX)","1_b_Anlage funktional (BKP-XXX)",490,"NULL","NULL",0]
["0-489","Freigabe zur Bestellung [Datum]","7_a_Freigabe zur Bestellung [Datum]",400,"NULL","NULL",0]
["0-489","Klartext Anlage","1_c_Klartext Anlage",100,"NULL","NULL",0]
["0-489","Medium 1","2_c_Medium 1",200,"NULL","NULL",0]
["0-490","Anlagenummer (BKP-XXX)","1_a_Anlagenummer (BKP-XXX)",100,"NULL","NULL",1]
["0-490","Ausführung 2","3_b_Ausfuehrung 2",590,"NULL","NULL",0]
["0-490","Gebäude","5_c_Gebaeude",200,"NULL","NULL",0]
["0-490","Lieferung bauseits","7_a_Lieferung bauseits",300,1,"NULL",0]
["0-490","Montagetermin geplant [Datum]","7_b_Montagetermin geplant [Datum]",590,"NULL","NULL",0]
["0-490","URL","3_c_URL",300,"NULL","NULL",0]
["0-491","Klartext Feldgerät","1_c_Klartext Feldgeraet",100,"NULL","NULL",1]
["0-491","Klartext Raum","5_c_Klartext Raum",200,"NULL","NULL",0]
["0-492","Artikelnummer","3_c_Artikelnummer",300,"NULL","NULL",0]
["0-492","Freigabe zur Bestellung [Datum]","7_a_Freigabe zur Bestellung [Datum]",400,"NULL","NULL",0]
["0-492","NPK","1_b_NPK",200,1,"NULL",0]
["0-500","Anzahl [Stk]","3_b_Anzahl [Stk]",490,"NULL","NULL",0]
["0-500","Ausführung 3","3_b_Ausfuehrung 3",490,"NULL","NULL",0]
["0-500","Gewicht leer [kg]","2_c_Gewicht leer [kg]",590,"NULL","NULL",0]
["0-500","Material 2","3_c_Material 2",590,"NULL","NULL",0]
["0-500","Servicevertrag [Nummer]","8_a_Servicevertrag [Nummer]",390,"NULL","NULL",0]
["0-500","URL","3_c_URL",300,"NULL","NULL",0]
["0-501","Ausführung 3","3_b_Ausfuehrung 3",490,"NULL","NULL",0]
["0-501","Instandhaltung","8_b_Instandhaltung",300,"NULL","NULL",0]
["0-501","Klartext Feldgerät Nachtext","1_c_Klartext Feldgeraet Nachtext",200,"NULL","NULL",0]
["0-501","Montagetermin ist [Datum]","7_b_Montagetermin ist [Datum]",490,"NULL","NULL",0]
["0-501","RMB Zlr Nr.","8_a_RMB Zlr Nr",390,"NULL","NULL",0]
["0-502","Achse Z","5_c_Achse Z","NULL","NULL","NULL",0]
["0-502","Ende Garantiefrist [Datum]","8_b_Ende Garantiefrist [Datum]",490,"NULL","NULL",0]
["0-502","Gewicht leer [kg]","2_c_Gewicht leer [kg]",590,"NULL","NULL",0]
["0-502","Material 1","3_c_Material 1",590,"NULL","NULL",0]
["0-502","RMB Zlr Nr.","8_a_RMB Zlr Nr",390,"NULL","NULL",0]
["0-502","TypeID Nova dez","0_c_TypeID Nova dez","NULL","NULL","NULL",0]
["0-503","Anzahl [Stk]","3_b_Anzahl [Stk]",490,"NULL","NULL",0]
["0-503","Instandhaltung","8_b_Instandhaltung",300,"NULL","NULL",0]
["0-503","Klartext Feldgerät Nachtext","1_c_Klartext Feldgeraet Nachtext",200,"NULL","NULL",0]
["0-503","Material 2","3_c_Material 2",590,"NULL","NULL",0]
["0-503","Werkvertrag [Firma/Nummer]","8_c_Werkvertrag [Firma/Nummer]",590,"NULL","NULL",0]
["0-504","Abnahmetermin [Datum]","7_a_Abnahmetermin [Datum]",390,"NULL","NULL",0]
["0-504","Ende Garantiefrist [Datum]","8_b_Ende Garantiefrist [Datum]",490,"NULL","NULL",0]
["0-504","Klartext Feldgerät Nachtext","1_c_Klartext Feldgeraet Nachtext",200,"NULL","NULL",0]
["0-504","Kommentar technisch","9_a_Kommentar technisch",300,1,"NULL",0]
["0-504","Servicevertrag [Firma]","8_b_Servicevertrag [Firma]",490,"NULL","NULL",0]
["0-504","TypeID Nova dez","0_c_TypeID Nova dez","NULL","NULL","NULL",0]
["0-505","Anzahl [Stk]","3_b_Anzahl [Stk]",490,"NULL","NULL",0]
["0-505","Geschoss","5_a_Geschoss",200,"NULL","Modell",0]
["0-505","Laufnummer","0_a_Laufnummer",100,"NULL","NULL",1]
["0-505","Mieter","5_c_Mieter",590,"NULL","NULL",0]
["0-505","Wartungsintervall [Betriebsstunden]","8_c_Wartungsintervall [Betriebsstunden]",590,"NULL","NULL",0]
["0-506","Artikelnummer RMB","0_c_Artikelnummer RMB",100,"NULL","NULL",1]
["0-506","Ausführung 1","3_b_Ausfuehrung 1",490,"NULL","NULL",0]
["0-506","Klartext Raum","5_c_Klartext Raum",200,"NULL","Modell",0]
["0-506","Kommentar technisch","9_a_Kommentar technisch",300,1,"NULL",0]
["0-506","SIA-Katalog","1_b_SIA-Katalog","NULL","NULL","NULL",0]
["0-506","URL","3_c_URL",300,"NULL","NULL",0]
["0-507","Anlagenstruktur-SAN","1_b_Anlagenstruktur-SAN","NULL","NULL","NULL",0]
["0-507","Gewicht Betrieb [kg]","2_b_Gewicht Betrieb [kg]",200,"NULL","NULL",0]
["0-507","Leistung elektrisch [W]","4_a_Leistung elektrisch [W]",290,"NULL","NULL",0]
["0-507","Montagetermin geplant [Datum]","7_b_Montagetermin geplant [Datum]",590,"NULL","NULL",0]
["0-507","URL","3_c_URL",300,"NULL","NULL",0]
["0-508","Anlagenummer Bauherr","1_b_Anlagenummer Bauherr",490,"NULL","NULL",0]
["0-508","Breite (Abmessung 2) [mm]","2_b_Breite (Abmessung 2) [mm]",200,"NULL","NULL",0]
["0-508","KelpyOfferteId","3_c_KelpyOfferteId","NULL",1,"NULL",0]
["0-508","Lieferung bauseits","7_a_Lieferung bauseits",300,1,"NULL",0]
["0-508","Servicevertrag [Firma]","8_b_Servicevertrag [Firma]",590,"NULL","NULL",0]
["0-508","Werkvertrag [Firma/Nummer]","8_c_Werkvertrag [Firma/Nummer]",590,"NULL","NULL",0]
["0-509","Ausführung 1","3_b_Ausfuehrung 1",590,"NULL","NULL",0]
["0-509","Laufnummer","0_a_Laufnummer",100,"NULL","NULL",1]
["0-509","URL","3_c_URL",300,"NULL","NULL",0]
["0-510","Artikelnummer","3_c_Artikelnummer",300,"NULL","Modell",0]
["0-510","Geschoss","5_a_Geschoss",200,"NULL","Modell",0]
["0-510","Lieferant","3_c_Lieferant",300,"NULL","NULL",0]
["0-510","RMB Zlr Nr.","8_a_RMB Zlr Nr",390,"NULL","NULL",0]
["0-510","Spannung [V]","4_a_Spannung [V]",390,"NULL","NULL",0]
["0-520","Anlagenummer Bauherr","1_b_Anlagenummer Bauherr",490,"NULL","NULL",0]
["0-520","Breite (Abmessung 2) [mm]","2_b_Breite (Abmessung 2) [mm]",200,"NULL","NULL",0]
["0-520","Energieeffizienzklasse","3_c_Energieeffizienzklasse",590,"NULL","NULL",0]
["0-520","Instandhaltung","8_b_Instandhaltung",300,"NULL","NULL",0]
["0-520","Klartext Feldgerät Nachtext","1_c_Klartext Feldgeraet Nachtext",590,"NULL","NULL",0]
["0-520","Nenndruck PN [bar]","2_b_Nenndruck PN [bar]",290,"NULL","NULL",0]
["0-520","SGK Zuordnung","6_a_SGK Zuordnung",390,"NULL","NULL",0]
["0-520","Volumenstrom 1 [m3/h]","2_a_Volumenstrom 1 [m3/h]",390,"NULL","NULL",0]
["0-521","Adapter","3_c_Adapter",590,"NULL","NULL",0]
["0-521","e-BKP-H","1_b_e-BKP-H",200,"NULL","NULL",0]
["0-521","Freigabe zur Bestellung [Datum]","7_a_Freigabe zur Bestellung [Datum]",400,"NULL","NULL",0]
["0-521","Kommentar technisch","9_a_Kommentar technisch",300,1,"NULL",0]
["0-521","Lieferung bauseits","7_a_Lieferung bauseits",300,1,"NULL",0]
["0-521","NPK","1_b_NPK",200,1,"NULL",0]
["0-521","SIA-Katalog","1_b_SIA-Katalog","NULL","NULL","NULL",0]
["0-522","Adapter","3_c_Adapter",590,"NULL","NULL",0]
["0-522","Anschlussart","3_c_Anschlussart",590,"NULL","NULL",0]
["0-522","Freigabe zur Bestellung [Datum]","7_a_Freigabe zur Bestellung [Datum]",400,"NULL","NULL",0]
["0-522","Geschoss","5_a_Geschoss",200,"NULL","Modell",0]
["0-522","Klartext Feldgerät","1_c_Klartext Feldgeraet",100,"NULL","Prinzipschema",1]
["0-522","Mieter","5_c_Mieter",590,"NULL","NULL",0]
["0-522","RMB Zlr Nr.","8_a_RMB Zlr Nr",390,"NULL","NULL",0]
["0-522","SIA-Katalog","1_b_SIA-Katalog","NULL","NULL","NULL",0]
["0-523","Anlagenstruktur-SAN","1_b_Anlagenstruktur-SAN","NULL","NULL","NULL",0]
["0-523","Ausführung 2","3_b_Ausfuehrung 2",490,"NULL","NULL",0]
["0-523","Höhe (Abmessung 3) [mm]","2_b_Hoehe (Abmessung 3) [mm]",200,"NULL","NULL",0]
["0-523","Kommentar technisch","9_a_Kommentar technisch",300,1,"NULL",0]
["0-523","Servicevertrag [Firma]","8_b_Servicevertrag [Firma]",490,"NULL","NULL",0]
["0-523","System","3_b_System",200,"NULL","Prinzipschema",0]
["0-524","Ausführung 2","3_b_Ausfuehrung 2",490,"NULL","NULL",0]
["0-524","e-BKP-H","1_b_e-BKP-H",200,"NULL","NULL",0]
["0-524","Klartext Anlage","1_c_Klartext Anlage",100,"NULL","NULL",0]
["0-524","Länge (Abmessung 1) [mm]","2_b_Laenge (Abmessung 1) [mm]",200,"NULL","NULL",0]
["0-524","Prüfpflicht","8_c_Pruefpflicht",590,"NULL","NULL",0]
["0-525","Achse Z","5_c_Achse Z","NULL","NULL","NULL",0]
["0-525","Ende Garantiefrist [Datum]","8_b_Ende Garantiefrist [Datum]",490,"NULL","NULL",0]
["0-525","Gebäude","5_c_Gebaeude",200,"NULL","NULL",0]
["0-525","Lieferant","3_c_Lieferant",300,"NULL","NULL",0]
["0-525","RMB Zlr Nr.","8_a_RMB Zlr Nr",390,"NULL","NULL",0]
["0-525","Wartungsintervall [Betriebsstunden]","8_c_Wartungsintervall [Betriebsstunden]",590,"NULL","NULL",0]
["0-526","Artikelnummer RMB","0_c_Artikelnummer RMB",100,"NULL","NULL",1]
["0-526","Klartext Feldgerät","1_c_Klartext Feldgeraet",100,"NULL","Prinzipschema",1]
["0-526","Laufnummer","0_a_Laufnummer",100,"NULL","NULL",1]
["0-526","URL","3_c_URL",300,"NULL","NULL",0]
["0-527","Anlagenstruktur-SAN","1_b_Anlagenstruktur-SAN","NULL","NULL","NULL",0]
["0-527","Dimension 1 [DN]","2_a_Dimension 1 [DN]",290,"NULL","NULL",0]
["0-527","Gewicht leer [kg]","2_c_Gewicht leer [kg]",590,"NULL","NULL",0]
["0-527","Klartext Anlage funktional","1_c_Klartext Anlage funktional",590,"NULL","NULL",0]
["0-527","Medium 1","2_c_Medium 1",590,"NULL","NULL",0]
["0-527","SIA-Katalog","1_b_SIA-Katalog","NULL","NULL","NULL",0]
["0-527","Wartungsintervall [Betriebsstunden]","8_c_Wartungsintervall [Betriebsstunden]",590,"NULL","NULL",0]
["0-528","Artikelnummer RMB","0_c_Artikelnummer RMB",100,"NULL","NULL",1]
["0-528","KelpyOfferteId","3_c_KelpyOfferteId","NULL",1,"NULL",0]
["0-528","Länge (Abmessung 1) [mm]","2_b_Laenge (Abmessung 1) [mm]",200,"NULL","NULL",0]
["0-528","Montagetermin ist [Datum]","7_b_Montagetermin ist [Datum]",490,"NULL","NULL",0]
["0-529","Abnahmetermin [Datum]","7_a_Abnahmetermin [Datum]",390,"NULL","NULL",0]
["0-529","Achse X","5_c_Achse X","NULL","NULL","NULL",0]
["0-529","e-BKP-H","1_b_e-BKP-H",200,"NULL","NULL",0]
["0-529","Gewicht leer [kg]","2_c_Gewicht leer [kg]",590,"NULL","NULL",0]
["0-529","Klartext Feldgerät Nachtext","1_c_Klartext Feldgeraet Nachtext",200,"NULL","NULL",0]
["0-529","Positionsnummer","5_c_Positionsnummer","NULL","NULL","Prinzipschema",1]
["0-529","Strom [A]","4_a_Strom [A]",390,"NULL","NULL",0]
["0-529","Werkvertrag [Firma/Nummer]","8_c_Werkvertrag [Firma/Nummer]",590,"NULL","NULL",0]
["0-530","Bezeichnung Elektroschema (BMK)","6_a_Bezeichnung Elektroschema (BMK)",390,"NULL","NULL",0]
["0-530","Höhe (Abmessung 3) [mm]","2_b_Hoehe (Abmessung 3) [mm]",200,"NULL","NULL",0]
["0-530","Klartext Anlage","1_c_Klartext Anlage",100,"NULL","NULL",0]
["0-530","Montagetermin ist [Datum]","7_b_Montagetermin ist [Datum]",490,"NULL","NULL",0]
["0-530","Servicevertrag [Nummer]","8_a_Servicevertrag [Nummer]",390,"NULL","NULL",0]
["0-530","System","3_b_System",200,"NULL","Prinzipschema",0]
["0-550","e-BKP-H","1_b_e-BKP-H",200,"NULL","NULL",0]
["0-550","KelpyOfferteId","3_c_KelpyOfferteId","NULL",1,"NULL",0]
["0-551","Anlagenummer (BKP-XXX)","1_a_Anlagenummer (BKP-XXX)",100,"NULL","NULL",1]
["0-551","KelpyOfferteId","3_c_KelpyOfferteId","NULL",1,"NULL",0]
["0-551","Laufnummer","0_a_Laufnummer",100,"NULL","NULL",1]
["0-551","TypeID Nova dez","0_c_TypeID Nova dez","NULL","NULL","NULL",0]
["0-552","Klartext Raum","5_c_Klartext Raum",200,"NULL","NULL",0]
["0-552","NPK","1_b_NPK",200,1,"NULL",0]
["0-553","Artikelnummer RMB","0_c_Artikelnummer RMB",100,"NULL","NULL",1]
["0-553","NPK","1_b_NPK",200,1,"NULL",0]
["0-553","TypeID Nova dez","0_c_TypeID Nova dez","NULL","NULL","NULL",0]
["0-554","Geschoss","5_a_Geschoss",200,"NULL","NULL",0]
["0-554","Spannung [V]","4_a_Spannung [V]",390,"NULL","NULL",0]
["0-554","Strom [A]","4_a_Strom [A]",390,"NULL","NULL",0]
["0-555","KelpyOfferteId","3_c_KelpyOfferteId","NULL",1,"NULL",0]
["0-555","Laufnummer","0_a_Laufnummer",100,"NULL","NULL",1]
["0-556","Anlagenstruktur-SAN","1_b_Anlagenstruktur-SAN","NULL","NULL","NULL",0]
["0-556","Lieferant","3_c_Lieferant",300,"NULL","NULL",0]
["0-556","SIA-Katalog","1_b_SIA-Katalog","NULL","NULL","NULL",0]
["0-557","Freigabe zur Bestellung [Datum]","7_a_Freigabe zur Bestellung [Datum]",400,"NULL","NULL",0]
["0-557","Typ","3_a_Typ",290,"NULL","NULL",0]
["0-558","Freigabe zur Bestellung [Datum]","7_a_Freigabe zur Bestellung [Datum]",400,"NULL","NULL",0]
["0-558","Klartext Feldgerät","1_c_Klartext Feldgeraet",100,"NULL","NULL",1]
["0-559","Artikelnummer","3_c_Artikelnummer",300,"NULL","NULL",0]
["0-559","Klartext Raum","5_c_Klartext Raum",200,"NULL","NULL",0]
["0-559","Lieferung bauseits","7_a_Lieferung bauseits",300,1,"NULL",0]
["0-560","Artikelnummer RMB","0_c_Artikelnummer RMB",100,"NULL","NULL",1]
["0-560","KelpyOfferteId","3_c_KelpyOfferteId","NULL",1,"NULL",0]
["0-561","Anlagenummer (BKP-XXX)","1_a_Anlagenummer (BKP-XXX)",100,"NULL","NULL",1]
["0-561","Kommentar technisch","9_a_Kommentar technisch",300,1,"NULL",0]
["0-562","Artikelnummer","3_c_Artikelnummer",300,"NULL","NULL",0]
["0-562","Klartext Anlage","1_c_Klartext Anlage",100,"NULL","NULL",0]
["0-562","TypeID Nova dez","0_c_TypeID Nova dez","NULL","NULL","NULL",0]
["0-563","Artikelnummer RMB","0_c_Artikelnummer RMB",100,"NULL","NULL",1]
["0-563","Kommentar technisch","9_a_Kommentar technisch",300,1,"NULL",0]
["0-564","Gebäude","5_c_Gebaeude",200,"NULL","NULL",0]
["0-564","Klartext Raum","5_c_Klartext Raum",200,"NULL","NULL",0]
["0-565","Anlagenstruktur-SAN","1_b_Anlagenstruktur-SAN","NULL","NULL","NULL",0]
["0-565","Lieferung bauseits","7_a_Lieferung bauseits",300,1,"NULL",0]
["0-566","Anlagenstruktur-SAN","1_b_Anlagenstruktur-SAN","NULL","NULL","NULL",0]
["0-566","Gebäude","5_c_Gebaeude",200,"NULL","NULL",0]
["0-566","Klartext Raum","5_c_Klartext Raum",200,"NULL","NULL",0]
["0-566","URL","3_c_URL",300,"NULL","NULL",0]
["0-567","Klartext Feldgerät","1_c_Klartext Feldgeraet",100,"NULL","NULL",1]
["0-567","NPK","1_b_NPK",200,1,"NULL",0]
["0-568","Ausführung 1","3_b_Ausfuehrung 1",590,"NULL","NULL",0]
["0-568","Raumnummer","5_a_Raumnummer",200,"NULL","NULL",0]
["0-569","Freigabe zur Bestellung [Datum]","7_a_Freigabe zur Bestellung [Datum]",400,"NULL","NULL",0]
["0-569","Geschoss","5_a_Geschoss",200,"NULL","NULL",0]
["0-570","Artikelnummer","3_c_Artikelnummer",300,"NULL","NULL",0]
["0-570","Laufnummer","0_a_Laufnummer",100,"NULL","NULL",1]
["0-570","SIA-Katalog","1_b_SIA-Katalog","NULL","NULL","NULL",0]
["0-571","Klartext Anlage","1_c_Klartext Anlage",100,"NULL","NULL",0]
["0-571","Klartext Raum","5_c_Klartext Raum",200,"NULL","NULL",0]
["0-572","e-BKP-H","1_b_e-BKP-H",200,"NULL","NULL",0]
["0-572","Lieferung bauseits","7_a_Lieferung bauseits",300,1,"NULL",0]
["0-572","TypeID Nova dez","0_c_TypeID Nova dez","NULL","NULL","NULL",0]
["0-573","Klartext Feldgerät","1_c_Klartext Feldgeraet",100,"NULL","NULL",1]
["0-574","Anlagenummer (BKP-XXX)","1_a_Anlagenummer (BKP-XXX)",100,"NULL","NULL",1]
["0-574","Gebäude","5_c_Gebaeude",200,"NULL","NULL",0]
["0-574","Raumnummer","5_a_Raumnummer",200,"NULL","NULL",0]
["0-575","Geschoss","5_a_Geschoss",200,"NULL","NULL",0]
["0-575","Lieferant","3_c_Lieferant",300,"NULL","NULL",0]
["0-576","Artikelnummer RMB","0_c_Artikelnummer RMB",100,"NULL","NULL",1]
["0-576","SIA-Katalog","1_b_SIA-Katalog","NULL","NULL","NULL",0]
["0-577","Anlagenummer (BKP-XXX)","1_a_Anlagenummer (BKP-XXX)",100,"NULL","NULL",1]
["0-577","KelpyOfferteId","3_c_KelpyOfferteId","NULL",1,"NULL",0]
["0-577","NPK","1_b_NPK",200,1,"NULL",0]
["0-578","Freigabe zur Bestellung [Datum]","7_a_Freigabe zur Bestellung [Datum]",400,"NULL","NULL",0]
["0-578","TypeID Nova dez","0_c_TypeID Nova dez","NULL","NULL","NULL",0]
["0-901","Artikelnummer","3_c_Artikelnummer",300,"NULL","NULL",0]
["0-901","Integration Kommunikation","4_c_Integration Kommunikation",390,"NULL","NULL",0]
["0-901","NPK","1_b_NPK",200,1,"NULL",0]
["0-901","SIA-Katalog","1_b_SIA-Katalog","NULL","NULL","NULL",0]
["0-902","Artikelnummer","3_c_Artikelnummer",300,"NULL","NULL",0]
["0-902","Fabrikat","3_a_Fabrikat",290,1,"NULL",0]
["0-902","NPK","1_b_NPK",200,1,"NULL",0]
["0-902","SIA-Katalog","1_b_SIA-Katalog","NULL","NULL","NULL",0]
["0-903","Datenpunkte DI","4_c_Datenpunkte DI",390,"NULL","NULL",0]
["0-903","Datenpunkte DO","4_c_Datenpunkte DO",390,"NULL","NULL",0]
["0-903","Integration Kommunikation","4_c_Integration Kommunikation",390,"NULL","NULL",0]
["0-903","SIA-Katalog","1_b_SIA-Katalog","NULL","NULL","NULL",0]
["0-903","Typ","3_a_Typ",290,1,"NULL",0]
["0-904","e-BKP-H","1_b_e-BKP-H",200,"NULL","NULL",0]
["0-904","Integration Kommunikation","4_c_Integration Kommunikation",390,"NULL","NULL",0]
["0-904","Lieferung bauseits","7_a_Lieferung bauseits",300,1,"NULL",0]
["0-910","Anlagenummer (BKP-XXX)","1_a_Anlagenummer (BKP-XXX)",100,"NULL","NULL",1]
["0-910","Klartext Anlage","1_c_Klartext Anlage",100,"NULL","NULL",0]
["0-910","Laufnummer","0_a_Laufnummer",100,"NULL","NULL",1]
["0-999","Datenpunkte AI","4_c_Datenpunkte AI",390,"NULL","NULL",0]
["0-999","Gebäude","5_c_Gebaeude",200,"NULL","NULL",0]
["0-999","Klartext Feldgerät","1_c_Klartext Feldgeraet",100,1,"NULL",1]
["0-999","SGK Zuordnung","6_a_SGK Zuordnung",390,"NULL","NULL",0]
["1-000","Anlagenstruktur-SAN","1_b_Anlagenstruktur-SAN","NULL","NULL","NULL",0]
["1-000","Gebäude","5_c_Gebaeude",200,"NULL","NULL",0]
["1-000","System","3_b_System",200,"NULL","NULL",0]
["1-001","Achse Z","5_c_Achse Z","NULL","NULL","NULL",0]
["1-001","Dämmungsspezifikation","0_a_Daemmungsspezifikation","NULL","NULL","Modell",0]
["1-001","Geschoss","5_a_Geschoss",200,"NULL","Modell",0]
["1-001","Klartext Feldgerät Nachtext","1_c_Klartext Feldgeraet Nachtext",590,"NULL","NULL",0]
["1-001","Material Stärke (Abmessung 6) [mm]","2_b_Material Staerke (Abmessung 6) [mm]",590,"NULL","NULL",0]
["1-001","Typ","3_a_Typ",390,"NULL","NULL",0]
["1-001","Werkvertrag [Firma/Nummer]","8_c_Werkvertrag [Firma/Nummer]",590,"NULL","NULL",0]
["1-002","Artikelnummer","3_c_Artikelnummer",300,"NULL","Modell",0]
["1-002","Geschoss","5_a_Geschoss",200,"NULL","Modell",0]
["1-002","Geschwindigkeit 1 [m/s]","2_c_Geschwindigkeit 1 [m/s]",590,"NULL","NULL",0]
["1-002","Massenstrom 1 [kg/h]","2_a_Massenstrom 1 [kg/h]",590,"NULL","NULL",0]
["1-002","Montagetermin ist [Datum]","7_b_Montagetermin ist [Datum]",590,"NULL","NULL",0]
["1-002","SIA-Katalog","1_b_SIA-Katalog","NULL","NULL","NULL",0]
["1-003","Anlage funktional (BKP-XXX)","1_b_Anlage funktional (BKP-XXX)",490,"NULL","NULL",0]
["1-003","Differenzdruck 1 [kPa]","2_a_Differenzdruck 1 [kPa]",590,"NULL","NULL",0]
["1-003","Ende Garantiefrist [Datum]","8_b_Ende Garantiefrist [Datum]",590,"NULL","NULL",0]
["1-003","Inhalt [l]","2_a_Inhalt [l]",590,"NULL","NULL",0]
["1-003","Medium 1","2_c_Medium 1",590,"NULL","Modell",0]
["1-003","NPK","1_b_NPK",200,1,"NULL",0]
["1-003","Wartungsintervall [Betriebsstunden]","8_c_Wartungsintervall [Betriebsstunden]",590,"NULL","NULL",0]
["1-004","Anlagenummer (BKP-XXX)","1_a_Anlagenummer (BKP-XXX)",100,"NULL","NULL",1]
["1-004","Dimension 2 [DN]","2_a_Dimension 2 [DN]",390,1,"Modell",0]
["1-004","Gewicht leer [kg]","2_c_Gewicht leer [kg]",590,"NULL","NULL",0]
["1-004","Klartext Anlage funktional","1_c_Klartext Anlage funktional",590,"NULL","NULL",0]
["1-004","Medium 1","2_c_Medium 1",590,"NULL","NULL",0]
["1-004","Temperatur 2 [C]","2_a_Temperatur 2 [C]",590,"NULL","NULL",0]
["1-004","Volumenstrom 1 [m3/h]","2_a_Volumenstrom 1 [m3/h]",590,"NULL","NULL",0]
["1-005","Artikelnummer","3_c_Artikelnummer",300,"NULL","NULL",0]
["1-005","Fabrikat","3_a_Fabrikat",590,"NULL","NULL",0]
["1-005","KelpyOfferteId","3_c_KelpyOfferteId","NULL",1,"NULL",0]
["1-005","Länge (Abmessung 1) [mm]","2_b_Laenge (Abmessung 1) [mm]",200,"NULL","NULL",0]
["1-005","NPK","1_b_NPK",200,1,"NULL",0]
["1-005","Wartungsintervall [Betriebsstunden]","8_c_Wartungsintervall [Betriebsstunden]",590,"NULL","NULL",0]
["1-006","Achse Z","5_c_Achse Z","NULL","NULL","NULL",0]
["1-006","Ausführung 1","3_b_Ausfuehrung 1",590,"NULL","NULL",0]
["1-006","Durchmesser (Abmessung 4) [mm]","2_b_Durchmesser (Abmessung 4) [mm]",200,"NULL","NULL",0]
["1-006","Klartext Feldgerät","1_c_Klartext Feldgeraet",100,"NULL","Modell",1]
["1-006","Laufnummer","0_a_Laufnummer",100,"NULL","NULL",1]
["1-006","Nenndruck PN [bar]","2_b_Nenndruck PN [bar]",490,"NULL","NULL",0]
["1-006","Wartungsintervall [Betriebsstunden]","8_c_Wartungsintervall [Betriebsstunden]",590,"NULL","NULL",0]
["1-007","Artikelnummer RMB","0_c_Artikelnummer RMB",100,"NULL","NULL",1]
["1-007","e-BKP-H","1_b_e-BKP-H",200,"NULL","NULL",0]
["1-007","Material 1","3_c_Material 1",200,"NULL","NULL",0]
["1-007","Typ","3_a_Typ",590,"NULL","NULL",0]
["1-008","Abnahmetermin [Datum]","7_a_Abnahmetermin [Datum]",590,"NULL","NULL",0]
["1-008","Ende Garantiefrist [Datum]","8_b_Ende Garantiefrist [Datum]",590,"NULL","NULL",0]
["1-008","Kommentar technisch","9_a_Kommentar technisch",300,1,"NULL",0]
["1-008","Montagetermin ist [Datum]","7_b_Montagetermin ist [Datum]",590,"NULL","NULL",0]
["1-008","TypeID Nova dez","0_c_TypeID Nova dez","NULL","NULL","NULL",0]
["1-009","Artikelnummer","3_c_Artikelnummer",300,"NULL","Modell",0]
["1-009","Material 1","3_c_Material 1",200,"NULL","NULL",0]
["1-010","Achse Y","5_c_Achse Y","NULL","NULL","NULL",0]
["1-010","Artikelnummer","3_c_Artikelnummer",300,"NULL","NULL",0]
["1-010","Dimension 2 [DN]","2_a_Dimension 2 [DN]",590,"NULL","NULL",0]
["1-010","Klartext Anlage","1_c_Klartext Anlage",100,"NULL","NULL",0]
["1-010","Kommentar technisch","9_a_Kommentar technisch",300,1,"NULL",0]
["1-010","Medium 1","2_c_Medium 1",590,"NULL","NULL",0]
["1-010","TypeID Nova dez","0_c_TypeID Nova dez","NULL","NULL","NULL",0]
["1-011","Achse X","5_c_Achse X","NULL","NULL","NULL",0]
["1-011","CAD Dämmung","0_c_CAD Daemmung","NULL","NULL","NULL",0]
["1-011","Gewicht leer [kg]","2_c_Gewicht leer [kg]",590,"NULL","NULL",0]
["1-011","Inbetriebsetzungstermin [Datum]","7_b_Inbetriebsetzungstermin [Datum]",590,"NULL","NULL",0]
["1-011","Material 1","3_c_Material 1",200,"NULL","NULL",0]
["1-011","Medium 1","2_c_Medium 1",590,"NULL","NULL",0]
["1-011","Typ","3_a_Typ",590,"NULL","NULL",0]
["1-012","Artikelnummer RMB","0_c_Artikelnummer RMB",100,"NULL","NULL",1]
["1-012","Dämmungsspezifikation","0_a_Daemmungsspezifikation","NULL","NULL","NULL",0]
["1-012","Geschoss","5_a_Geschoss",200,"NULL","NULL",0]
["1-012","Leistung 1 (hyd) [kW]","2_a_Leistung 1 (hyd) [kW]",590,"NULL","NULL",0]
["1-012","Montagetermin ist [Datum]","7_b_Montagetermin ist [Datum]",590,"NULL","NULL",0]
["1-012","Servicevertrag [Nummer]","8_a_Servicevertrag [Nummer]",590,"NULL","NULL",0]
["1-013","Dimension 1 [DN]","2_a_Dimension 1 [DN]",290,1,"NULL",1]
["1-013","Material 1","3_c_Material 1",350,"NULL","NULL",0]
["1-013","NPK","1_b_NPK",200,1,"NULL",0]
["1-014","Anlagenummer (BKP-XXX)","1_a_Anlagenummer (BKP-XXX)",100,"NULL","NULL",1]
["1-014","Geschoss","5_a_Geschoss",200,"NULL","Modell",0]
["1-014","Klartext Anlage funktional","1_c_Klartext Anlage funktional",590,"NULL","NULL",0]
["1-014","Mieter","5_c_Mieter",590,"NULL","NULL",0]
["1-014","Servicevertrag [Firma]","8_b_Servicevertrag [Firma]",590,"NULL","NULL",0]
["1-015","Gebäude","5_c_Gebaeude",200,"NULL","Modell",0]
["1-015","Materialspezifikation","0_a_Materialspezifikation","NULL",1,"Prinzipschema",0]
["1-015","System","3_b_System",200,"NULL","Prinzipschema",0]
["1-016","Artikelnummer","3_c_Artikelnummer",300,"NULL","Modell",0]
["1-016","Gewicht Betrieb [kg]","2_b_Gewicht Betrieb [kg]",200,"NULL","NULL",0]
["1-016","KelpyOfferteId","3_c_KelpyOfferteId","NULL",1,"NULL",0]
["1-016","Materialspezifikation","0_a_Materialspezifikation","NULL",1,"Modell",0]
["1-016","TypeID Nova dez","0_c_TypeID Nova dez","NULL","NULL","NULL",0]
["1-016","Wartungsintervall [Betriebsstunden]","8_c_Wartungsintervall [Betriebsstunden]",590,"NULL","NULL",0]
["1-017","Ausführung 2","3_b_Ausfuehrung 2",590,"NULL","NULL",0]
["1-017","Durchmesser (Abmessung 4) [mm]","2_b_Durchmesser (Abmessung 4) [mm]",200,"NULL","NULL",0]
["1-017","KelpyOfferteId","3_c_KelpyOfferteId","NULL",1,"NULL",0]
["1-017","min. Temperatur [C]","2_c_min Temperatur [C]",590,"NULL","NULL",0]
["1-017","Raumnummer","5_a_Raumnummer",200,"NULL","NULL",0]
["1-018","Abnahmetermin [Datum]","7_a_Abnahmetermin [Datum]",590,"NULL","NULL",0]
["1-018","Dimension 2 [DN]","2_a_Dimension 2 [DN]",290,0,"NULL",0]
["1-018","Inbetriebsetzungstermin [Datum]","7_b_Inbetriebsetzungstermin [Datum]",590,"NULL","NULL",0]
["1-018","Klartext Feldgerät Nachtext","1_c_Klartext Feldgeraet Nachtext",590,"NULL","NULL",0]
["1-018","NPK","1_b_NPK",200,1,"NULL",0]
["1-018","TypeID Nova dez","0_c_TypeID Nova dez","NULL","NULL","NULL",0]
["1-020","Gebäude","5_c_Gebaeude",200,"NULL","NULL",0]
["1-021","Abnahmetermin [Datum]","7_a_Abnahmetermin [Datum]",590,"NULL","NULL",0]
["1-021","Achse X","5_c_Achse X","NULL","NULL","NULL",0]
["1-021","Geschoss","5_a_Geschoss",200,"NULL","Modell",0]
["1-021","Montagetermin geplant [Datum]","7_b_Montagetermin geplant [Datum]",590,"NULL","NULL",0]
["1-021","System","3_b_System",200,"NULL","Prinzipschema",0]
["1-030","NPK","1_b_NPK","NULL",1,"NULL",0]
["1-090","Gebäude","5_c_Gebaeude",200,"NULL","NULL",0]
["1-090","NPK","1_b_NPK",200,1,"NULL",0]
["1-090","TypeID Nova dez","0_c_TypeID Nova dez","NULL","NULL","NULL",0]
["1-100","Laufnummer","0_a_Laufnummer",100,"NULL","NULL",1]
["1-100","Raumnummer","5_a_Raumnummer",200,"NULL","NULL",0]
["1-101","Anlagenummer Bauherr","1_b_Anlagenummer Bauherr",490,"NULL","NULL",0]
["1-101","Inbetriebsetzungstermin [Datum]","7_b_Inbetriebsetzungstermin [Datum]",490,"NULL","NULL",0]
["1-101","Klartext Feldgerät Nachtext","1_c_Klartext Feldgeraet Nachtext",590,"NULL","NULL",0]
["1-101","NPK","1_b_NPK",200,1,"NULL",0]
["1-101","System","3_b_System",200,"NULL","Modell",0]
["1-102","CAD Dämmung","0_c_CAD Daemmung","NULL","NULL","Modell",0]
["1-102","Geschoss","5_a_Geschoss",200,"NULL","Modell",0]
["1-102","Klartext Anlage","1_c_Klartext Anlage",100,"NULL","NULL",0]
["1-102","Material 3","3_c_Material 3",200,"NULL","NULL",0]
["1-102","Zulassung VKF","3_c_Zulassung VKF",590,"NULL","NULL",0]
["1-103","Ansprechdruck [bar]","2_a_Ansprechdruck [bar]",390,"NULL","NULL",0]
["1-103","Fläche 2 [m2]","2_c_Flaeche 2 [m2]",300,"NULL","Modell",0]
["1-103","Lieferant","3_c_Lieferant",300,"NULL","NULL",0]
["1-103","System","3_b_System",200,"NULL","Modell",0]
["1-103","TypeID Nova dez","0_c_TypeID Nova dez","NULL","NULL","NULL",0]
["1-104","Dichtheitsklasse","3_c_Dichtheitsklasse",390,1,"NULL",0]
["1-104","Durchmesser (Abmessung 4) [mm]","2_b_Durchmesser (Abmessung 4) [mm]",200,"NULL","Modell",0]
["1-104","Kommentar technisch","9_a_Kommentar technisch",300,1,"NULL",0]
["1-104","Material Stärke (Abmessung 6) [mm]","2_b_Material Staerke (Abmessung 6) [mm]",490,"NULL","NULL",0]
["1-104","TypeID Nova dez","0_c_TypeID Nova dez","NULL","NULL","NULL",0]
["1-105","Dämmungsspezifikation","0_a_Daemmungsspezifikation","NULL","NULL","Modell",0]
["1-105","Klartext Anlage","1_c_Klartext Anlage",100,"NULL","NULL",0]
["1-105","Kommentar technisch","9_a_Kommentar technisch",300,1,"NULL",0]
["1-105","Raumnummer","5_a_Raumnummer",200,"NULL","Modell",0]
["1-106","CAD Dämmung","0_c_CAD Daemmung","NULL","NULL","Modell",0]
["1-106","e-BKP-H","1_b_e-BKP-H",200,"NULL","NULL",0]
["1-106","Kommentar technisch","9_a_Kommentar technisch",300,1,"NULL",0]
["1-107","(Abmessung 10) [mm]","2_b_(Abmessung 10) [mm]",300,"NULL","NULL",0]
["1-107","Dämmungsspezifikation","0_a_Daemmungsspezifikation","NULL","NULL","Modell",0]
["1-107","Geschoss","5_a_Geschoss",200,"NULL","Modell",0]
["1-107","Klartext Feldgerät","1_c_Klartext Feldgeraet",100,"NULL","Modell",1]
["1-107","NPK","1_b_NPK",200,1,"NULL",0]
["1-108","Anlagenummer (BKP-XXX)","1_a_Anlagenummer (BKP-XXX)",100,"NULL","NULL",1]
["1-108","Dichtheitsklasse","3_c_Dichtheitsklasse",390,1,"NULL",0]
["1-108","Klartext Feldgerät","1_c_Klartext Feldgeraet",100,"NULL","Modell",1]
["1-108","System","3_b_System",200,"NULL","Modell",0]
["1-109","Abscheidegrad","3_c_Abscheidegrad",590,"NULL","NULL",0]
["1-109","Fläche 1 [m2]","2_c_Flaeche 1 [m2]",590,"NULL","Modell",0]
["1-109","Klartext Feldgerät Nachtext","1_c_Klartext Feldgeraet Nachtext",590,"NULL","NULL",0]
["1-109","NPK","1_b_NPK",200,1,"NULL",0]
["1-109","System","3_b_System",200,"NULL","Modell",0]
["1-110","Anlagenummer Bauherr","1_b_Anlagenummer Bauherr",490,"NULL","NULL",0]
["1-110","Breite (Abmessung 2) [mm]","2_b_Breite (Abmessung 2) [mm]",200,1,"Modell",0]
["1-110","Klartext Anlage","1_c_Klartext Anlage",100,"NULL","NULL",0]
["1-110","Kommentar technisch","9_a_Kommentar technisch",300,1,"NULL",0]
["1-110","Raumnummer","5_a_Raumnummer",200,"NULL","Modell",0]
["1-149","(Abmessung 10) [mm]","2_b_(Abmessung 10) [mm]",300,"NULL","NULL",0]
["1-149","Fläche 2 [m2]","2_c_Flaeche 2 [m2]",300,"NULL","Modell",0]
["1-149","KelpyOfferteId","3_c_KelpyOfferteId","NULL",1,"NULL",0]
["1-149","SIA-Katalog","1_b_SIA-Katalog","NULL","NULL","NULL",0]
["1-150","Anlagenstruktur-SAN","1_b_Anlagenstruktur-SAN","NULL","NULL","NULL",0]
["1-150","Dämmungsspezifikation","0_a_Daemmungsspezifikation","NULL","NULL","Modell",0]
["1-150","Inbetriebsetzungstermin [Datum]","7_b_Inbetriebsetzungstermin [Datum]",490,"NULL","NULL",0]
["1-150","Materialspezifikation","0_a_Materialspezifikation","NULL",1,"Modell",0]
["1-150","Status","5_b_Status",490,"NULL","NULL",0]
["1-151","Artikelnummer","3_c_Artikelnummer",300,"NULL","Modell",0]
["1-151","CAD Dämmung","0_c_CAD Daemmung","NULL","NULL","Modell",0]
["1-151","KelpyOfferteId","3_c_KelpyOfferteId","NULL",1,"NULL",0]
["1-151","Material 2","3_c_Material 2",200,"NULL","NULL",0]
["1-151","System","3_b_System",200,"NULL","Modell",0]
["1-152","Anlagenstruktur-SAN","1_b_Anlagenstruktur-SAN","NULL","NULL","NULL",0]
["1-152","Fläche 2 [m2]","2_c_Flaeche 2 [m2]",300,"NULL","Modell",0]
["1-152","Inbetriebsetzungstermin [Datum]","7_b_Inbetriebsetzungstermin [Datum]",490,"NULL","NULL",0]
["1-152","Material 1","3_c_Material 1",200,"NULL","NULL",0]
["1-152","SIA-Katalog","1_b_SIA-Katalog","NULL","NULL","NULL",0]
["1-153","Dimension 1 [DN]","2_a_Dimension 1 [DN]",290,"NULL","NULL",1]
["1-153","Gebäude","5_c_Gebaeude",200,"NULL","NULL",0]
["1-153","Materialspezifikation","0_a_Materialspezifikation","NULL",1,"Modell",0]
["1-153","NPK","1_b_NPK",200,1,"NULL",0]
["1-154","CAD Dämmung","0_c_CAD Daemmung","NULL","NULL","Modell",0]
["1-154","Dämmungsspezifikation","0_a_Daemmungsspezifikation","NULL","NULL","Modell",0]
["1-154","Höhe (Abmessung 3) [mm]","2_b_Hoehe (Abmessung 3) [mm]",200,1,"Modell",0]
["1-154","Material Stärke (Abmessung 6) [mm]","2_b_Material Staerke (Abmessung 6) [mm]",490,"NULL","NULL",0]
["1-155","(Abmessung 7) [mm]","2_b_(Abmessung 7) [mm]",300,"NULL","NULL",0]
["1-155","Anlagenummer (BKP-XXX)","1_a_Anlagenummer (BKP-XXX)",100,"NULL","NULL",1]
["1-155","e-BKP-H","1_b_e-BKP-H",200,"NULL","NULL",0]
["1-155","Klartext Feldgerät","1_c_Klartext Feldgeraet",100,"NULL","Modell",1]
["1-155","Laufnummer","0_a_Laufnummer",100,"NULL","NULL",1]
["1-155","NPK","1_b_NPK",200,1,"NULL",0]
["1-156","Dämmungsspezifikation","0_a_Daemmungsspezifikation","NULL","NULL","Modell",0]
["1-156","Fläche 1 [m2]","2_c_Flaeche 1 [m2]",590,"NULL","NULL",0]
["1-156","Laufnummer","0_a_Laufnummer",100,"NULL","NULL",1]
["1-156","NPK","1_b_NPK",200,1,"NULL",0]
["1-157","Dämmstärke [mm]","0_c_CAD Daemmstaerke [mm]",390,"NULL","Modell",0]
["1-157","KelpyOfferteId","3_c_KelpyOfferteId","NULL",1,"NULL",0]
["1-157","Länge (Abmessung 1) [mm]","2_b_Laenge (Abmessung 1) [mm]",490,"NULL","Modell",0]
["1-157","System","3_b_System",200,"NULL","Modell",0]
["1-158","Dämmungsspezifikation","0_a_Daemmungsspezifikation","NULL","NULL","Modell",0]
["1-158","e-BKP-H","1_b_e-BKP-H",200,"NULL","NULL",0]
["1-158","Klartext Feldgerät","1_c_Klartext Feldgeraet",100,"NULL","Modell",1]
["1-158","SIA-Katalog","1_b_SIA-Katalog","NULL","NULL","NULL",0]
["1-160","(Abmessung 10) [mm]","2_b_(Abmessung 10) [mm]",300,"NULL","NULL",0]
["1-160","CAD Dämmung","0_c_CAD Daemmung","NULL","NULL","Modell",0]
["1-160","Inbetriebsetzungstermin [Datum]","7_b_Inbetriebsetzungstermin [Datum]",490,"NULL","NULL",0]
["1-160","KelpyOfferteId","3_c_KelpyOfferteId","NULL",1,"NULL",0]
["1-160","NPK","1_b_NPK",200,1,"NULL",0]
["1-160","TypeID Nova dez","0_c_TypeID Nova dez","NULL","NULL","NULL",0]
["1-161","CAD Material","0_c_CAD Material","NULL","NULL","Modell",0]
["1-161","Klartext Raum","5_c_Klartext Raum",200,"NULL","Modell",0]
["1-161","Material 2","3_c_Material 2",200,"NULL","NULL",0]
["1-190","Artikelnummer RMB","0_c_Artikelnummer RMB",100,"NULL","NULL",1]
["1-190","Material 1","3_c_Material 1",350,"NULL","NULL",0]
["1-400","Ausführung 1","3_b_Ausfuehrung 1",290,1,"NULL",0]
["1-400","Klartext Anlage","1_c_Klartext Anlage",100,"NULL","NULL",0]
["1-401","Anlagenummer Bauherr","1_b_Anlagenummer Bauherr",490,"NULL","NULL",0]
["1-401","e-BKP-H","1_b_e-BKP-H",200,0,"NULL",0]
["1-401","Klartext Anlage","1_c_Klartext Anlage",100,"NULL","NULL",0]
["1-401","Material 3","3_c_Material 3",200,"NULL","NULL",0]
["1-401","Raumnummer","5_a_Raumnummer",200,"NULL","Modell",0]
["1-402","CAD Material","0_c_CAD Material","NULL","NULL","NULL",0]
["1-402","KelpyOfferteId","3_c_KelpyOfferteId","NULL",1,"NULL",0]
["1-402","Kommentar technisch","9_a_Kommentar technisch",300,1,"NULL",0]
["1-402","Winkel [Grad]","2_c_Winkel [Grad]",200,1,"NULL",0]
["1-403","Dimension 1 [DN]","2_a_Dimension 1 [DN]",290,1,"NULL",1]
["1-403","Geschoss","5_a_Geschoss",200,"NULL","Modell",0]
["1-403","Material 1","3_c_Material 1",200,0,"NULL",0]
["1-404","Anlagenummer Bauherr","1_b_Anlagenummer Bauherr",490,"NULL","NULL",1]
["1-404","CAD Material","0_c_CAD Material","NULL","NULL","NULL",0]
["1-404","Klartext Anlage funktional","1_c_Klartext Anlage funktional",590,"NULL","NULL",1]
["1-404","NPK","1_b_NPK",200,1,"NULL",0]
["1-404","SIA-Katalog","1_b_SIA-Katalog","NULL","NULL","NULL",0]
["1-405","Dämmungsspezifikation","0_a_Daemmungsspezifikation","NULL","NULL","Modell",0]
["1-405","Gebäude","5_c_Gebaeude",200,"NULL","Modell",0]
["1-405","Lieferant","3_c_Lieferant",300,"NULL","NULL",0]
["1-406","Anlagenstruktur-SAN","1_b_Anlagenstruktur-SAN","NULL","NULL","NULL",0]
["1-406","Ausführung 1","3_b_Ausfuehrung 1",490,0,"Modell",0]
["1-406","KelpyOfferteId","3_c_KelpyOfferteId","NULL",1,"NULL",0]
["1-406","NPK","1_b_NPK",200,1,"NULL",0]
["1-407","Anlagenummer (BKP-XXX)","1_a_Anlagenummer (BKP-XXX)",100,"NULL","NULL",1]
["1-407","Dämmstärke [mm]","0_c_CAD Daemmstaerke [mm]","NULL","NULL","NULL",0]
["1-407","Laufnummer","0_a_Laufnummer",100,"NULL","NULL",1]
["1-407","System","3_b_System",200,"NULL","Modell",0]
["1-408","Achse X","5_c_Achse X","NULL","NULL","NULL",0]
["1-408","Ende Garantiefrist [Datum]","8_b_Ende Garantiefrist [Datum]",590,"NULL","NULL",0]
["1-408","Fabrikat","3_a_Fabrikat",390,0,"NULL",0]
["1-408","Material 1","3_c_Material 1",390,0,"NULL",0]
["1-408","Raumnummer","5_a_Raumnummer",200,"NULL","Modell",0]
["1-410","Anlagenummer Bauherr","1_b_Anlagenummer Bauherr",490,"NULL","NULL",0]
["1-410","Dämmungsspezifikation","0_a_Daemmungsspezifikation","NULL","NULL","Prinzipschema",0]
["1-410","Klartext Feldgerät Nachtext","1_c_Klartext Feldgeraet Nachtext",590,"NULL","NULL",0]
["1-410","Material 1","3_c_Material 1",200,0,"NULL",0]
["1-410","System","3_b_System",200,"NULL","Prinzipschema",0]
["1-415","e-BKP-H","1_b_e-BKP-H",200,0,"NULL",0]
["1-415","Klartext Anlage funktional","1_c_Klartext Anlage funktional",590,"NULL","NULL",0]
["1-415","Mieter","5_c_Mieter",590,"NULL","NULL",0]
["1-416","CAD Dämmung","0_c_CAD Daemmung","NULL","NULL","NULL",0]
["1-416","Dämmungsspezifikation","0_a_Daemmungsspezifikation","NULL","NULL","Prinzipschema",0]
["1-416","Klartext Raum","5_c_Klartext Raum",200,"NULL","Modell",0]
["1-416","Material 2","3_c_Material 2",200,"NULL","NULL",0]
["1-416","Winkel [Grad]","2_c_Winkel [Grad]",200,"NULL","NULL",0]
["1-421","Geschoss","5_a_Geschoss",200,"NULL","Modell",0]
["1-421","Materialspezifikation","0_a_Materialspezifikation","NULL",1,"Prinzipschema",0]
["1-421","Raumnummer","5_a_Raumnummer",200,"NULL","Modell",0]
["1-422","Dämmungsspezifikation","0_a_Daemmungsspezifikation","NULL","NULL","Prinzipschema",0]
["1-422","Klartext Feldgerät Nachtext","1_c_Klartext Feldgeraet Nachtext",590,"NULL","NULL",0]
["1-422","Kommentar technisch","9_a_Kommentar technisch",300,1,"NULL",0]
["1-423","Anlagenummer (BKP-XXX)","1_a_Anlagenummer (BKP-XXX)",100,"NULL","NULL",1]
["1-423","Gebäude","5_c_Gebaeude",200,"NULL","NULL",0]
["1-423","Klartext Feldgerät","1_c_Klartext Feldgeraet",100,"NULL","Prinzipschema",1]
["1-423","TypeID Nova dez","0_c_TypeID Nova dez","NULL","NULL","NULL",0]
["1-430","Artikelnummer","3_c_Artikelnummer",300,"NULL","Modell",0]
["1-430","e-BKP-H","1_b_e-BKP-H",200,0,"NULL",0]
["1-430","Länge (Abmessung 1) [mm]","2_b_Laenge (Abmessung 1) [mm]",200,"NULL","Modell",0]
["1-430","Material 3","3_c_Material 3",200,"NULL","NULL",0]
["1-490","Anlagenstruktur-SAN","1_b_Anlagenstruktur-SAN","NULL","NULL","NULL",0]
["1-910","Anlagenummer (BKP-XXX)","1_a_Anlagenummer (BKP-XXX)",100,"NULL","NULL",1]
["1-910","Gebäude","5_c_Gebaeude",200,"NULL","NULL",0]
["1-910","TypeID Nova dez","0_c_TypeID Nova dez","NULL","NULL","NULL",0]
["1-911","Klartext Anlage","1_c_Klartext Anlage",100,"NULL","NULL",0]
["1-911","SIA-Katalog","1_b_SIA-Katalog","NULL","NULL","NULL",0]
["1-999","Anlagenummer Bauherr","1_b_Anlagenummer Bauherr",490,"NULL","NULL",0]
["1-999","Laufnummer","0_a_Laufnummer",100,"NULL","NULL",1]
["1-999","Raumnummer","5_a_Raumnummer",200,"NULL","NULL",0]
["2-001","Achse Y","5_c_Achse Y","NULL","NULL","NULL",0]
["2-001","Artikelnummer RMB","0_c_Artikelnummer RMB",100,"NULL","NULL",1]
["2-001","Ende Garantiefrist [Datum]","8_b_Ende Garantiefrist [Datum]",590,"NULL","NULL",0]
["2-001","Kommentar technisch","9_a_Kommentar technisch",300,1,"NULL",0]
["2-001","Lieferung bauseits","7_a_Lieferung bauseits",300,1,"NULL",0]
["2-001","Servicevertrag [Firma]","8_b_Servicevertrag [Firma]",590,"NULL","NULL",0]
["2-002","Achse X","5_c_Achse X","NULL","NULL","NULL",0]
["2-002","Anlagenummer (BKP-XXX)","1_a_Anlagenummer (BKP-XXX)",100,"NULL","NULL",1]
["2-002","Durchmesser (Abmessung 4) [mm]","2_b_Durchmesser (Abmessung 4) [mm]",200,"NULL","NULL",0]
["2-002","Inbetriebsetzungstermin [Datum]","7_b_Inbetriebsetzungstermin [Datum]",590,"NULL","NULL",0]
["2-002","Material 1","3_c_Material 1",390,0,"NULL",0]
["2-002","Mieter","5_c_Mieter",590,"NULL","NULL",0]
["2-002","Wartungsintervall [Betriebsstunden]","8_c_Wartungsintervall [Betriebsstunden]",590,"NULL","NULL",0]
["2-002","Werkvertrag [Firma/Nummer]","8_c_Werkvertrag [Firma/Nummer]",590,"NULL","NULL",0]
["2-003","Artikelnummer","3_c_Artikelnummer",300,"NULL","Modell",0]
["2-003","Durchmesser isoliert (Abmessung 5) [mm]","2_b_Durchmesser isoliert (Abmessung 5) [mm]",590,"NULL","NULL",0]
["2-003","KelpyOfferteId","3_c_KelpyOfferteId","NULL",1,"NULL",0]
["2-003","Material 3","3_c_Material 3",200,"NULL","NULL",0]
["2-003","Servicevertrag [Firma]","8_b_Servicevertrag [Firma]",590,"NULL","NULL",0]
["2-003","Werkvertrag [Firma/Nummer]","8_c_Werkvertrag [Firma/Nummer]",590,"NULL","NULL",0]
["2-004","Artikelnummer RMB","0_c_Artikelnummer RMB",100,"NULL","NULL",1]
["2-004","Fabrikat","3_a_Fabrikat",290,1,"NULL",0]
["2-004","Gewicht leer [kg]","2_c_Gewicht leer [kg]",590,"NULL","NULL",0]
["2-004","Lieferung bauseits","7_a_Lieferung bauseits",300,1,"NULL",0]
["2-004","Montagetermin ist [Datum]","7_b_Montagetermin ist [Datum]",590,"NULL","NULL",0]
["2-004","Servicevertrag [Firma]","8_b_Servicevertrag [Firma]",590,"NULL","NULL",0]
["2-005","Achse X","5_c_Achse X","NULL","NULL","NULL",0]
["2-005","Anlagenummer (BKP-XXX)","1_a_Anlagenummer (BKP-XXX)",100,"NULL","NULL",1]
["2-005","Gebäude","5_c_Gebaeude",200,"NULL","Modell",0]
["2-005","Klartext Anlage","1_c_Klartext Anlage",100,"NULL","NULL",0]
["2-005","Kommentar technisch","9_a_Kommentar technisch",300,1,"NULL",0]
["2-005","Medium 1","2_c_Medium 1",590,"NULL","NULL",0]
["2-005","Servicevertrag [Firma]","8_b_Servicevertrag [Firma]",590,"NULL","NULL",0]
["2-006","Abnahmetermin [Datum]","7_a_Abnahmetermin [Datum]",590,"NULL","NULL",0]
["2-006","Ausführung 1","3_b_Ausfuehrung 1",590,"NULL","NULL",0]
["2-006","Gewicht leer [kg]","2_c_Gewicht leer [kg]",590,"NULL","NULL",0]
["2-006","Laufnummer","0_a_Laufnummer",100,"NULL","NULL",1]
["2-006","max. Temperatur [C]","2_c_max Temperatur [C]",590,"NULL","NULL",0]
["2-006","SIA-Katalog","1_b_SIA-Katalog","NULL","NULL","NULL",0]
["2-006","System","3_b_System",200,"NULL","Prinzipschema, Strangschema",0]
["2-007","Artikelnummer","3_c_Artikelnummer",300,"NULL","Modell",0]
["2-007","Durchmesser isoliert (Abmessung 5) [mm]","2_b_Durchmesser isoliert (Abmessung 5) [mm]",590,"NULL","NULL",0]
["2-007","Geschoss","5_a_Geschoss",200,"NULL","Modell",0]
["2-007","Lieferant","3_c_Lieferant",300,"NULL","NULL",0]
["2-007","Montagetermin ist [Datum]","7_b_Montagetermin ist [Datum]",590,"NULL","NULL",0]
["2-007","Servicevertrag [Firma]","8_b_Servicevertrag [Firma]",590,"NULL","NULL",0]
["2-007","Werkvertrag [Firma/Nummer]","8_c_Werkvertrag [Firma/Nummer]",590,"NULL","NULL",0]
["2-008","Ausführung 1","3_b_Ausfuehrung 1",590,"NULL","NULL",0]
["2-008","Dimension 2 [DN]","2_a_Dimension 2 [DN]",390,"NULL","NULL",0]
["2-008","Klartext Anlage","1_c_Klartext Anlage",100,"NULL","NULL",0]
["2-008","Klartext Raum","5_c_Klartext Raum",200,"NULL","Modell",0]
["2-008","Medium 1","2_c_Medium 1",590,"NULL","NULL",0]
["2-008","SIA-Katalog","1_b_SIA-Katalog","NULL","NULL","NULL",0]
["2-008","Volumenstrom 1 [m3/h]","2_a_Volumenstrom 1 [m3/h]",390,1,"NULL",0]
["2-009","Artikelnummer RMB","0_c_Artikelnummer RMB",100,"NULL","NULL",1]
["2-009","Fabrikat","3_a_Fabrikat",290,1,"NULL",1]
["2-009","Geschoss","5_a_Geschoss",200,"NULL","Modell",0]
["2-009","Klartext Raum","5_c_Klartext Raum",200,"NULL","Modell",0]
["2-009","Montagetermin geplant [Datum]","7_b_Montagetermin geplant [Datum]",590,"NULL","NULL",0]
["2-009","Positionsnummer","5_c_Positionsnummer","NULL","NULL","Prinzipschema, Strangschema",1]
["2-009","Werkvertrag [Firma/Nummer]","8_c_Werkvertrag [Firma/Nummer]",590,"NULL","NULL",0]
["2-010","Breite (Abmessung 2) [mm]","2_b_Breite (Abmessung 2) [mm]",200,"NULL","NULL",0]
["2-010","Durchmesser isoliert (Abmessung 5) [mm]","2_b_Durchmesser isoliert (Abmessung 5) [mm]",590,"NULL","NULL",0]
["2-010","KelpyOfferteId","3_c_KelpyOfferteId","NULL",1,"NULL",0]
["2-010","kvs [m3/h]","3_a_kvs [m3/h]",290,0,"NULL",0]
["2-010","Material 3","3_c_Material 3",200,"NULL","NULL",0]
["2-010","Typ","3_a_Typ",290,1,"NULL",0]
["2-011","Abnahmetermin [Datum]","7_a_Abnahmetermin [Datum]",590,"NULL","NULL",0]
["2-011","Ausführung 2","3_b_Ausfuehrung 2",590,"NULL","NULL",0]
["2-011","Klartext Feldgerät","1_c_Klartext Feldgeraet",100,"NULL","Prinzipschema, Strangschema",1]
["2-011","Länge (Abmessung 1) [mm]","2_b_Laenge (Abmessung 1) [mm]",200,"NULL","Modell",0]
["2-011","Montagetermin ist [Datum]","7_b_Montagetermin ist [Datum]",590,"NULL","NULL",0]
["2-012","Achse X","5_c_Achse X","NULL","NULL","NULL",0]
["2-012","Breite (Abmessung 2) [mm]","2_b_Breite (Abmessung 2) [mm]",200,"NULL","NULL",0]
["2-012","e-BKP-H","1_b_e-BKP-H",200,"NULL","NULL",0]
["2-012","Länge (Abmessung 1) [mm]","2_b_Laenge (Abmessung 1) [mm]",200,"NULL","Modell",0]
["2-012","Montagetermin ist [Datum]","7_b_Montagetermin ist [Datum]",590,"NULL","NULL",0]
["2-012","Servicevertrag [Firma]","8_b_Servicevertrag [Firma]",590,"NULL","NULL",0]
["2-013","Achse X","5_c_Achse X","NULL","NULL","NULL",0]
["2-013","Anlagenummer (BKP-XXX)","1_a_Anlagenummer (BKP-XXX)",100,"NULL","NULL",1]
["2-013","Geschoss","5_a_Geschoss",200,"NULL","Modell",0]
["2-013","Laufnummer","0_a_Laufnummer",100,"NULL","NULL",1]
["2-013","Medium 1","2_c_Medium 1",590,"NULL","NULL",0]
["2-013","Typ","3_a_Typ",290,1,"NULL",0]
["2-014","Anlagenstruktur-SAN","1_b_Anlagenstruktur-SAN","NULL","NULL","NULL",0]
["2-014","Ausführung 1","3_b_Ausfuehrung 1",590,"NULL","NULL",0]
["2-014","Höhe (Abmessung 3) [mm]","2_b_Hoehe (Abmessung 3) [mm]",200,"NULL","NULL",0]
["2-014","Material 1","3_c_Material 1",390,0,"NULL",0]
["2-014","min. Temperatur [C]","2_c_min Temperatur [C]",590,"NULL","NULL",0]
["2-014","Typ","3_a_Typ",290,1,"NULL",0]
["2-015","Ausführung 1","3_b_Ausfuehrung 1",590,"NULL","NULL",0]
["2-015","Ausführung 2","3_b_Ausfuehrung 2",590,"NULL","NULL",0]
["2-015","Klartext Anlage funktional","1_c_Klartext Anlage funktional",590,"NULL","NULL",0]
["2-015","Länge (Abmessung 1) [mm]","2_b_Laenge (Abmessung 1) [mm]",200,"NULL","NULL",0]
["2-015","Montagetermin ist [Datum]","7_b_Montagetermin ist [Datum]",590,"NULL","NULL",0]
["2-016","Achse X","5_c_Achse X","NULL","NULL","NULL",0]
["2-016","Anlagenummer (BKP-XXX)","1_a_Anlagenummer (BKP-XXX)",100,"NULL","NULL",1]
["2-016","Durchmesser isoliert (Abmessung 5) [mm]","2_b_Durchmesser isoliert (Abmessung 5) [mm]",590,"NULL","NULL",0]
["2-016","Klartext Feldgerät Nachtext","1_c_Klartext Feldgeraet Nachtext",590,"NULL","NULL",0]
["2-016","Medium 1","2_c_Medium 1",590,"NULL","NULL",0]
["2-016","Nenndruck PN [bar]","2_b_Nenndruck PN [bar]",290,0,"NULL",0]
["2-017","Abnahmetermin [Datum]","7_a_Abnahmetermin [Datum]",590,"NULL","NULL",0]
["2-017","Breite (Abmessung 2) [mm]","2_b_Breite (Abmessung 2) [mm]",200,"NULL","NULL",0]
["2-017","Ende Garantiefrist [Datum]","8_b_Ende Garantiefrist [Datum]",590,"NULL","NULL",0]
["2-017","Kommentar technisch","9_a_Kommentar technisch",300,1,"NULL",0]
["2-017","Mieter","5_c_Mieter",590,"NULL","NULL",0]
["2-017","Positionsnummer","5_c_Positionsnummer","NULL","NULL","Prinzipschema",1]
["2-018","Abnahmetermin [Datum]","7_a_Abnahmetermin [Datum]",590,"NULL","NULL",0]
["2-018","Anlage funktional (BKP-XXX)","1_b_Anlage funktional (BKP-XXX)",490,"NULL","NULL",0]
["2-018","Ende Garantiefrist [Datum]","8_b_Ende Garantiefrist [Datum]",590,"NULL","NULL",0]
["2-018","Inbetriebsetzungstermin [Datum]","7_b_Inbetriebsetzungstermin [Datum]",590,"NULL","NULL",0]
["2-018","Klartext Raum","5_c_Klartext Raum",200,"NULL","Modell",0]
["2-018","Medium 1","2_c_Medium 1",590,"NULL","NULL",0]
["2-018","TypeID Nova dez","0_c_TypeID Nova dez","NULL","NULL","NULL",0]
["2-018","Zust.Unterhalt","8_c_Zust Unterhalt",300,"NULL","NULL",0]
["2-019","Artikelnummer RMB","0_c_Artikelnummer RMB",100,"NULL","NULL",1]
["2-019","Gewicht Betrieb [kg]","2_b_Gewicht Betrieb [kg]",200,"NULL","NULL",0]
["2-019","KelpyOfferteId","3_c_KelpyOfferteId","NULL",1,"NULL",0]
["2-019","Lieferung bauseits","7_a_Lieferung bauseits",300,1,"NULL",0]
["2-019","Positionsnummer","5_c_Positionsnummer","NULL","NULL","Prinzipschema",1]
["2-019","Servicevertrag [Nummer]","8_a_Servicevertrag [Nummer]",590,"NULL","NULL",0]
["2-020","Anlagenummer (BKP-XXX)","1_a_Anlagenummer (BKP-XXX)",100,"NULL","NULL",1]
["2-020","Ausführung 2","3_b_Ausfuehrung 2",590,"NULL","NULL",0]
["2-020","Geschoss","5_a_Geschoss",200,"NULL","Modell",0]
["2-020","max. Temperatur [C]","2_c_max Temperatur [C]",590,"NULL","NULL",0]
["2-020","SIA-Katalog","1_b_SIA-Katalog","NULL","NULL","NULL",0]
["2-020","Werkvertrag [Firma/Nummer]","8_c_Werkvertrag [Firma/Nummer]",590,"NULL","NULL",0]
["2-021","Einsatzbereich [%]","4_b_Einsatzbereich [%]",590,"NULL","NULL",0]
["2-021","KelpyOfferteId","3_c_KelpyOfferteId","NULL",1,"NULL",0]
["2-021","Lieferant","3_c_Lieferant",300,"NULL","NULL",0]
["2-021","SIA-Katalog","1_b_SIA-Katalog","NULL","NULL","NULL",0]
["2-021","System","3_b_System",200,"NULL","Prinzipschema",0]
["2-022","Anlagenummer Bauherr","1_b_Anlagenummer Bauherr",490,"NULL","NULL",0]
["2-022","Gebäude","5_c_Gebaeude",200,"NULL","Modell",0]
["2-022","Klartext Anlage funktional","1_c_Klartext Anlage funktional",590,"NULL","NULL",0]
["2-022","Montagetermin ist [Datum]","7_b_Montagetermin ist [Datum]",590,"NULL","NULL",0]
["2-022","URL","3_c_URL",300,"NULL","NULL",0]
["2-023","KelpyOfferteId","3_c_KelpyOfferteId","NULL",1,"NULL",0]
["2-023","NPK","1_b_NPK",200,1,"NULL",0]
["2-024","Anlage funktional (BKP-XXX)","1_b_Anlage funktional (BKP-XXX)",490,"NULL","NULL",0]
["2-024","Artikelnummer","3_c_Artikelnummer",300,"NULL","Modell",0]
["2-024","Ende Garantiefrist [Datum]","8_b_Ende Garantiefrist [Datum]",590,"NULL","NULL",0]
["2-024","Klartext Anlage","1_c_Klartext Anlage",100,"NULL","NULL",0]
["2-024","Lieferant","3_c_Lieferant",300,"NULL","NULL",0]
["2-024","Montagetermin geplant [Datum]","7_b_Montagetermin geplant [Datum]",590,"NULL","NULL",0]
["2-024","Raumnummer","5_a_Raumnummer",200,"NULL","Modell",0]
["2-025","Anlage funktional (BKP-XXX)","1_b_Anlage funktional (BKP-XXX)",490,"NULL","NULL",0]
["2-025","Datenpunkte AI","4_c_Datenpunkte AI",590,"NULL","NULL",0]
["2-025","Datenpunkte VA","4_c_Datenpunkt VA",590,"NULL","NULL",0]
["2-025","Geschoss","5_a_Geschoss",200,"NULL","Modell",0]
["2-025","Leistung elektrisch [W]","4_a_Leistung elektrisch [W]",390,"NULL","NULL",0]
["2-025","NPK","1_b_NPK",200,1,"NULL",0]
["2-025","Servicevertrag [Nummer]","8_a_Servicevertrag [Nummer]",590,"NULL","NULL",0]
["2-025","Zustand Stromlos","3_b_Zustand Stromlos",300,"NULL","NULL",0]
["2-028","Artikelnummer RMB","0_c_Artikelnummer RMB",100,"NULL","NULL",1]
["2-028","Ausführung 1","3_b_Ausfuehrung 1",590,"NULL","NULL",0]
["2-028","KelpyOfferteId","3_c_KelpyOfferteId","NULL",1,"NULL",0]
["2-028","Klartext Anlage","1_c_Klartext Anlage",100,"NULL","NULL",0]
["2-028","max. Temperatur [C]","2_c_max Temperatur [C]",590,"NULL","NULL",0]
["2-028","Montagetermin ist [Datum]","7_b_Montagetermin ist [Datum]",590,"NULL","NULL",0]
["2-029","Achse X","5_c_Achse X","NULL","NULL","NULL",0]
["2-029","Ausführung 2","3_b_Ausfuehrung 2",590,"NULL","NULL",0]
["2-029","Freigabe zur Bestellung [Datum]","7_a_Freigabe zur Bestellung [Datum]",400,"NULL","NULL",0]
["2-029","Höhe (Abmessung 3) [mm]","2_b_Hoehe (Abmessung 3) [mm]",200,"NULL","NULL",0]
["2-029","Länge (Abmessung 1) [mm]","2_b_Laenge (Abmessung 1) [mm]",200,"NULL","Modell",0]
["2-029","NPK","1_b_NPK",200,1,"NULL",0]
["2-029","SIA-Katalog","1_b_SIA-Katalog","NULL","NULL","NULL",0]
["2-030","Achse Y","5_c_Achse Y","NULL","NULL","NULL",0]
["2-030","Ende Garantiefrist [Datum]","8_b_Ende Garantiefrist [Datum]",590,"NULL","NULL",0]
["2-030","Instandhaltung","8_b_Instandhaltung",300,"NULL","NULL",0]
["2-030","Klartext Raum","5_c_Klartext Raum",200,"NULL","Modell",0]
["2-030","Lieferant","3_c_Lieferant",300,"NULL","NULL",0]
["2-030","SIA-Katalog","1_b_SIA-Katalog","NULL","NULL","NULL",0]
["2-030","URL","3_c_URL",300,"NULL","NULL",0]
["2-031","Anlagenummer (BKP-XXX)","1_a_Anlagenummer (BKP-XXX)",100,"NULL","NULL",1]
["2-031","Ende Garantiefrist [Datum]","8_b_Ende Garantiefrist [Datum]",590,"NULL","NULL",0]
["2-031","Klartext Raum","5_c_Klartext Raum",200,"NULL","Modell",0]
["2-031","Lieferant","3_c_Lieferant",300,"NULL","NULL",0]
["2-031","Servicevertrag [Nummer]","8_a_Servicevertrag [Nummer]",590,"NULL","NULL",0]
["2-032","Achse X","5_c_Achse X","NULL","NULL","NULL",0]
["2-032","Breite (Abmessung 2) [mm]","2_b_Breite (Abmessung 2) [mm]",200,"NULL","NULL",0]
["2-032","e-BKP-H","1_b_e-BKP-H",200,"NULL","NULL",0]
["2-032","Klartext Raum","5_c_Klartext Raum",200,"NULL","Modell",0]
["2-032","Länge (Abmessung 1) [mm]","2_b_Laenge (Abmessung 1) [mm]",200,"NULL","Modell",0]
["2-032","Montagetermin geplant [Datum]","7_b_Montagetermin geplant [Datum]",590,"NULL","NULL",0]
["2-032","Positionsnummer","5_c_Positionsnummer","NULL","NULL","Prinzipschema, Strangschema",1]
["2-032","Werkvertrag [Firma/Nummer]","8_c_Werkvertrag [Firma/Nummer]",590,"NULL","NULL",0]
["2-033","Artikelnummer","3_c_Artikelnummer",300,"NULL","Modell",0]
["2-033","KelpyOfferteId","3_c_KelpyOfferteId","NULL",1,"NULL",0]
["2-033","Klartext Raum","5_c_Klartext Raum",200,"NULL","Modell",0]
["2-033","NPK","1_b_NPK",200,1,"NULL",0]
["2-033","Werkvertrag [Firma/Nummer]","8_c_Werkvertrag [Firma/Nummer]",590,"NULL","NULL",0]
["2-034","e-BKP-H","1_b_e-BKP-H",200,"NULL","NULL",0]
["2-034","Lieferant","3_c_Lieferant",300,"NULL","NULL",0]
["2-035","Achse X","5_c_Achse X","NULL","NULL","NULL",0]
["2-035","Anlagenummer (BKP-XXX)","1_a_Anlagenummer (BKP-XXX)",100,"NULL","NULL",1]
["2-035","e-BKP-H","1_b_e-BKP-H",200,"NULL","NULL",0]
["2-035","Fabrikat","3_a_Fabrikat",290,0,"NULL",0]
["2-035","kvs [m3/h]","3_a_kvs [m3/h]",390,"NULL","NULL",0]
["2-035","Mieter","5_c_Mieter",590,"NULL","NULL",0]
["2-035","NPK","1_b_NPK",200,1,"NULL",0]
["2-080","Anlage funktional (BKP-XXX)","1_b_Anlage funktional (BKP-XXX)",490,"NULL","NULL",0]
["2-080","Klartext Anlage","1_c_Klartext Anlage",100,"NULL","NULL",0]
["2-080","Lieferant","3_c_Lieferant",300,"NULL","NULL",0]
["2-081","Anlagenummer Bauherr","1_b_Anlagenummer Bauherr",490,"NULL","NULL",0]
["2-081","Geschoss","5_a_Geschoss",200,"NULL","NULL",0]
["2-081","SIA-Katalog","1_b_SIA-Katalog","NULL","NULL","NULL",0]
["2-082","Ausführung 2","3_b_Ausfuehrung 2",590,"NULL","NULL",0]
["2-082","SIA-Katalog","1_b_SIA-Katalog","NULL","NULL","NULL",0]
["2-082","System","3_b_System",200,"NULL","NULL",0]
["2-083","Klartext Anlage","1_c_Klartext Anlage",100,"NULL","NULL",0]
["2-083","Kommentar technisch","9_a_Kommentar technisch",300,1,"NULL",0]
["2-084","Anlagenstruktur-SAN","1_b_Anlagenstruktur-SAN","NULL","NULL","NULL",0]
["2-084","Kommentar technisch","9_a_Kommentar technisch",300,1,"NULL",0]
["2-084","TypeID Nova dez","0_c_TypeID Nova dez","NULL","NULL","NULL",0]
["2-085","Artikelnummer RMB","0_c_Artikelnummer RMB",100,"NULL","NULL",1]
["2-085","NPK","1_b_NPK",200,1,"NULL",0]
["2-101","Ansprechdruck [bar]","2_a_Ansprechdruck [bar]",390,"NULL","NULL",0]
["2-101","Breite (Abmessung 2) [mm]","2_b_Breite (Abmessung 2) [mm]",200,1,"Modell",0]
["2-101","Fabrikat","3_a_Fabrikat",290,1,"NULL",0]
["2-101","Klartext Raum","5_c_Klartext Raum",200,"NULL","Modell",0]
["2-101","Lieferung bauseits","7_a_Lieferung bauseits",300,1,"NULL",0]
["2-101","SIA-Katalog","1_b_SIA-Katalog","NULL","NULL","NULL",0]
["2-101","Volumenstrom 1 [m3/h]","2_a_Volumenstrom 1 [m3/h]",290,1,"NULL",0]
["2-102","CAD Dämmung","0_c_CAD Daemmung","NULL","NULL","Modell",0]
["2-102","Frequenzband 1","2_c_Frequenzband 1",590,"NULL","NULL",0]
["2-102","Höhe (Abmessung 3) [mm]","2_b_Hoehe (Abmessung 3) [mm]",200,1,"Modell",0]
["2-102","Material Stärke (Abmessung 6) [mm]","2_b_Material Staerke (Abmessung 6) [mm]",490,"NULL","Modell",0]
["2-102","TypeID Nova dez","0_c_TypeID Nova dez","NULL","NULL","NULL",0]
["2-103","(Abmessung 10) [mm]","2_b_(Abmessung 10) [mm]",300,"NULL","NULL",1]
["2-103","Dimension 1 [DN]","2_a_Dimension 1 [DN]",290,"NULL","NULL",0]
["2-103","KelpyOfferteId","3_c_KelpyOfferteId","NULL",1,"NULL",0]
["2-103","Länge (Abmessung 1) [mm]","2_b_Laenge (Abmessung 1) [mm]",290,"NULL","NULL",0]
["2-103","Schalldruckpegel [dB]","2_b_Schalldruckpegel [dB]",290,1,"NULL",0]
["2-105","Artikelnummer RMB","0_c_Artikelnummer RMB",100,"NULL","NULL",1]
["2-105","Ausführung 1","3_b_Ausfuehrung 1",390,1,"Modell",0]
["2-105","Gebäude","5_c_Gebaeude",200,"NULL","NULL",0]
["2-105","Klartext Anlage funktional","1_c_Klartext Anlage funktional",590,"NULL","NULL",0]
["2-105","Material 1","3_c_Material 1",390,1,"NULL",0]
["2-105","Zust.Unterhalt","8_c_Zust Unterhalt",300,"NULL","NULL",0]
["2-106","Anlagenummer Bauherr","1_b_Anlagenummer Bauherr",490,"NULL","NULL",0]
["2-106","e-BKP-H","1_b_e-BKP-H",200,"NULL","NULL",0]
["2-106","Klartext Feldgerät Nachtext","1_c_Klartext Feldgeraet Nachtext",590,"NULL","NULL",0]
["2-106","Nutzung","5_a_Nutzung",390,"NULL","NULL",0]
["2-106","System","3_b_System",200,"NULL","Modell",0]
["2-107","Dämmstärke [mm]","0_c_CAD Daemmstaerke [mm]",390,"NULL","Modell",0]
["2-107","Gebäude","5_c_Gebaeude",200,"NULL","NULL",0]
["2-107","Klartext Feldgerät","1_c_Klartext Feldgeraet",100,"NULL","Modell",1]
["2-107","Typ","3_a_Typ",290,1,"NULL",0]
["2-107","TypeID Nova dez","0_c_TypeID Nova dez","NULL","NULL","NULL",0]
["2-108","Fläche 1 [m2]","2_c_Flaeche 1 [m2]",590,"NULL","NULL",0]
["2-108","Kommentar technisch","9_a_Kommentar technisch",300,1,"NULL",0]
["2-108","Nenndurchfluss [m3/h]","3_a_Nenndurchfluss [m3/h]",290,1,"NULL",0]
["2-109","Artikelnummer RMB","0_c_Artikelnummer RMB",100,"NULL","NULL",1]
["2-109","Fläche 2 [m2]","2_c_Flaeche 2 [m2]",300,"NULL","Modell",0]
["2-109","Klartext Anlage","1_c_Klartext Anlage",100,"NULL","NULL",0]
["2-109","NPK","1_b_NPK",200,1,"NULL",0]
["2-110","Breite (Abmessung 2) [mm]","2_b_Breite (Abmessung 2) [mm]",290,1,"Modell",0]
["2-110","e-BKP-H","1_b_e-BKP-H",200,"NULL","NULL",0]
["2-110","Klartext Feldgerät","1_c_Klartext Feldgeraet",100,"NULL","Modell",1]
["2-110","SIA-Katalog","1_b_SIA-Katalog","NULL","NULL","NULL",0]
["2-111","(Abmessung 10) [mm]","2_b_(Abmessung 10) [mm]",300,"NULL","NULL",0]
["2-111","Durchmesser (Abmessung 4) [mm]","2_b_Durchmesser (Abmessung 4) [mm]",290,1,"Modell",0]
["2-111","Fläche 2 [m2]","2_c_Flaeche 2 [m2]",300,"NULL","Modell",0]
["2-111","Laufnummer","0_a_Laufnummer",100,"NULL","NULL",1]
["2-111","TypeID Nova dez","0_c_TypeID Nova dez","NULL","NULL","NULL",0]
["2-112","Artikelnummer RMB","0_c_Artikelnummer RMB",100,"NULL","NULL",1]
["2-112","Freigabe zur Bestellung [Datum]","7_a_Freigabe zur Bestellung [Datum]",400,"NULL","NULL",0]
["2-112","NPK","1_b_NPK",200,1,"NULL",0]
["2-112","URL","3_c_URL",300,"NULL","NULL",0]
["2-113","Breite (Abmessung 2) [mm]","2_b_Breite (Abmessung 2) [mm]",290,1,"Modell",0]
["2-113","Klartext Feldgerät Nachtext","1_c_Klartext Feldgeraet Nachtext",590,"NULL","NULL",0]
["2-113","Raumnummer","5_a_Raumnummer",200,"NULL","NULL",0]
["2-113","TypeID Nova dez","0_c_TypeID Nova dez","NULL","NULL","NULL",0]
["2-114","Durchmesser (Abmessung 4) [mm]","2_b_Durchmesser (Abmessung 4) [mm]",290,1,"Modell",0]
["2-114","Farbe 1","3_c_Farbe 1",390,1,"NULL",0]
["2-114","Material 1","3_c_Material 1",390,1,"NULL",0]
["2-114","Volumenstrom 1 [m3/h]","2_a_Volumenstrom 1 [m3/h]",390,"NULL","NULL",0]
["2-131","CAD Dämmung","0_c_CAD Daemmung","NULL","NULL","Modell",0]
["2-131","Durchmesser isoliert (Abmessung 5) [mm]","2_b_Durchmesser isoliert (Abmessung 5) [mm]",290,1,"Modell",0]
["2-131","Höhe (Abmessung 3) [mm]","2_b_Hoehe (Abmessung 3) [mm]",200,1,"Modell",0]
["2-131","Klartext Feldgerät","1_c_Klartext Feldgeraet",100,"NULL","Modell",1]
["2-131","Raumnummer","5_a_Raumnummer",200,"NULL","Modell",0]
["2-131","Volumenstrom 1 [m3/h]","2_a_Volumenstrom 1 [m3/h]",390,"NULL","NULL",0]
["2-141","Ansprechdruck [bar]","2_a_Ansprechdruck [bar]",390,"NULL","NULL",0]
["2-141","Durchmesser (Abmessung 4) [mm]","2_b_Durchmesser (Abmessung 4) [mm]",200,1,"Modell",0]
["2-141","Klartext Anlage","1_c_Klartext Anlage",100,"NULL","NULL",0]
["2-141","Klartext Feldgerät Nachtext","1_c_Klartext Feldgeraet Nachtext",590,"NULL","NULL",0]
["2-141","Nutzung","5_a_Nutzung",390,"NULL","NULL",0]
["2-141","Schutzart IP","4_c_Schutzart IP",590,"NULL","NULL",0]
["2-141","URL","3_c_URL",300,"NULL","NULL",0]
["2-142","Dämmungsspezifikation","0_a_Daemmungsspezifikation","NULL","NULL","Modell",0]
["2-142","Geschoss","5_a_Geschoss",200,"NULL","Modell",0]
["2-142","Klartext Anlage","1_c_Klartext Anlage",100,"NULL","NULL",0]
["2-142","NPK","1_b_NPK",200,1,"NULL",0]
["2-142","SIA-Katalog","1_b_SIA-Katalog","NULL","NULL","NULL",0]
["2-143","(Abmessung 10) [mm]","2_b_(Abmessung 10) [mm]",300,"NULL","NULL",0]
["2-143","Fabrikat","3_a_Fabrikat",290,1,"NULL",0]
["2-143","Klartext Anlage funktional","1_c_Klartext Anlage funktional",590,"NULL","NULL",0]
["2-143","Länge (Abmessung 1) [mm]","2_b_Laenge (Abmessung 1) [mm]",200,1,"NULL",0]
["2-143","System","3_b_System",200,"NULL","Modell",0]
["2-143","Zust.Unterhalt","8_c_Zust Unterhalt",300,"NULL","NULL",0]
["2-151","Artikelnummer RMB","0_c_Artikelnummer RMB",100,"NULL","NULL",1]
["2-151","Dämmstärke [mm]","0_c_CAD Daemmstaerke [mm]",390,0,"Modell",1]
["2-151","Fläche 1 [m2]","2_c_Flaeche 1 [m2]",590,"NULL","NULL",0]
["2-151","Klartext Raum","5_c_Klartext Raum",200,"NULL","Modell",0]
["2-151","Lieferung bauseits","7_a_Lieferung bauseits",300,1,"NULL",0]
["2-151","Regelungsart","4_a_Regelungsart",390,"NULL","NULL",0]
["2-151","Zust.Unterhalt","8_c_Zust Unterhalt",300,"NULL","NULL",0]
["2-160","Differenzdruck 5 [Pa]","2_a_Differenzdruck 5 [Pa]",290,1,"NULL",0]
["2-160","Geschoss","5_a_Geschoss",200,"NULL","Modell",0]
["2-160","Klartext Feldgerät","1_c_Klartext Feldgeraet",100,"NULL","Prinzipschema, Strangschema",1]
["2-160","System","3_b_System",200,"NULL","Modell",0]
["2-161","(Abmessung 10) [mm]","2_b_(Abmessung 10) [mm]",300,"NULL","NULL",0]
["2-161","CAD Dämmung","0_c_CAD Daemmung","NULL","NULL","NULL",0]
["2-161","Fläche 2 [m2]","2_c_Flaeche 2 [m2]",300,"NULL","NULL",0]
["2-161","Klartext Feldgerät Nachtext","1_c_Klartext Feldgeraet Nachtext",590,"NULL","NULL",0]
["2-161","Raumnummer","5_a_Raumnummer",200,"NULL","Modell",0]
["2-161","TypeID Nova dez","0_c_TypeID Nova dez","NULL","NULL","NULL",0]
["2-171","Fabrikat","3_a_Fabrikat",290,1,"NULL",0]
["2-171","Klartext Raum","5_c_Klartext Raum",200,"NULL","Modell",0]
["2-171","Lieferung bauseits","7_a_Lieferung bauseits",300,1,"NULL",0]
["2-181","Anlagenummer (BKP-XXX)","1_a_Anlagenummer (BKP-XXX)",100,"NULL","NULL",1]
["2-181","Höhe (Abmessung 3) [mm]","2_b_Hoehe (Abmessung 3) [mm]",290,1,"Modell",0]
["2-181","Klartext Raum","5_c_Klartext Raum",200,"NULL","Modell",0]
["2-181","System","3_b_System",200,"NULL","Modell",0]
["2-191","Freigabe zur Bestellung [Datum]","7_a_Freigabe zur Bestellung [Datum]",400,"NULL","NULL",0]
["2-191","Gebäude","5_c_Gebaeude",200,"NULL","NULL",0]
["2-191","Montageset","3_c_Montageset",590,"NULL","NULL",0]
["2-191","URL","3_c_URL",300,"NULL","NULL",0]
["2-192","Fabrikat","3_a_Fabrikat",290,1,"NULL",0]
["2-192","NPK","1_b_NPK",200,1,"NULL",0]
["2-401","Achse Z","5_c_Achse Z","NULL","NULL","NULL",0]
["2-401","Ausführung 1","3_b_Ausfuehrung 1",590,"NULL","NULL",0]
["2-401","Freigabe zur Bestellung [Datum]","7_a_Freigabe zur Bestellung [Datum]",400,"NULL","NULL",0]
["2-401","Klartext Raum","5_c_Klartext Raum",200,"NULL","Modell",0]
["2-401","Lieferung bauseits","7_a_Lieferung bauseits",300,1,"NULL",0]
["2-401","Montagetermin ist [Datum]","7_b_Montagetermin ist [Datum]",590,"NULL","NULL",0]
["2-402","Achse X","5_c_Achse X","NULL","NULL","NULL",0]
["2-402","Anlagenummer (BKP-XXX)","1_a_Anlagenummer (BKP-XXX)",100,"NULL","NULL",1]
["2-402","Dimension 1 [DN]","2_a_Dimension 1 [DN]",290,1,"NULL",1]
["2-402","Freigabe zur Bestellung [Datum]","7_a_Freigabe zur Bestellung [Datum]",400,"NULL","NULL",0]
["2-402","Material 1","3_c_Material 1",390,0,"NULL",0]
["2-402","Montagetermin geplant [Datum]","7_b_Montagetermin geplant [Datum]",590,"NULL","NULL",0]
["2-402","Raumnummer","5_a_Raumnummer",200,"NULL","Modell",0]
["2-403","Abfluss [l/s]","2_a_Abfluss [l/s]",390,"NULL","NULL",0]
["2-403","Dämmungsspezifikation","0_a_Daemmungsspezifikation","NULL","NULL","Prinzipschema",0]
["2-403","Gebäude","5_c_Gebaeude",200,"NULL","NULL",0]
["2-403","Klartext Anlage funktional","1_c_Klartext Anlage funktional",590,"NULL","NULL",0]
["2-403","min. Temperatur [C]","2_c_min Temperatur [C]",590,"NULL","NULL",0]
["2-403","NPK","1_b_NPK",200,1,"NULL",0]
["2-403","Zust.Unterhalt","8_c_Zust Unterhalt",300,"NULL","NULL",0]
["2-404","Ausführung 1","3_b_Ausfuehrung 1",490,"NULL","NULL",0]
["2-404","Ausführung 2","3_b_Ausfuehrung 2",490,"NULL","NULL",0]
["2-404","Geschoss","5_a_Geschoss",200,"NULL","Modell",0]
["2-404","Instandhaltung","8_b_Instandhaltung",300,"NULL","NULL",0]
["2-404","Massenstrom 1 [kg/h]","2_a_Massenstrom 1 [kg/h]",390,0,"NULL",0]
["2-404","Mieter","5_c_Mieter",590,"NULL","NULL",0]
["2-404","RMB Zlr Nr.","8_a_RMB Zlr Nr",390,"NULL","NULL",0]
["2-404","Temperatur 1 [C]","2_a_Temperatur 1 [C]",390,"NULL","NULL",0]
["2-404","Werkvertrag [Firma/Nummer]","8_c_Werkvertrag [Firma/Nummer]",590,"NULL","NULL",0]
["2-405","Ausführung 4","3_b_Ausfuehrung 4",490,"NULL","NULL",0]
["2-405","Differenzdruck 2 [kPa]","2_a_Differenzdruck 2 [kPa]",390,"NULL","NULL",0]
["2-405","Instandhaltung","8_b_Instandhaltung",300,"NULL","NULL",0]
["2-405","Lieferung bauseits","7_a_Lieferung bauseits",300,1,"NULL",0]
["2-405","Material Stärke (Abmessung 6) [mm]","2_b_Material Staerke (Abmessung 6) [mm]",490,"NULL","NULL",0]
["2-405","min. Temperatur [C]","2_c_min Temperatur [C]",590,"NULL","NULL",0]
["2-405","Nenndurchfluss [m3/h]","3_a_Nenndurchfluss [m3/h]",390,"NULL","NULL",0]
["2-405","TypeID Nova dez","0_c_TypeID Nova dez","NULL","NULL","NULL",0]
["2-406","Achse Z","5_c_Achse Z","NULL","NULL","NULL",0]
["2-406","Anlagenummer (BKP-XXX)","1_a_Anlagenummer (BKP-XXX)",100,"NULL","NULL",1]
["2-406","Geschoss","5_a_Geschoss",200,"NULL","Modell",0]
["2-406","Kommentar technisch","9_a_Kommentar technisch",300,1,"NULL",0]
["2-406","Material 1","3_c_Material 1",390,0,"NULL",0]
["2-406","NPK","1_b_NPK",200,1,"NULL",0]
["2-407","Absolutdruck 1 [bar]","2_c_Absolutdruck 1 [bar]",390,"NULL","NULL",0]
["2-407","Anlagenstruktur-SAN","1_b_Anlagenstruktur-SAN","NULL","NULL","NULL",0]
["2-407","Differenzdruck 2 [kPa]","2_a_Differenzdruck 2 [kPa]",390,"NULL","NULL",0]
["2-407","Gebäude","5_c_Gebaeude",200,"NULL","NULL",0]
["2-407","Klartext Anlage funktional","1_c_Klartext Anlage funktional",590,"NULL","NULL",0]
["2-407","max. Temperatur [C]","2_c_max Temperatur [C]",590,"NULL","NULL",0]
["2-407","Montageset","3_c_Montageset",590,"NULL","NULL",0]
["2-407","Servicevertrag [Nummer]","8_a_Servicevertrag [Nummer]",390,"NULL","NULL",0]
["2-408","Achse Y","5_c_Achse Y","NULL","NULL","NULL",0]
["2-408","Anlagenummer (BKP-XXX)","1_a_Anlagenummer (BKP-XXX)",100,"NULL","NULL",1]
["2-408","e-BKP-H","1_b_e-BKP-H",200,0,"NULL",0]
["2-408","Kommentar technisch","9_a_Kommentar technisch",300,1,"NULL",0]
["2-408","max. Temperatur [C]","2_c_max Temperatur [C]",590,"NULL","NULL",0]
["2-408","Montagetermin geplant [Datum]","7_b_Montagetermin geplant [Datum]",590,"NULL","NULL",0]
["2-408","Wartungsintervall [Betriebsstunden]","8_c_Wartungsintervall [Betriebsstunden]",590,"NULL","NULL",0]
["2-409","Artikelnummer","3_c_Artikelnummer",300,"NULL","Modell",0]
["2-409","Dämmungsspezifikation","0_a_Daemmungsspezifikation","NULL","NULL","Prinzipschema",0]
["2-409","Ende Garantiefrist [Datum]","8_b_Ende Garantiefrist [Datum]",590,"NULL","NULL",0]
["2-409","KelpyOfferteId","3_c_KelpyOfferteId","NULL",1,"NULL",0]
["2-409","Material 3","3_c_Material 3",200,"NULL","NULL",0]
["2-409","Raumnummer","5_a_Raumnummer",200,"NULL","Modell",0]
["2-409","Temperatur 1 [C]","2_a_Temperatur 1 [C]",390,"NULL","NULL",0]
["2-410","Gebäude","5_c_Gebaeude",200,"NULL","NULL",0]
["2-410","Raumnummer","5_a_Raumnummer",200,"NULL","NULL",0]
["2-411","Abnahmetermin [Datum]","7_a_Abnahmetermin [Datum]",590,"NULL","NULL",0]
["2-411","Ausführung 1","3_b_Ausfuehrung 1",590,"NULL","NULL",0]
["2-411","Gewicht leer [kg]","2_c_Gewicht leer [kg]",590,"NULL","NULL",0]
["2-411","Klartext Feldgerät Nachtext","1_c_Klartext Feldgeraet Nachtext",590,"NULL","NULL",0]
["2-411","Material 3","3_c_Material 3",200,"NULL","NULL",0]
["2-411","Voreinstellung","3_a_Voreinstellung",290,"NULL","NULL",0]
["2-414","Achse Y","5_c_Achse Y","NULL","NULL","NULL",0]
["2-414","Ausführung 2","3_b_Ausfuehrung 2",590,"NULL","NULL",0]
["2-414","Ende Garantiefrist [Datum]","8_b_Ende Garantiefrist [Datum]",590,"NULL","NULL",0]
["2-414","Klartext Feldgerät Nachtext","1_c_Klartext Feldgeraet Nachtext",590,"NULL","NULL",0]
["2-414","Nenndruck PN [bar]","2_b_Nenndruck PN [bar]",290,"NULL","NULL",0]
["2-414","Servicevertrag [Nummer]","8_a_Servicevertrag [Nummer]",590,"NULL","NULL",0]
["2-415","Achse Y","5_c_Achse Y","NULL","NULL","NULL",0]
["2-415","Durchmesser (Abmessung 4) [mm]","2_b_Durchmesser (Abmessung 4) [mm]",200,"NULL","NULL",0]
["2-415","Inbetriebsetzungstermin [Datum]","7_b_Inbetriebsetzungstermin [Datum]",590,"NULL","NULL",0]
["2-415","Klartext Feldgerät Nachtext","1_c_Klartext Feldgeraet Nachtext",590,"NULL","NULL",0]
["2-415","Medium 1","2_c_Medium 1",590,"NULL","NULL",0]
["2-415","System","3_b_System",200,"NULL","Prinzipschema",0]
["2-415","Werkvertrag [Firma/Nummer]","8_c_Werkvertrag [Firma/Nummer]",590,"NULL","NULL",0]
["2-910","Laufnummer","0_a_Laufnummer",100,"NULL","NULL",1]
["2-999","Anlagenstruktur-SAN","1_b_Anlagenstruktur-SAN","NULL","NULL","NULL",0]
["2-999","Fabrikat","3_a_Fabrikat",290,1,"NULL",0]
["2-999","Lieferant","3_c_Lieferant",300,"NULL","NULL",0]
["2-999","System","3_b_System",200,"NULL","NULL",0]
["3-001","Artikelnummer RMB","0_c_Artikelnummer RMB",100,"NULL","NULL",1]
["3-001","Datenpunkte AO","4_c_Datenpunkte AO",590,"NULL","NULL",0]
["3-001","Dimension 1 [DN]","2_a_Dimension 1 [DN]",290,1,"NULL",1]
["3-001","Hub [mm]","3_b_Hub [mm]",290,0,"NULL",0]
["3-001","kvs [m3/h]","3_a_kvs [m3/h]",590,"NULL","NULL",0]
["3-001","Lieferant","3_c_Lieferant",300,"NULL","NULL",0]
["3-001","max. Differenzdruck [kPa]","2_c_max Differenzdruck [kPa]",590,"NULL","NULL",0]
["3-001","SGK Zuordnung","6_a_SGK Zuordnung",390,"NULL","NULL",0]
["3-001","Steuersignal","4_a_Steuersignal",390,"NULL","NULL",0]
["3-001","Voreinstellung","3_a_Voreinstellung",290,0,"NULL",1]
["3-002","Anschlussart","3_c_Anschlussart",590,"NULL","NULL",0]
["3-002","Ausführung 1","3_b_Ausfuehrung 1",590,"NULL","NULL",0]
["3-002","Durchmesser (Abmessung 4) [mm]","2_b_Durchmesser (Abmessung 4) [mm]",200,"NULL","NULL",0]
["3-002","Ex-Schutz","4_c_Ex-Schutz",590,"NULL","NULL",0]
["3-002","Instandhaltung","8_b_Instandhaltung",300,"NULL","NULL",0]
["3-002","Laufnummer","0_a_Laufnummer",100,"NULL","NULL",1]
["3-002","Material 3","3_c_Material 3",200,"NULL","NULL",0]
["3-002","Raumnummer","5_a_Raumnummer",200,"NULL","Modell",0]
["3-002","Temperatur 2 [C]","2_a_Temperatur 2 [C]",390,"NULL","NULL",0]
["3-002","Werkvertrag [Firma/Nummer]","8_c_Werkvertrag [Firma/Nummer]",590,"NULL","NULL",0]
["3-003","Anlagenstruktur-SAN","1_b_Anlagenstruktur-SAN","NULL","NULL","NULL",0]
["3-003","Datenpunkte DO","4_c_Datenpunkte DO",590,"NULL","NULL",0]
["3-003","Datenpunkte MBus","4_c_Datenpunkt MBus",590,"NULL","NULL",0]
["3-003","Gebäude","5_c_Gebaeude",200,"NULL","Modell",0]
["3-003","Klartext Anlage funktional","1_c_Klartext Anlage funktional",590,"NULL","NULL",0]
["3-003","Kommentar technisch","9_a_Kommentar technisch",300,1,"NULL",0]
["3-003","Mieter","5_c_Mieter",590,"NULL","NULL",0]
["3-003","Servicevertrag [Firma]","8_b_Servicevertrag [Firma]",590,"NULL","NULL",0]
["3-003","Temperatur 1 [C]","2_a_Temperatur 1 [C]",390,"NULL","NULL",0]
["3-003","Werkvertrag [Firma/Nummer]","8_c_Werkvertrag [Firma/Nummer]",590,"NULL","NULL",0]
["3-004","Artikelnummer","3_c_Artikelnummer",300,"NULL","Modell",0]
["3-004","Bezeichnung GA (AKS)","6_c_Bezeichnung GA (AKS)",590,"NULL","NULL",0]
["3-004","Dimension 1 [DN]","2_a_Dimension 1 [DN]",290,1,"NULL",1]
["3-004","Gebäude","5_c_Gebaeude",200,"NULL","Modell",0]
["3-004","Klartext Anlage","1_c_Klartext Anlage",100,"NULL","NULL",0]
["3-004","Lieferant","3_c_Lieferant",300,"NULL","NULL",0]
["3-004","Material 2","3_c_Material 2",200,"NULL","NULL",0]
["3-004","Raumnummer","5_a_Raumnummer",200,"NULL","Modell",0]
["3-004","System","3_b_System",200,"NULL","Prinzipschema, Strangschema",0]
["3-004","TypeID Nova dez","0_c_TypeID Nova dez","NULL","NULL","NULL",0]
["3-005","Anlage funktional (BKP-XXX)","1_b_Anlage funktional (BKP-XXX)",490,"NULL","NULL",0]
["3-005","Datenpunkte DI","4_c_Datenpunkte DI",590,"NULL","NULL",0]
["3-005","Einsatzbereich [%]","4_b_Einsatzbereich [%]",590,"NULL","NULL",0]
["3-005","Freigabe zur Bestellung [Datum]","7_a_Freigabe zur Bestellung [Datum]",400,"NULL","NULL",0]
["3-005","Kommentar technisch","9_a_Kommentar technisch",300,1,"NULL",0]
["3-005","Material 3","3_c_Material 3",200,"NULL","NULL",0]
["3-005","Montagetermin geplant [Datum]","7_b_Montagetermin geplant [Datum]",590,"NULL","NULL",0]
["3-005","Servicevertrag [Nummer]","8_a_Servicevertrag [Nummer]",590,"NULL","NULL",0]
["3-005","Stellzeit [s]","3_b_Stellzeit [s]",290,1,"NULL",0]
["3-006","Achse X","5_c_Achse X","NULL","NULL","NULL",0]
["3-006","Anlagenstruktur-SAN","1_b_Anlagenstruktur-SAN","NULL","NULL","NULL",0]
["3-006","Datenpunkte DO","4_c_Datenpunkte DO",590,"NULL","NULL",0]
["3-006","Ende Garantiefrist [Datum]","8_b_Ende Garantiefrist [Datum]",590,"NULL","NULL",0]
["3-006","Instandhaltung","8_b_Instandhaltung",300,"NULL","NULL",0]
["3-006","Klartext Feldgerät","1_c_Klartext Feldgeraet",100,"NULL","Prinzipschema, Strangschema",1]
["3-006","max. Temperatur [C]","2_c_max Temperatur [C]",590,"NULL","NULL",0]
["3-006","Montagetermin geplant [Datum]","7_b_Montagetermin geplant [Datum]",590,"NULL","NULL",0]
["3-006","SGK Zuordnung","6_a_SGK Zuordnung",390,"NULL","NULL",0]
["3-006","Wartungsintervall [Betriebsstunden]","8_c_Wartungsintervall [Betriebsstunden]",590,"NULL","NULL",0]
["3-007","Artikelnummer","3_c_Artikelnummer",300,"NULL","Modell",0]
["3-007","Datenpunkte AO","4_c_Datenpunkte AO",590,"NULL","NULL",0]
["3-007","Differenzdruck 1 [kPa]","2_a_Differenzdruck 1 [kPa]",290,0,"NULL",1]
["3-007","e-BKP-H","1_b_e-BKP-H",200,"NULL","NULL",0]
["3-007","Instandhaltung","8_b_Instandhaltung",300,"NULL","NULL",0]
["3-007","Laufnummer","0_a_Laufnummer",100,"NULL","NULL",1]
["3-007","Material 2","3_c_Material 2",200,"NULL","NULL",0]
["3-007","Montagetermin ist [Datum]","7_b_Montagetermin ist [Datum]",590,"NULL","NULL",0]
["3-007","Steuersignal","4_a_Steuersignal",290,0,"NULL",0]
["3-007","Typ","3_a_Typ",290,1,"NULL",1]
["3-008","Anlagenummer (BKP-XXX)","1_a_Anlagenummer (BKP-XXX)",100,"NULL","NULL",1]
["3-008","Datenpunkte AI","4_c_Datenpunkte AI",590,"NULL","NULL",0]
["3-008","Datenpunkte VA","4_c_Datenpunkt VA",590,"NULL","NULL",0]
["3-008","Fabrikat (Antrieb)","3_a_Fabrikat (Antrieb)",590,"NULL","NULL",0]
["3-008","Klartext Raum","5_c_Klartext Raum",200,"NULL","Modell",0]
["3-008","Länge (Abmessung 1) [mm]","2_b_Laenge (Abmessung 1) [mm]",200,"NULL","NULL",0]
["3-008","Medium 1","2_c_Medium 1",590,"NULL","NULL",0]
["3-008","Montagetermin ist [Datum]","7_b_Montagetermin ist [Datum]",590,"NULL","NULL",0]
["3-008","SGK Zuordnung","6_a_SGK Zuordnung",390,"NULL","NULL",0]
["3-008","Typ (Antrieb)","3_a_Typ (Antrieb)",290,1,"NULL",1]
["3-009","Artikelnummer RMB","0_c_Artikelnummer RMB",100,"NULL","NULL",1]
["3-009","Breite (Abmessung 2) [mm]","2_b_Breite (Abmessung 2) [mm]",200,"NULL","NULL",0]
["3-009","Freigabe zur Bestellung [Datum]","7_a_Freigabe zur Bestellung [Datum]",400,"NULL","NULL",0]
["3-009","Klartext Feldgerät Nachtext","1_c_Klartext Feldgeraet Nachtext",590,"NULL","NULL",0]
["3-009","Lieferung bauseits","7_a_Lieferung bauseits",300,1,"NULL",0]
["3-009","Raumnummer","5_a_Raumnummer",200,"NULL","Modell",0]
["3-009","Temperatur 1 [C]","2_a_Temperatur 1 [C]",590,"NULL","NULL",0]
["3-009","Wartungsintervall [Betriebsstunden]","8_c_Wartungsintervall [Betriebsstunden]",590,"NULL","NULL",0]
["3-010","Artikelnummer RMB","0_c_Artikelnummer RMB",100,"NULL","NULL",1]
["3-010","Datenpunkte AI","4_c_Datenpunkte AI",590,"NULL","NULL",0]
["3-010","Fabrikat","3_a_Fabrikat",290,1,"NULL",1]
["3-010","Klartext Feldgerät","1_c_Klartext Feldgeraet",100,"NULL","Strangschema",1]
["3-010","Laufnummer","0_a_Laufnummer",100,"NULL","NULL",1]
["3-010","Servicevertrag [Firma]","8_b_Servicevertrag [Firma]",590,"NULL","NULL",0]
["3-010","System","3_b_System",200,"NULL","Strangschema",0]
["3-010","URL","3_c_URL",300,"NULL","NULL",0]
["3-011","Artikelnummer","3_c_Artikelnummer",300,"NULL","Modell",0]
["3-011","Durchmesser isoliert (Abmessung 5) [mm]","2_b_Durchmesser isoliert (Abmessung 5) [mm]",590,"NULL","NULL",0]
["3-011","Freigabe zur Bestellung [Datum]","7_a_Freigabe zur Bestellung [Datum]",400,"NULL","NULL",0]
["3-011","Klartext Anlage funktional","1_c_Klartext Anlage funktional",590,"NULL","NULL",0]
["3-011","min. Temperatur [C]","2_c_min Temperatur [C]",590,"NULL","NULL",0]
["3-011","Montageset","3_c_Montageset",590,"NULL","NULL",1]
["3-011","Temperatur 1 [C]","2_a_Temperatur 1 [C]",590,"NULL","NULL",0]
["3-011","TypeID Nova dez","0_c_TypeID Nova dez","NULL","NULL","NULL",0]
["3-012","Datenpunkte DI","4_c_Datenpunkte DI",390,"NULL","NULL",0]
["3-012","Klartext Feldgerät","1_c_Klartext Feldgeraet",100,"NULL","Prinzipschema, Strangschema",1]
["3-012","Lieferant","3_c_Lieferant",300,"NULL","NULL",0]
["3-012","Strom [A]","4_a_Strom [A]",390,"NULL","NULL",0]
["3-013","Artikelnummer RMB","0_c_Artikelnummer RMB",100,"NULL","NULL",1]
["3-013","Datenpunkte VA","4_c_Datenpunkt VA",590,"NULL","NULL",0]
["3-013","Einsatzbereich [%]","4_b_Einsatzbereich [%]",390,"NULL","NULL",0]
["3-013","Höhe (Abmessung 3) [mm]","2_b_Hoehe (Abmessung 3) [mm]",200,"NULL","NULL",0]
["3-013","Medium 1","2_c_Medium 1",590,"NULL","NULL",0]
["3-013","Montagetermin geplant [Datum]","7_b_Montagetermin geplant [Datum]",590,"NULL","NULL",0]
["3-013","Temperatur 1 [C]","2_a_Temperatur 1 [C]",590,"NULL","NULL",0]
["3-013","Temperatur 2 [C]","2_a_Temperatur 2 [C]",590,"NULL","NULL",0]
["3-014","Artikelnummer RMB","0_c_Artikelnummer RMB",100,"NULL","NULL",1]
["3-014","Datenpunkte MBus","4_c_Datenpunkt MBus",590,"NULL","NULL",0]
["3-014","e-BKP-H","1_b_e-BKP-H",200,"NULL","NULL",0]
["3-014","Klartext Feldgerät","1_c_Klartext Feldgeraet",100,"NULL","Prinzipschema",1]
["3-014","Medium 1","2_c_Medium 1",590,"NULL","NULL",0]
["3-014","Montageset","3_c_Montageset",590,"NULL","NULL",1]
["3-014","SIA-Katalog","1_b_SIA-Katalog","NULL","NULL","NULL",0]
["3-015","Achse Z","5_c_Achse Z","NULL","NULL","NULL",0]
["3-015","Artikelnummer","3_c_Artikelnummer",300,"NULL","Modell",0]
["3-015","Datenpunkte DO","4_c_Datenpunkte DO",590,"NULL","NULL",0]
["3-015","Inbetriebsetzungstermin [Datum]","7_b_Inbetriebsetzungstermin [Datum]",590,"NULL","NULL",0]
["3-015","Klartext Anlage funktional","1_c_Klartext Anlage funktional",590,"NULL","NULL",0]
["3-015","max. Temperatur [C]","2_c_max Temperatur [C]",590,"NULL","NULL",0]
["3-015","Montageset","3_c_Montageset",590,"NULL","NULL",0]
["3-015","Typ","3_a_Typ",290,1,"NULL",0]
["3-016","Achse Y","5_c_Achse Y","NULL","NULL","NULL",0]
["3-016","Anlagenummer Bauherr","1_b_Anlagenummer Bauherr",490,"NULL","NULL",0]
["3-016","Datenpunkte DO","4_c_Datenpunkte DO",590,"NULL","NULL",0]
["3-016","Höhe (Abmessung 3) [mm]","2_b_Hoehe (Abmessung 3) [mm]",200,"NULL","NULL",0]
["3-016","Länge (Abmessung 1) [mm]","2_b_Laenge (Abmessung 1) [mm]",200,"NULL","NULL",0]
["3-016","Material 1","3_c_Material 1",590,"NULL","NULL",0]
["3-016","Servicevertrag [Firma]","8_b_Servicevertrag [Firma]",590,"NULL","NULL",0]
["3-016","URL","3_c_URL",300,"NULL","NULL",0]
["3-017","Abnahmetermin [Datum]","7_a_Abnahmetermin [Datum]",590,"NULL","NULL",0]
["3-017","Datenpunkte AO","4_c_Datenpunkte AO",590,"NULL","NULL",0]
["3-017","Datenpunkte DI","4_c_Datenpunkte DI",590,"NULL","NULL",0]
["3-017","Geschoss","5_a_Geschoss",200,"NULL","Modell",0]
["3-017","Klartext Feldgerät Nachtext","1_c_Klartext Feldgeraet Nachtext",590,"NULL","NULL",0]
["3-017","Lieferant","3_c_Lieferant",300,"NULL","NULL",0]
["3-017","Raumnummer","5_a_Raumnummer",200,"NULL","Modell",0]
["3-017","Typ","3_a_Typ",290,1,"NULL",1]
["3-018","Abnahmetermin [Datum]","7_a_Abnahmetermin [Datum]",590,"NULL","NULL",0]
["3-018","Bezeichnung GA (AKS)","6_c_Bezeichnung GA (AKS)",590,"NULL","NULL",0]
["3-018","Einsatzbereich [%]","4_b_Einsatzbereich [%]",390,"NULL","NULL",0]
["3-018","Gebäude","5_c_Gebaeude",200,"NULL","Modell",0]
["3-018","Klartext Raum","5_c_Klartext Raum",200,"NULL","Modell",0]
["3-018","Montageset","3_c_Montageset",590,"NULL","NULL",0]
["3-018","Schutzart IP","4_c_Schutzart IP",590,"NULL","NULL",0]
["3-018","TypeID Nova dez","0_c_TypeID Nova dez","NULL","NULL","NULL",0]
["3-019","Achse X","5_c_Achse X","NULL","NULL","NULL",0]
["3-019","Bezeichnung Elektroschema (BMK)","6_a_Bezeichnung Elektroschema (BMK)",390,"NULL","NULL",0]
["3-019","e-BKP-H","1_b_e-BKP-H",200,"NULL","NULL",0]
["3-019","Geschoss","5_a_Geschoss",200,"NULL","Modell",0]
["3-019","Kommentar technisch","9_a_Kommentar technisch",300,1,"NULL",0]
["3-019","NPK","1_b_NPK",200,1,"NULL",0]
["3-019","Schutzart IP","4_c_Schutzart IP",590,"NULL","NULL",0]
["3-019","TypeID Nova dez","0_c_TypeID Nova dez","NULL","NULL","NULL",0]
["3-020","Ausführung 2","3_b_Ausfuehrung 2",490,"NULL","NULL",0]
["3-020","Durchmesser (Abmessung 4) [mm]","2_b_Durchmesser (Abmessung 4) [mm]",200,"NULL","NULL",0]
["3-020","Ex-Schutz","4_c_Ex-Schutz",590,"NULL","NULL",0]
["3-020","Klartext Feldgerät","1_c_Klartext Feldgeraet",100,"NULL","Prinzipschema, Strangschema",1]
["3-020","Kommentar technisch","9_a_Kommentar technisch",300,1,"NULL",0]
["3-020","NPK","1_b_NPK",200,1,"NULL",0]
["3-020","Servicevertrag [Nummer]","8_a_Servicevertrag [Nummer]",590,"NULL","NULL",0]
["3-020","TypeID Nova dez","0_c_TypeID Nova dez","NULL","NULL","NULL",0]
["3-021","Anlagenummer (BKP-XXX)","1_a_Anlagenummer (BKP-XXX)",100,"NULL","NULL",1]
["3-021","Durchmesser (Abmessung 4) [mm]","2_b_Durchmesser (Abmessung 4) [mm]",200,"NULL","NULL",0]
["3-021","Ex-Schutz","4_c_Ex-Schutz",590,"NULL","NULL",0]
["3-021","Klartext Raum","5_c_Klartext Raum",200,"NULL","Modell",0]
["3-021","Material 1","3_c_Material 1",590,"NULL","NULL",0]
["3-021","Positionsnummer","5_c_Positionsnummer","NULL","NULL","Prinzipschema, Strangschema",1]
["3-021","Steuersignal","4_a_Steuersignal",390,"NULL","NULL",0]
["3-022","Bezeichnung GA (AKS)","6_c_Bezeichnung GA (AKS)",290,"NULL","NULL",1]
["3-022","Datenpunkte DO","4_c_Datenpunkte DO",390,"NULL","NULL",0]
["3-022","Dimension 1 [DN]","2_a_Dimension 1 [DN]",290,0,"NULL",1]
["3-022","Instandhaltung","8_b_Instandhaltung",300,"NULL","NULL",0]
["3-022","Massenstrom 1 [kg/h]","2_a_Massenstrom 1 [kg/h]",290,0,"NULL",1]
["3-022","Positionsnummer","5_c_Positionsnummer","NULL","NULL","Prinzipschema, Strangschema",1]
["3-022","System","3_b_System",200,"NULL","Prinzipschema, Strangschema",0]
["3-022","Typ (Antrieb)","3_a_Typ (Antrieb)",290,1,"NULL",1]
["3-023","Ausführung 1","3_b_Ausfuehrung 1",490,"NULL","NULL",0]
["3-023","Datenpunkte AI","4_c_Datenpunkte AI",590,"NULL","NULL",0]
["3-023","Ende Garantiefrist [Datum]","8_b_Ende Garantiefrist [Datum]",590,"NULL","NULL",0]
["3-023","KelpyOfferteId","3_c_KelpyOfferteId","NULL",1,"NULL",0]
["3-023","Messart (Ausführung)","3_b_Messart (Ausfuehrung)",490,"NULL","NULL",0]
["3-023","Montagetermin ist [Datum]","7_b_Montagetermin ist [Datum]",590,"NULL","NULL",0]
["3-023","Typ","3_a_Typ",290,0,"NULL",1]
["3-025","Achse X","5_c_Achse X","NULL","NULL","NULL",0]
["3-025","Ausführung 1","3_b_Ausfuehrung 1",490,"NULL","NULL",0]
["3-025","Datenpunkte AI","4_c_Datenpunkte AI",590,"NULL","NULL",0]
["3-025","Ende Garantiefrist [Datum]","8_b_Ende Garantiefrist [Datum]",590,"NULL","NULL",0]
["3-025","Klartext Raum","5_c_Klartext Raum",200,"NULL","Modell",0]
["3-025","Lieferant","3_c_Lieferant",300,"NULL","NULL",0]
["3-025","Montagetermin ist [Datum]","7_b_Montagetermin ist [Datum]",590,"NULL","NULL",0]
["3-025","TypeID Nova dez","0_c_TypeID Nova dez","NULL","NULL","NULL",0]
["3-028","Datenpunkte DI","4_c_Datenpunkte DI",390,"NULL","NULL",0]
["3-028","Instandhaltung","8_b_Instandhaltung",300,"NULL","NULL",0]
["3-028","Lieferant","3_c_Lieferant",300,"NULL","NULL",0]
["3-028","Strom [A]","4_a_Strom [A]",390,"NULL","NULL",0]
["3-029","Anlagenummer (BKP-XXX)","1_a_Anlagenummer (BKP-XXX)",100,"NULL","NULL",1]
["3-029","e-BKP-H","1_b_e-BKP-H",200,"NULL","NULL",0]
["3-029","Klartext Anlage","1_c_Klartext Anlage",100,"NULL","NULL",0]
["3-029","Raumnummer","5_a_Raumnummer",200,"NULL","Modell",0]
["3-029","URL","3_c_URL",300,"NULL","NULL",0]
["3-030","Datenpunkte AI","4_c_Datenpunkte AI",390,"NULL","NULL",0]
["3-030","Gebäude","5_c_Gebaeude",200,"NULL","NULL",0]
["3-030","Laufnummer","0_a_Laufnummer",100,"NULL","NULL",1]
["3-030","Spannung [V]","4_a_Spannung [V]",390,"NULL","NULL",0]
["3-031","Datenpunkte AI","4_c_Datenpunkte AI",390,"NULL","NULL",0]
["3-031","Klartext Anlage","1_c_Klartext Anlage",100,"NULL","NULL",0]
["3-031","Positionsnummer","5_c_Positionsnummer","NULL","NULL","Prinzipschema",1]
["3-031","Spannung [V]","4_a_Spannung [V]",390,"NULL","NULL",0]
["3-032","Anlagenummer Bauherr","1_b_Anlagenummer Bauherr",490,"NULL","NULL",0]
["3-032","Anschlussart","3_c_Anschlussart",590,"NULL","NULL",0]
["3-032","Datenpunkte VD","4_c_Datenpunkt VD",590,"NULL","NULL",0]
["3-032","Ende Garantiefrist [Datum]","8_b_Ende Garantiefrist [Datum]",590,"NULL","NULL",0]
["3-032","Gewicht Betrieb [kg]","2_b_Gewicht Betrieb [kg]",200,"NULL","NULL",0]
["3-032","Länge (Abmessung 1) [mm]","2_b_Laenge (Abmessung 1) [mm]",200,"NULL","NULL",0]
["3-032","max. Temperatur [C]","2_c_max Temperatur [C]",590,"NULL","NULL",0]
["3-032","NPK","1_b_NPK",200,1,"NULL",0]
["3-032","Stellkraft [N]","3_b_Stellkraft [N]",290,1,"NULL",0]
["3-032","Volumenstrom 1 [m3/h]","2_a_Volumenstrom 1 [m3/h]",390,"NULL","NULL",0]
["3-033","Achse Y","5_c_Achse Y","NULL","NULL","NULL",0]
["3-033","Dämmungsspezifikation","0_a_Daemmungsspezifikation","NULL","NULL","Prinzipschema, Strangschema",0]
["3-033","Datenpunkte DI","4_c_Datenpunkte DI",590,"NULL","NULL",0]
["3-033","Ex-Schutz","4_c_Ex-Schutz",590,"NULL","NULL",0]
["3-033","Instandhaltung","8_b_Instandhaltung",300,"NULL","NULL",0]
["3-033","Klartext Feldgerät","1_c_Klartext Feldgeraet",100,"NULL","Prinzipschema, Strangschema",1]
["3-033","Medium 1","2_c_Medium 1",590,"NULL","NULL",0]
["3-033","Nenndurchfluss [m3/h]","3_a_Nenndurchfluss [m3/h]",390,1,"NULL",0]
["3-033","Schutzart IP","4_c_Schutzart IP",590,"NULL","NULL",0]
["3-033","Typ (Antrieb)","3_a_Typ (Antrieb)",290,1,"NULL",1]
["3-034","Achse Z","5_c_Achse Z","NULL","NULL","NULL",0]
["3-034","Artikelnummer","3_c_Artikelnummer",300,"NULL","Modell",0]
["3-034","Datenpunkte AI","4_c_Datenpunkte AI",590,"NULL","NULL",0]
["3-034","Ex-Schutz","4_c_Ex-Schutz",590,"NULL","NULL",0]
["3-034","Geschoss","5_a_Geschoss",200,"NULL","Modell",0]
["3-034","Klartext Raum","5_c_Klartext Raum",200,"NULL","Modell",0]
["3-034","Material 2","3_c_Material 2",390,"NULL","NULL",0]
["3-034","Material 3","3_c_Material 3",390,"NULL","NULL",0]
["3-034","Servicevertrag [Nummer]","8_a_Servicevertrag [Nummer]",590,"NULL","NULL",0]
["3-034","Stellkraft [N]","3_b_Stellkraft [N]",290,"NULL","NULL",0]
["3-034","Wartungsintervall [Betriebsstunden]","8_c_Wartungsintervall [Betriebsstunden]",590,"NULL","NULL",0]
["3-036","Ansprechdruck [bar]","2_a_Ansprechdruck [bar]",390,"NULL","NULL",0]
["3-036","Bezeichnung Elektroschema (BMK)","6_a_Bezeichnung Elektroschema (BMK)",390,"NULL","NULL",0]
["3-036","Dichtheitsklasse","3_c_Dichtheitsklasse",590,"NULL","NULL",0]
["3-036","Gewicht Betrieb [kg]","2_b_Gewicht Betrieb [kg]",390,"NULL","NULL",0]
["3-036","Klartext Feldgerät","1_c_Klartext Feldgeraet",100,"NULL","Prinzipschema",1]
["3-036","Länge (Abmessung 1) [mm]","2_b_Laenge (Abmessung 1) [mm]",200,"NULL","NULL",0]
["3-036","min. Temperatur [C]","2_c_min Temperatur [C]",590,"NULL","NULL",0]
["3-036","Schutzart IP","4_c_Schutzart IP",590,"NULL","NULL",0]
["3-036","Spannung [V]","4_a_Spannung [V]",290,"NULL","NULL",0]
["3-036","Volumenstrom 1 [m3/h]","2_a_Volumenstrom 1 [m3/h]",390,"NULL","NULL",0]
["3-036","Wartungsintervall [Betriebsstunden]","8_c_Wartungsintervall [Betriebsstunden]",590,"NULL","NULL",0]
["3-101","Datenpunkte AI","4_c_Datenpunkte AI",390,"NULL","NULL",0]
["3-101","Freigabe zur Bestellung [Datum]","7_a_Freigabe zur Bestellung [Datum]",400,"NULL","NULL",0]
["3-101","Integration Kommunikation","4_c_Integration Kommunikation",390,"NULL","NULL",0]
["3-101","Messart (Ausführung)","3_b_Messart (Ausfuehrung)",490,"NULL","NULL",0]
["3-101","Spannung [V]","4_a_Spannung [V]",390,"NULL","NULL",0]
["3-101","System","3_b_System",200,"NULL","Modell",0]
["3-104","Datenpunkte AI","4_c_Datenpunkte AI",390,"NULL","NULL",0]
["3-104","Integration Kommunikation","4_c_Integration Kommunikation",390,"NULL","NULL",0]
["3-104","Kommentar technisch","9_a_Kommentar technisch",300,1,"NULL",0]
["3-104","Schutzart IP","4_c_Schutzart IP",390,"NULL","NULL",0]
["3-105","Artikelnummer","3_c_Artikelnummer",300,"NULL","Modell",0]
["3-105","Datenpunkte DI","4_c_Datenpunkte DI",390,"NULL","NULL",0]
["3-105","Geschoss","5_a_Geschoss",200,"NULL","Modell",0]
["3-105","Klartext Feldgerät","1_c_Klartext Feldgeraet",100,"NULL","Prinzipschema",1]
["3-105","Positionsnummer","5_c_Positionsnummer","NULL","NULL","Prinzipschema",1]
["3-115","Abscheidegrad","3_c_Abscheidegrad",590,"NULL","NULL",0]
["3-115","Artikelnummer RMB","0_c_Artikelnummer RMB",100,"NULL","NULL",1]
["3-115","Einsatzbereich [%]","4_b_Einsatzbereich [%]",390,"NULL","NULL",0]
["3-115","Lieferung bauseits","7_a_Lieferung bauseits",300,1,"NULL",0]
["3-115","Steuersignal","4_a_Steuersignal",390,"NULL","NULL",0]
["3-115","TypeID Nova dez","0_c_TypeID Nova dez","NULL","NULL","NULL",0]
["3-116","Differenzdruck 5 [Pa]","2_a_Differenzdruck 5 [Pa]",290,0,"NULL",0]
["3-116","Klartext Feldgerät","1_c_Klartext Feldgeraet",100,"NULL","Prinzipschema",1]
["3-116","Lieferant","3_c_Lieferant",300,"NULL","NULL",0]
["3-116","Raumnummer","5_a_Raumnummer",200,"NULL","Modell",0]
["3-116","Typ","3_a_Typ",290,0,"NULL",0]
["3-117","Datenpunkte VD","4_c_Datenpunkt VD",390,"NULL","NULL",0]
["3-117","KelpyOfferteId","3_c_KelpyOfferteId","NULL",1,"NULL",0]
["3-117","Laufnummer","0_a_Laufnummer",100,"NULL","NULL",1]
["3-117","Steuersignal","4_a_Steuersignal",390,"NULL","NULL",0]
["3-118","Bezeichnung Elektroschema (BMK)","6_a_Bezeichnung Elektroschema (BMK)",390,"NULL","NULL",0]
["3-118","Datenpunkte MBus","4_c_Datenpunkt MBus",390,"NULL","NULL",0]
["3-118","Klartext Feldgerät","1_c_Klartext Feldgeraet",100,"NULL","Strangschema, Prinzipschema",1]
["3-118","Raumnummer","5_a_Raumnummer",200,"NULL","Modell",0]
["3-118","SGK Zuordnung","6_a_SGK Zuordnung",390,"NULL","NULL",0]
["3-122","Artikelnummer RMB","0_c_Artikelnummer RMB",100,"NULL","NULL",1]
["3-122","Instandhaltung","8_b_Instandhaltung",300,"NULL","NULL",0]
["3-122","Klartext Raum","5_c_Klartext Raum",200,"NULL","Modell",0]
["3-122","Positionsnummer","5_c_Positionsnummer","NULL","NULL","Prinzipschema",1]
["3-122","Spannung [V]","4_a_Spannung [V]",390,"NULL","NULL",0]
["3-130","Artikelnummer RMB","0_c_Artikelnummer RMB",100,"NULL","NULL",1]
["3-130","Freigabe zur Bestellung [Datum]","7_a_Freigabe zur Bestellung [Datum]",400,"NULL","NULL",0]
["3-130","KelpyOfferteId","3_c_KelpyOfferteId","NULL",1,"NULL",0]
["3-130","Spannung [V]","4_a_Spannung [V]",390,"NULL","NULL",0]
["3-140","Anlagenstruktur-SAN","1_b_Anlagenstruktur-SAN","NULL","NULL","NULL",0]
["3-140","Datenpunkte AI","4_c_Datenpunkte AI",390,"NULL","NULL",0]
["3-140","Gebäude","5_c_Gebaeude",200,"NULL","NULL",0]
["3-140","NPK","1_b_NPK",200,1,"NULL",0]
["3-140","TypeID Nova dez","0_c_TypeID Nova dez","NULL","NULL","NULL",0]
["3-150","Anlagenummer (BKP-XXX)","1_a_Anlagenummer (BKP-XXX)",100,"NULL","NULL",1]
["3-150","Datenpunkte VA","4_c_Datenpunkt VA",590,"NULL","NULL",0]
["3-150","Datenpunkte VD","4_c_Datenpunkt VD",590,"NULL","NULL",0]
["3-150","Instandhaltung","8_b_Instandhaltung",300,"NULL","NULL",0]
["3-150","Lieferung bauseits","7_a_Lieferung bauseits",300,1,"NULL",0]
["3-150","Positionsnummer","5_c_Positionsnummer","NULL","NULL","Prinzipschema",1]
["3-150","Zust.Unterhalt","8_c_Zust Unterhalt",300,"NULL","NULL",0]
["3-151","Datenpunkte AO","4_c_Datenpunkte AO",390,"NULL","NULL",0]
["3-151","Einsatzbereich [%]","4_b_Einsatzbereich [%]",390,"NULL","NULL",0]
["3-151","Lieferant","3_c_Lieferant",300,"NULL","NULL",0]
["3-151","Stellkraft [N]","3_b_Stellkraft [N]",290,1,"NULL",0]
["3-151","Typ","3_a_Typ",290,1,"NULL",0]
["3-152","Anlagenummer (BKP-XXX)","1_a_Anlagenummer (BKP-XXX)",100,"NULL","NULL",1]
["3-152","e-BKP-H","1_b_e-BKP-H",200,"NULL","NULL",0]
["3-152","Gebäude","5_c_Gebaeude",200,"NULL","NULL",0]
["3-152","Klartext Raum","5_c_Klartext Raum",200,"NULL","Modell",0]
["3-152","Raumnummer","5_a_Raumnummer",200,"NULL","Modell",0]
["3-152","Status","5_b_Status",490,"NULL","NULL",0]
["3-153","Anlagenummer (BKP-XXX)","1_a_Anlagenummer (BKP-XXX)",100,"NULL","NULL",1]
["3-153","Ausführung 2","3_b_Ausfuehrung 2",490,"NULL","NULL",0]
["3-153","Dichtheitsklasse","3_c_Dichtheitsklasse",590,"NULL","NULL",0]
["3-153","Instandhaltung","8_b_Instandhaltung",300,"NULL","NULL",0]
["3-153","Kommentar technisch","9_a_Kommentar technisch",300,1,"NULL",0]
["3-153","Raumnummer","5_a_Raumnummer",200,"NULL","Modell",0]
["3-161","Abnahmetermin [Datum]","7_a_Abnahmetermin [Datum]",390,"NULL","NULL",0]
["3-161","Dämmstärke [mm]","0_c_CAD Daemmstaerke [mm]",300,"NULL","NULL",0]
["3-161","Dichtheitsklasse","3_c_Dichtheitsklasse",590,"NULL","NULL",0]
["3-161","Freigabe zur Bestellung [Datum]","7_a_Freigabe zur Bestellung [Datum]",400,"NULL","NULL",0]
["3-161","Gebäude","5_c_Gebaeude",200,"NULL","NULL",0]
["3-161","Laufnummer","0_a_Laufnummer",100,"NULL","NULL",1]
["3-161","Positionsnummer","5_c_Positionsnummer","NULL","NULL","Modell",1]
["3-161","Schutzart IP","4_c_Schutzart IP",390,"NULL","NULL",0]
["3-161","URL","3_c_URL",300,"NULL","NULL",0]
["3-162","Artikelnummer RMB","0_c_Artikelnummer RMB",100,"NULL","NULL",1]
["3-162","Datenpunkte AI","4_c_Datenpunkte AI",590,"NULL","NULL",0]
["3-162","Einsatzbereich [%]","4_b_Einsatzbereich [%]",490,"NULL","NULL",0]
["3-162","Klartext Feldgerät","1_c_Klartext Feldgeraet",100,"NULL","Modell",1]
["3-162","Laufnummer","0_a_Laufnummer",100,"NULL","NULL",1]
["3-162","SGK Nummer","6_a_SGK Nummer",390,"NULL","NULL",0]
["3-162","Steuersignal","4_a_Steuersignal",290,0,"NULL",0]
["3-162","Volumenstrom 1 [m3/h]","2_a_Volumenstrom 1 [m3/h]",390,"NULL","NULL",0]
["3-171","Ausführung 1","3_b_Ausfuehrung 1",390,1,"Modell",0]
["3-171","Dämmungsspezifikation","0_a_Daemmungsspezifikation","NULL","NULL","Modell",0]
["3-171","Ex-Schutz","4_c_Ex-Schutz",590,"NULL","NULL",0]
["3-171","Frequenzband 1","2_c_Frequenzband 1",590,"NULL","NULL",0]
["3-171","Klartext Anlage","1_c_Klartext Anlage",100,"NULL","NULL",0]
["3-171","Material 2","3_c_Material 2",200,"NULL","NULL",0]
["3-171","Spannung [V]","4_a_Spannung [V]",290,0,"NULL",0]
["3-171","TypeID Nova dez","0_c_TypeID Nova dez","NULL","NULL","NULL",0]
["3-172","Abnahmetermin [Datum]","7_a_Abnahmetermin [Datum]",390,"NULL","NULL",0]
["3-172","Datenpunkte DO","4_c_Datenpunkte DO",590,"NULL","NULL",0]
["3-172","Differenzdruck 5 [Pa]","2_a_Differenzdruck 5 [Pa]",290,1,"NULL",0]
["3-172","Frequenzband 2","2_c_Frequenzband 2",390,0,"NULL",0]
["3-172","KelpyOfferteId","3_c_KelpyOfferteId","NULL",1,"NULL",0]
["3-172","Kommentar technisch","9_a_Kommentar technisch",300,1,"NULL",0]
["3-172","Positionsnummer","5_c_Positionsnummer","NULL","NULL","Prinzipschema, Strangschema",1]
["3-172","Schutzart IP","4_c_Schutzart IP",390,"NULL","NULL",0]
["3-172","Zulassung VKF","3_c_Zulassung VKF",590,"NULL","NULL",0]
["3-173","Ausführung 1","3_b_Ausfuehrung 1",390,1,"Modell",0]
["3-173","Datenpunkte VA","4_c_Datenpunkt VA",590,"NULL","NULL",0]
["3-173","Durchmesser (Abmessung 4) [mm]","2_b_Durchmesser (Abmessung 4) [mm]",200,1,"Modell",0]
["3-173","Instandhaltung","8_b_Instandhaltung",300,"NULL","NULL",0]
["3-173","Klartext Anlage funktional","1_c_Klartext Anlage funktional",590,"NULL","NULL",0]
["3-173","Material 3","3_c_Material 3",200,"NULL","NULL",0]
["3-173","Status","5_b_Status",490,"NULL","NULL",0]
["3-173","Volumenstrom 1 [m3/h]","2_a_Volumenstrom 1 [m3/h]",290,1,"NULL",0]
["3-180","Anlagenummer (BKP-XXX)","1_a_Anlagenummer (BKP-XXX)",100,"NULL","NULL",1]
["3-180","Einsatzbereich [%]","4_b_Einsatzbereich [%]",390,"NULL","NULL",0]
["3-180","Gebäude","5_c_Gebaeude",200,"NULL","NULL",0]
["3-180","Montageset","3_c_Montageset",590,"NULL","NULL",0]
["3-180","System","3_b_System",200,"NULL","NULL",0]
["3-181","Anlagenummer Bauherr","1_b_Anlagenummer Bauherr",490,"NULL","NULL",0]
["3-181","Datenpunkte DO","4_c_Datenpunkte DO",390,"NULL","NULL",0]
["3-181","Instandhaltung","8_b_Instandhaltung",300,"NULL","NULL",0]
["3-181","Klartext Feldgerät","1_c_Klartext Feldgeraet",100,"NULL","Prinzipschema, Strangschema",1]
["3-181","Messart (Ausführung)","3_b_Messart (Ausfuehrung)",490,"NULL","NULL",0]
["3-181","Schutzart IP","4_c_Schutzart IP",390,"NULL","NULL",0]
["3-181","TypeID Nova dez","0_c_TypeID Nova dez","NULL","NULL","NULL",0]
["3-182","Datenpunkte DI","4_c_Datenpunkte DI",390,"NULL","NULL",0]
["3-182","Klartext Feldgerät","1_c_Klartext Feldgeraet",100,"NULL","Prinzipschema, Strangschema",1]
["3-182","Länge (Abmessung 1) [mm]","2_b_Laenge (Abmessung 1) [mm]",290,0,"NULL",0]
["3-182","SGK Zuordnung","6_a_SGK Zuordnung",390,"NULL","NULL",0]
["3-182","System","3_b_System",200,"NULL","NULL",0]
["3-183","Datenpunkte AO","4_c_Datenpunkte AO",390,"NULL","NULL",0]
["3-183","Klartext Anlage","1_c_Klartext Anlage",100,"NULL","NULL",0]
["3-183","Lieferant","3_c_Lieferant",300,"NULL","NULL",0]
["3-183","SGK Nummer","6_a_SGK Nummer",390,"NULL","NULL",0]
["3-184","Artikelnummer","3_c_Artikelnummer",300,"NULL","Modell",0]
["3-184","Einsatzbereich [%]","4_b_Einsatzbereich [%]",390,"NULL","NULL",0]
["3-184","KelpyOfferteId","3_c_KelpyOfferteId","NULL",1,"NULL",0]
["3-184","NPK","1_b_NPK",200,1,"NULL",0]
["3-184","Typ","3_a_Typ",290,1,"NULL",0]
["3-185","Anlagenummer (BKP-XXX)","1_a_Anlagenummer (BKP-XXX)",100,"NULL","NULL",1]
["3-185","Datenpunkte DO","4_c_Datenpunkte DO",390,"NULL","NULL",0]
["3-185","Datenpunkte VA","4_c_Datenpunkt VA",390,"NULL","NULL",0]
["3-185","Klartext Feldgerät","1_c_Klartext Feldgeraet",100,"NULL","Prinzipschema, Strangschema",1]
["3-185","NPK","1_b_NPK",200,1,"NULL",0]
["3-185","Schutzart IP","4_c_Schutzart IP",390,"NULL","NULL",0]
["3-199","Breite (Abmessung 2) [mm]","2_b_Breite (Abmessung 2) [mm]",290,1,"NULL",0]
["3-199","Datenpunkte VD","4_c_Datenpunkt VD",390,"NULL","NULL",0]
["3-199","Freigabe zur Bestellung [Datum]","7_a_Freigabe zur Bestellung [Datum]",400,"NULL","NULL",0]
["3-199","Laufnummer","0_a_Laufnummer",100,"NULL","NULL",1]
["3-199","Spannung [V]","4_a_Spannung [V]",390,"NULL","NULL",0]
["3-199","URL","3_c_URL",300,"NULL","NULL",0]
["3-407","Anschlussart","3_c_Anschlussart",590,"NULL","NULL",0]
["3-407","Differenzdruck 1 [kPa]","2_a_Differenzdruck 1 [kPa]",290,0,"NULL",0]
["3-407","Ende Garantiefrist [Datum]","8_b_Ende Garantiefrist [Datum]",590,"NULL","NULL",0]
["3-407","Inhalt [l]","2_a_Inhalt [l]",290,0,"NULL",0]
["3-407","Klartext Anlage funktional","1_c_Klartext Anlage funktional",590,"NULL","NULL",0]
["3-407","Massenstrom 1 [kg/h]","2_a_Massenstrom 1 [kg/h]",290,0,"NULL",0]
["3-407","Regelungsart","4_a_Regelungsart",290,"NULL","NULL",0]
["3-407","SGK Zuordnung","6_a_SGK Zuordnung",390,"NULL","NULL",0]
["3-407","URL","3_c_URL",300,"NULL","NULL",0]
["3-408","Artikelnummer RMB","0_c_Artikelnummer RMB",100,"NULL","NULL",1]
["3-408","Datenpunkte MBus","4_c_Datenpunkt MBus",590,"NULL","NULL",0]
["3-408","Durchmesser (Abmessung 4) [mm]","2_b_Durchmesser (Abmessung 4) [mm]",200,"NULL","NULL",0]
["3-408","Integration Kommunikation","4_c_Integration Kommunikation",590,"NULL","NULL",0]
["3-408","Länge (Abmessung 1) [mm]","2_b_Laenge (Abmessung 1) [mm]",200,"NULL","NULL",0]
["3-408","Massenstrom 2 [kg/h]","2_a_Massenstrom 2 [kg/h]",390,"NULL","NULL",0]
["3-408","Raumnummer","5_a_Raumnummer",200,"NULL","Modell",0]
["3-408","Regelungsart","4_a_Regelungsart",290,"NULL","NULL",0]
["3-408","TypeID Nova dez","0_c_TypeID Nova dez","NULL","NULL","NULL",0]
["3-409","Anlagenstruktur-SAN","1_b_Anlagenstruktur-SAN","NULL","NULL","NULL",0]
["3-409","Artikelnummer RMB","0_c_Artikelnummer RMB",100,"NULL","NULL",1]
["3-409","e-BKP-H","1_b_e-BKP-H",200,0,"NULL",0]
["3-409","Höhe (Abmessung 3) [mm]","2_b_Hoehe (Abmessung 3) [mm]",200,0,"NULL",0]
["3-409","KelpyOfferteId","3_c_KelpyOfferteId","NULL",1,"NULL",0]
["3-409","max. Temperatur [C]","2_c_max Temperatur [C]",590,"NULL","NULL",0]
["3-409","Regelungsart","4_a_Regelungsart",290,"NULL","NULL",0]
["3-409","SGK Zuordnung","6_a_SGK Zuordnung",390,"NULL","NULL",0]
["3-409","TypeID Nova dez","0_c_TypeID Nova dez","NULL","NULL","NULL",0]
["3-910","Datenpunkte VD","4_c_Datenpunkt VD",390,"NULL","NULL",0]
["3-910","Geschoss","5_a_Geschoss",200,"NULL","NULL",0]
["3-910","NPK","1_b_NPK",200,1,"NULL",0]
["3-910","SIA-Katalog","1_b_SIA-Katalog","NULL","NULL","NULL",0]
["3-999","Datenpunkte VD","4_c_Datenpunkt VD",390,"NULL","NULL",0]
["3-999","Integration Kommunikation","4_c_Integration Kommunikation",390,"NULL","NULL",0]
["3-999","Kommentar technisch","9_a_Kommentar technisch",300,1,"NULL",0]
["3-999","Spannung [V]","4_a_Spannung [V]",390,"NULL","NULL",0]
["4-001","Geschoss","5_a_Geschoss",200,"NULL","Modell",0]
["4-001","Kommentar technisch","9_a_Kommentar technisch",300,1,"NULL",0]
["4-910","Anlagenummer (BKP-XXX)","1_a_Anlagenummer (BKP-XXX)",100,"NULL","NULL",1]
["4-910","Laufnummer","0_a_Laufnummer",100,"NULL","NULL",1]
["5-001","Artikelnummer RMB","0_c_Artikelnummer RMB",100,"NULL","NULL",1]
["5-001","Klartext Anlage","1_c_Klartext Anlage",100,"NULL","NULL",0]
["5-002","TypeID Nova dez","0_c_TypeID Nova dez","NULL","NULL","NULL",0]
["5-003","Anlagenstruktur-SAN","1_b_Anlagenstruktur-SAN","NULL","NULL","NULL",0]
["5-004","KelpyOfferteId","3_c_KelpyOfferteId","NULL",1,"NULL",0]
["5-050","KelpyOfferteId","3_c_KelpyOfferteId","NULL",1,"NULL",0]
["5-100","KelpyOfferteId","3_c_KelpyOfferteId","NULL",1,"NULL",0]
["5-101","Anlagenummer (BKP-XXX)","1_a_Anlagenummer (BKP-XXX)",100,"NULL","NULL",1]
["5-102","Anlagenummer (BKP-XXX)","1_a_Anlagenummer (BKP-XXX)",100,"NULL","NULL",1]
["5-102","Kommentar technisch","9_a_Kommentar technisch",300,1,"NULL",0]
["5-200","NPK","1_b_NPK",200,"NULL","NULL",0]
["5-201","SIA-Katalog","1_b_SIA-Katalog","NULL","NULL","NULL",0]
["5-202","e-BKP-H","1_b_e-BKP-H",200,"NULL","NULL",0]
["5-203","e-BKP-H","1_b_e-BKP-H",200,"NULL","NULL",0]
["5-204","Laufnummer","0_a_Laufnummer",100,"NULL","NULL",1]
["5-204","SIA-Katalog","1_b_SIA-Katalog","NULL","NULL","NULL",0]
["5-206","Anlagenstruktur-SAN","1_b_Anlagenstruktur-SAN","NULL","NULL","NULL",0]
["5-206","Klartext Anlage","1_c_Klartext Anlage",100,"NULL","NULL",0]
["5-207","SIA-Katalog","1_b_SIA-Katalog","NULL","NULL","NULL",0]
["5-208","Kommentar technisch","9_a_Kommentar technisch",300,1,"NULL",0]
["5-209","Artikelnummer RMB","0_c_Artikelnummer RMB",100,"NULL","NULL",1]
["5-210","Artikelnummer RMB","0_c_Artikelnummer RMB",100,"NULL","NULL",1]
["5-250","Kommentar technisch","9_a_Kommentar technisch",300,1,"NULL",0]
["5-251","Anlagenstruktur-SAN","1_b_Anlagenstruktur-SAN","NULL","NULL","NULL",0]
["5-252","Klartext Anlage","1_c_Klartext Anlage",100,"NULL","NULL",0]
["5-253","e-BKP-H","1_b_e-BKP-H",200,"NULL","NULL",0]
["5-254","e-BKP-H","1_b_e-BKP-H",200,"NULL","NULL",0]
["5-254","NPK","1_b_NPK",200,"NULL","NULL",0]
["5-255","SIA-Katalog","1_b_SIA-Katalog","NULL","NULL","NULL",0]
["5-256","Anlagenummer (BKP-XXX)","1_a_Anlagenummer (BKP-XXX)",100,"NULL","NULL",1]
["5-260","Klartext Anlage","1_c_Klartext Anlage","NULL","NULL","NULL",0]
["5-260","TypeID Nova dez","0_c_TypeID Nova dez","NULL","NULL","NULL",0]
["5-270","TypeID Nova dez","0_c_TypeID Nova dez","NULL","NULL","NULL",0]
["5-273","TypeID Nova dez","0_c_TypeID Nova dez","NULL","NULL","NULL",0]
["5-280","Artikelnummer RMB","0_c_Artikelnummer RMB",100,"NULL","NULL",1]
["5-280","Laufnummer","0_a_Laufnummer",100,"NULL","NULL",1]
["5-285","Anlagenstruktur-SAN","1_b_Anlagenstruktur-SAN","NULL","NULL","NULL",0]
["5-285","Laufnummer","0_a_Laufnummer",100,"NULL","NULL",1]
["5-286","KelpyOfferteId","3_c_KelpyOfferteId","NULL",1,"NULL",0]
["5-287","NPK","1_b_NPK",200,"NULL","NULL",0]
["5-290","NPK","1_b_NPK",200,"NULL","NULL",0]
["5-401","Artikelnummer RMB","0_c_Artikelnummer RMB",100,"NULL","NULL",1]
["5-401","NPK","1_b_NPK",200,"NULL","NULL",0]
["5-405","Kommentar technisch","9_a_Kommentar technisch",300,1,"NULL",0]
["5-406","TypeID Nova dez","0_c_TypeID Nova dez","NULL","NULL","NULL",0]
["5-410","TypeID Nova dez","0_c_TypeID Nova dez","NULL","NULL","NULL",0]
["5-411","KelpyOfferteId","3_c_KelpyOfferteId","NULL",1,"NULL",0]
["5-413","Laufnummer","0_a_Laufnummer",100,"NULL","NULL",1]
["5-420","Laufnummer","0_a_Laufnummer",100,"NULL","NULL",1]
["5-421","Anlagenummer (BKP-XXX)","1_a_Anlagenummer (BKP-XXX)",100,"NULL","NULL",1]
["5-422","Anlagenummer (BKP-XXX)","1_a_Anlagenummer (BKP-XXX)",100,"NULL","NULL",1]
["5-423","Anlagenstruktur-SAN","1_b_Anlagenstruktur-SAN","NULL","NULL","NULL",0]
["5-423","SIA-Katalog","1_b_SIA-Katalog","NULL","NULL","NULL",0]
["5-425","SIA-Katalog","1_b_SIA-Katalog","NULL","NULL","NULL",0]
["5-455","Artikelnummer RMB","0_c_Artikelnummer RMB",100,"NULL","NULL",1]
["5-455","e-BKP-H","1_b_e-BKP-H",200,"NULL","NULL",0]
["5-460","TypeID Nova dez","0_c_TypeID Nova dez","NULL","NULL","NULL",0]
["5-470","Anlagenstruktur-SAN","1_b_Anlagenstruktur-SAN","NULL","NULL","NULL",0]
["5-501","Anlagenstruktur-SAN","1_b_Anlagenstruktur-SAN","NULL","NULL","NULL",0]
["5-510","KelpyOfferteId","3_c_KelpyOfferteId","NULL",1,"NULL",0]
["5-510","SIA-Katalog","1_b_SIA-Katalog","NULL","NULL","NULL",0]
["5-515","NPK","1_b_NPK",200,"NULL","NULL",0]
["5-526","Anlagenummer (BKP-XXX)","1_a_Anlagenummer (BKP-XXX)",100,"NULL","NULL",1]
["5-530","Anlagenummer (BKP-XXX)","1_a_Anlagenummer (BKP-XXX)",100,"NULL","NULL",1]
["5-530","Kommentar technisch","9_a_Kommentar technisch",300,1,"NULL",0]
["5-531","KelpyOfferteId","3_c_KelpyOfferteId","NULL",1,"NULL",0]
["5-532","SIA-Katalog","1_b_SIA-Katalog","NULL","NULL","NULL",0]
["5-533","e-BKP-H","1_b_e-BKP-H",200,"NULL","NULL",0]
["5-534","e-BKP-H","1_b_e-BKP-H",200,"NULL","NULL",0]
["5-535","Anlagenummer (BKP-XXX)","1_a_Anlagenummer (BKP-XXX)","NULL","NULL","NULL",0]
["5-540","Anlagenstruktur-SAN","1_b_Anlagenstruktur-SAN","NULL","NULL","NULL",0]
["5-540","TypeID Nova dez","0_c_TypeID Nova dez","NULL","NULL","NULL",0]
["5-550","KelpyOfferteId","3_c_KelpyOfferteId","NULL",1,"NULL",0]
["5-580","NPK","1_b_NPK",200,"NULL","NULL",0]
["5-581","Anlagenummer (BKP-XXX)","1_a_Anlagenummer (BKP-XXX)",100,"NULL","NULL",1]
["5-582","Anlagenummer (BKP-XXX)","1_a_Anlagenummer (BKP-XXX)",100,"NULL","NULL",1]
["5-583","Anlagenummer (BKP-XXX)","1_a_Anlagenummer (BKP-XXX)",100,"NULL","NULL",1]
["5-584","Klartext Anlage","1_c_Klartext Anlage",100,"NULL","NULL",0]
["5-585","e-BKP-H","1_b_e-BKP-H",200,"NULL","NULL",0]
["5-585","SIA-Katalog","1_b_SIA-Katalog","NULL","NULL","NULL",0]
["5-587","Artikelnummer RMB","0_c_Artikelnummer RMB",100,"NULL","NULL",1]
["5-587","e-BKP-H","1_b_e-BKP-H",200,"NULL","NULL",0]
["5-588","Laufnummer","0_a_Laufnummer",100,"NULL","NULL",1]
["5-801","KelpyOfferteId","3_c_KelpyOfferteId","NULL",1,"NULL",0]
["5-801","TypeID Nova dez","0_c_TypeID Nova dez","NULL","NULL","NULL",0]
["5-803","Artikelnummer RMB","0_c_Artikelnummer RMB",100,"NULL","NULL",1]
["5-803","Geschoss","5_a_Geschoss",200,"NULL","NULL",0]
["5-803","System","3_b_System",200,"NULL","NULL",0]
["5-901","e-BKP-H","1_b_e-BKP-H",200,"NULL","NULL",0]
["5-902","Anlagenummer (BKP-XXX)","1_a_Anlagenummer (BKP-XXX)",100,"NULL","NULL",1]
["5-902","Kommentar technisch","9_a_Kommentar technisch",300,1,"NULL",0]
["5-903","TypeID Nova dez","0_c_TypeID Nova dez","NULL","NULL","NULL",0]
["5-905","Artikelnummer RMB","0_c_Artikelnummer RMB",100,"NULL","NULL",1]
["5-906","e-BKP-H","1_b_e-BKP-H",200,"NULL","NULL",0]
["5-999","e-BKP-H","1_b_e-BKP-H",200,"NULL","NULL",0]
["5-999","NPK","1_b_NPK",200,1,"NULL",0]
["6-001","Länge (Abmessung 1) [mm]","2_b_Laenge (Abmessung 1) [mm]","NULL",0,"NULL",0]
["6-002","Anlagenummer (BKP-XXX)","1_a_Anlagenummer (BKP-XXX)",100,"NULL","NULL",1]
["6-002","Durchmesser (Abmessung 4) [mm]","2_b_Durchmesser (Abmessung 4) [mm]",200,"NULL","NULL",0]
["6-002","Materialspezifikation","0_a_Materialspezifikation","NULL",1,"NULL",0]
["6-002","Werkvertrag [Firma/Nummer]","8_c_Werkvertrag [Firma/Nummer]",590,"NULL","NULL",0]
["6-101","KelpyOfferteId","3_c_KelpyOfferteId","NULL",1,"NULL",0]
["6-101","Materialspezifikation","0_a_Materialspezifikation","NULL",1,"NULL",0]
["6-102","Laufnummer","0_a_Laufnummer",100,"NULL","NULL",1]
["6-102","SIA-Katalog","1_b_SIA-Katalog","NULL","NULL","NULL",0]
["6-104","Klartext Feldgerät","1_c_Klartext Feldgeraet",100,"NULL","NULL",1]
["6-104","NPK","1_b_NPK",200,1,"NULL",0]
["6-105","Laufnummer","0_a_Laufnummer","NULL","NULL","NULL",1]
["6-106","Artikelnummer RMB","0_c_Artikelnummer RMB","NULL","NULL","NULL",1]
["6-106","Klartext Feldgerät","1_c_Klartext Feldgeraet","NULL","NULL","NULL",1]
["6-112","Artikelnummer RMB","0_c_Artikelnummer RMB",100,"NULL","NULL",1]
["6-112","System","3_b_System",200,"NULL","NULL",0]
["6-140","Artikelnummer RMB","0_c_Artikelnummer RMB",100,"NULL","NULL",1]
["6-140","Materialspezifikation","0_a_Materialspezifikation","NULL",1,"NULL",0]
["6-141","Kommentar technisch","9_a_Kommentar technisch",300,"NULL","NULL",0]
["6-201","Anlagenstruktur-SAN","1_b_Anlagenstruktur-SAN","NULL","NULL","NULL",0]
["6-201","e-BKP-H","1_b_e-BKP-H",200,"NULL","NULL",0]
["6-301","Artikelnummer RMB","0_c_Artikelnummer RMB",100,"NULL","NULL",1]
["6-301","Materialspezifikation","0_a_Materialspezifikation","NULL",1,"NULL",0]
["6-307","Anlagenstruktur-SAN","1_b_Anlagenstruktur-SAN","NULL","NULL","NULL",0]
["6-307","KelpyOfferteId","3_c_KelpyOfferteId","NULL",1,"NULL",0]
["6-307","Klartext Anlage","1_c_Klartext Anlage",100,"NULL","NULL",0]
["6-307","Klartext Feldgerät","1_c_Klartext Feldgeraet",100,"NULL","NULL",1]
["6-307","Kommentar technisch","9_a_Kommentar technisch",300,"NULL","NULL",0]
["6-307","Länge (Abmessung 1) [mm]","2_b_Laenge (Abmessung 1) [mm]","NULL","NULL","NULL",0]
["6-307","Laufnummer","0_a_Laufnummer",100,"NULL","NULL",1]
["6-307","Material 1","3_c_Material 1",200,"NULL","NULL",0]
["6-307","Material 3","3_c_Material 3",200,"NULL","NULL",0]
["6-307","Materialspezifikation","0_a_Materialspezifikation","NULL",1,"NULL",0]
["6-307","NPK","1_b_NPK",200,1,"NULL",0]
["6-307","SIA-Katalog","1_b_SIA-Katalog","NULL","NULL","NULL",0]
["6-307","System","3_b_System",200,"NULL","NULL",0]
["6-307","TypeID Nova dez","0_c_TypeID Nova dez","NULL","NULL","NULL",0]
["6-308","Anlagenstruktur-SAN","1_b_Anlagenstruktur-SAN","NULL","NULL","NULL",0]
["6-308","Anlagenummer (BKP-XXX)","1_a_Anlagenummer (BKP-XXX)",100,"NULL","NULL",1]
["6-308","Artikelnummer RMB","0_c_Artikelnummer RMB",100,"NULL","NULL",1]
["6-308","Dämmstärke [mm]","0_c_CAD Daemmstaerke [mm]",300,1,"NULL",0]
["6-308","Dimension 1 [DN]","2_a_Dimension 1 [DN]",290,1,"NULL",0]
["6-308","e-BKP-H","1_b_e-BKP-H",200,"NULL","NULL",0]
["6-308","KelpyOfferteId","3_c_KelpyOfferteId","NULL",1,"NULL",0]
["6-308","Klartext Anlage","1_c_Klartext Anlage",100,"NULL","NULL",0]
["6-308","Klartext Feldgerät","1_c_Klartext Feldgeraet",100,"NULL","NULL",1]
["6-308","Kommentar technisch","9_a_Kommentar technisch",300,"NULL","NULL",0]
["6-308","Laufnummer","0_a_Laufnummer",100,"NULL","NULL",1]
["6-308","Material 1","3_c_Material 1",200,"NULL","NULL",0]
["6-308","Material 3","3_c_Material 3",200,"NULL","NULL",0]
["6-308","Materialspezifikation","0_a_Materialspezifikation","NULL",1,"NULL",0]
["6-308","NPK","1_b_NPK",200,1,"NULL",0]
["6-308","SIA-Katalog","1_b_SIA-Katalog","NULL","NULL","NULL",0]
["6-308","System","3_b_System",200,"NULL","NULL",0]
["6-308","TypeID Nova dez","0_c_TypeID Nova dez","NULL","NULL","NULL",0]
["6-910","Anlagenstruktur-SAN","1_b_Anlagenstruktur-SAN","NULL","NULL","NULL",0]
["6-910","Anlagenummer (BKP-XXX)","1_a_Anlagenummer (BKP-XXX)",100,"NULL","NULL",1]
["6-910","Artikelnummer RMB","0_c_Artikelnummer RMB",100,"NULL","NULL",1]
["6-910","Dämmstärke [mm]","0_c_CAD Daemmstaerke [mm]",300,1,"NULL",0]
["6-910","Dimension 1 [DN]","2_a_Dimension 1 [DN]",390,1,"NULL",0]
["6-910","e-BKP-H","1_b_e-BKP-H",200,"NULL","NULL",0]
["6-910","KelpyOfferteId","3_c_KelpyOfferteId","NULL",1,"NULL",0]
["6-910","Klartext Anlage","1_c_Klartext Anlage",100,"NULL","NULL",0]
["6-910","Klartext Feldgerät","1_c_Klartext Feldgeraet",100,"NULL","NULL",1]
["6-910","Kommentar technisch","9_a_Kommentar technisch",300,1,"NULL",0]
["6-910","Länge (Abmessung 1) [mm]","2_b_Laenge (Abmessung 1) [mm]",390,"NULL","NULL",0]
["6-910","Laufnummer","0_a_Laufnummer",100,"NULL","NULL",1]
["6-910","NPK","1_b_NPK",200,1,"NULL",0]
["6-910","SIA-Katalog","1_b_SIA-Katalog","NULL","NULL","NULL",0]
["6-910","System","3_b_System",200,"NULL","NULL",0]
["6-910","TypeID Nova dez","0_c_TypeID Nova dez","NULL","NULL","NULL",0]
["6-911","Anlagenstruktur-SAN","1_b_Anlagenstruktur-SAN","NULL","NULL","NULL",0]
["6-911","Anlagenummer (BKP-XXX)","1_a_Anlagenummer (BKP-XXX)",100,"NULL","NULL",1]
["6-911","Artikelnummer RMB","0_c_Artikelnummer RMB",100,"NULL","NULL",1]
["6-911","Dämmstärke [mm]","0_c_CAD Daemmstaerke [mm]",390,1,"NULL",0]
["6-911","e-BKP-H","1_b_e-BKP-H",200,"NULL","NULL",0]
["6-911","Fläche 1 [m2]","2_c_Flaeche 1 [m2]",390,"NULL","NULL",0]
["6-911","KelpyOfferteId","3_c_KelpyOfferteId","NULL",1,"NULL",0]
["6-911","Klartext Anlage","1_c_Klartext Anlage",100,"NULL","NULL",0]
["6-911","Klartext Feldgerät","1_c_Klartext Feldgeraet",100,"NULL","NULL",1]
["6-911","Kommentar technisch","9_a_Kommentar technisch",300,1,"NULL",0]
["6-911","Laufnummer","0_a_Laufnummer",100,"NULL","NULL",1]
["6-911","NPK","1_b_NPK",200,1,"NULL",0]
["6-911","SIA-Katalog","1_b_SIA-Katalog","NULL","NULL","NULL",0]
["6-911","System","3_b_System",200,"NULL","NULL",0]
["6-911","TypeID Nova dez","0_c_TypeID Nova dez","NULL","NULL","NULL",0]
["6-999","Anlagenstruktur-SAN","1_b_Anlagenstruktur-SAN","NULL","NULL","NULL",0]
["6-999","Anlagenummer (BKP-XXX)","1_a_Anlagenummer (BKP-XXX)",100,"NULL","NULL",1]
["6-999","Anlagenummer Bauherr","1_b_Anlagenummer Bauherr",490,"NULL","NULL",0]
["6-999","Artikelnummer RMB","0_c_Artikelnummer RMB",100,"NULL","NULL",1]
["6-999","Dämmstärke [mm]","0_c_CAD Daemmstaerke [mm]",300,1,"NULL",0]
["6-999","e-BKP-H","1_b_e-BKP-H",200,"NULL","NULL",0]
["6-999","Fabrikat","3_a_Fabrikat",290,1,"NULL",0]
["6-999","KelpyOfferteId","3_c_KelpyOfferteId","NULL",1,"NULL",0]
["6-999","Klartext Anlage","1_c_Klartext Anlage",100,"NULL","NULL",0]
["6-999","Klartext Feldgerät","1_c_Klartext Feldgeraet",100,"NULL","NULL",1]
["6-999","Kommentar technisch","9_a_Kommentar technisch",300,1,"NULL",0]
["6-999","Laufnummer","0_a_Laufnummer",100,"NULL","NULL",1]
["6-999","Material 1","3_c_Material 1",200,"NULL","NULL",0]
["6-999","Material 3","3_c_Material 3",200,"NULL","NULL",0]
["6-999","Materialspezifikation","0_a_Materialspezifikation","NULL",1,"NULL",0]
["6-999","NPK","1_b_NPK",200,1,"NULL",0]
["6-999","SIA-Katalog","1_b_SIA-Katalog","NULL","NULL","NULL",0]
["6-999","System","3_b_System",200,"NULL","NULL",0]
["6-999","Typ","3_a_Typ",290,1,"NULL",0]
["6-999","TypeID Nova dez","0_c_TypeID Nova dez","NULL","NULL","NULL",0]
["9-000","(Abmessung 10) [mm]","2_b_(Abmessung 10) [mm]",150,"NULL","NULL",0]
["9-000","(Abmessung 7) [mm]","2_b_(Abmessung 7) [mm]",150,"NULL","NULL",0]
["9-000","(Abmessung 8) [m]","2_b_(Abmessung 8) [m]",150,"NULL","NULL",0]
["9-000","(Abmessung 9) [m]","2_b_(Abmessung 9) [m]",150,"NULL","NULL",0]
["9-000","Abblasdruck [bar]","2_c_Abblasdruck [bar]",150,"NULL","NULL",0]
["9-000","Abblasleistung Dampf [kW]","2_c_Abblasleistung Dampf [kW]",150,"NULL","NULL",0]
["9-000","Abblasleitsung Wasser [kW]","2_c_Abblasleitsung Wasser [kW]",150,"NULL","NULL",0]
["9-000","Abfluss [l/s]","2_a_Abfluss [l/s]",150,"NULL","NULL",0]
["9-000","Abnahmetermin [Datum]","7_a_Abnahmetermin [Datum]",150,"NULL","NULL",0]
["9-000","Abscheidegrad","3_c_Abscheidegrad",150,"NULL","NULL",0]
["9-000","Absolutdruck 1 [bar]","2_c_Absolutdruck 1 [bar]",150,"NULL","NULL",0]
["9-000","Absolute Feuchte 1 [g/kg]","2_b_Absolute Feuchte 1 [g/kg]",150,"NULL","NULL",0]
["9-000","Absolute Feuchte 2 [g/kg]","2_b_Absolute Feuchte 2 [g/kg]",150,"NULL","NULL",0]
["9-000","Achse X","5_c_Achse X",150,"NULL","NULL",0]
["9-000","Achse Y","5_c_Achse Y",150,"NULL","NULL",0]
["9-000","Achse Z","5_c_Achse Z",150,"NULL","NULL",0]
["9-000","Adapter","3_c_Adapter",150,"NULL","NULL",0]
["9-000","Anlage funktional (BKP-XXX)","1_b_Anlage funktional (BKP-XXX)",150,"NULL","NULL",0]
["9-000","Anlagenstruktur-SAN","1_b_Anlagenstruktur-SAN","NULL","NULL","NULL",0]
["9-000","Anlagenummer (BKP-XXX)","1_a_Anlagenummer (BKP-XXX)",150,"NULL","NULL",0]
["9-000","Anlagenummer Bauherr","1_b_Anlagenummer Bauherr",150,"NULL","NULL",0]
["9-000","Anlaufstrom [A]","4_a_Anlaufstrom [A]",150,"NULL","NULL",0]
["9-000","Anschlussart","3_c_Anschlussart",150,"NULL","NULL",0]
["9-000","Ansprechdruck [bar]","2_a_Ansprechdruck [bar]",150,"NULL","NULL",0]
["9-000","Anzahl [Stk]","3_b_Anzahl [Stk]",150,"NULL","NULL",0]
["9-000","Artikelnummer","3_c_Artikelnummer",150,"NULL","NULL",0]
["9-000","Artikelnummer RMB","0_c_Artikelnummer RMB",150,"NULL","NULL",0]
["9-000","Ausführung 1","3_b_Ausfuehrung 1",150,"NULL","NULL",0]
["9-000","Ausführung 2","3_b_Ausfuehrung 2",150,"NULL","NULL",0]
["9-000","Ausführung 3","3_b_Ausfuehrung 3",150,"NULL","NULL",0]
["9-000","Ausführung 4","3_b_Ausfuehrung 4",150,"NULL","NULL",0]
["9-000","Ausführung 5","3_b_Ausfuehrung 5",150,"NULL","NULL",0]
["9-000","Ausführung 6","3_b_Ausfuehrung 6",150,"NULL","NULL",0]
["9-000","Ausführung 7","3_b_Ausfuehrung 7",150,"NULL","NULL",0]
["9-000","Ausführung 8","3_b_Ausfuehrung 8",150,"NULL","NULL",0]
["9-000","Bezeichnung Elektroschema (BMK)","6_a_Bezeichnung Elektroschema (BMK)",150,"NULL","NULL",0]
["9-000","Bezeichnung GA (AKS)","6_c_Bezeichnung GA (AKS)",150,"NULL","NULL",0]
["9-000","Breite (Abmessung 2) [mm]","2_b_Breite (Abmessung 2) [mm]",150,"NULL","NULL",0]
["9-000","CAD Dämmung","0_c_CAD Daemmung",150,"NULL","NULL",0]
["9-000","CAD Material","0_c_CAD Material",150,"NULL","NULL",0]
["9-000","COP 1","2_c_COP 1",150,"NULL","NULL",0]
["9-000","COP 2","2_c_COP 2",150,"NULL","NULL",0]
["9-000","COP 3","2_c_COP 3",150,"NULL","NULL",0]
["9-000","COP 4","2_c_COP 4",150,"NULL","NULL",0]
["9-000","Dämmstärke [mm]","0_c_CAD Daemmstaerke [mm]",150,"NULL","NULL",0]
["9-000","Dämmungsspezifikation","0_a_Daemmungsspezifikation",150,"NULL","NULL",0]
["9-000","Datenpunkte AI","4_c_Datenpunkte AI",150,"NULL","NULL",0]
["9-000","Datenpunkte AO","4_c_Datenpunkte AO",150,"NULL","NULL",0]
["9-000","Datenpunkte DI","4_c_Datenpunkte DI",150,"NULL","NULL",0]
["9-000","Datenpunkte DO","4_c_Datenpunkte DO",150,"NULL","NULL",0]
["9-000","Datenpunkte MBus","4_c_Datenpunkt MBus",150,"NULL","NULL",0]
["9-000","Datenpunkte VA","4_c_Datenpunkt VA",150,"NULL","NULL",0]
["9-000","Datenpunkte VD","4_c_Datenpunkt VD",150,"NULL","NULL",0]
["9-000","Dichtheitsklasse","3_c_Dichtheitsklasse",150,"NULL","NULL",0]
["9-000","Differenzdruck 1 [kPa]","2_a_Differenzdruck 1 [kPa]",150,"NULL","NULL",0]
["9-000","Differenzdruck 2 [kPa]","2_a_Differenzdruck 2 [kPa]",150,"NULL","NULL",0]
["9-000","Differenzdruck 3 [kPa]","2_a_Differenzdruck 3 [kPa]",150,"NULL","NULL",0]
["9-000","Differenzdruck 4 [kPa]","2_a_Differenzdruck 4 [kPa]",150,"NULL","NULL",0]
["9-000","Differenzdruck 5 [Pa]","2_a_Differenzdruck 5 [Pa]",150,"NULL","NULL",0]
["9-000","Differenzdruck 6 [Pa]","2_a_Differenzdruck 6 [Pa]",150,"NULL","NULL",0]
["9-000","Dimension 1 [DN]","2_a_Dimension 1 [DN]",150,"NULL","NULL",0]
["9-000","Dimension 2 [DN]","2_a_Dimension 2 [DN]",150,"NULL","NULL",0]
["9-000","Dimension 3 [DN]","2_a_Dimension 3 [DN]",150,"NULL","NULL",0]
["9-000","Dimension 4 [DN]","2_a_Dimension 4 [DN]",150,"NULL","NULL",0]
["9-000","Dimension 5 [DN]","2_a_Dimension 5 [DN]",150,"NULL","NULL",0]
["9-000","dT mittel log [K]","2_c_dT mittel log [K]",150,"NULL","NULL",0]
["9-000","Durchmesser (Abmessung 4) [mm]","2_b_Durchmesser (Abmessung 4) [mm]",150,"NULL","NULL",0]
["9-000","Durchmesser isoliert (Abmessung 5) [mm]","2_b_Durchmesser isoliert (Abmessung 5) [mm]",150,"NULL","NULL",0]
["9-000","e-BKP-H","1_b_e-BKP-H",150,"NULL","NULL",0]
["9-000","Einsatzbereich [%]","4_b_Einsatzbereich [%]",150,"NULL","NULL",0]
["9-000","Ende Garantiefrist [Datum]","8_b_Ende Garantiefrist [Datum]",150,"NULL","NULL",0]
["9-000","Energieeffizienzklasse","3_c_Energieeffizienzklasse",150,"NULL","NULL",0]
["9-000","Etappe","7_a_Etappe",150,"NULL","NULL",0]
["9-000","Ex-Schutz","4_c_Ex-Schutz",150,"NULL","NULL",0]
["9-000","Fabrikat","3_a_Fabrikat",150,"NULL","NULL",0]
["9-000","Fabrikat (Antrieb)","3_a_Fabrikat (Antrieb)",150,"NULL","NULL",0]
["9-000","Farbe 1","3_c_Farbe 1",150,"NULL","NULL",0]
["9-000","Farbe 2","3_c_Farbe 2",150,"NULL","NULL",0]
["9-000","Filterklasse","3_b_Filterklasse",150,"NULL","NULL",0]
["9-000","Fläche 1 [m2]","2_c_Flaeche 1 [m2]",150,"NULL","NULL",0]
["9-000","Fläche 2 [m2]","2_c_Flaeche 2 [m2]",150,"NULL","NULL",0]
["9-000","freier Querschnitt [%]","3_c_freier Querschnitt [%]",150,"NULL","NULL",0]
["9-000","Freigabe zur Bestellung [Datum]","7_a_Freigabe zur Bestellung [Datum]",150,"NULL","NULL",0]
["9-000","Frequenzband 1","2_c_Frequenzband 1",150,"NULL","NULL",0]
["9-000","Frequenzband 2","2_c_Frequenzband 2",150,"NULL","NULL",0]
["9-000","Fülldruck [bar]","2_c_Fuelldruck [bar]",150,"NULL","NULL",0]
["9-000","Gebäude","5_c_Gebaeude",150,"NULL","NULL",0]
["9-000","Gesamtwirkungsgrad Vollast","3_c_Gesamtwirkungsgrad Vollast",150,"NULL","NULL",0]
["9-000","Geschoss","5_a_Geschoss",150,"NULL","NULL",0]
["9-000","Geschwindigkeit 1 [m/s]","2_c_Geschwindigkeit 1 [m/s]",150,"NULL","NULL",0]
["9-000","Geschwindigkeit 2 [m/s]","2_c_Geschwindigkeit 2 [m/s]",150,"NULL","NULL",0]
["9-000","Gewicht Betrieb [kg]","2_b_Gewicht Betrieb [kg]",150,"NULL","NULL",0]
["9-000","Gewicht leer [kg]","2_c_Gewicht leer [kg]",150,"NULL","NULL",0]
["9-000","Höhe (Abmessung 3) [mm]","2_b_Hoehe (Abmessung 3) [mm]",150,"NULL","NULL",0]
["9-000","Hub [mm]","3_b_Hub [mm]",150,"NULL","NULL",0]
["9-000","Inbetriebsetzungstermin [Datum]","7_b_Inbetriebsetzungstermin [Datum]",150,"NULL","NULL",0]
["9-000","Index","Index",150,"NULL","NULL",0]
["9-000","Inhalt [kg]","2_a_Inhalt [kg]",150,"NULL","NULL",0]
["9-000","Inhalt [l]","2_a_Inhalt [l]",150,"NULL","NULL",0]
["9-000","Inhalt Anlage [l]","2_a_Inhalt Anlage [l]",150,"NULL","NULL",0]
["9-000","Instandhaltung","8_b_Instandhaltung",150,"NULL","NULL",0]
["9-000","Integration Kommunikation","4_c_Integration Kommunikation",150,"NULL","NULL",0]
["9-000","KelpyOfferteId","3_c_KelpyOfferteId","NULL","NULL","NULL",0]
["9-000","Klartext Anlage","1_c_Klartext Anlage",150,"NULL","NULL",0]
["9-000","Klartext Anlage funktional","1_c_Klartext Anlage funktional",150,"NULL","NULL",0]
["9-000","Klartext Feldgerät","1_c_Klartext Feldgeraet",100,"NULL","NULL",1]
["9-000","Klartext Feldgerät Nachtext","1_c_Klartext Feldgeraet Nachtext",150,"NULL","NULL",0]
["9-000","Klartext Raum","5_c_Klartext Raum",150,"NULL","NULL",0]
["9-000","Kommentar technisch","9_a_Kommentar technisch",300,"NULL","NULL",0]
["9-000","kvs [m3/h]","3_a_kvs [m3/h]",150,"NULL","NULL",0]
["9-000","Länge (Abmessung 1) [mm]","2_b_Laenge (Abmessung 1) [mm]",150,"NULL","NULL",0]
["9-000","Laufnummer","0_a_Laufnummer",150,"NULL","NULL",0]
["9-000","Leistung 1 (hyd) [kW]","2_a_Leistung 1 (hyd) [kW]",150,"NULL","NULL",0]
["9-000","Leistung 2 (hyd) [kW]","2_a_Leistung 2 (hyd) [kW]",150,"NULL","NULL",0]
["9-000","Leistung 3 (hyd) [kW]","2_a_Leistung 3 (hyd) [kW]",150,"NULL","NULL",0]
["9-000","Leistung 4 (hyd) [kW]","2_a_Leistung 4 (hyd) [kW]",150,"NULL","NULL",0]
["9-000","Leistung elektrisch [W]","4_a_Leistung elektrisch [W]",150,"NULL","NULL",0]
["9-000","Lieferant","3_c_Lieferant",150,"NULL","NULL",0]
["9-000","Lieferung bauseits","7_a_Lieferung bauseits",150,"NULL","NULL",0]
["9-000","Massenstrom 1 [kg/h]","2_a_Massenstrom 1 [kg/h]",150,"NULL","NULL",0]
["9-000","Massenstrom 2 [kg/h]","2_a_Massenstrom 2 [kg/h]",150,"NULL","NULL",0]
["9-000","Massenstrom 3 [kg/h]","2_a_Massenstrom 3 [kg/h]",150,"NULL","NULL",0]
["9-000","Massenstrom 4 [kg/h]","2_a_Massenstrom 4 [kg/h]",150,"NULL","NULL",0]
["9-000","Material 1","3_c_Material 1",150,"NULL","NULL",0]
["9-000","Material 2","3_c_Material 2",150,"NULL","NULL",0]
["9-000","Material 3","3_c_Material 3",150,"NULL","NULL",0]
["9-000","Material Stärke (Abmessung 6) [mm]","2_b_Material Staerke (Abmessung 6) [mm]",150,"NULL","NULL",0]
["9-000","Materialspezifikation","0_a_Materialspezifikation",150,"NULL","NULL",0]
["9-000","max. Differenzdruck [kPa]","2_c_max Differenzdruck [kPa]",150,"NULL","NULL",0]
["9-000","max. Temperatur [C]","2_c_max Temperatur [C]",150,"NULL","NULL",0]
["9-000","Medium 1","2_c_Medium 1",150,"NULL","NULL",0]
["9-000","Medium 2","2_c_Medium 2",150,"NULL","NULL",0]
["9-000","Medium 3","2_c_Medium 3",150,"NULL","NULL",0]
["9-000","Medium 4","2_c_Medium 4",150,"NULL","NULL",0]
["9-000","Medium 5","2_c_Medium 5",150,"NULL","NULL",0]
["9-000","Messart (Ausführung)","3_b_Messart (Ausfuehrung)",150,"NULL","NULL",0]
["9-000","Mieter","5_c_Mieter",150,"NULL","NULL",0]
["9-000","min. Differenzdruck [kPa]","2_c_min Differenzdruck [kPa]",150,"NULL","NULL",0]
["9-000","min. Temperatur [C]","2_c_min Temperatur [C]",150,"NULL","NULL",0]
["9-000","Montageset","3_c_Montageset",150,"NULL","NULL",0]
["9-000","Montagetermin geplant [Datum]","7_b_Montagetermin geplant [Datum]",150,"NULL","NULL",0]
["9-000","Montagetermin ist [Datum]","7_b_Montagetermin ist [Datum]",150,"NULL","NULL",0]
["9-000","Nenndruck PN [bar]","2_b_Nenndruck PN [bar]",150,"NULL","NULL",0]
["9-000","Nenndurchfluss [m3/h]","3_a_Nenndurchfluss [m3/h]",150,"NULL","NULL",0]
["9-000","NPK","1_b_NPK",150,"NULL","NULL",0]
["9-000","Nutzung","5_a_Nutzung",150,"NULL","NULL",0]
["9-000","Nutzungskategorie","5_a_Nutzungskategorie",150,"NULL","NULL",0]
["9-000","Phasen","4_b_Phasen",150,"NULL","NULL",0]
["9-000","Prüfpflicht","8_c_Pruefpflicht",150,"NULL","NULL",0]
["9-000","Raum Anlage H","5_c_Raum Anlage H",150,"NULL","NULL",0]
["9-000","Raum Anlage K","5_c_Raum Anlage K",150,"NULL","NULL",0]
["9-000","Raum Anlage L","5_c_Raum Anlage L",150,"NULL","NULL",0]
["9-000","Raumnummer","5_a_Raumnummer",150,"NULL","NULL",0]
["9-000","Regelungsart","4_a_Regelungsart",150,"NULL","NULL",0]
["9-000","Relative Feuchte 1 [%]","2_b_Relative Feuchte 1 [%]",150,"NULL","NULL",0]
["9-000","Relative Feuchte 2 [%]","2_b_Relative Feuchte 2 [%]",150,"NULL","NULL",0]
["9-000","RMB Zlr Nr.","8_a_RMB Zlr Nr",150,"NULL","NULL",0]
["9-000","Schalldruckpegel [dB]","2_b_Schalldruckpegel [dB]",150,"NULL","NULL",0]
["9-000","Schallleistungspegel [dB]","2_b_Schallleistungspegel [dB]",150,"NULL","NULL",0]
["9-000","Schutzart IP","4_c_Schutzart IP",150,"NULL","NULL",0]
["9-000","Servicevertrag [Firma]","8_b_Servicevertrag [Firma]",150,"NULL","NULL",0]
["9-000","Servicevertrag [Nummer]","8_a_Servicevertrag [Nummer]",150,"NULL","NULL",0]
["9-000","SGK Nummer","6_a_SGK Nummer",150,"NULL","NULL",0]
["9-000","SGK Zuordnung","6_a_SGK Zuordnung",150,"NULL","NULL",0]
["9-000","SIA-Katalog","1_b_SIA-Katalog","NULL","NULL","NULL",0]
["9-000","Spannung [V]","4_a_Spannung [V]",150,"NULL","NULL",0]
["9-000","Status","5_b_Status",150,"NULL","NULL",0]
["9-000","Stellkraft [N]","3_b_Stellkraft [N]",150,"NULL","NULL",0]
["9-000","Stellzeit [s]","3_b_Stellzeit [s]",150,"NULL","NULL",0]
["9-000","Steuersignal","4_a_Steuersignal",150,"NULL","NULL",0]
["9-000","Strom [A]","4_a_Strom [A]",150,"NULL","NULL",0]
["9-000","System","3_b_System",150,"NULL","NULL",0]
["9-000","Temperatur 1 [C]","2_a_Temperatur 1 [C]",150,"NULL","NULL",0]
["9-000","Temperatur 2 [C]","2_a_Temperatur 2 [C]",150,"NULL","NULL",0]
["9-000","Temperatur 3 [C]","2_a_Temperatur 3 [C]",150,"NULL","NULL",0]
["9-000","Temperatur 4 [C]","2_a_Temperatur 4 [C]",150,"NULL","NULL",0]
["9-000","Temperatur 5 [C]","2_a_Temperatur 5 [C]",150,"NULL","NULL",0]
["9-000","Temperatur 6 [C]","2_a_Temperatur 6 [C]",150,"NULL","NULL",0]
["9-000","Temperatur 7 [C]","2_a_Temperatur 7 [C]",150,"NULL","NULL",0]
["9-000","Temperatur 8 [C]","2_a_Temperatur 8 [C]",150,"NULL","NULL",0]
["9-000","Temperatur Kondensation Tc [C]","2_c_Temperatur Kondensation Tc [C]",150,"NULL","NULL",0]
["9-000","Temperatur Verdampfung T0 [C]","2_c_Temperatur Verdampfung T0 [C]",150,"NULL","NULL",0]
["9-000","Typ","3_a_Typ",150,"NULL","NULL",0]
["9-000","Typ (Antrieb)","3_a_Typ (Antrieb)",150,"NULL","NULL",0]
["9-000","TypeID Nova dez","0_c_TypeID Nova dez",150,"NULL","NULL",0]
["9-000","URL","3_c_URL",150,"NULL","NULL",0]
["9-000","Volumen 1 [m3]","2_a_Volumen [m3]",150,"NULL","NULL",0]
["9-000","Volumen 2 [m3]","2_a_Volumen 2 [m3]",150,"NULL","NULL",0]
["9-000","Volumenstrom 1 [m3/h]","2_a_Volumenstrom 1 [m3/h]",150,"NULL","NULL",0]
["9-000","Volumenstrom 2 [m3/h]","2_a_Volumenstrom 2 [m3/h]",150,"NULL","NULL",0]
["9-000","Vordruck [bar]","2_c_Vordruck [bar]",150,"NULL","NULL",0]
["9-000","Voreinstellung","3_a_Voreinstellung",150,"NULL","NULL",0]
["9-000","Wartungsintervall [Betriebsstunden]","8_c_Wartungsintervall [Betriebsstunden]",150,"NULL","NULL",0]
["9-000","Wasserhärte 1 [fH]","2_c_Wasserhaerte 1 [fH]",150,"NULL","NULL",0]
["9-000","Wasserhärte 2 [fH]","2_c_Wasserhaerte 2 [fH]",150,"NULL","NULL",0]
["9-000","Werkvertrag [Firma/Nummer]","8_c_Werkvertrag [Firma/Nummer]",150,"NULL","NULL",0]
["9-000","Winkel [Grad]","2_c_Winkel [Grad]",150,"NULL","NULL",0]
["9-000","Zulassung VKF","3_c_Zulassung VKF",150,"NULL","NULL",0]
["9-000","Zust.Unterhalt","8_c_Zust Unterhalt",150,"NULL","NULL",0]
["9-000","Zustand Stromlos","3_b_Zustand Stromlos",150,"NULL","NULL",0]
["9-001","(Abmessung 8) [m]","2_b_(Abmessung 8) [m]",290,"NULL","Modell",0]
["9-001","(Abmessung 9) [m]","2_b_(Abmessung 9) [m]",290,"NULL","Modell",0]
["9-001","Anlagenstruktur-SAN","1_b_Anlagenstruktur-SAN","NULL","NULL","NULL",0]
["9-001","Anlagenummer (BKP-XXX)","1_a_Anlagenummer (BKP-XXX)",100,"NULL","NULL",0]
["9-001","Anlagenummer Bauherr","1_b_Anlagenummer Bauherr",290,"NULL","Modell",0]
["9-001","Anzahl [Stk]","3_b_Anzahl [Stk]",290,"NULL","Modell",0]
["9-001","Artikelnummer RMB","0_c_Artikelnummer RMB",100,"NULL","NULL",0]
["9-001","Fläche 1 [m2]","2_c_Flaeche 1 [m2]",290,"NULL","Modell",0]
["9-001","Fläche 2 [m2]","2_c_Flaeche 2 [m2]",290,"NULL","Modell",0]
["9-001","Gebäude","5_c_Gebaeude",290,"NULL","Modell",0]
["9-001","Geschoss","5_a_Geschoss",290,"NULL","Modell",0]
["9-001","KelpyOfferteId","3_c_KelpyOfferteId","NULL","NULL","NULL",0]
["9-001","Klartext Anlage","1_c_Klartext Anlage",100,"NULL","NULL",0]
["9-001","Klartext Feldgerät","1_c_Klartext Feldgeraet",100,"NULL","Modell",1]
["9-001","Klartext Feldgerät Nachtext","1_c_Klartext Feldgeraet Nachtext",290,"NULL","Modell",0]
["9-001","Klartext Raum","5_c_Klartext Raum",290,"NULL","Modell",0]
["9-001","Kommentar technisch","9_a_Kommentar technisch",300,"NULL","Modell",0]
["9-001","Laufnummer","0_a_Laufnummer",100,"NULL","NULL",0]
["9-001","Leistung 1 (hyd) [kW]","2_a_Leistung 1 (hyd) [kW]",290,"NULL","Modell",0]
["9-001","Leistung 2 (hyd) [kW]","2_a_Leistung 2 (hyd) [kW]",290,"NULL","Modell",0]
["9-001","Leistung 3 (hyd) [kW]","2_a_Leistung 3 (hyd) [kW]",290,"NULL","Modell",0]
["9-001","Leistung 4 (hyd) [kW]","2_a_Leistung 4 (hyd) [kW]",290,"NULL","Modell",0]
["9-001","Mieter","5_c_Mieter",290,"NULL","Modell",0]
["9-001","Nutzung","5_a_Nutzung",290,"NULL","Modell",0]
["9-001","Nutzungskategorie","5_a_Nutzungskategorie",290,"NULL","Modell",0]
["9-001","Raum Anlage H","5_c_Raum Anlage H",290,"NULL","Modell",0]
["9-001","Raum Anlage K","5_c_Raum Anlage K",290,"NULL","Modell",0]
["9-001","Raum Anlage L","5_c_Raum Anlage L",290,"NULL","Modell",0]
["9-001","Raumnummer","5_a_Raumnummer",290,"NULL","Modell",0]
["9-001","SIA-Katalog","1_b_SIA-Katalog","NULL","NULL","NULL",0]
["9-001","System","3_b_System",290,"NULL","Modell",0]
["9-001","Temperatur 1 [C]","2_a_Temperatur 1 [C]",290,"NULL","Modell",0]
["9-001","Temperatur 2 [C]","2_a_Temperatur 2 [C]",290,"NULL","Modell",0]
["9-001","Temperatur 3 [C]","2_a_Temperatur 3 [C]",290,"NULL","Modell",0]
["9-001","Temperatur 4 [C]","2_a_Temperatur 4 [C]",290,"NULL","Modell",0]
["9-001","Temperatur 5 [C]","2_a_Temperatur 5 [C]",290,"NULL","Modell",0]
["9-001","Temperatur 6 [C]","2_a_Temperatur 6 [C]",290,"NULL","Modell",0]
["9-001","Temperatur 7 [C]","2_a_Temperatur 7 [C]",290,"NULL","Modell",0]
["9-001","Temperatur 8 [C]","2_a_Temperatur 8 [C]",290,"NULL","Modell",0]
["9-001","TypeID Nova dez","0_c_TypeID Nova dez",290,"NULL","Modell",0]
["9-001","Volumen 1 [m3]","2_a_Volumen [m3]",290,"NULL","Modell",0]
["9-001","Volumenstrom 1 [m3/h]","2_a_Volumenstrom 1 [m3/h]",290,"NULL","Modell",0]
["9-001","Volumenstrom 2 [m3/h]","2_a_Volumenstrom 2 [m3/h]",290,"NULL","Modell",0]
["9-003","Anlagenstruktur-SAN","1_b_Anlagenstruktur-SAN","NULL","NULL","NULL",0]
["9-003","Klartext Feldgerät","1_c_Klartext Feldgeraet",100,"NULL","NULL",1]
["9-003","SIA-Katalog","1_b_SIA-Katalog","NULL","NULL","NULL",0]
["9-004","Anlagenstruktur-SAN","1_b_Anlagenstruktur-SAN","NULL","NULL","NULL",0]
["9-004","Klartext Feldgerät","1_c_Klartext Feldgeraet",100,"NULL","NULL",1]
["9-004","SIA-Katalog","1_b_SIA-Katalog","NULL","NULL","NULL",0]
["9-005","Anlagenstruktur-SAN","1_b_Anlagenstruktur-SAN","NULL","NULL","NULL",0]
["9-005","Klartext Feldgerät","1_c_Klartext Feldgeraet",100,"NULL","NULL",1]
["9-005","SIA-Katalog","1_b_SIA-Katalog","NULL","NULL","NULL",0]
["9-006","Anlagenstruktur-SAN","1_b_Anlagenstruktur-SAN","NULL","NULL","NULL",0]
["9-006","Klartext Feldgerät","1_c_Klartext Feldgeraet",100,"NULL","NULL",1]
["9-006","SIA-Katalog","1_b_SIA-Katalog","NULL","NULL","NULL",0]
["9-007","Anlagenstruktur-SAN","1_b_Anlagenstruktur-SAN","NULL","NULL","NULL",0]
["9-007","Klartext Feldgerät","1_c_Klartext Feldgeraet",100,"NULL","NULL",1]
["9-007","SIA-Katalog","1_b_SIA-Katalog","NULL","NULL","NULL",0]
["9-008","Anlagenstruktur-SAN","1_b_Anlagenstruktur-SAN","NULL","NULL","NULL",0]
["9-008","Klartext Feldgerät","1_c_Klartext Feldgeraet",100,"NULL","NULL",1]
["9-008","SIA-Katalog","1_b_SIA-Katalog","NULL","NULL","NULL",0]
["9-009","(Abmessung 10) [mm]","2_b_(Abmessung 10) [mm]",300,"NULL","NULL",0]
["9-009","Abscheidegrad","3_c_Abscheidegrad",590,"NULL","NULL",0]
["9-009","Anlagenstruktur-SAN","1_b_Anlagenstruktur-SAN","NULL","NULL","NULL",0]
["9-009","Anlagenummer (BKP-XXX)","1_a_Anlagenummer (BKP-XXX)",100,"NULL","NULL",1]
["9-009","Anlagenummer Bauherr","1_b_Anlagenummer Bauherr",490,"NULL","NULL",0]
["9-009","Ansprechdruck [bar]","2_a_Ansprechdruck [bar]",390,"NULL","NULL",0]
["9-009","Artikelnummer","3_c_Artikelnummer",300,"NULL","NULL",0]
["9-009","Artikelnummer RMB","0_c_Artikelnummer RMB",100,"NULL","NULL",1]
["9-009","Ausführung 3","3_b_Ausfuehrung 3",590,"NULL","NULL",0]
["9-009","Breite (Abmessung 2) [mm]","2_b_Breite (Abmessung 2) [mm]",200,"NULL","NULL",0]
["9-009","CAD Dämmung","0_c_CAD Daemmung","NULL","NULL","NULL",0]
["9-009","Dämmstärke [mm]","0_c_CAD Daemmstaerke [mm]",390,"NULL","NULL",0]
["9-009","Dichtheitsklasse","3_c_Dichtheitsklasse",390,"NULL","NULL",0]
["9-009","Differenzdruck 5 [Pa]","2_a_Differenzdruck 5 [Pa]",390,"NULL","NULL",0]
["9-009","Dimension 1 [DN]","2_a_Dimension 1 [DN]",290,"NULL","NULL",0]
["9-009","Durchmesser (Abmessung 4) [mm]","2_b_Durchmesser (Abmessung 4) [mm]",200,"NULL","NULL",0]
["9-009","Durchmesser isoliert (Abmessung 5) [mm]","2_b_Durchmesser isoliert (Abmessung 5) [mm]",590,"NULL","NULL",0]
["9-009","e-BKP-H","1_b_e-BKP-H",200,"NULL","NULL",0]
["9-009","Fabrikat","3_a_Fabrikat",290,"NULL","NULL",0]
["9-009","Farbe 1","3_c_Farbe 1",390,"NULL","NULL",0]
["9-009","Fläche 1 [m2]","2_c_Flaeche 1 [m2]",390,"NULL","NULL",0]
["9-009","Fläche 2 [m2]","2_c_Flaeche 2 [m2]",390,"NULL","NULL",0]
["9-009","freier Querschnitt [%]","3_c_freier Querschnitt [%]",390,"NULL","NULL",0]
["9-009","Freigabe zur Bestellung [Datum]","7_a_Freigabe zur Bestellung [Datum]",400,"NULL","NULL",0]
["9-009","Frequenzband 1","2_c_Frequenzband 1",390,"NULL","NULL",0]
["9-009","Frequenzband 2","2_c_Frequenzband 2",390,"NULL","NULL",0]
["9-009","Gebäude","5_c_Gebaeude",200,"NULL","NULL",0]
["9-009","Geschoss","5_a_Geschoss",200,"NULL","NULL",0]
["9-009","Gewicht Betrieb [kg]","2_b_Gewicht Betrieb [kg]",390,"NULL","NULL",0]
["9-009","Höhe (Abmessung 3) [mm]","2_b_Hoehe (Abmessung 3) [mm]",200,"NULL","NULL",0]
["9-009","Inbetriebsetzungstermin [Datum]","7_b_Inbetriebsetzungstermin [Datum]",590,"NULL","NULL",0]
["9-009","KelpyOfferteId","3_c_KelpyOfferteId","NULL","NULL","NULL",0]
["9-009","Klartext Anlage","1_c_Klartext Anlage",100,"NULL","NULL",0]
["9-009","Klartext Anlage funktional","1_c_Klartext Anlage funktional",590,"NULL","NULL",0]
["9-009","Klartext Feldgerät","1_c_Klartext Feldgeraet",100,"NULL","NULL",1]
["9-009","Klartext Feldgerät Nachtext","1_c_Klartext Feldgeraet Nachtext",390,"NULL","NULL",0]
["9-009","Klartext Raum","5_c_Klartext Raum",200,"NULL","NULL",0]
["9-009","Kommentar technisch","9_a_Kommentar technisch",300,"NULL","NULL",0]
["9-009","Länge (Abmessung 1) [mm]","2_b_Laenge (Abmessung 1) [mm]",200,"NULL","NULL",0]
["9-009","Laufnummer","0_a_Laufnummer",100,"NULL","NULL",1]
["9-009","Lieferant","3_c_Lieferant",300,"NULL","NULL",0]
["9-009","Lieferung bauseits","7_a_Lieferung bauseits",300,"NULL","NULL",0]
["9-009","Material 1","3_c_Material 1",390,"NULL","NULL",0]
["9-009","Material 2","3_c_Material 2",390,"NULL","NULL",0]
["9-009","Material Stärke (Abmessung 6) [mm]","2_b_Material Staerke (Abmessung 6) [mm]",390,"NULL","NULL",0]
["9-009","Nenndurchfluss [m3/h]","3_a_Nenndurchfluss [m3/h]",290,"NULL","NULL",0]
["9-009","NPK","1_b_NPK",200,"NULL","NULL",0]
["9-009","Nutzung","5_a_Nutzung",390,"NULL","NULL",0]
["9-009","Raumnummer","5_a_Raumnummer",200,"NULL","NULL",0]
["9-009","Schalldruckpegel [dB]","2_b_Schalldruckpegel [dB]",490,"NULL","NULL",0]
["9-009","Schallleistungspegel [dB]","2_b_Schallleistungspegel [dB]",390,"NULL","NULL",0]
["9-009","SIA-Katalog","1_b_SIA-Katalog","NULL","NULL","NULL",0]
["9-009","System","3_b_System",200,"NULL","Prinzipschema",0]
["9-009","Typ","3_a_Typ",290,"NULL","NULL",0]
["9-009","TypeID Nova dez","0_c_TypeID Nova dez","NULL","NULL","NULL",0]
["9-009","URL","3_c_URL",300,"NULL","NULL",0]
["9-009","Volumenstrom 1 [m3/h]","2_a_Volumenstrom 1 [m3/h]",390,"NULL","NULL",0]
["9-009","Zulassung VKF","3_c_Zulassung VKF",590,"NULL","NULL",0]
["9-009","Zust.Unterhalt","8_c_Zust Unterhalt",300,"NULL","NULL",0]
["9-010","(Abmessung 10) [mm]","2_b_(Abmessung 10) [mm]",300,"NULL","NULL",0]
["9-010","(Abmessung 7) [mm]","2_b_(Abmessung 7) [mm]",300,"NULL","NULL",0]
["9-010","Abnahmetermin [Datum]","7_a_Abnahmetermin [Datum]",590,"NULL","NULL",0]
["9-010","Abscheidegrad","3_c_Abscheidegrad",590,"NULL","NULL",0]
["9-010","Anlage funktional (BKP-XXX)","1_b_Anlage funktional (BKP-XXX)",490,"NULL","NULL",0]
["9-010","Anlagenstruktur-SAN","1_b_Anlagenstruktur-SAN","NULL","NULL","NULL",0]
["9-010","Anlagenummer (BKP-XXX)","1_a_Anlagenummer (BKP-XXX)",100,"NULL","NULL",1]
["9-010","Anlagenummer Bauherr","1_b_Anlagenummer Bauherr",490,"NULL","NULL",0]
["9-010","Ansprechdruck [bar]","2_a_Ansprechdruck [bar]",390,"NULL","NULL",0]
["9-010","Artikelnummer","3_c_Artikelnummer",300,"NULL","Modell",0]
["9-010","Artikelnummer RMB","0_c_Artikelnummer RMB",100,"NULL","NULL",1]
["9-010","Ausführung 3","3_b_Ausfuehrung 3",590,"NULL","NULL",0]
["9-010","Bezeichnung Elektroschema (BMK)","6_a_Bezeichnung Elektroschema (BMK)",390,"NULL","NULL",0]
["9-010","Bezeichnung GA (AKS)","6_c_Bezeichnung GA (AKS)",590,"NULL","NULL",0]
["9-010","Breite (Abmessung 2) [mm]","2_b_Breite (Abmessung 2) [mm]",200,"NULL","NULL",0]
["9-010","CAD Dämmung","0_c_CAD Daemmung","NULL","NULL","NULL",0]
["9-010","CAD Material","0_c_CAD Material","NULL","NULL","NULL",0]
["9-010","Dämmstärke [mm]","0_c_CAD Daemmstaerke [mm]",390,"NULL","NULL",0]
["9-010","Dämmungsspezifikation","0_a_Daemmungsspezifikation","NULL","NULL","Prinzipschema",0]
["9-010","Datenpunkte AI","4_c_Datenpunkte AI",590,"NULL","NULL",0]
["9-010","Datenpunkte AO","4_c_Datenpunkte AO",590,"NULL","NULL",0]
["9-010","Datenpunkte DI","4_c_Datenpunkte DI",590,"NULL","NULL",0]
["9-010","Datenpunkte DO","4_c_Datenpunkte DO",590,"NULL","NULL",0]
["9-010","Datenpunkte MBus","4_c_Datenpunkt MBus",590,"NULL","NULL",0]
["9-010","Datenpunkte VA","4_c_Datenpunkt VA",590,"NULL","NULL",0]
["9-010","Datenpunkte VD","4_c_Datenpunkt VD",590,"NULL","NULL",0]
["9-010","Dichtheitsklasse","3_c_Dichtheitsklasse",390,"NULL","NULL",0]
["9-010","Differenzdruck 2 [kPa]","2_a_Differenzdruck 2 [kPa]",390,"NULL","NULL",0]
["9-010","Differenzdruck 5 [Pa]","2_a_Differenzdruck 5 [Pa]",390,"NULL","NULL",0]
["9-010","Differenzdruck 6 [Pa]","2_a_Differenzdruck 6 [Pa]",390,"NULL","NULL",0]
["9-010","Durchmesser (Abmessung 4) [mm]","2_b_Durchmesser (Abmessung 4) [mm]",200,"NULL","NULL",0]
["9-010","Durchmesser isoliert (Abmessung 5) [mm]","2_b_Durchmesser isoliert (Abmessung 5) [mm]",590,"NULL","NULL",0]
["9-010","e-BKP-H","1_b_e-BKP-H",200,"NULL","NULL",0]
["9-010","Einsatzbereich [%]","4_b_Einsatzbereich [%]",590,"NULL","NULL",0]
["9-010","Energieeffizienzklasse","3_c_Energieeffizienzklasse",590,"NULL","NULL",0]
["9-010","Ex-Schutz","4_c_Ex-Schutz",590,"NULL","NULL",0]
["9-010","Fabrikat","3_a_Fabrikat",290,"NULL","NULL",0]
["9-010","Fabrikat (Antrieb)","3_a_Fabrikat (Antrieb)",290,"NULL","NULL",0]
["9-010","Filterklasse","3_b_Filterklasse",390,"NULL","NULL",0]
["9-010","Fläche 1 [m2]","2_c_Flaeche 1 [m2]",390,"NULL","NULL",0]
["9-010","Fläche 2 [m2]","2_c_Flaeche 2 [m2]",390,"NULL","NULL",0]
["9-010","Freigabe zur Bestellung [Datum]","7_a_Freigabe zur Bestellung [Datum]",400,"NULL","NULL",0]
["9-010","Frequenzband 1","2_c_Frequenzband 1",390,"NULL","NULL",0]
["9-010","Frequenzband 2","2_c_Frequenzband 2",390,"NULL","NULL",0]
["9-010","Gebäude","5_c_Gebaeude",200,"NULL","NULL",0]
["9-010","Geschoss","5_a_Geschoss",200,"NULL","Modell",0]
["9-010","Gewicht Betrieb [kg]","2_b_Gewicht Betrieb [kg]",390,"NULL","NULL",0]
["9-010","Höhe (Abmessung 3) [mm]","2_b_Hoehe (Abmessung 3) [mm]",200,"NULL","NULL",0]
["9-010","Inbetriebsetzungstermin [Datum]","7_b_Inbetriebsetzungstermin [Datum]",590,"NULL","NULL",0]
["9-010","Instandhaltung","8_b_Instandhaltung",300,"NULL","NULL",0]
["9-010","KelpyOfferteId","3_c_KelpyOfferteId","NULL","NULL","NULL",0]
["9-010","Klartext Anlage","1_c_Klartext Anlage",100,"NULL","NULL",0]
["9-010","Klartext Anlage funktional","1_c_Klartext Anlage funktional",590,"NULL","NULL",0]
["9-010","Klartext Feldgerät","1_c_Klartext Feldgeraet",100,"NULL","Prinzipschema",1]
["9-010","Klartext Feldgerät Nachtext","1_c_Klartext Feldgeraet Nachtext",390,"NULL","NULL",0]
["9-010","Klartext Raum","5_c_Klartext Raum",200,"NULL","Modell",0]
["9-010","Kommentar technisch","9_a_Kommentar technisch",300,"NULL","NULL",0]
["9-010","Länge (Abmessung 1) [mm]","2_b_Laenge (Abmessung 1) [mm]",200,"NULL","NULL",0]
["9-010","Laufnummer","0_a_Laufnummer",100,"NULL","NULL",1]
["9-010","Lieferant","3_c_Lieferant",300,"NULL","NULL",0]
["9-010","Lieferung bauseits","7_a_Lieferung bauseits",300,"NULL","NULL",0]
["9-010","Massenstrom 2 [kg/h]","2_a_Massenstrom 2 [kg/h]",390,"NULL","NULL",0]
["9-010","Material 1","3_c_Material 1",390,"NULL","NULL",0]
["9-010","Material 2","3_c_Material 2",390,"NULL","NULL",0]
["9-010","Material 3","3_c_Material 3",390,"NULL","NULL",0]
["9-010","Material Stärke (Abmessung 6) [mm]","2_b_Material Staerke (Abmessung 6) [mm]",390,"NULL","NULL",0]
["9-010","Materialspezifikation","0_a_Materialspezifikation","NULL","NULL","Prinzipschema",0]
["9-010","Medium 2","2_c_Medium 2",590,"NULL","NULL",0]
["9-010","Montageset","3_c_Montageset",590,"NULL","NULL",0]
["9-010","Nenndurchfluss [m3/h]","3_a_Nenndurchfluss [m3/h]",290,"NULL","NULL",0]
["9-010","NPK","1_b_NPK",200,"NULL","NULL",0]
["9-010","Nutzung","5_a_Nutzung",390,"NULL","NULL",0]
["9-010","Phasen","4_b_Phasen",390,"NULL","NULL",0]
["9-010","Raumnummer","5_a_Raumnummer",200,"NULL","Modell",0]
["9-010","Regelungsart","4_a_Regelungsart",390,"NULL","NULL",0]
["9-010","Schalldruckpegel [dB]","2_b_Schalldruckpegel [dB]",490,"NULL","NULL",0]
["9-010","Schallleistungspegel [dB]","2_b_Schallleistungspegel [dB]",390,"NULL","NULL",0]
["9-010","Schutzart IP","4_c_Schutzart IP",590,"NULL","NULL",0]
["9-010","SGK Nummer","6_a_SGK Nummer",390,"NULL","NULL",0]
["9-010","SGK Zuordnung","6_a_SGK Zuordnung",390,"NULL","NULL",0]
["9-010","SIA-Katalog","1_b_SIA-Katalog","NULL","NULL","NULL",0]
["9-010","Spannung [V]","4_a_Spannung [V]",390,"NULL","NULL",0]
["9-010","Status","5_b_Status",390,"NULL","NULL",0]
["9-010","Stellkraft [N]","3_b_Stellkraft [N]",290,"NULL","NULL",0]
["9-010","Stellzeit [s]","3_b_Stellzeit [s]",290,"NULL","NULL",0]
["9-010","Steuersignal","4_a_Steuersignal",390,"NULL","NULL",0]
["9-010","Strom [A]","4_a_Strom [A]",390,"NULL","NULL",0]
["9-010","System","3_b_System",200,"NULL","Prinzipschema",0]
["9-010","Temperatur 2 [C]","2_a_Temperatur 2 [C]",390,"NULL","NULL",0]
["9-010","Temperatur 3 [C]","2_a_Temperatur 3 [C]",390,"NULL","NULL",0]
["9-010","Typ","3_a_Typ",290,"NULL","NULL",0]
["9-010","Typ (Antrieb)","3_a_Typ (Antrieb)",290,"NULL","NULL",0]
["9-010","TypeID Nova dez","0_c_TypeID Nova dez","NULL","NULL","NULL",0]
["9-010","URL","3_c_URL",300,"NULL","NULL",0]
["9-010","Volumenstrom 1 [m3/h]","2_a_Volumenstrom 1 [m3/h]",390,"NULL","NULL",0]
["9-010","Volumenstrom 2 [m3/h]","2_a_Volumenstrom 2 [m3/h]",390,"NULL","NULL",0]
["9-010","Zulassung VKF","3_c_Zulassung VKF",590,"NULL","NULL",0]
["9-010","Zust.Unterhalt","8_c_Zust Unterhalt",300,"NULL","NULL",0]